{"text_format":"1","workbook":"xlsx","n_sheets":5,"sheets":["Welcome","Submission Form","Settings","LibraryTypes","Thousands"],"not_rendered":{"charts":0,"images":3,"macros":1,"external_links":0,"defined_names":60,"comments":0,"pivot_tables":0},"unopened":[],"bounds":{"document_bytes":16777216,"sheet_cells":100000,"rows_first":2000,"rows_last":500,"rows_between":2000,"halvings":0,"cell_chars":16384,"cell_head_chars":4096},"cells_cut":0,"cells_raw":0,"read":"whole","date_system":"1900"}

{"sheet":"Welcome","index":0,"n_rows":0,"n_cols":0,"rows_kept":0,"cut":false,"hidden":false,"merged":[]}

{"sheet":"Submission Form","index":1,"n_rows":417,"n_cols":19,"rows_kept":417,"cut":false,"hidden":true,"merged":[[13,5,14,5],[13,6,14,6],[13,7,14,7],[13,8,14,8],[13,9,14,9],[1,0,1,4],[3,0,3,1],[13,1,14,1],[13,2,14,2],[13,3,14,3],[13,4,14,4],[13,12,14,12],[13,13,14,13],[14,14,14,16],[3,8,3,10],[1,8,1,10],[13,10,14,10],[13,11,14,11]]}
["10x",1.5]
["Crown Institute for Genomics:   Single Cell Suspension Sample Submission Form",null,null,null,null,null,null,null,"Can only be filled with Office 365"]
["Fields marked in * are required"]
["Complete the information in the red/light blue fields and in continuous rows",null,null,null,null,"INCPM number","for internal use",null,"Incomplete Fields/Errors Detected"]
[]
["Order & user details:"]
["*Researcher first and last name",null,"No more than a single space allowed!"]
["*Lab PI first and last name",null,"No more than a single space allowed!"]
["*Researcher mobile phone number",null,"e.g. 054-1234567 or 0541234567"]
["*Researcher E-Mail address",null,"A valid email address shall be entered"]
["*Institute "]
["*INCPM Bioinformatics Analysis"]
[]
[null,"Up to 15 characters unique name with\nletters, digits, \"-\"s, \"+\"s, or \"_\"s","A value in the drop-down list",null,"A value in the drop-down list","A value in the drop-down list",null,null,null,"A value in the drop-down list.\nIn case of 'other', specify in the Comments.",null,"A value in the drop-down list","A value in the drop-down list","A value in the drop-down list"]
["10X_Genomics and NGS Run details:",null,null,null,null,null,null,null,null,null,null,null,null,null,"A decimal value greater than 0, to be filled on the day of the experiment"]
["Sample No. (as written on the side of the tube) ","*Sample name","*Library type","Item description","*Extension","*Targeted number of cells","*Cell type","*Species","Cell isolation method","*Final cell suspension","Method of counting","*Illumina sequencer and run mode","*Read type & length","*Number of Kits","*Cell con. (cell/ul)","*Estimated viability (%)","*Vol. (ul)","Comments","Suffix"]
[1,null,null,{"$f":"_xlfn.IFNA(_xlfn.TEXTJOIN(\"; \",TRUE,INDEX(ItemDescriptionsTable[#Data],,MATCH($C17, ItemDescriptionsTable[#Headers], 0))),\"\")","v":""},null,null,null,null,null,null,null,null,null,null,null,null,null,null,{"$f":"_xlfn.LET(_xlpm.col,IF(NOT(OR(IsEmpty($B17),IsEmpty($C17),IsEmpty($E17))),MATCH($C17,ExtensionsTable[#Headers],0),\"\"),\n_xlpm.row,IF(_xlpm.col=\"\",\"\",ROW(INDEX(ExtensionsTable[], MATCH($E17, INDEX(ExtensionsTable[], , _xlpm.col), 0), 1))-ROW(ExtensionsTable[[#Headers],[Gene Expression ]])),\nIF(OR(_xlpm.col=\"\",_xlpm.row=\"\"),\"\",INDEX(SuffixesTable[], _xlpm.row, _xlpm.col)))","v":""}]
[2,null,null,{"$f":"_xlfn.IFNA(_xlfn.TEXTJOIN(\"; \",TRUE,INDEX(ItemDescriptionsTable[#Data],,MATCH($C18, ItemDescriptionsTable[#Headers], 0))),\"\")","v":""},null,null,null,null,null,null,null,null,null,null,null,null,null,null,{"$f":"_xlfn.LET(_xlpm.col,IF(NOT(OR(IsEmpty($B18),IsEmpty($C18),IsEmpty($E18))),MATCH($C18,ExtensionsTable[#Headers],0),\"\"),\n_xlpm.row,IF(_xlpm.col=\"\",\"\",ROW(INDEX(ExtensionsTable[], MATCH($E18, INDEX(ExtensionsTable[], , _xlpm.col), 0), 1))-ROW(ExtensionsTable[[#Headers],[Gene Expression ]])),\nIF(OR(_xlpm.col=\"\",_xlpm.row=\"\"),\"\",INDEX(SuffixesTable[], _xlpm.row, _xlpm.col)))","v":""}]
[3,null,null,{"$f":"_xlfn.IFNA(_xlfn.TEXTJOIN(\"; \",TRUE,INDEX(ItemDescriptionsTable[#Data],,MATCH($C19, ItemDescriptionsTable[#Headers], 0))),\"\")","v":""},null,null,null,null,null,null,null,null,null,null,null,null,null,null,{"$f":"_xlfn.LET(_xlpm.col,IF(NOT(OR(IsEmpty($B19),IsEmpty($C19),IsEmpty($E19))),MATCH($C19,ExtensionsTable[#Headers],0),\"\"),\n_xlpm.row,IF(_xlpm.col=\"\",\"\",ROW(INDEX(ExtensionsTable[], MATCH($E19, INDEX(ExtensionsTable[], , _xlpm.col), 0), 1))-ROW(ExtensionsTable[[#Headers],[Gene Expression ]])),\nIF(OR(_xlpm.col=\"\",_xlpm.row=\"\"),\"\",INDEX(SuffixesTable[], _xlpm.row, _xlpm.col)))","v":""}]
[4,null,null,{"$f":"_xlfn.IFNA(_xlfn.TEXTJOIN(\"; \",TRUE,INDEX(ItemDescriptionsTable[#Data],,MATCH($C20, ItemDescriptionsTable[#Headers], 0))),\"\")","v":""},null,null,null,null,null,null,null,null,null,null,null,null,null,null,{"$f":"_xlfn.LET(_xlpm.col,IF(NOT(OR(IsEmpty($B20),IsEmpty($C20),IsEmpty($E20))),MATCH($C20,ExtensionsTable[#Headers],0),\"\"),\n_xlpm.row,IF(_xlpm.col=\"\",\"\",ROW(INDEX(ExtensionsTable[], MATCH($E20, INDEX(ExtensionsTable[], , _xlpm.col), 0), 1))-ROW(ExtensionsTable[[#Headers],[Gene Expression ]])),\nIF(OR(_xlpm.col=\"\",_xlpm.row=\"\"),\"\",INDEX(SuffixesTable[], _xlpm.row, _xlpm.col)))","v":""}]
[5,null,null,{"$f":"_xlfn.IFNA(_xlfn.TEXTJOIN(\"; \",TRUE,INDEX(ItemDescriptionsTable[#Data],,MATCH($C21, ItemDescriptionsTable[#Headers], 0))),\"\")","v":""},null,null,null,null,null,null,null,null,null,null,null,null,null,null,{"$f":"_xlfn.LET(_xlpm.col,IF(NOT(OR(IsEmpty($B21),IsEmpty($C21),IsEmpty($E21))),MATCH($C21,ExtensionsTable[#Headers],0),\"\"),\n_xlpm.row,IF(_xlpm.col=\"\",\"\",ROW(INDEX(ExtensionsTable[], MATCH($E21, INDEX(ExtensionsTable[], , _xlpm.col), 0), 1))-ROW(ExtensionsTable[[#Headers],[Gene Expression ]])),\nIF(OR(_xlpm.col=\"\",_xlpm.row=\"\"),\"\",INDEX(SuffixesTable[], _xlpm.row, _xlpm.col)))","v":""}]
[6,null,null,{"$f":"_xlfn.IFNA(_xlfn.TEXTJOIN(\"; \",TRUE,INDEX(ItemDescriptionsTable[#Data],,MATCH($C22, ItemDescriptionsTable[#Headers], 0))),\"\")","v":""},null,null,null,null,null,null,null,null,null,null,null,null,null,null,{"$f":"_xlfn.LET(_xlpm.col,IF(NOT(OR(IsEmpty($B22),IsEmpty($C22),IsEmpty($E22))),MATCH($C22,ExtensionsTable[#Headers],0),\"\"),\n_xlpm.row,IF(_xlpm.col=\"\",\"\",ROW(INDEX(ExtensionsTable[], MATCH($E22, INDEX(ExtensionsTable[], , _xlpm.col), 0), 1))-ROW(ExtensionsTable[[#Headers],[Gene Expression ]])),\nIF(OR(_xlpm.col=\"\",_xlpm.row=\"\"),\"\",INDEX(SuffixesTable[], _xlpm.row, _xlpm.col)))","v":""}]
[7,null,null,{"$f":"_xlfn.IFNA(_xlfn.TEXTJOIN(\"; \",TRUE,INDEX(ItemDescriptionsTable[#Data],,MATCH($C23, ItemDescriptionsTable[#Headers], 0))),\"\")","v":""},null,null,null,null,null,null,null,null,null,null,null,null,null,null,{"$f":"_xlfn.LET(_xlpm.col,IF(NOT(OR(IsEmpty($B23),IsEmpty($C23),IsEmpty($E23))),MATCH($C23,ExtensionsTable[#Headers],0),\"\"),\n_xlpm.row,IF(_xlpm.col=\"\",\"\",ROW(INDEX(ExtensionsTable[], MATCH($E23, INDEX(ExtensionsTable[], , _xlpm.col), 0), 1))-ROW(ExtensionsTable[[#Headers],[Gene Expression ]])),\nIF(OR(_xlpm.col=\"\",_xlpm.row=\"\"),\"\",INDEX(SuffixesTable[], _xlpm.row, _xlpm.col)))","v":""}]
[8,null,null,{"$f":"_xlfn.IFNA(_xlfn.TEXTJOIN(\"; \",TRUE,INDEX(ItemDescriptionsTable[#Data],,MATCH($C24, ItemDescriptionsTable[#Headers], 0))),\"\")","v":""},null,null,null,null,null,null,null,null,null,null,null,null,null,null,{"$f":"_xlfn.LET(_xlpm.col,IF(NOT(OR(IsEmpty($B24),IsEmpty($C24),IsEmpty($E24))),MATCH($C24,ExtensionsTable[#Headers],0),\"\"),\n_xlpm.row,IF(_xlpm.col=\"\",\"\",ROW(INDEX(ExtensionsTable[], MATCH($E24, INDEX(ExtensionsTable[], , _xlpm.col), 0), 1))-ROW(ExtensionsTable[[#Headers],[Gene Expression ]])),\nIF(OR(_xlpm.col=\"\",_xlpm.row=\"\"),\"\",INDEX(SuffixesTable[], _xlpm.row, _xlpm.col)))","v":""}]
[9,null,null,{"$f":"_xlfn.IFNA(_xlfn.TEXTJOIN(\"; \",TRUE,INDEX(ItemDescriptionsTable[#Data],,MATCH($C25, ItemDescriptionsTable[#Headers], 0))),\"\")","v":""},null,null,null,null,null,null,null,null,null,null,null,null,null,null,{"$f":"_xlfn.LET(_xlpm.col,IF(NOT(OR(IsEmpty($B25),IsEmpty($C25),IsEmpty($E25))),MATCH($C25,ExtensionsTable[#Headers],0),\"\"),\n_xlpm.row,IF(_xlpm.col=\"\",\"\",ROW(INDEX(ExtensionsTable[], MATCH($E25, INDEX(ExtensionsTable[], , _xlpm.col), 0), 1))-ROW(ExtensionsTable[[#Headers],[Gene Expression ]])),\nIF(OR(_xlpm.col=\"\",_xlpm.row=\"\"),\"\",INDEX(SuffixesTable[], _xlpm.row, _xlpm.col)))","v":""}]
[10,null,null,{"$f":"_xlfn.IFNA(_xlfn.TEXTJOIN(\"; \",TRUE,INDEX(ItemDescriptionsTable[#Data],,MATCH($C26, ItemDescriptionsTable[#Headers], 0))),\"\")","v":""},null,null,null,null,null,null,null,null,null,null,null,null,null,null,{"$f":"_xlfn.LET(_xlpm.col,IF(NOT(OR(IsEmpty($B26),IsEmpty($C26),IsEmpty($E26))),MATCH($C26,ExtensionsTable[#Headers],0),\"\"),\n_xlpm.row,IF(_xlpm.col=\"\",\"\",ROW(INDEX(ExtensionsTable[], MATCH($E26, INDEX(ExtensionsTable[], , _xlpm.col), 0), 1))-ROW(ExtensionsTable[[#Headers],[Gene Expression ]])),\nIF(OR(_xlpm.col=\"\",_xlpm.row=\"\"),\"\",INDEX(SuffixesTable[], _xlpm.row, _xlpm.col)))","v":""}]
[11,null,null,{"$f":"_xlfn.IFNA(_xlfn.TEXTJOIN(\"; \",TRUE,INDEX(ItemDescriptionsTable[#Data],,MATCH($C27, ItemDescriptionsTable[#Headers], 0))),\"\")","v":""},null,null,null,null,null,null,null,null,null,null,null,null,null,null,{"$f":"_xlfn.LET(_xlpm.col,IF(NOT(OR(IsEmpty($B27),IsEmpty($C27),IsEmpty($E27))),MATCH($C27,ExtensionsTable[#Headers],0),\"\"),\n_xlpm.row,IF(_xlpm.col=\"\",\"\",ROW(INDEX(ExtensionsTable[], MATCH($E27, INDEX(ExtensionsTable[], , _xlpm.col), 0), 1))-ROW(ExtensionsTable[[#Headers],[Gene Expression ]])),\nIF(OR(_xlpm.col=\"\",_xlpm.row=\"\"),\"\",INDEX(SuffixesTable[], _xlpm.row, _xlpm.col)))","v":""}]
[12,null,null,{"$f":"_xlfn.IFNA(_xlfn.TEXTJOIN(\"; \",TRUE,INDEX(ItemDescriptionsTable[#Data],,MATCH($C28, ItemDescriptionsTable[#Headers], 0))),\"\")","v":""},null,null,null,null,null,null,null,null,null,null,null,null,null,null,{"$f":"_xlfn.LET(_xlpm.col,IF(NOT(OR(IsEmpty($B28),IsEmpty($C28),IsEmpty($E28))),MATCH($C28,ExtensionsTable[#Headers],0),\"\"),\n_xlpm.row,IF(_xlpm.col=\"\",\"\",ROW(INDEX(ExtensionsTable[], MATCH($E28, INDEX(ExtensionsTable[], , _xlpm.col), 0), 1))-ROW(ExtensionsTable[[#Headers],[Gene Expression ]])),\nIF(OR(_xlpm.col=\"\",_xlpm.row=\"\"),\"\",INDEX(SuffixesTable[], _xlpm.row, _xlpm.col)))","v":""}]
[13,null,null,{"$f":"_xlfn.IFNA(_xlfn.TEXTJOIN(\"; \",TRUE,INDEX(ItemDescriptionsTable[#Data],,MATCH($C29, ItemDescriptionsTable[#Headers], 0))),\"\")","v":""},null,null,null,null,null,null,null,null,null,null,null,null,null,null,{"$f":"_xlfn.LET(_xlpm.col,IF(NOT(OR(IsEmpty($B29),IsEmpty($C29),IsEmpty($E29))),MATCH($C29,ExtensionsTable[#Headers],0),\"\"),\n_xlpm.row,IF(_xlpm.col=\"\",\"\",ROW(INDEX(ExtensionsTable[], MATCH($E29, INDEX(ExtensionsTable[], , _xlpm.col), 0), 1))-ROW(ExtensionsTable[[#Headers],[Gene Expression ]])),\nIF(OR(_xlpm.col=\"\",_xlpm.row=\"\"),\"\",INDEX(SuffixesTable[], _xlpm.row, _xlpm.col)))","v":""}]
[14,null,null,{"$f":"_xlfn.IFNA(_xlfn.TEXTJOIN(\"; \",TRUE,INDEX(ItemDescriptionsTable[#Data],,MATCH($C30, ItemDescriptionsTable[#Headers], 0))),\"\")","v":""},null,null,null,null,null,null,null,null,null,null,null,null,null,null,{"$f":"_xlfn.LET(_xlpm.col,IF(NOT(OR(IsEmpty($B30),IsEmpty($C30),IsEmpty($E30))),MATCH($C30,ExtensionsTable[#Headers],0),\"\"),\n_xlpm.row,IF(_xlpm.col=\"\",\"\",ROW(INDEX(ExtensionsTable[], MATCH($E30, INDEX(ExtensionsTable[], , _xlpm.col), 0), 1))-ROW(ExtensionsTable[[#Headers],[Gene Expression ]])),\nIF(OR(_xlpm.col=\"\",_xlpm.row=\"\"),\"\",INDEX(SuffixesTable[], _xlpm.row, _xlpm.col)))","v":""}]
[15,null,null,{"$f":"_xlfn.IFNA(_xlfn.TEXTJOIN(\"; \",TRUE,INDEX(ItemDescriptionsTable[#Data],,MATCH($C31, ItemDescriptionsTable[#Headers], 0))),\"\")","v":""},null,null,null,null,null,null,null,null,null,null,null,null,null,null,{"$f":"_xlfn.LET(_xlpm.col,IF(NOT(OR(IsEmpty($B31),IsEmpty($C31),IsEmpty($E31))),MATCH($C31,ExtensionsTable[#Headers],0),\"\"),\n_xlpm.row,IF(_xlpm.col=\"\",\"\",ROW(INDEX(ExtensionsTable[], MATCH($E31, INDEX(ExtensionsTable[], , _xlpm.col), 0), 1))-ROW(ExtensionsTable[[#Headers],[Gene Expression ]])),\nIF(OR(_xlpm.col=\"\",_xlpm.row=\"\"),\"\",INDEX(SuffixesTable[], _xlpm.row, _xlpm.col)))","v":""}]
[16,null,null,{"$f":"_xlfn.IFNA(_xlfn.TEXTJOIN(\"; \",TRUE,INDEX(ItemDescriptionsTable[#Data],,MATCH($C32, ItemDescriptionsTable[#Headers], 0))),\"\")","v":""},null,null,null,null,null,null,null,null,null,null,null,null,null,null,{"$f":"_xlfn.LET(_xlpm.col,IF(NOT(OR(IsEmpty($B32),IsEmpty($C32),IsEmpty($E32))),MATCH($C32,ExtensionsTable[#Headers],0),\"\"),\n_xlpm.row,IF(_xlpm.col=\"\",\"\",ROW(INDEX(ExtensionsTable[], MATCH($E32, INDEX(ExtensionsTable[], , _xlpm.col), 0), 1))-ROW(ExtensionsTable[[#Headers],[Gene Expression ]])),\nIF(OR(_xlpm.col=\"\",_xlpm.row=\"\"),\"\",INDEX(SuffixesTable[], _xlpm.row, _xlpm.col)))","v":""}]
[17,null,null,{"$f":"_xlfn.IFNA(_xlfn.TEXTJOIN(\"; \",TRUE,INDEX(ItemDescriptionsTable[#Data],,MATCH($C33, ItemDescriptionsTable[#Headers], 0))),\"\")","v":""},null,null,null,null,null,null,null,null,null,null,null,null,null,null,{"$f":"_xlfn.LET(_xlpm.col,IF(NOT(OR(IsEmpty($B33),IsEmpty($C33),IsEmpty($E33))),MATCH($C33,ExtensionsTable[#Headers],0),\"\"),\n_xlpm.row,IF(_xlpm.col=\"\",\"\",ROW(INDEX(ExtensionsTable[], MATCH($E33, INDEX(ExtensionsTable[], , _xlpm.col), 0), 1))-ROW(ExtensionsTable[[#Headers],[Gene Expression ]])),\nIF(OR(_xlpm.col=\"\",_xlpm.row=\"\"),\"\",INDEX(SuffixesTable[], _xlpm.row, _xlpm.col)))","v":""}]
[18,null,null,{"$f":"_xlfn.IFNA(_xlfn.TEXTJOIN(\"; \",TRUE,INDEX(ItemDescriptionsTable[#Data],,MATCH($C34, ItemDescriptionsTable[#Headers], 0))),\"\")","v":""},null,null,null,null,null,null,null,null,null,null,null,null,null,null,{"$f":"_xlfn.LET(_xlpm.col,IF(NOT(OR(IsEmpty($B34),IsEmpty($C34),IsEmpty($E34))),MATCH($C34,ExtensionsTable[#Headers],0),\"\"),\n_xlpm.row,IF(_xlpm.col=\"\",\"\",ROW(INDEX(ExtensionsTable[], MATCH($E34, INDEX(ExtensionsTable[], , _xlpm.col), 0), 1))-ROW(ExtensionsTable[[#Headers],[Gene Expression ]])),\nIF(OR(_xlpm.col=\"\",_xlpm.row=\"\"),\"\",INDEX(SuffixesTable[], _xlpm.row, _xlpm.col)))","v":""}]
[19,null,null,{"$f":"_xlfn.IFNA(_xlfn.TEXTJOIN(\"; \",TRUE,INDEX(ItemDescriptionsTable[#Data],,MATCH($C35, ItemDescriptionsTable[#Headers], 0))),\"\")","v":""},null,null,null,null,null,null,null,null,null,null,null,null,null,null,{"$f":"_xlfn.LET(_xlpm.col,IF(NOT(OR(IsEmpty($B35),IsEmpty($C35),IsEmpty($E35))),MATCH($C35,ExtensionsTable[#Headers],0),\"\"),\n_xlpm.row,IF(_xlpm.col=\"\",\"\",ROW(INDEX(ExtensionsTable[], MATCH($E35, INDEX(ExtensionsTable[], , _xlpm.col), 0), 1))-ROW(ExtensionsTable[[#Headers],[Gene Expression ]])),\nIF(OR(_xlpm.col=\"\",_xlpm.row=\"\"),\"\",INDEX(SuffixesTable[], _xlpm.row, _xlpm.col)))","v":""}]
[20,null,null,{"$f":"_xlfn.IFNA(_xlfn.TEXTJOIN(\"; \",TRUE,INDEX(ItemDescriptionsTable[#Data],,MATCH($C36, ItemDescriptionsTable[#Headers], 0))),\"\")","v":""},null,null,null,null,null,null,null,null,null,null,null,null,null,null,{"$f":"_xlfn.LET(_xlpm.col,IF(NOT(OR(IsEmpty($B36),IsEmpty($C36),IsEmpty($E36))),MATCH($C36,ExtensionsTable[#Headers],0),\"\"),\n_xlpm.row,IF(_xlpm.col=\"\",\"\",ROW(INDEX(ExtensionsTable[], MATCH($E36, INDEX(ExtensionsTable[], , _xlpm.col), 0), 1))-ROW(ExtensionsTable[[#Headers],[Gene Expression ]])),\nIF(OR(_xlpm.col=\"\",_xlpm.row=\"\"),\"\",INDEX(SuffixesTable[], _xlpm.row, _xlpm.col)))","v":""}]
[21,null,null,{"$f":"_xlfn.IFNA(_xlfn.TEXTJOIN(\"; \",TRUE,INDEX(ItemDescriptionsTable[#Data],,MATCH($C37, ItemDescriptionsTable[#Headers], 0))),\"\")","v":""},null,null,null,null,null,null,null,null,null,null,null,null,null,null,{"$f":"_xlfn.LET(_xlpm.col,IF(NOT(OR(IsEmpty($B37),IsEmpty($C37),IsEmpty($E37))),MATCH($C37,ExtensionsTable[#Headers],0),\"\"),\n_xlpm.row,IF(_xlpm.col=\"\",\"\",ROW(INDEX(ExtensionsTable[], MATCH($E37, INDEX(ExtensionsTable[], , _xlpm.col), 0), 1))-ROW(ExtensionsTable[[#Headers],[Gene Expression ]])),\nIF(OR(_xlpm.col=\"\",_xlpm.row=\"\"),\"\",INDEX(SuffixesTable[], _xlpm.row, _xlpm.col)))","v":""}]
[22,null,null,{"$f":"_xlfn.IFNA(_xlfn.TEXTJOIN(\"; \",TRUE,INDEX(ItemDescriptionsTable[#Data],,MATCH($C38, ItemDescriptionsTable[#Headers], 0))),\"\")","v":""},null,null,null,null,null,null,null,null,null,null,null,null,null,null,{"$f":"_xlfn.LET(_xlpm.col,IF(NOT(OR(IsEmpty($B38),IsEmpty($C38),IsEmpty($E38))),MATCH($C38,ExtensionsTable[#Headers],0),\"\"),\n_xlpm.row,IF(_xlpm.col=\"\",\"\",ROW(INDEX(ExtensionsTable[], MATCH($E38, INDEX(ExtensionsTable[], , _xlpm.col), 0), 1))-ROW(ExtensionsTable[[#Headers],[Gene Expression ]])),\nIF(OR(_xlpm.col=\"\",_xlpm.row=\"\"),\"\",INDEX(SuffixesTable[], _xlpm.row, _xlpm.col)))","v":""}]
[23,null,null,{"$f":"_xlfn.IFNA(_xlfn.TEXTJOIN(\"; \",TRUE,INDEX(ItemDescriptionsTable[#Data],,MATCH($C39, ItemDescriptionsTable[#Headers], 0))),\"\")","v":""},null,null,null,null,null,null,null,null,null,null,null,null,null,null,{"$f":"_xlfn.LET(_xlpm.col,IF(NOT(OR(IsEmpty($B39),IsEmpty($C39),IsEmpty($E39))),MATCH($C39,ExtensionsTable[#Headers],0),\"\"),\n_xlpm.row,IF(_xlpm.col=\"\",\"\",ROW(INDEX(ExtensionsTable[], MATCH($E39, INDEX(ExtensionsTable[], , _xlpm.col), 0), 1))-ROW(ExtensionsTable[[#Headers],[Gene Expression ]])),\nIF(OR(_xlpm.col=\"\",_xlpm.row=\"\"),\"\",INDEX(SuffixesTable[], _xlpm.row, _xlpm.col)))","v":""}]
[24,null,null,{"$f":"_xlfn.IFNA(_xlfn.TEXTJOIN(\"; \",TRUE,INDEX(ItemDescriptionsTable[#Data],,MATCH($C40, ItemDescriptionsTable[#Headers], 0))),\"\")","v":""},null,null,null,null,null,null,null,null,null,null,null,null,null,null,{"$f":"_xlfn.LET(_xlpm.col,IF(NOT(OR(IsEmpty($B40),IsEmpty($C40),IsEmpty($E40))),MATCH($C40,ExtensionsTable[#Headers],0),\"\"),\n_xlpm.row,IF(_xlpm.col=\"\",\"\",ROW(INDEX(ExtensionsTable[], MATCH($E40, INDEX(ExtensionsTable[], , _xlpm.col), 0), 1))-ROW(ExtensionsTable[[#Headers],[Gene Expression ]])),\nIF(OR(_xlpm.col=\"\",_xlpm.row=\"\"),\"\",INDEX(SuffixesTable[], _xlpm.row, _xlpm.col)))","v":""}]
[25,null,null,{"$f":"_xlfn.IFNA(_xlfn.TEXTJOIN(\"; \",TRUE,INDEX(ItemDescriptionsTable[#Data],,MATCH($C41, ItemDescriptionsTable[#Headers], 0))),\"\")","v":""},null,null,null,null,null,null,null,null,null,null,null,null,null,null,{"$f":"_xlfn.LET(_xlpm.col,IF(NOT(OR(IsEmpty($B41),IsEmpty($C41),IsEmpty($E41))),MATCH($C41,ExtensionsTable[#Headers],0),\"\"),\n_xlpm.row,IF(_xlpm.col=\"\",\"\",ROW(INDEX(ExtensionsTable[], MATCH($E41, INDEX(ExtensionsTable[], , _xlpm.col), 0), 1))-ROW(ExtensionsTable[[#Headers],[Gene Expression ]])),\nIF(OR(_xlpm.col=\"\",_xlpm.row=\"\"),\"\",INDEX(SuffixesTable[], _xlpm.row, _xlpm.col)))","v":""}]
[26,null,null,{"$f":"_xlfn.IFNA(_xlfn.TEXTJOIN(\"; \",TRUE,INDEX(ItemDescriptionsTable[#Data],,MATCH($C42, ItemDescriptionsTable[#Headers], 0))),\"\")","v":""},null,null,null,null,null,null,null,null,null,null,null,null,null,null,{"$f":"_xlfn.LET(_xlpm.col,IF(NOT(OR(IsEmpty($B42),IsEmpty($C42),IsEmpty($E42))),MATCH($C42,ExtensionsTable[#Headers],0),\"\"),\n_xlpm.row,IF(_xlpm.col=\"\",\"\",ROW(INDEX(ExtensionsTable[], MATCH($E42, INDEX(ExtensionsTable[], , _xlpm.col), 0), 1))-ROW(ExtensionsTable[[#Headers],[Gene Expression ]])),\nIF(OR(_xlpm.col=\"\",_xlpm.row=\"\"),\"\",INDEX(SuffixesTable[], _xlpm.row, _xlpm.col)))","v":""}]
[27,null,null,{"$f":"_xlfn.IFNA(_xlfn.TEXTJOIN(\"; \",TRUE,INDEX(ItemDescriptionsTable[#Data],,MATCH($C43, ItemDescriptionsTable[#Headers], 0))),\"\")","v":""},null,null,null,null,null,null,null,null,null,null,null,null,null,null,{"$f":"_xlfn.LET(_xlpm.col,IF(NOT(OR(IsEmpty($B43),IsEmpty($C43),IsEmpty($E43))),MATCH($C43,ExtensionsTable[#Headers],0),\"\"),\n_xlpm.row,IF(_xlpm.col=\"\",\"\",ROW(INDEX(ExtensionsTable[], MATCH($E43, INDEX(ExtensionsTable[], , _xlpm.col), 0), 1))-ROW(ExtensionsTable[[#Headers],[Gene Expression ]])),\nIF(OR(_xlpm.col=\"\",_xlpm.row=\"\"),\"\",INDEX(SuffixesTable[], _xlpm.row, _xlpm.col)))","v":""}]
[28,null,null,{"$f":"_xlfn.IFNA(_xlfn.TEXTJOIN(\"; \",TRUE,INDEX(ItemDescriptionsTable[#Data],,MATCH($C44, ItemDescriptionsTable[#Headers], 0))),\"\")","v":""},null,null,null,null,null,null,null,null,null,null,null,null,null,null,{"$f":"_xlfn.LET(_xlpm.col,IF(NOT(OR(IsEmpty($B44),IsEmpty($C44),IsEmpty($E44))),MATCH($C44,ExtensionsTable[#Headers],0),\"\"),\n_xlpm.row,IF(_xlpm.col=\"\",\"\",ROW(INDEX(ExtensionsTable[], MATCH($E44, INDEX(ExtensionsTable[], , _xlpm.col), 0), 1))-ROW(ExtensionsTable[[#Headers],[Gene Expression ]])),\nIF(OR(_xlpm.col=\"\",_xlpm.row=\"\"),\"\",INDEX(SuffixesTable[], _xlpm.row, _xlpm.col)))","v":""}]
[29,null,null,{"$f":"_xlfn.IFNA(_xlfn.TEXTJOIN(\"; \",TRUE,INDEX(ItemDescriptionsTable[#Data],,MATCH($C45, ItemDescriptionsTable[#Headers], 0))),\"\")","v":""},null,null,null,null,null,null,null,null,null,null,null,null,null,null,{"$f":"_xlfn.LET(_xlpm.col,IF(NOT(OR(IsEmpty($B45),IsEmpty($C45),IsEmpty($E45))),MATCH($C45,ExtensionsTable[#Headers],0),\"\"),\n_xlpm.row,IF(_xlpm.col=\"\",\"\",ROW(INDEX(ExtensionsTable[], MATCH($E45, INDEX(ExtensionsTable[], , _xlpm.col), 0), 1))-ROW(ExtensionsTable[[#Headers],[Gene Expression ]])),\nIF(OR(_xlpm.col=\"\",_xlpm.row=\"\"),\"\",INDEX(SuffixesTable[], _xlpm.row, _xlpm.col)))","v":""}]
[30,null,null,{"$f":"_xlfn.IFNA(_xlfn.TEXTJOIN(\"; \",TRUE,INDEX(ItemDescriptionsTable[#Data],,MATCH($C46, ItemDescriptionsTable[#Headers], 0))),\"\")","v":""},null,null,null,null,null,null,null,null,null,null,null,null,null,null,{"$f":"_xlfn.LET(_xlpm.col,IF(NOT(OR(IsEmpty($B46),IsEmpty($C46),IsEmpty($E46))),MATCH($C46,ExtensionsTable[#Headers],0),\"\"),\n_xlpm.row,IF(_xlpm.col=\"\",\"\",ROW(INDEX(ExtensionsTable[], MATCH($E46, INDEX(ExtensionsTable[], , _xlpm.col), 0), 1))-ROW(ExtensionsTable[[#Headers],[Gene Expression ]])),\nIF(OR(_xlpm.col=\"\",_xlpm.row=\"\"),\"\",INDEX(SuffixesTable[], _xlpm.row, _xlpm.col)))","v":""}]
[31,null,null,{"$f":"_xlfn.IFNA(_xlfn.TEXTJOIN(\"; \",TRUE,INDEX(ItemDescriptionsTable[#Data],,MATCH($C47, ItemDescriptionsTable[#Headers], 0))),\"\")","v":""},null,null,null,null,null,null,null,null,null,null,null,null,null,null,{"$f":"_xlfn.LET(_xlpm.col,IF(NOT(OR(IsEmpty($B47),IsEmpty($C47),IsEmpty($E47))),MATCH($C47,ExtensionsTable[#Headers],0),\"\"),\n_xlpm.row,IF(_xlpm.col=\"\",\"\",ROW(INDEX(ExtensionsTable[], MATCH($E47, INDEX(ExtensionsTable[], , _xlpm.col), 0), 1))-ROW(ExtensionsTable[[#Headers],[Gene Expression ]])),\nIF(OR(_xlpm.col=\"\",_xlpm.row=\"\"),\"\",INDEX(SuffixesTable[], _xlpm.row, _xlpm.col)))","v":""}]
[32,null,null,{"$f":"_xlfn.IFNA(_xlfn.TEXTJOIN(\"; \",TRUE,INDEX(ItemDescriptionsTable[#Data],,MATCH($C48, ItemDescriptionsTable[#Headers], 0))),\"\")","v":""},null,null,null,null,null,null,null,null,null,null,null,null,null,null,{"$f":"_xlfn.LET(_xlpm.col,IF(NOT(OR(IsEmpty($B48),IsEmpty($C48),IsEmpty($E48))),MATCH($C48,ExtensionsTable[#Headers],0),\"\"),\n_xlpm.row,IF(_xlpm.col=\"\",\"\",ROW(INDEX(ExtensionsTable[], MATCH($E48, INDEX(ExtensionsTable[], , _xlpm.col), 0), 1))-ROW(ExtensionsTable[[#Headers],[Gene Expression ]])),\nIF(OR(_xlpm.col=\"\",_xlpm.row=\"\"),\"\",INDEX(SuffixesTable[], _xlpm.row, _xlpm.col)))","v":""}]
[33,null,null,{"$f":"_xlfn.IFNA(_xlfn.TEXTJOIN(\"; \",TRUE,INDEX(ItemDescriptionsTable[#Data],,MATCH($C49, ItemDescriptionsTable[#Headers], 0))),\"\")","v":""},null,null,null,null,null,null,null,null,null,null,null,null,null,null,{"$f":"_xlfn.LET(_xlpm.col,IF(NOT(OR(IsEmpty($B49),IsEmpty($C49),IsEmpty($E49))),MATCH($C49,ExtensionsTable[#Headers],0),\"\"),\n_xlpm.row,IF(_xlpm.col=\"\",\"\",ROW(INDEX(ExtensionsTable[], MATCH($E49, INDEX(ExtensionsTable[], , _xlpm.col), 0), 1))-ROW(ExtensionsTable[[#Headers],[Gene Expression ]])),\nIF(OR(_xlpm.col=\"\",_xlpm.row=\"\"),\"\",INDEX(SuffixesTable[], _xlpm.row, _xlpm.col)))","v":""}]
[34,null,null,{"$f":"_xlfn.IFNA(_xlfn.TEXTJOIN(\"; \",TRUE,INDEX(ItemDescriptionsTable[#Data],,MATCH($C50, ItemDescriptionsTable[#Headers], 0))),\"\")","v":""},null,null,null,null,null,null,null,null,null,null,null,null,null,null,{"$f":"_xlfn.LET(_xlpm.col,IF(NOT(OR(IsEmpty($B50),IsEmpty($C50),IsEmpty($E50))),MATCH($C50,ExtensionsTable[#Headers],0),\"\"),\n_xlpm.row,IF(_xlpm.col=\"\",\"\",ROW(INDEX(ExtensionsTable[], MATCH($E50, INDEX(ExtensionsTable[], , _xlpm.col), 0), 1))-ROW(ExtensionsTable[[#Headers],[Gene Expression ]])),\nIF(OR(_xlpm.col=\"\",_xlpm.row=\"\"),\"\",INDEX(SuffixesTable[], _xlpm.row, _xlpm.col)))","v":""}]
[35,null,null,{"$f":"_xlfn.IFNA(_xlfn.TEXTJOIN(\"; \",TRUE,INDEX(ItemDescriptionsTable[#Data],,MATCH($C51, ItemDescriptionsTable[#Headers], 0))),\"\")","v":""},null,null,null,null,null,null,null,null,null,null,null,null,null,null,{"$f":"_xlfn.LET(_xlpm.col,IF(NOT(OR(IsEmpty($B51),IsEmpty($C51),IsEmpty($E51))),MATCH($C51,ExtensionsTable[#Headers],0),\"\"),\n_xlpm.row,IF(_xlpm.col=\"\",\"\",ROW(INDEX(ExtensionsTable[], MATCH($E51, INDEX(ExtensionsTable[], , _xlpm.col), 0), 1))-ROW(ExtensionsTable[[#Headers],[Gene Expression ]])),\nIF(OR(_xlpm.col=\"\",_xlpm.row=\"\"),\"\",INDEX(SuffixesTable[], _xlpm.row, _xlpm.col)))","v":""}]
[36,null,null,{"$f":"_xlfn.IFNA(_xlfn.TEXTJOIN(\"; \",TRUE,INDEX(ItemDescriptionsTable[#Data],,MATCH($C52, ItemDescriptionsTable[#Headers], 0))),\"\")","v":""},null,null,null,null,null,null,null,null,null,null,null,null,null,null,{"$f":"_xlfn.LET(_xlpm.col,IF(NOT(OR(IsEmpty($B52),IsEmpty($C52),IsEmpty($E52))),MATCH($C52,ExtensionsTable[#Headers],0),\"\"),\n_xlpm.row,IF(_xlpm.col=\"\",\"\",ROW(INDEX(ExtensionsTable[], MATCH($E52, INDEX(ExtensionsTable[], , _xlpm.col), 0), 1))-ROW(ExtensionsTable[[#Headers],[Gene Expression ]])),\nIF(OR(_xlpm.col=\"\",_xlpm.row=\"\"),\"\",INDEX(SuffixesTable[], _xlpm.row, _xlpm.col)))","v":""}]
[37,null,null,{"$f":"_xlfn.IFNA(_xlfn.TEXTJOIN(\"; \",TRUE,INDEX(ItemDescriptionsTable[#Data],,MATCH($C53, ItemDescriptionsTable[#Headers], 0))),\"\")","v":""},null,null,null,null,null,null,null,null,null,null,null,null,null,null,{"$f":"_xlfn.LET(_xlpm.col,IF(NOT(OR(IsEmpty($B53),IsEmpty($C53),IsEmpty($E53))),MATCH($C53,ExtensionsTable[#Headers],0),\"\"),\n_xlpm.row,IF(_xlpm.col=\"\",\"\",ROW(INDEX(ExtensionsTable[], MATCH($E53, INDEX(ExtensionsTable[], , _xlpm.col), 0), 1))-ROW(ExtensionsTable[[#Headers],[Gene Expression ]])),\nIF(OR(_xlpm.col=\"\",_xlpm.row=\"\"),\"\",INDEX(SuffixesTable[], _xlpm.row, _xlpm.col)))","v":""}]
[38,null,null,{"$f":"_xlfn.IFNA(_xlfn.TEXTJOIN(\"; \",TRUE,INDEX(ItemDescriptionsTable[#Data],,MATCH($C54, ItemDescriptionsTable[#Headers], 0))),\"\")","v":""},null,null,null,null,null,null,null,null,null,null,null,null,null,null,{"$f":"_xlfn.LET(_xlpm.col,IF(NOT(OR(IsEmpty($B54),IsEmpty($C54),IsEmpty($E54))),MATCH($C54,ExtensionsTable[#Headers],0),\"\"),\n_xlpm.row,IF(_xlpm.col=\"\",\"\",ROW(INDEX(ExtensionsTable[], MATCH($E54, INDEX(ExtensionsTable[], , _xlpm.col), 0), 1))-ROW(ExtensionsTable[[#Headers],[Gene Expression ]])),\nIF(OR(_xlpm.col=\"\",_xlpm.row=\"\"),\"\",INDEX(SuffixesTable[], _xlpm.row, _xlpm.col)))","v":""}]
[39,null,null,{"$f":"_xlfn.IFNA(_xlfn.TEXTJOIN(\"; \",TRUE,INDEX(ItemDescriptionsTable[#Data],,MATCH($C55, ItemDescriptionsTable[#Headers], 0))),\"\")","v":""},null,null,null,null,null,null,null,null,null,null,null,null,null,null,{"$f":"_xlfn.LET(_xlpm.col,IF(NOT(OR(IsEmpty($B55),IsEmpty($C55),IsEmpty($E55))),MATCH($C55,ExtensionsTable[#Headers],0),\"\"),\n_xlpm.row,IF(_xlpm.col=\"\",\"\",ROW(INDEX(ExtensionsTable[], MATCH($E55, INDEX(ExtensionsTable[], , _xlpm.col), 0), 1))-ROW(ExtensionsTable[[#Headers],[Gene Expression ]])),\nIF(OR(_xlpm.col=\"\",_xlpm.row=\"\"),\"\",INDEX(SuffixesTable[], _xlpm.row, _xlpm.col)))","v":""}]
[40,null,null,{"$f":"_xlfn.IFNA(_xlfn.TEXTJOIN(\"; \",TRUE,INDEX(ItemDescriptionsTable[#Data],,MATCH($C56, ItemDescriptionsTable[#Headers], 0))),\"\")","v":""},null,null,null,null,null,null,null,null,null,null,null,null,null,null,{"$f":"_xlfn.LET(_xlpm.col,IF(NOT(OR(IsEmpty($B56),IsEmpty($C56),IsEmpty($E56))),MATCH($C56,ExtensionsTable[#Headers],0),\"\"),\n_xlpm.row,IF(_xlpm.col=\"\",\"\",ROW(INDEX(ExtensionsTable[], MATCH($E56, INDEX(ExtensionsTable[], , _xlpm.col), 0), 1))-ROW(ExtensionsTable[[#Headers],[Gene Expression ]])),\nIF(OR(_xlpm.col=\"\",_xlpm.row=\"\"),\"\",INDEX(SuffixesTable[], _xlpm.row, _xlpm.col)))","v":""}]
[41,null,null,{"$f":"_xlfn.IFNA(_xlfn.TEXTJOIN(\"; \",TRUE,INDEX(ItemDescriptionsTable[#Data],,MATCH($C57, ItemDescriptionsTable[#Headers], 0))),\"\")","v":""},null,null,null,null,null,null,null,null,null,null,null,null,null,null,{"$f":"_xlfn.LET(_xlpm.col,IF(NOT(OR(IsEmpty($B57),IsEmpty($C57),IsEmpty($E57))),MATCH($C57,ExtensionsTable[#Headers],0),\"\"),\n_xlpm.row,IF(_xlpm.col=\"\",\"\",ROW(INDEX(ExtensionsTable[], MATCH($E57, INDEX(ExtensionsTable[], , _xlpm.col), 0), 1))-ROW(ExtensionsTable[[#Headers],[Gene Expression ]])),\nIF(OR(_xlpm.col=\"\",_xlpm.row=\"\"),\"\",INDEX(SuffixesTable[], _xlpm.row, _xlpm.col)))","v":""}]
[42,null,null,{"$f":"_xlfn.IFNA(_xlfn.TEXTJOIN(\"; \",TRUE,INDEX(ItemDescriptionsTable[#Data],,MATCH($C58, ItemDescriptionsTable[#Headers], 0))),\"\")","v":""},null,null,null,null,null,null,null,null,null,null,null,null,null,null,{"$f":"_xlfn.LET(_xlpm.col,IF(NOT(OR(IsEmpty($B58),IsEmpty($C58),IsEmpty($E58))),MATCH($C58,ExtensionsTable[#Headers],0),\"\"),\n_xlpm.row,IF(_xlpm.col=\"\",\"\",ROW(INDEX(ExtensionsTable[], MATCH($E58, INDEX(ExtensionsTable[], , _xlpm.col), 0), 1))-ROW(ExtensionsTable[[#Headers],[Gene Expression ]])),\nIF(OR(_xlpm.col=\"\",_xlpm.row=\"\"),\"\",INDEX(SuffixesTable[], _xlpm.row, _xlpm.col)))","v":""}]
[43,null,null,{"$f":"_xlfn.IFNA(_xlfn.TEXTJOIN(\"; \",TRUE,INDEX(ItemDescriptionsTable[#Data],,MATCH($C59, ItemDescriptionsTable[#Headers], 0))),\"\")","v":""},null,null,null,null,null,null,null,null,null,null,null,null,null,null,{"$f":"_xlfn.LET(_xlpm.col,IF(NOT(OR(IsEmpty($B59),IsEmpty($C59),IsEmpty($E59))),MATCH($C59,ExtensionsTable[#Headers],0),\"\"),\n_xlpm.row,IF(_xlpm.col=\"\",\"\",ROW(INDEX(ExtensionsTable[], MATCH($E59, INDEX(ExtensionsTable[], , _xlpm.col), 0), 1))-ROW(ExtensionsTable[[#Headers],[Gene Expression ]])),\nIF(OR(_xlpm.col=\"\",_xlpm.row=\"\"),\"\",INDEX(SuffixesTable[], _xlpm.row, _xlpm.col)))","v":""}]
[44,null,null,{"$f":"_xlfn.IFNA(_xlfn.TEXTJOIN(\"; \",TRUE,INDEX(ItemDescriptionsTable[#Data],,MATCH($C60, ItemDescriptionsTable[#Headers], 0))),\"\")","v":""},null,null,null,null,null,null,null,null,null,null,null,null,null,null,{"$f":"_xlfn.LET(_xlpm.col,IF(NOT(OR(IsEmpty($B60),IsEmpty($C60),IsEmpty($E60))),MATCH($C60,ExtensionsTable[#Headers],0),\"\"),\n_xlpm.row,IF(_xlpm.col=\"\",\"\",ROW(INDEX(ExtensionsTable[], MATCH($E60, INDEX(ExtensionsTable[], , _xlpm.col), 0), 1))-ROW(ExtensionsTable[[#Headers],[Gene Expression ]])),\nIF(OR(_xlpm.col=\"\",_xlpm.row=\"\"),\"\",INDEX(SuffixesTable[], _xlpm.row, _xlpm.col)))","v":""}]
[45,null,null,{"$f":"_xlfn.IFNA(_xlfn.TEXTJOIN(\"; \",TRUE,INDEX(ItemDescriptionsTable[#Data],,MATCH($C61, ItemDescriptionsTable[#Headers], 0))),\"\")","v":""},null,null,null,null,null,null,null,null,null,null,null,null,null,null,{"$f":"_xlfn.LET(_xlpm.col,IF(NOT(OR(IsEmpty($B61),IsEmpty($C61),IsEmpty($E61))),MATCH($C61,ExtensionsTable[#Headers],0),\"\"),\n_xlpm.row,IF(_xlpm.col=\"\",\"\",ROW(INDEX(ExtensionsTable[], MATCH($E61, INDEX(ExtensionsTable[], , _xlpm.col), 0), 1))-ROW(ExtensionsTable[[#Headers],[Gene Expression ]])),\nIF(OR(_xlpm.col=\"\",_xlpm.row=\"\"),\"\",INDEX(SuffixesTable[], _xlpm.row, _xlpm.col)))","v":""}]
[46,null,null,{"$f":"_xlfn.IFNA(_xlfn.TEXTJOIN(\"; \",TRUE,INDEX(ItemDescriptionsTable[#Data],,MATCH($C62, ItemDescriptionsTable[#Headers], 0))),\"\")","v":""},null,null,null,null,null,null,null,null,null,null,null,null,null,null,{"$f":"_xlfn.LET(_xlpm.col,IF(NOT(OR(IsEmpty($B62),IsEmpty($C62),IsEmpty($E62))),MATCH($C62,ExtensionsTable[#Headers],0),\"\"),\n_xlpm.row,IF(_xlpm.col=\"\",\"\",ROW(INDEX(ExtensionsTable[], MATCH($E62, INDEX(ExtensionsTable[], , _xlpm.col), 0), 1))-ROW(ExtensionsTable[[#Headers],[Gene Expression ]])),\nIF(OR(_xlpm.col=\"\",_xlpm.row=\"\"),\"\",INDEX(SuffixesTable[], _xlpm.row, _xlpm.col)))","v":""}]
[47,null,null,{"$f":"_xlfn.IFNA(_xlfn.TEXTJOIN(\"; \",TRUE,INDEX(ItemDescriptionsTable[#Data],,MATCH($C63, ItemDescriptionsTable[#Headers], 0))),\"\")","v":""},null,null,null,null,null,null,null,null,null,null,null,null,null,null,{"$f":"_xlfn.LET(_xlpm.col,IF(NOT(OR(IsEmpty($B63),IsEmpty($C63),IsEmpty($E63))),MATCH($C63,ExtensionsTable[#Headers],0),\"\"),\n_xlpm.row,IF(_xlpm.col=\"\",\"\",ROW(INDEX(ExtensionsTable[], MATCH($E63, INDEX(ExtensionsTable[], , _xlpm.col), 0), 1))-ROW(ExtensionsTable[[#Headers],[Gene Expression ]])),\nIF(OR(_xlpm.col=\"\",_xlpm.row=\"\"),\"\",INDEX(SuffixesTable[], _xlpm.row, _xlpm.col)))","v":""}]
[48,null,null,{"$f":"_xlfn.IFNA(_xlfn.TEXTJOIN(\"; \",TRUE,INDEX(ItemDescriptionsTable[#Data],,MATCH($C64, ItemDescriptionsTable[#Headers], 0))),\"\")","v":""},null,null,null,null,null,null,null,null,null,null,null,null,null,null,{"$f":"_xlfn.LET(_xlpm.col,IF(NOT(OR(IsEmpty($B64),IsEmpty($C64),IsEmpty($E64))),MATCH($C64,ExtensionsTable[#Headers],0),\"\"),\n_xlpm.row,IF(_xlpm.col=\"\",\"\",ROW(INDEX(ExtensionsTable[], MATCH($E64, INDEX(ExtensionsTable[], , _xlpm.col), 0), 1))-ROW(ExtensionsTable[[#Headers],[Gene Expression ]])),\nIF(OR(_xlpm.col=\"\",_xlpm.row=\"\"),\"\",INDEX(SuffixesTable[], _xlpm.row, _xlpm.col)))","v":""}]
[49,null,null,{"$f":"_xlfn.IFNA(_xlfn.TEXTJOIN(\"; \",TRUE,INDEX(ItemDescriptionsTable[#Data],,MATCH($C65, ItemDescriptionsTable[#Headers], 0))),\"\")","v":""},null,null,null,null,null,null,null,null,null,null,null,null,null,null,{"$f":"_xlfn.LET(_xlpm.col,IF(NOT(OR(IsEmpty($B65),IsEmpty($C65),IsEmpty($E65))),MATCH($C65,ExtensionsTable[#Headers],0),\"\"),\n_xlpm.row,IF(_xlpm.col=\"\",\"\",ROW(INDEX(ExtensionsTable[], MATCH($E65, INDEX(ExtensionsTable[], , _xlpm.col), 0), 1))-ROW(ExtensionsTable[[#Headers],[Gene Expression ]])),\nIF(OR(_xlpm.col=\"\",_xlpm.row=\"\"),\"\",INDEX(SuffixesTable[], _xlpm.row, _xlpm.col)))","v":""}]
[50,null,null,{"$f":"_xlfn.IFNA(_xlfn.TEXTJOIN(\"; \",TRUE,INDEX(ItemDescriptionsTable[#Data],,MATCH($C66, ItemDescriptionsTable[#Headers], 0))),\"\")","v":""},null,null,null,null,null,null,null,null,null,null,null,null,null,null,{"$f":"_xlfn.LET(_xlpm.col,IF(NOT(OR(IsEmpty($B66),IsEmpty($C66),IsEmpty($E66))),MATCH($C66,ExtensionsTable[#Headers],0),\"\"),\n_xlpm.row,IF(_xlpm.col=\"\",\"\",ROW(INDEX(ExtensionsTable[], MATCH($E66, INDEX(ExtensionsTable[], , _xlpm.col), 0), 1))-ROW(ExtensionsTable[[#Headers],[Gene Expression ]])),\nIF(OR(_xlpm.col=\"\",_xlpm.row=\"\"),\"\",INDEX(SuffixesTable[], _xlpm.row, _xlpm.col)))","v":""}]
[51,null,null,{"$f":"_xlfn.IFNA(_xlfn.TEXTJOIN(\"; \",TRUE,INDEX(ItemDescriptionsTable[#Data],,MATCH($C67, ItemDescriptionsTable[#Headers], 0))),\"\")","v":""},null,null,null,null,null,null,null,null,null,null,null,null,null,null,{"$f":"_xlfn.LET(_xlpm.col,IF(NOT(OR(IsEmpty($B67),IsEmpty($C67),IsEmpty($E67))),MATCH($C67,ExtensionsTable[#Headers],0),\"\"),\n_xlpm.row,IF(_xlpm.col=\"\",\"\",ROW(INDEX(ExtensionsTable[], MATCH($E67, INDEX(ExtensionsTable[], , _xlpm.col), 0), 1))-ROW(ExtensionsTable[[#Headers],[Gene Expression ]])),\nIF(OR(_xlpm.col=\"\",_xlpm.row=\"\"),\"\",INDEX(SuffixesTable[], _xlpm.row, _xlpm.col)))","v":""}]
[52,null,null,{"$f":"_xlfn.IFNA(_xlfn.TEXTJOIN(\"; \",TRUE,INDEX(ItemDescriptionsTable[#Data],,MATCH($C68, ItemDescriptionsTable[#Headers], 0))),\"\")","v":""},null,null,null,null,null,null,null,null,null,null,null,null,null,null,{"$f":"_xlfn.LET(_xlpm.col,IF(NOT(OR(IsEmpty($B68),IsEmpty($C68),IsEmpty($E68))),MATCH($C68,ExtensionsTable[#Headers],0),\"\"),\n_xlpm.row,IF(_xlpm.col=\"\",\"\",ROW(INDEX(ExtensionsTable[], MATCH($E68, INDEX(ExtensionsTable[], , _xlpm.col), 0), 1))-ROW(ExtensionsTable[[#Headers],[Gene Expression ]])),\nIF(OR(_xlpm.col=\"\",_xlpm.row=\"\"),\"\",INDEX(SuffixesTable[], _xlpm.row, _xlpm.col)))","v":""}]
[53,null,null,{"$f":"_xlfn.IFNA(_xlfn.TEXTJOIN(\"; \",TRUE,INDEX(ItemDescriptionsTable[#Data],,MATCH($C69, ItemDescriptionsTable[#Headers], 0))),\"\")","v":""},null,null,null,null,null,null,null,null,null,null,null,null,null,null,{"$f":"_xlfn.LET(_xlpm.col,IF(NOT(OR(IsEmpty($B69),IsEmpty($C69),IsEmpty($E69))),MATCH($C69,ExtensionsTable[#Headers],0),\"\"),\n_xlpm.row,IF(_xlpm.col=\"\",\"\",ROW(INDEX(ExtensionsTable[], MATCH($E69, INDEX(ExtensionsTable[], , _xlpm.col), 0), 1))-ROW(ExtensionsTable[[#Headers],[Gene Expression ]])),\nIF(OR(_xlpm.col=\"\",_xlpm.row=\"\"),\"\",INDEX(SuffixesTable[], _xlpm.row, _xlpm.col)))","v":""}]
[54,null,null,{"$f":"_xlfn.IFNA(_xlfn.TEXTJOIN(\"; \",TRUE,INDEX(ItemDescriptionsTable[#Data],,MATCH($C70, ItemDescriptionsTable[#Headers], 0))),\"\")","v":""},null,null,null,null,null,null,null,null,null,null,null,null,null,null,{"$f":"_xlfn.LET(_xlpm.col,IF(NOT(OR(IsEmpty($B70),IsEmpty($C70),IsEmpty($E70))),MATCH($C70,ExtensionsTable[#Headers],0),\"\"),\n_xlpm.row,IF(_xlpm.col=\"\",\"\",ROW(INDEX(ExtensionsTable[], MATCH($E70, INDEX(ExtensionsTable[], , _xlpm.col), 0), 1))-ROW(ExtensionsTable[[#Headers],[Gene Expression ]])),\nIF(OR(_xlpm.col=\"\",_xlpm.row=\"\"),\"\",INDEX(SuffixesTable[], _xlpm.row, _xlpm.col)))","v":""}]
[55,null,null,{"$f":"_xlfn.IFNA(_xlfn.TEXTJOIN(\"; \",TRUE,INDEX(ItemDescriptionsTable[#Data],,MATCH($C71, ItemDescriptionsTable[#Headers], 0))),\"\")","v":""},null,null,null,null,null,null,null,null,null,null,null,null,null,null,{"$f":"_xlfn.LET(_xlpm.col,IF(NOT(OR(IsEmpty($B71),IsEmpty($C71),IsEmpty($E71))),MATCH($C71,ExtensionsTable[#Headers],0),\"\"),\n_xlpm.row,IF(_xlpm.col=\"\",\"\",ROW(INDEX(ExtensionsTable[], MATCH($E71, INDEX(ExtensionsTable[], , _xlpm.col), 0), 1))-ROW(ExtensionsTable[[#Headers],[Gene Expression ]])),\nIF(OR(_xlpm.col=\"\",_xlpm.row=\"\"),\"\",INDEX(SuffixesTable[], _xlpm.row, _xlpm.col)))","v":""}]
[56,null,null,{"$f":"_xlfn.IFNA(_xlfn.TEXTJOIN(\"; \",TRUE,INDEX(ItemDescriptionsTable[#Data],,MATCH($C72, ItemDescriptionsTable[#Headers], 0))),\"\")","v":""},null,null,null,null,null,null,null,null,null,null,null,null,null,null,{"$f":"_xlfn.LET(_xlpm.col,IF(NOT(OR(IsEmpty($B72),IsEmpty($C72),IsEmpty($E72))),MATCH($C72,ExtensionsTable[#Headers],0),\"\"),\n_xlpm.row,IF(_xlpm.col=\"\",\"\",ROW(INDEX(ExtensionsTable[], MATCH($E72, INDEX(ExtensionsTable[], , _xlpm.col), 0), 1))-ROW(ExtensionsTable[[#Headers],[Gene Expression ]])),\nIF(OR(_xlpm.col=\"\",_xlpm.row=\"\"),\"\",INDEX(SuffixesTable[], _xlpm.row, _xlpm.col)))","v":""}]
[57,null,null,{"$f":"_xlfn.IFNA(_xlfn.TEXTJOIN(\"; \",TRUE,INDEX(ItemDescriptionsTable[#Data],,MATCH($C73, ItemDescriptionsTable[#Headers], 0))),\"\")","v":""},null,null,null,null,null,null,null,null,null,null,null,null,null,null,{"$f":"_xlfn.LET(_xlpm.col,IF(NOT(OR(IsEmpty($B73),IsEmpty($C73),IsEmpty($E73))),MATCH($C73,ExtensionsTable[#Headers],0),\"\"),\n_xlpm.row,IF(_xlpm.col=\"\",\"\",ROW(INDEX(ExtensionsTable[], MATCH($E73, INDEX(ExtensionsTable[], , _xlpm.col), 0), 1))-ROW(ExtensionsTable[[#Headers],[Gene Expression ]])),\nIF(OR(_xlpm.col=\"\",_xlpm.row=\"\"),\"\",INDEX(SuffixesTable[], _xlpm.row, _xlpm.col)))","v":""}]
[58,null,null,{"$f":"_xlfn.IFNA(_xlfn.TEXTJOIN(\"; \",TRUE,INDEX(ItemDescriptionsTable[#Data],,MATCH($C74, ItemDescriptionsTable[#Headers], 0))),\"\")","v":""},null,null,null,null,null,null,null,null,null,null,null,null,null,null,{"$f":"_xlfn.LET(_xlpm.col,IF(NOT(OR(IsEmpty($B74),IsEmpty($C74),IsEmpty($E74))),MATCH($C74,ExtensionsTable[#Headers],0),\"\"),\n_xlpm.row,IF(_xlpm.col=\"\",\"\",ROW(INDEX(ExtensionsTable[], MATCH($E74, INDEX(ExtensionsTable[], , _xlpm.col), 0), 1))-ROW(ExtensionsTable[[#Headers],[Gene Expression ]])),\nIF(OR(_xlpm.col=\"\",_xlpm.row=\"\"),\"\",INDEX(SuffixesTable[], _xlpm.row, _xlpm.col)))","v":""}]
[59,null,null,{"$f":"_xlfn.IFNA(_xlfn.TEXTJOIN(\"; \",TRUE,INDEX(ItemDescriptionsTable[#Data],,MATCH($C75, ItemDescriptionsTable[#Headers], 0))),\"\")","v":""},null,null,null,null,null,null,null,null,null,null,null,null,null,null,{"$f":"_xlfn.LET(_xlpm.col,IF(NOT(OR(IsEmpty($B75),IsEmpty($C75),IsEmpty($E75))),MATCH($C75,ExtensionsTable[#Headers],0),\"\"),\n_xlpm.row,IF(_xlpm.col=\"\",\"\",ROW(INDEX(ExtensionsTable[], MATCH($E75, INDEX(ExtensionsTable[], , _xlpm.col), 0), 1))-ROW(ExtensionsTable[[#Headers],[Gene Expression ]])),\nIF(OR(_xlpm.col=\"\",_xlpm.row=\"\"),\"\",INDEX(SuffixesTable[], _xlpm.row, _xlpm.col)))","v":""}]
[60,null,null,{"$f":"_xlfn.IFNA(_xlfn.TEXTJOIN(\"; \",TRUE,INDEX(ItemDescriptionsTable[#Data],,MATCH($C76, ItemDescriptionsTable[#Headers], 0))),\"\")","v":""},null,null,null,null,null,null,null,null,null,null,null,null,null,null,{"$f":"_xlfn.LET(_xlpm.col,IF(NOT(OR(IsEmpty($B76),IsEmpty($C76),IsEmpty($E76))),MATCH($C76,ExtensionsTable[#Headers],0),\"\"),\n_xlpm.row,IF(_xlpm.col=\"\",\"\",ROW(INDEX(ExtensionsTable[], MATCH($E76, INDEX(ExtensionsTable[], , _xlpm.col), 0), 1))-ROW(ExtensionsTable[[#Headers],[Gene Expression ]])),\nIF(OR(_xlpm.col=\"\",_xlpm.row=\"\"),\"\",INDEX(SuffixesTable[], _xlpm.row, _xlpm.col)))","v":""}]
[61,null,null,{"$f":"_xlfn.IFNA(_xlfn.TEXTJOIN(\"; \",TRUE,INDEX(ItemDescriptionsTable[#Data],,MATCH($C77, ItemDescriptionsTable[#Headers], 0))),\"\")","v":""},null,null,null,null,null,null,null,null,null,null,null,null,null,null,{"$f":"_xlfn.LET(_xlpm.col,IF(NOT(OR(IsEmpty($B77),IsEmpty($C77),IsEmpty($E77))),MATCH($C77,ExtensionsTable[#Headers],0),\"\"),\n_xlpm.row,IF(_xlpm.col=\"\",\"\",ROW(INDEX(ExtensionsTable[], MATCH($E77, INDEX(ExtensionsTable[], , _xlpm.col), 0), 1))-ROW(ExtensionsTable[[#Headers],[Gene Expression ]])),\nIF(OR(_xlpm.col=\"\",_xlpm.row=\"\"),\"\",INDEX(SuffixesTable[], _xlpm.row, _xlpm.col)))","v":""}]
[62,null,null,{"$f":"_xlfn.IFNA(_xlfn.TEXTJOIN(\"; \",TRUE,INDEX(ItemDescriptionsTable[#Data],,MATCH($C78, ItemDescriptionsTable[#Headers], 0))),\"\")","v":""},null,null,null,null,null,null,null,null,null,null,null,null,null,null,{"$f":"_xlfn.LET(_xlpm.col,IF(NOT(OR(IsEmpty($B78),IsEmpty($C78),IsEmpty($E78))),MATCH($C78,ExtensionsTable[#Headers],0),\"\"),\n_xlpm.row,IF(_xlpm.col=\"\",\"\",ROW(INDEX(ExtensionsTable[], MATCH($E78, INDEX(ExtensionsTable[], , _xlpm.col), 0), 1))-ROW(ExtensionsTable[[#Headers],[Gene Expression ]])),\nIF(OR(_xlpm.col=\"\",_xlpm.row=\"\"),\"\",INDEX(SuffixesTable[], _xlpm.row, _xlpm.col)))","v":""}]
[63,null,null,{"$f":"_xlfn.IFNA(_xlfn.TEXTJOIN(\"; \",TRUE,INDEX(ItemDescriptionsTable[#Data],,MATCH($C79, ItemDescriptionsTable[#Headers], 0))),\"\")","v":""},null,null,null,null,null,null,null,null,null,null,null,null,null,null,{"$f":"_xlfn.LET(_xlpm.col,IF(NOT(OR(IsEmpty($B79),IsEmpty($C79),IsEmpty($E79))),MATCH($C79,ExtensionsTable[#Headers],0),\"\"),\n_xlpm.row,IF(_xlpm.col=\"\",\"\",ROW(INDEX(ExtensionsTable[], MATCH($E79, INDEX(ExtensionsTable[], , _xlpm.col), 0), 1))-ROW(ExtensionsTable[[#Headers],[Gene Expression ]])),\nIF(OR(_xlpm.col=\"\",_xlpm.row=\"\"),\"\",INDEX(SuffixesTable[], _xlpm.row, _xlpm.col)))","v":""}]
[64,null,null,{"$f":"_xlfn.IFNA(_xlfn.TEXTJOIN(\"; \",TRUE,INDEX(ItemDescriptionsTable[#Data],,MATCH($C80, ItemDescriptionsTable[#Headers], 0))),\"\")","v":""},null,null,null,null,null,null,null,null,null,null,null,null,null,null,{"$f":"_xlfn.LET(_xlpm.col,IF(NOT(OR(IsEmpty($B80),IsEmpty($C80),IsEmpty($E80))),MATCH($C80,ExtensionsTable[#Headers],0),\"\"),\n_xlpm.row,IF(_xlpm.col=\"\",\"\",ROW(INDEX(ExtensionsTable[], MATCH($E80, INDEX(ExtensionsTable[], , _xlpm.col), 0), 1))-ROW(ExtensionsTable[[#Headers],[Gene Expression ]])),\nIF(OR(_xlpm.col=\"\",_xlpm.row=\"\"),\"\",INDEX(SuffixesTable[], _xlpm.row, _xlpm.col)))","v":""}]
[65,null,null,{"$f":"_xlfn.IFNA(_xlfn.TEXTJOIN(\"; \",TRUE,INDEX(ItemDescriptionsTable[#Data],,MATCH($C81, ItemDescriptionsTable[#Headers], 0))),\"\")","v":""},null,null,null,null,null,null,null,null,null,null,null,null,null,null,{"$f":"_xlfn.LET(_xlpm.col,IF(NOT(OR(IsEmpty($B81),IsEmpty($C81),IsEmpty($E81))),MATCH($C81,ExtensionsTable[#Headers],0),\"\"),\n_xlpm.row,IF(_xlpm.col=\"\",\"\",ROW(INDEX(ExtensionsTable[], MATCH($E81, INDEX(ExtensionsTable[], , _xlpm.col), 0), 1))-ROW(ExtensionsTable[[#Headers],[Gene Expression ]])),\nIF(OR(_xlpm.col=\"\",_xlpm.row=\"\"),\"\",INDEX(SuffixesTable[], _xlpm.row, _xlpm.col)))","v":""}]
[66,null,null,{"$f":"_xlfn.IFNA(_xlfn.TEXTJOIN(\"; \",TRUE,INDEX(ItemDescriptionsTable[#Data],,MATCH($C82, ItemDescriptionsTable[#Headers], 0))),\"\")","v":""},null,null,null,null,null,null,null,null,null,null,null,null,null,null,{"$f":"_xlfn.LET(_xlpm.col,IF(NOT(OR(IsEmpty($B82),IsEmpty($C82),IsEmpty($E82))),MATCH($C82,ExtensionsTable[#Headers],0),\"\"),\n_xlpm.row,IF(_xlpm.col=\"\",\"\",ROW(INDEX(ExtensionsTable[], MATCH($E82, INDEX(ExtensionsTable[], , _xlpm.col), 0), 1))-ROW(ExtensionsTable[[#Headers],[Gene Expression ]])),\nIF(OR(_xlpm.col=\"\",_xlpm.row=\"\"),\"\",INDEX(SuffixesTable[], _xlpm.row, _xlpm.col)))","v":""}]
[67,null,null,{"$f":"_xlfn.IFNA(_xlfn.TEXTJOIN(\"; \",TRUE,INDEX(ItemDescriptionsTable[#Data],,MATCH($C83, ItemDescriptionsTable[#Headers], 0))),\"\")","v":""},null,null,null,null,null,null,null,null,null,null,null,null,null,null,{"$f":"_xlfn.LET(_xlpm.col,IF(NOT(OR(IsEmpty($B83),IsEmpty($C83),IsEmpty($E83))),MATCH($C83,ExtensionsTable[#Headers],0),\"\"),\n_xlpm.row,IF(_xlpm.col=\"\",\"\",ROW(INDEX(ExtensionsTable[], MATCH($E83, INDEX(ExtensionsTable[], , _xlpm.col), 0), 1))-ROW(ExtensionsTable[[#Headers],[Gene Expression ]])),\nIF(OR(_xlpm.col=\"\",_xlpm.row=\"\"),\"\",INDEX(SuffixesTable[], _xlpm.row, _xlpm.col)))","v":""}]
[68,null,null,{"$f":"_xlfn.IFNA(_xlfn.TEXTJOIN(\"; \",TRUE,INDEX(ItemDescriptionsTable[#Data],,MATCH($C84, ItemDescriptionsTable[#Headers], 0))),\"\")","v":""},null,null,null,null,null,null,null,null,null,null,null,null,null,null,{"$f":"_xlfn.LET(_xlpm.col,IF(NOT(OR(IsEmpty($B84),IsEmpty($C84),IsEmpty($E84))),MATCH($C84,ExtensionsTable[#Headers],0),\"\"),\n_xlpm.row,IF(_xlpm.col=\"\",\"\",ROW(INDEX(ExtensionsTable[], MATCH($E84, INDEX(ExtensionsTable[], , _xlpm.col), 0), 1))-ROW(ExtensionsTable[[#Headers],[Gene Expression ]])),\nIF(OR(_xlpm.col=\"\",_xlpm.row=\"\"),\"\",INDEX(SuffixesTable[], _xlpm.row, _xlpm.col)))","v":""}]
[69,null,null,{"$f":"_xlfn.IFNA(_xlfn.TEXTJOIN(\"; \",TRUE,INDEX(ItemDescriptionsTable[#Data],,MATCH($C85, ItemDescriptionsTable[#Headers], 0))),\"\")","v":""},null,null,null,null,null,null,null,null,null,null,null,null,null,null,{"$f":"_xlfn.LET(_xlpm.col,IF(NOT(OR(IsEmpty($B85),IsEmpty($C85),IsEmpty($E85))),MATCH($C85,ExtensionsTable[#Headers],0),\"\"),\n_xlpm.row,IF(_xlpm.col=\"\",\"\",ROW(INDEX(ExtensionsTable[], MATCH($E85, INDEX(ExtensionsTable[], , _xlpm.col), 0), 1))-ROW(ExtensionsTable[[#Headers],[Gene Expression ]])),\nIF(OR(_xlpm.col=\"\",_xlpm.row=\"\"),\"\",INDEX(SuffixesTable[], _xlpm.row, _xlpm.col)))","v":""}]
[70,null,null,{"$f":"_xlfn.IFNA(_xlfn.TEXTJOIN(\"; \",TRUE,INDEX(ItemDescriptionsTable[#Data],,MATCH($C86, ItemDescriptionsTable[#Headers], 0))),\"\")","v":""},null,null,null,null,null,null,null,null,null,null,null,null,null,null,{"$f":"_xlfn.LET(_xlpm.col,IF(NOT(OR(IsEmpty($B86),IsEmpty($C86),IsEmpty($E86))),MATCH($C86,ExtensionsTable[#Headers],0),\"\"),\n_xlpm.row,IF(_xlpm.col=\"\",\"\",ROW(INDEX(ExtensionsTable[], MATCH($E86, INDEX(ExtensionsTable[], , _xlpm.col), 0), 1))-ROW(ExtensionsTable[[#Headers],[Gene Expression ]])),\nIF(OR(_xlpm.col=\"\",_xlpm.row=\"\"),\"\",INDEX(SuffixesTable[], _xlpm.row, _xlpm.col)))","v":""}]
[71,null,null,{"$f":"_xlfn.IFNA(_xlfn.TEXTJOIN(\"; \",TRUE,INDEX(ItemDescriptionsTable[#Data],,MATCH($C87, ItemDescriptionsTable[#Headers], 0))),\"\")","v":""},null,null,null,null,null,null,null,null,null,null,null,null,null,null,{"$f":"_xlfn.LET(_xlpm.col,IF(NOT(OR(IsEmpty($B87),IsEmpty($C87),IsEmpty($E87))),MATCH($C87,ExtensionsTable[#Headers],0),\"\"),\n_xlpm.row,IF(_xlpm.col=\"\",\"\",ROW(INDEX(ExtensionsTable[], MATCH($E87, INDEX(ExtensionsTable[], , _xlpm.col), 0), 1))-ROW(ExtensionsTable[[#Headers],[Gene Expression ]])),\nIF(OR(_xlpm.col=\"\",_xlpm.row=\"\"),\"\",INDEX(SuffixesTable[], _xlpm.row, _xlpm.col)))","v":""}]
[72,null,null,{"$f":"_xlfn.IFNA(_xlfn.TEXTJOIN(\"; \",TRUE,INDEX(ItemDescriptionsTable[#Data],,MATCH($C88, ItemDescriptionsTable[#Headers], 0))),\"\")","v":""},null,null,null,null,null,null,null,null,null,null,null,null,null,null,{"$f":"_xlfn.LET(_xlpm.col,IF(NOT(OR(IsEmpty($B88),IsEmpty($C88),IsEmpty($E88))),MATCH($C88,ExtensionsTable[#Headers],0),\"\"),\n_xlpm.row,IF(_xlpm.col=\"\",\"\",ROW(INDEX(ExtensionsTable[], MATCH($E88, INDEX(ExtensionsTable[], , _xlpm.col), 0), 1))-ROW(ExtensionsTable[[#Headers],[Gene Expression ]])),\nIF(OR(_xlpm.col=\"\",_xlpm.row=\"\"),\"\",INDEX(SuffixesTable[], _xlpm.row, _xlpm.col)))","v":""}]
[73,null,null,{"$f":"_xlfn.IFNA(_xlfn.TEXTJOIN(\"; \",TRUE,INDEX(ItemDescriptionsTable[#Data],,MATCH($C89, ItemDescriptionsTable[#Headers], 0))),\"\")","v":""},null,null,null,null,null,null,null,null,null,null,null,null,null,null,{"$f":"_xlfn.LET(_xlpm.col,IF(NOT(OR(IsEmpty($B89),IsEmpty($C89),IsEmpty($E89))),MATCH($C89,ExtensionsTable[#Headers],0),\"\"),\n_xlpm.row,IF(_xlpm.col=\"\",\"\",ROW(INDEX(ExtensionsTable[], MATCH($E89, INDEX(ExtensionsTable[], , _xlpm.col), 0), 1))-ROW(ExtensionsTable[[#Headers],[Gene Expression ]])),\nIF(OR(_xlpm.col=\"\",_xlpm.row=\"\"),\"\",INDEX(SuffixesTable[], _xlpm.row, _xlpm.col)))","v":""}]
[74,null,null,{"$f":"_xlfn.IFNA(_xlfn.TEXTJOIN(\"; \",TRUE,INDEX(ItemDescriptionsTable[#Data],,MATCH($C90, ItemDescriptionsTable[#Headers], 0))),\"\")","v":""},null,null,null,null,null,null,null,null,null,null,null,null,null,null,{"$f":"_xlfn.LET(_xlpm.col,IF(NOT(OR(IsEmpty($B90),IsEmpty($C90),IsEmpty($E90))),MATCH($C90,ExtensionsTable[#Headers],0),\"\"),\n_xlpm.row,IF(_xlpm.col=\"\",\"\",ROW(INDEX(ExtensionsTable[], MATCH($E90, INDEX(ExtensionsTable[], , _xlpm.col), 0), 1))-ROW(ExtensionsTable[[#Headers],[Gene Expression ]])),\nIF(OR(_xlpm.col=\"\",_xlpm.row=\"\"),\"\",INDEX(SuffixesTable[], _xlpm.row, _xlpm.col)))","v":""}]
[75,null,null,{"$f":"_xlfn.IFNA(_xlfn.TEXTJOIN(\"; \",TRUE,INDEX(ItemDescriptionsTable[#Data],,MATCH($C91, ItemDescriptionsTable[#Headers], 0))),\"\")","v":""},null,null,null,null,null,null,null,null,null,null,null,null,null,null,{"$f":"_xlfn.LET(_xlpm.col,IF(NOT(OR(IsEmpty($B91),IsEmpty($C91),IsEmpty($E91))),MATCH($C91,ExtensionsTable[#Headers],0),\"\"),\n_xlpm.row,IF(_xlpm.col=\"\",\"\",ROW(INDEX(ExtensionsTable[], MATCH($E91, INDEX(ExtensionsTable[], , _xlpm.col), 0), 1))-ROW(ExtensionsTable[[#Headers],[Gene Expression ]])),\nIF(OR(_xlpm.col=\"\",_xlpm.row=\"\"),\"\",INDEX(SuffixesTable[], _xlpm.row, _xlpm.col)))","v":""}]
[76,null,null,{"$f":"_xlfn.IFNA(_xlfn.TEXTJOIN(\"; \",TRUE,INDEX(ItemDescriptionsTable[#Data],,MATCH($C92, ItemDescriptionsTable[#Headers], 0))),\"\")","v":""},null,null,null,null,null,null,null,null,null,null,null,null,null,null,{"$f":"_xlfn.LET(_xlpm.col,IF(NOT(OR(IsEmpty($B92),IsEmpty($C92),IsEmpty($E92))),MATCH($C92,ExtensionsTable[#Headers],0),\"\"),\n_xlpm.row,IF(_xlpm.col=\"\",\"\",ROW(INDEX(ExtensionsTable[], MATCH($E92, INDEX(ExtensionsTable[], , _xlpm.col), 0), 1))-ROW(ExtensionsTable[[#Headers],[Gene Expression ]])),\nIF(OR(_xlpm.col=\"\",_xlpm.row=\"\"),\"\",INDEX(SuffixesTable[], _xlpm.row, _xlpm.col)))","v":""}]
[77,null,null,{"$f":"_xlfn.IFNA(_xlfn.TEXTJOIN(\"; \",TRUE,INDEX(ItemDescriptionsTable[#Data],,MATCH($C93, ItemDescriptionsTable[#Headers], 0))),\"\")","v":""},null,null,null,null,null,null,null,null,null,null,null,null,null,null,{"$f":"_xlfn.LET(_xlpm.col,IF(NOT(OR(IsEmpty($B93),IsEmpty($C93),IsEmpty($E93))),MATCH($C93,ExtensionsTable[#Headers],0),\"\"),\n_xlpm.row,IF(_xlpm.col=\"\",\"\",ROW(INDEX(ExtensionsTable[], MATCH($E93, INDEX(ExtensionsTable[], , _xlpm.col), 0), 1))-ROW(ExtensionsTable[[#Headers],[Gene Expression ]])),\nIF(OR(_xlpm.col=\"\",_xlpm.row=\"\"),\"\",INDEX(SuffixesTable[], _xlpm.row, _xlpm.col)))","v":""}]
[78,null,null,{"$f":"_xlfn.IFNA(_xlfn.TEXTJOIN(\"; \",TRUE,INDEX(ItemDescriptionsTable[#Data],,MATCH($C94, ItemDescriptionsTable[#Headers], 0))),\"\")","v":""},null,null,null,null,null,null,null,null,null,null,null,null,null,null,{"$f":"_xlfn.LET(_xlpm.col,IF(NOT(OR(IsEmpty($B94),IsEmpty($C94),IsEmpty($E94))),MATCH($C94,ExtensionsTable[#Headers],0),\"\"),\n_xlpm.row,IF(_xlpm.col=\"\",\"\",ROW(INDEX(ExtensionsTable[], MATCH($E94, INDEX(ExtensionsTable[], , _xlpm.col), 0), 1))-ROW(ExtensionsTable[[#Headers],[Gene Expression ]])),\nIF(OR(_xlpm.col=\"\",_xlpm.row=\"\"),\"\",INDEX(SuffixesTable[], _xlpm.row, _xlpm.col)))","v":""}]
[79,null,null,{"$f":"_xlfn.IFNA(_xlfn.TEXTJOIN(\"; \",TRUE,INDEX(ItemDescriptionsTable[#Data],,MATCH($C95, ItemDescriptionsTable[#Headers], 0))),\"\")","v":""},null,null,null,null,null,null,null,null,null,null,null,null,null,null,{"$f":"_xlfn.LET(_xlpm.col,IF(NOT(OR(IsEmpty($B95),IsEmpty($C95),IsEmpty($E95))),MATCH($C95,ExtensionsTable[#Headers],0),\"\"),\n_xlpm.row,IF(_xlpm.col=\"\",\"\",ROW(INDEX(ExtensionsTable[], MATCH($E95, INDEX(ExtensionsTable[], , _xlpm.col), 0), 1))-ROW(ExtensionsTable[[#Headers],[Gene Expression ]])),\nIF(OR(_xlpm.col=\"\",_xlpm.row=\"\"),\"\",INDEX(SuffixesTable[], _xlpm.row, _xlpm.col)))","v":""}]
[80,null,null,{"$f":"_xlfn.IFNA(_xlfn.TEXTJOIN(\"; \",TRUE,INDEX(ItemDescriptionsTable[#Data],,MATCH($C96, ItemDescriptionsTable[#Headers], 0))),\"\")","v":""},null,null,null,null,null,null,null,null,null,null,null,null,null,null,{"$f":"_xlfn.LET(_xlpm.col,IF(NOT(OR(IsEmpty($B96),IsEmpty($C96),IsEmpty($E96))),MATCH($C96,ExtensionsTable[#Headers],0),\"\"),\n_xlpm.row,IF(_xlpm.col=\"\",\"\",ROW(INDEX(ExtensionsTable[], MATCH($E96, INDEX(ExtensionsTable[], , _xlpm.col), 0), 1))-ROW(ExtensionsTable[[#Headers],[Gene Expression ]])),\nIF(OR(_xlpm.col=\"\",_xlpm.row=\"\"),\"\",INDEX(SuffixesTable[], _xlpm.row, _xlpm.col)))","v":""}]
[81,null,null,{"$f":"_xlfn.IFNA(_xlfn.TEXTJOIN(\"; \",TRUE,INDEX(ItemDescriptionsTable[#Data],,MATCH($C97, ItemDescriptionsTable[#Headers], 0))),\"\")","v":""},null,null,null,null,null,null,null,null,null,null,null,null,null,null,{"$f":"_xlfn.LET(_xlpm.col,IF(NOT(OR(IsEmpty($B97),IsEmpty($C97),IsEmpty($E97))),MATCH($C97,ExtensionsTable[#Headers],0),\"\"),\n_xlpm.row,IF(_xlpm.col=\"\",\"\",ROW(INDEX(ExtensionsTable[], MATCH($E97, INDEX(ExtensionsTable[], , _xlpm.col), 0), 1))-ROW(ExtensionsTable[[#Headers],[Gene Expression ]])),\nIF(OR(_xlpm.col=\"\",_xlpm.row=\"\"),\"\",INDEX(SuffixesTable[], _xlpm.row, _xlpm.col)))","v":""}]
[82,null,null,{"$f":"_xlfn.IFNA(_xlfn.TEXTJOIN(\"; \",TRUE,INDEX(ItemDescriptionsTable[#Data],,MATCH($C98, ItemDescriptionsTable[#Headers], 0))),\"\")","v":""},null,null,null,null,null,null,null,null,null,null,null,null,null,null,{"$f":"_xlfn.LET(_xlpm.col,IF(NOT(OR(IsEmpty($B98),IsEmpty($C98),IsEmpty($E98))),MATCH($C98,ExtensionsTable[#Headers],0),\"\"),\n_xlpm.row,IF(_xlpm.col=\"\",\"\",ROW(INDEX(ExtensionsTable[], MATCH($E98, INDEX(ExtensionsTable[], , _xlpm.col), 0), 1))-ROW(ExtensionsTable[[#Headers],[Gene Expression ]])),\nIF(OR(_xlpm.col=\"\",_xlpm.row=\"\"),\"\",INDEX(SuffixesTable[], _xlpm.row, _xlpm.col)))","v":""}]
[83,null,null,{"$f":"_xlfn.IFNA(_xlfn.TEXTJOIN(\"; \",TRUE,INDEX(ItemDescriptionsTable[#Data],,MATCH($C99, ItemDescriptionsTable[#Headers], 0))),\"\")","v":""},null,null,null,null,null,null,null,null,null,null,null,null,null,null,{"$f":"_xlfn.LET(_xlpm.col,IF(NOT(OR(IsEmpty($B99),IsEmpty($C99),IsEmpty($E99))),MATCH($C99,ExtensionsTable[#Headers],0),\"\"),\n_xlpm.row,IF(_xlpm.col=\"\",\"\",ROW(INDEX(ExtensionsTable[], MATCH($E99, INDEX(ExtensionsTable[], , _xlpm.col), 0), 1))-ROW(ExtensionsTable[[#Headers],[Gene Expression ]])),\nIF(OR(_xlpm.col=\"\",_xlpm.row=\"\"),\"\",INDEX(SuffixesTable[], _xlpm.row, _xlpm.col)))","v":""}]
[84,null,null,{"$f":"_xlfn.IFNA(_xlfn.TEXTJOIN(\"; \",TRUE,INDEX(ItemDescriptionsTable[#Data],,MATCH($C100, ItemDescriptionsTable[#Headers], 0))),\"\")","v":""},null,null,null,null,null,null,null,null,null,null,null,null,null,null,{"$f":"_xlfn.LET(_xlpm.col,IF(NOT(OR(IsEmpty($B100),IsEmpty($C100),IsEmpty($E100))),MATCH($C100,ExtensionsTable[#Headers],0),\"\"),\n_xlpm.row,IF(_xlpm.col=\"\",\"\",ROW(INDEX(ExtensionsTable[], MATCH($E100, INDEX(ExtensionsTable[], , _xlpm.col), 0), 1))-ROW(ExtensionsTable[[#Headers],[Gene Expression ]])),\nIF(OR(_xlpm.col=\"\",_xlpm.row=\"\"),\"\",INDEX(SuffixesTable[], _xlpm.row, _xlpm.col)))","v":""}]
[85,null,null,{"$f":"_xlfn.IFNA(_xlfn.TEXTJOIN(\"; \",TRUE,INDEX(ItemDescriptionsTable[#Data],,MATCH($C101, ItemDescriptionsTable[#Headers], 0))),\"\")","v":""},null,null,null,null,null,null,null,null,null,null,null,null,null,null,{"$f":"_xlfn.LET(_xlpm.col,IF(NOT(OR(IsEmpty($B101),IsEmpty($C101),IsEmpty($E101))),MATCH($C101,ExtensionsTable[#Headers],0),\"\"),\n_xlpm.row,IF(_xlpm.col=\"\",\"\",ROW(INDEX(ExtensionsTable[], MATCH($E101, INDEX(ExtensionsTable[], , _xlpm.col), 0), 1))-ROW(ExtensionsTable[[#Headers],[Gene Expression ]])),\nIF(OR(_xlpm.col=\"\",_xlpm.row=\"\"),\"\",INDEX(SuffixesTable[], _xlpm.row, _xlpm.col)))","v":""}]
[86,null,null,{"$f":"_xlfn.IFNA(_xlfn.TEXTJOIN(\"; \",TRUE,INDEX(ItemDescriptionsTable[#Data],,MATCH($C102, ItemDescriptionsTable[#Headers], 0))),\"\")","v":""},null,null,null,null,null,null,null,null,null,null,null,null,null,null,{"$f":"_xlfn.LET(_xlpm.col,IF(NOT(OR(IsEmpty($B102),IsEmpty($C102),IsEmpty($E102))),MATCH($C102,ExtensionsTable[#Headers],0),\"\"),\n_xlpm.row,IF(_xlpm.col=\"\",\"\",ROW(INDEX(ExtensionsTable[], MATCH($E102, INDEX(ExtensionsTable[], , _xlpm.col), 0), 1))-ROW(ExtensionsTable[[#Headers],[Gene Expression ]])),\nIF(OR(_xlpm.col=\"\",_xlpm.row=\"\"),\"\",INDEX(SuffixesTable[], _xlpm.row, _xlpm.col)))","v":""}]
[87,null,null,{"$f":"_xlfn.IFNA(_xlfn.TEXTJOIN(\"; \",TRUE,INDEX(ItemDescriptionsTable[#Data],,MATCH($C103, ItemDescriptionsTable[#Headers], 0))),\"\")","v":""},null,null,null,null,null,null,null,null,null,null,null,null,null,null,{"$f":"_xlfn.LET(_xlpm.col,IF(NOT(OR(IsEmpty($B103),IsEmpty($C103),IsEmpty($E103))),MATCH($C103,ExtensionsTable[#Headers],0),\"\"),\n_xlpm.row,IF(_xlpm.col=\"\",\"\",ROW(INDEX(ExtensionsTable[], MATCH($E103, INDEX(ExtensionsTable[], , _xlpm.col), 0), 1))-ROW(ExtensionsTable[[#Headers],[Gene Expression ]])),\nIF(OR(_xlpm.col=\"\",_xlpm.row=\"\"),\"\",INDEX(SuffixesTable[], _xlpm.row, _xlpm.col)))","v":""}]
[88,null,null,{"$f":"_xlfn.IFNA(_xlfn.TEXTJOIN(\"; \",TRUE,INDEX(ItemDescriptionsTable[#Data],,MATCH($C104, ItemDescriptionsTable[#Headers], 0))),\"\")","v":""},null,null,null,null,null,null,null,null,null,null,null,null,null,null,{"$f":"_xlfn.LET(_xlpm.col,IF(NOT(OR(IsEmpty($B104),IsEmpty($C104),IsEmpty($E104))),MATCH($C104,ExtensionsTable[#Headers],0),\"\"),\n_xlpm.row,IF(_xlpm.col=\"\",\"\",ROW(INDEX(ExtensionsTable[], MATCH($E104, INDEX(ExtensionsTable[], , _xlpm.col), 0), 1))-ROW(ExtensionsTable[[#Headers],[Gene Expression ]])),\nIF(OR(_xlpm.col=\"\",_xlpm.row=\"\"),\"\",INDEX(SuffixesTable[], _xlpm.row, _xlpm.col)))","v":""}]
[89,null,null,{"$f":"_xlfn.IFNA(_xlfn.TEXTJOIN(\"; \",TRUE,INDEX(ItemDescriptionsTable[#Data],,MATCH($C105, ItemDescriptionsTable[#Headers], 0))),\"\")","v":""},null,null,null,null,null,null,null,null,null,null,null,null,null,null,{"$f":"_xlfn.LET(_xlpm.col,IF(NOT(OR(IsEmpty($B105),IsEmpty($C105),IsEmpty($E105))),MATCH($C105,ExtensionsTable[#Headers],0),\"\"),\n_xlpm.row,IF(_xlpm.col=\"\",\"\",ROW(INDEX(ExtensionsTable[], MATCH($E105, INDEX(ExtensionsTable[], , _xlpm.col), 0), 1))-ROW(ExtensionsTable[[#Headers],[Gene Expression ]])),\nIF(OR(_xlpm.col=\"\",_xlpm.row=\"\"),\"\",INDEX(SuffixesTable[], _xlpm.row, _xlpm.col)))","v":""}]
[90,null,null,{"$f":"_xlfn.IFNA(_xlfn.TEXTJOIN(\"; \",TRUE,INDEX(ItemDescriptionsTable[#Data],,MATCH($C106, ItemDescriptionsTable[#Headers], 0))),\"\")","v":""},null,null,null,null,null,null,null,null,null,null,null,null,null,null,{"$f":"_xlfn.LET(_xlpm.col,IF(NOT(OR(IsEmpty($B106),IsEmpty($C106),IsEmpty($E106))),MATCH($C106,ExtensionsTable[#Headers],0),\"\"),\n_xlpm.row,IF(_xlpm.col=\"\",\"\",ROW(INDEX(ExtensionsTable[], MATCH($E106, INDEX(ExtensionsTable[], , _xlpm.col), 0), 1))-ROW(ExtensionsTable[[#Headers],[Gene Expression ]])),\nIF(OR(_xlpm.col=\"\",_xlpm.row=\"\"),\"\",INDEX(SuffixesTable[], _xlpm.row, _xlpm.col)))","v":""}]
[91,null,null,{"$f":"_xlfn.IFNA(_xlfn.TEXTJOIN(\"; \",TRUE,INDEX(ItemDescriptionsTable[#Data],,MATCH($C107, ItemDescriptionsTable[#Headers], 0))),\"\")","v":""},null,null,null,null,null,null,null,null,null,null,null,null,null,null,{"$f":"_xlfn.LET(_xlpm.col,IF(NOT(OR(IsEmpty($B107),IsEmpty($C107),IsEmpty($E107))),MATCH($C107,ExtensionsTable[#Headers],0),\"\"),\n_xlpm.row,IF(_xlpm.col=\"\",\"\",ROW(INDEX(ExtensionsTable[], MATCH($E107, INDEX(ExtensionsTable[], , _xlpm.col), 0), 1))-ROW(ExtensionsTable[[#Headers],[Gene Expression ]])),\nIF(OR(_xlpm.col=\"\",_xlpm.row=\"\"),\"\",INDEX(SuffixesTable[], _xlpm.row, _xlpm.col)))","v":""}]
[92,null,null,{"$f":"_xlfn.IFNA(_xlfn.TEXTJOIN(\"; \",TRUE,INDEX(ItemDescriptionsTable[#Data],,MATCH($C108, ItemDescriptionsTable[#Headers], 0))),\"\")","v":""},null,null,null,null,null,null,null,null,null,null,null,null,null,null,{"$f":"_xlfn.LET(_xlpm.col,IF(NOT(OR(IsEmpty($B108),IsEmpty($C108),IsEmpty($E108))),MATCH($C108,ExtensionsTable[#Headers],0),\"\"),\n_xlpm.row,IF(_xlpm.col=\"\",\"\",ROW(INDEX(ExtensionsTable[], MATCH($E108, INDEX(ExtensionsTable[], , _xlpm.col), 0), 1))-ROW(ExtensionsTable[[#Headers],[Gene Expression ]])),\nIF(OR(_xlpm.col=\"\",_xlpm.row=\"\"),\"\",INDEX(SuffixesTable[], _xlpm.row, _xlpm.col)))","v":""}]
[93,null,null,{"$f":"_xlfn.IFNA(_xlfn.TEXTJOIN(\"; \",TRUE,INDEX(ItemDescriptionsTable[#Data],,MATCH($C109, ItemDescriptionsTable[#Headers], 0))),\"\")","v":""},null,null,null,null,null,null,null,null,null,null,null,null,null,null,{"$f":"_xlfn.LET(_xlpm.col,IF(NOT(OR(IsEmpty($B109),IsEmpty($C109),IsEmpty($E109))),MATCH($C109,ExtensionsTable[#Headers],0),\"\"),\n_xlpm.row,IF(_xlpm.col=\"\",\"\",ROW(INDEX(ExtensionsTable[], MATCH($E109, INDEX(ExtensionsTable[], , _xlpm.col), 0), 1))-ROW(ExtensionsTable[[#Headers],[Gene Expression ]])),\nIF(OR(_xlpm.col=\"\",_xlpm.row=\"\"),\"\",INDEX(SuffixesTable[], _xlpm.row, _xlpm.col)))","v":""}]
[94,null,null,{"$f":"_xlfn.IFNA(_xlfn.TEXTJOIN(\"; \",TRUE,INDEX(ItemDescriptionsTable[#Data],,MATCH($C110, ItemDescriptionsTable[#Headers], 0))),\"\")","v":""},null,null,null,null,null,null,null,null,null,null,null,null,null,null,{"$f":"_xlfn.LET(_xlpm.col,IF(NOT(OR(IsEmpty($B110),IsEmpty($C110),IsEmpty($E110))),MATCH($C110,ExtensionsTable[#Headers],0),\"\"),\n_xlpm.row,IF(_xlpm.col=\"\",\"\",ROW(INDEX(ExtensionsTable[], MATCH($E110, INDEX(ExtensionsTable[], , _xlpm.col), 0), 1))-ROW(ExtensionsTable[[#Headers],[Gene Expression ]])),\nIF(OR(_xlpm.col=\"\",_xlpm.row=\"\"),\"\",INDEX(SuffixesTable[], _xlpm.row, _xlpm.col)))","v":""}]
[95,null,null,{"$f":"_xlfn.IFNA(_xlfn.TEXTJOIN(\"; \",TRUE,INDEX(ItemDescriptionsTable[#Data],,MATCH($C111, ItemDescriptionsTable[#Headers], 0))),\"\")","v":""},null,null,null,null,null,null,null,null,null,null,null,null,null,null,{"$f":"_xlfn.LET(_xlpm.col,IF(NOT(OR(IsEmpty($B111),IsEmpty($C111),IsEmpty($E111))),MATCH($C111,ExtensionsTable[#Headers],0),\"\"),\n_xlpm.row,IF(_xlpm.col=\"\",\"\",ROW(INDEX(ExtensionsTable[], MATCH($E111, INDEX(ExtensionsTable[], , _xlpm.col), 0), 1))-ROW(ExtensionsTable[[#Headers],[Gene Expression ]])),\nIF(OR(_xlpm.col=\"\",_xlpm.row=\"\"),\"\",INDEX(SuffixesTable[], _xlpm.row, _xlpm.col)))","v":""}]
[96,null,null,{"$f":"_xlfn.IFNA(_xlfn.TEXTJOIN(\"; \",TRUE,INDEX(ItemDescriptionsTable[#Data],,MATCH($C112, ItemDescriptionsTable[#Headers], 0))),\"\")","v":""},null,null,null,null,null,null,null,null,null,null,null,null,null,null,{"$f":"_xlfn.LET(_xlpm.col,IF(NOT(OR(IsEmpty($B112),IsEmpty($C112),IsEmpty($E112))),MATCH($C112,ExtensionsTable[#Headers],0),\"\"),\n_xlpm.row,IF(_xlpm.col=\"\",\"\",ROW(INDEX(ExtensionsTable[], MATCH($E112, INDEX(ExtensionsTable[], , _xlpm.col), 0), 1))-ROW(ExtensionsTable[[#Headers],[Gene Expression ]])),\nIF(OR(_xlpm.col=\"\",_xlpm.row=\"\"),\"\",INDEX(SuffixesTable[], _xlpm.row, _xlpm.col)))","v":""}]
[97,null,null,{"$f":"_xlfn.IFNA(_xlfn.TEXTJOIN(\"; \",TRUE,INDEX(ItemDescriptionsTable[#Data],,MATCH($C113, ItemDescriptionsTable[#Headers], 0))),\"\")","v":""},null,null,null,null,null,null,null,null,null,null,null,null,null,null,{"$f":"_xlfn.LET(_xlpm.col,IF(NOT(OR(IsEmpty($B113),IsEmpty($C113),IsEmpty($E113))),MATCH($C113,ExtensionsTable[#Headers],0),\"\"),\n_xlpm.row,IF(_xlpm.col=\"\",\"\",ROW(INDEX(ExtensionsTable[], MATCH($E113, INDEX(ExtensionsTable[], , _xlpm.col), 0), 1))-ROW(ExtensionsTable[[#Headers],[Gene Expression ]])),\nIF(OR(_xlpm.col=\"\",_xlpm.row=\"\"),\"\",INDEX(SuffixesTable[], _xlpm.row, _xlpm.col)))","v":""}]
[98,null,null,{"$f":"_xlfn.IFNA(_xlfn.TEXTJOIN(\"; \",TRUE,INDEX(ItemDescriptionsTable[#Data],,MATCH($C114, ItemDescriptionsTable[#Headers], 0))),\"\")","v":""},null,null,null,null,null,null,null,null,null,null,null,null,null,null,{"$f":"_xlfn.LET(_xlpm.col,IF(NOT(OR(IsEmpty($B114),IsEmpty($C114),IsEmpty($E114))),MATCH($C114,ExtensionsTable[#Headers],0),\"\"),\n_xlpm.row,IF(_xlpm.col=\"\",\"\",ROW(INDEX(ExtensionsTable[], MATCH($E114, INDEX(ExtensionsTable[], , _xlpm.col), 0), 1))-ROW(ExtensionsTable[[#Headers],[Gene Expression ]])),\nIF(OR(_xlpm.col=\"\",_xlpm.row=\"\"),\"\",INDEX(SuffixesTable[], _xlpm.row, _xlpm.col)))","v":""}]
[99,null,null,{"$f":"_xlfn.IFNA(_xlfn.TEXTJOIN(\"; \",TRUE,INDEX(ItemDescriptionsTable[#Data],,MATCH($C115, ItemDescriptionsTable[#Headers], 0))),\"\")","v":""},null,null,null,null,null,null,null,null,null,null,null,null,null,null,{"$f":"_xlfn.LET(_xlpm.col,IF(NOT(OR(IsEmpty($B115),IsEmpty($C115),IsEmpty($E115))),MATCH($C115,ExtensionsTable[#Headers],0),\"\"),\n_xlpm.row,IF(_xlpm.col=\"\",\"\",ROW(INDEX(ExtensionsTable[], MATCH($E115, INDEX(ExtensionsTable[], , _xlpm.col), 0), 1))-ROW(ExtensionsTable[[#Headers],[Gene Expression ]])),\nIF(OR(_xlpm.col=\"\",_xlpm.row=\"\"),\"\",INDEX(SuffixesTable[], _xlpm.row, _xlpm.col)))","v":""}]
[100,null,null,{"$f":"_xlfn.IFNA(_xlfn.TEXTJOIN(\"; \",TRUE,INDEX(ItemDescriptionsTable[#Data],,MATCH($C116, ItemDescriptionsTable[#Headers], 0))),\"\")","v":""},null,null,null,null,null,null,null,null,null,null,null,null,null,null,{"$f":"_xlfn.LET(_xlpm.col,IF(NOT(OR(IsEmpty($B116),IsEmpty($C116),IsEmpty($E116))),MATCH($C116,ExtensionsTable[#Headers],0),\"\"),\n_xlpm.row,IF(_xlpm.col=\"\",\"\",ROW(INDEX(ExtensionsTable[], MATCH($E116, INDEX(ExtensionsTable[], , _xlpm.col), 0), 1))-ROW(ExtensionsTable[[#Headers],[Gene Expression ]])),\nIF(OR(_xlpm.col=\"\",_xlpm.row=\"\"),\"\",INDEX(SuffixesTable[], _xlpm.row, _xlpm.col)))","v":""}]
[101,null,null,{"$f":"_xlfn.IFNA(_xlfn.TEXTJOIN(\"; \",TRUE,INDEX(ItemDescriptionsTable[#Data],,MATCH($C117, ItemDescriptionsTable[#Headers], 0))),\"\")","v":""},null,null,null,null,null,null,null,null,null,null,null,null,null,null,{"$f":"_xlfn.LET(_xlpm.col,IF(NOT(OR(IsEmpty($B117),IsEmpty($C117),IsEmpty($E117))),MATCH($C117,ExtensionsTable[#Headers],0),\"\"),\n_xlpm.row,IF(_xlpm.col=\"\",\"\",ROW(INDEX(ExtensionsTable[], MATCH($E117, INDEX(ExtensionsTable[], , _xlpm.col), 0), 1))-ROW(ExtensionsTable[[#Headers],[Gene Expression ]])),\nIF(OR(_xlpm.col=\"\",_xlpm.row=\"\"),\"\",INDEX(SuffixesTable[], _xlpm.row, _xlpm.col)))","v":""}]
[102,null,null,{"$f":"_xlfn.IFNA(_xlfn.TEXTJOIN(\"; \",TRUE,INDEX(ItemDescriptionsTable[#Data],,MATCH($C118, ItemDescriptionsTable[#Headers], 0))),\"\")","v":""},null,null,null,null,null,null,null,null,null,null,null,null,null,null,{"$f":"_xlfn.LET(_xlpm.col,IF(NOT(OR(IsEmpty($B118),IsEmpty($C118),IsEmpty($E118))),MATCH($C118,ExtensionsTable[#Headers],0),\"\"),\n_xlpm.row,IF(_xlpm.col=\"\",\"\",ROW(INDEX(ExtensionsTable[], MATCH($E118, INDEX(ExtensionsTable[], , _xlpm.col), 0), 1))-ROW(ExtensionsTable[[#Headers],[Gene Expression ]])),\nIF(OR(_xlpm.col=\"\",_xlpm.row=\"\"),\"\",INDEX(SuffixesTable[], _xlpm.row, _xlpm.col)))","v":""}]
[103,null,null,{"$f":"_xlfn.IFNA(_xlfn.TEXTJOIN(\"; \",TRUE,INDEX(ItemDescriptionsTable[#Data],,MATCH($C119, ItemDescriptionsTable[#Headers], 0))),\"\")","v":""},null,null,null,null,null,null,null,null,null,null,null,null,null,null,{"$f":"_xlfn.LET(_xlpm.col,IF(NOT(OR(IsEmpty($B119),IsEmpty($C119),IsEmpty($E119))),MATCH($C119,ExtensionsTable[#Headers],0),\"\"),\n_xlpm.row,IF(_xlpm.col=\"\",\"\",ROW(INDEX(ExtensionsTable[], MATCH($E119, INDEX(ExtensionsTable[], , _xlpm.col), 0), 1))-ROW(ExtensionsTable[[#Headers],[Gene Expression ]])),\nIF(OR(_xlpm.col=\"\",_xlpm.row=\"\"),\"\",INDEX(SuffixesTable[], _xlpm.row, _xlpm.col)))","v":""}]
[104,null,null,{"$f":"_xlfn.IFNA(_xlfn.TEXTJOIN(\"; \",TRUE,INDEX(ItemDescriptionsTable[#Data],,MATCH($C120, ItemDescriptionsTable[#Headers], 0))),\"\")","v":""},null,null,null,null,null,null,null,null,null,null,null,null,null,null,{"$f":"_xlfn.LET(_xlpm.col,IF(NOT(OR(IsEmpty($B120),IsEmpty($C120),IsEmpty($E120))),MATCH($C120,ExtensionsTable[#Headers],0),\"\"),\n_xlpm.row,IF(_xlpm.col=\"\",\"\",ROW(INDEX(ExtensionsTable[], MATCH($E120, INDEX(ExtensionsTable[], , _xlpm.col), 0), 1))-ROW(ExtensionsTable[[#Headers],[Gene Expression ]])),\nIF(OR(_xlpm.col=\"\",_xlpm.row=\"\"),\"\",INDEX(SuffixesTable[], _xlpm.row, _xlpm.col)))","v":""}]
[105,null,null,{"$f":"_xlfn.IFNA(_xlfn.TEXTJOIN(\"; \",TRUE,INDEX(ItemDescriptionsTable[#Data],,MATCH($C121, ItemDescriptionsTable[#Headers], 0))),\"\")","v":""},null,null,null,null,null,null,null,null,null,null,null,null,null,null,{"$f":"_xlfn.LET(_xlpm.col,IF(NOT(OR(IsEmpty($B121),IsEmpty($C121),IsEmpty($E121))),MATCH($C121,ExtensionsTable[#Headers],0),\"\"),\n_xlpm.row,IF(_xlpm.col=\"\",\"\",ROW(INDEX(ExtensionsTable[], MATCH($E121, INDEX(ExtensionsTable[], , _xlpm.col), 0), 1))-ROW(ExtensionsTable[[#Headers],[Gene Expression ]])),\nIF(OR(_xlpm.col=\"\",_xlpm.row=\"\"),\"\",INDEX(SuffixesTable[], _xlpm.row, _xlpm.col)))","v":""}]
[106,null,null,{"$f":"_xlfn.IFNA(_xlfn.TEXTJOIN(\"; \",TRUE,INDEX(ItemDescriptionsTable[#Data],,MATCH($C122, ItemDescriptionsTable[#Headers], 0))),\"\")","v":""},null,null,null,null,null,null,null,null,null,null,null,null,null,null,{"$f":"_xlfn.LET(_xlpm.col,IF(NOT(OR(IsEmpty($B122),IsEmpty($C122),IsEmpty($E122))),MATCH($C122,ExtensionsTable[#Headers],0),\"\"),\n_xlpm.row,IF(_xlpm.col=\"\",\"\",ROW(INDEX(ExtensionsTable[], MATCH($E122, INDEX(ExtensionsTable[], , _xlpm.col), 0), 1))-ROW(ExtensionsTable[[#Headers],[Gene Expression ]])),\nIF(OR(_xlpm.col=\"\",_xlpm.row=\"\"),\"\",INDEX(SuffixesTable[], _xlpm.row, _xlpm.col)))","v":""}]
[107,null,null,{"$f":"_xlfn.IFNA(_xlfn.TEXTJOIN(\"; \",TRUE,INDEX(ItemDescriptionsTable[#Data],,MATCH($C123, ItemDescriptionsTable[#Headers], 0))),\"\")","v":""},null,null,null,null,null,null,null,null,null,null,null,null,null,null,{"$f":"_xlfn.LET(_xlpm.col,IF(NOT(OR(IsEmpty($B123),IsEmpty($C123),IsEmpty($E123))),MATCH($C123,ExtensionsTable[#Headers],0),\"\"),\n_xlpm.row,IF(_xlpm.col=\"\",\"\",ROW(INDEX(ExtensionsTable[], MATCH($E123, INDEX(ExtensionsTable[], , _xlpm.col), 0), 1))-ROW(ExtensionsTable[[#Headers],[Gene Expression ]])),\nIF(OR(_xlpm.col=\"\",_xlpm.row=\"\"),\"\",INDEX(SuffixesTable[], _xlpm.row, _xlpm.col)))","v":""}]
[108,null,null,{"$f":"_xlfn.IFNA(_xlfn.TEXTJOIN(\"; \",TRUE,INDEX(ItemDescriptionsTable[#Data],,MATCH($C124, ItemDescriptionsTable[#Headers], 0))),\"\")","v":""},null,null,null,null,null,null,null,null,null,null,null,null,null,null,{"$f":"_xlfn.LET(_xlpm.col,IF(NOT(OR(IsEmpty($B124),IsEmpty($C124),IsEmpty($E124))),MATCH($C124,ExtensionsTable[#Headers],0),\"\"),\n_xlpm.row,IF(_xlpm.col=\"\",\"\",ROW(INDEX(ExtensionsTable[], MATCH($E124, INDEX(ExtensionsTable[], , _xlpm.col), 0), 1))-ROW(ExtensionsTable[[#Headers],[Gene Expression ]])),\nIF(OR(_xlpm.col=\"\",_xlpm.row=\"\"),\"\",INDEX(SuffixesTable[], _xlpm.row, _xlpm.col)))","v":""}]
[109,null,null,{"$f":"_xlfn.IFNA(_xlfn.TEXTJOIN(\"; \",TRUE,INDEX(ItemDescriptionsTable[#Data],,MATCH($C125, ItemDescriptionsTable[#Headers], 0))),\"\")","v":""},null,null,null,null,null,null,null,null,null,null,null,null,null,null,{"$f":"_xlfn.LET(_xlpm.col,IF(NOT(OR(IsEmpty($B125),IsEmpty($C125),IsEmpty($E125))),MATCH($C125,ExtensionsTable[#Headers],0),\"\"),\n_xlpm.row,IF(_xlpm.col=\"\",\"\",ROW(INDEX(ExtensionsTable[], MATCH($E125, INDEX(ExtensionsTable[], , _xlpm.col), 0), 1))-ROW(ExtensionsTable[[#Headers],[Gene Expression ]])),\nIF(OR(_xlpm.col=\"\",_xlpm.row=\"\"),\"\",INDEX(SuffixesTable[], _xlpm.row, _xlpm.col)))","v":""}]
[110,null,null,{"$f":"_xlfn.IFNA(_xlfn.TEXTJOIN(\"; \",TRUE,INDEX(ItemDescriptionsTable[#Data],,MATCH($C126, ItemDescriptionsTable[#Headers], 0))),\"\")","v":""},null,null,null,null,null,null,null,null,null,null,null,null,null,null,{"$f":"_xlfn.LET(_xlpm.col,IF(NOT(OR(IsEmpty($B126),IsEmpty($C126),IsEmpty($E126))),MATCH($C126,ExtensionsTable[#Headers],0),\"\"),\n_xlpm.row,IF(_xlpm.col=\"\",\"\",ROW(INDEX(ExtensionsTable[], MATCH($E126, INDEX(ExtensionsTable[], , _xlpm.col), 0), 1))-ROW(ExtensionsTable[[#Headers],[Gene Expression ]])),\nIF(OR(_xlpm.col=\"\",_xlpm.row=\"\"),\"\",INDEX(SuffixesTable[], _xlpm.row, _xlpm.col)))","v":""}]
[111,null,null,{"$f":"_xlfn.IFNA(_xlfn.TEXTJOIN(\"; \",TRUE,INDEX(ItemDescriptionsTable[#Data],,MATCH($C127, ItemDescriptionsTable[#Headers], 0))),\"\")","v":""},null,null,null,null,null,null,null,null,null,null,null,null,null,null,{"$f":"_xlfn.LET(_xlpm.col,IF(NOT(OR(IsEmpty($B127),IsEmpty($C127),IsEmpty($E127))),MATCH($C127,ExtensionsTable[#Headers],0),\"\"),\n_xlpm.row,IF(_xlpm.col=\"\",\"\",ROW(INDEX(ExtensionsTable[], MATCH($E127, INDEX(ExtensionsTable[], , _xlpm.col), 0), 1))-ROW(ExtensionsTable[[#Headers],[Gene Expression ]])),\nIF(OR(_xlpm.col=\"\",_xlpm.row=\"\"),\"\",INDEX(SuffixesTable[], _xlpm.row, _xlpm.col)))","v":""}]
[112,null,null,{"$f":"_xlfn.IFNA(_xlfn.TEXTJOIN(\"; \",TRUE,INDEX(ItemDescriptionsTable[#Data],,MATCH($C128, ItemDescriptionsTable[#Headers], 0))),\"\")","v":""},null,null,null,null,null,null,null,null,null,null,null,null,null,null,{"$f":"_xlfn.LET(_xlpm.col,IF(NOT(OR(IsEmpty($B128),IsEmpty($C128),IsEmpty($E128))),MATCH($C128,ExtensionsTable[#Headers],0),\"\"),\n_xlpm.row,IF(_xlpm.col=\"\",\"\",ROW(INDEX(ExtensionsTable[], MATCH($E128, INDEX(ExtensionsTable[], , _xlpm.col), 0), 1))-ROW(ExtensionsTable[[#Headers],[Gene Expression ]])),\nIF(OR(_xlpm.col=\"\",_xlpm.row=\"\"),\"\",INDEX(SuffixesTable[], _xlpm.row, _xlpm.col)))","v":""}]
[113,null,null,{"$f":"_xlfn.IFNA(_xlfn.TEXTJOIN(\"; \",TRUE,INDEX(ItemDescriptionsTable[#Data],,MATCH($C129, ItemDescriptionsTable[#Headers], 0))),\"\")","v":""},null,null,null,null,null,null,null,null,null,null,null,null,null,null,{"$f":"_xlfn.LET(_xlpm.col,IF(NOT(OR(IsEmpty($B129),IsEmpty($C129),IsEmpty($E129))),MATCH($C129,ExtensionsTable[#Headers],0),\"\"),\n_xlpm.row,IF(_xlpm.col=\"\",\"\",ROW(INDEX(ExtensionsTable[], MATCH($E129, INDEX(ExtensionsTable[], , _xlpm.col), 0), 1))-ROW(ExtensionsTable[[#Headers],[Gene Expression ]])),\nIF(OR(_xlpm.col=\"\",_xlpm.row=\"\"),\"\",INDEX(SuffixesTable[], _xlpm.row, _xlpm.col)))","v":""}]
[114,null,null,{"$f":"_xlfn.IFNA(_xlfn.TEXTJOIN(\"; \",TRUE,INDEX(ItemDescriptionsTable[#Data],,MATCH($C130, ItemDescriptionsTable[#Headers], 0))),\"\")","v":""},null,null,null,null,null,null,null,null,null,null,null,null,null,null,{"$f":"_xlfn.LET(_xlpm.col,IF(NOT(OR(IsEmpty($B130),IsEmpty($C130),IsEmpty($E130))),MATCH($C130,ExtensionsTable[#Headers],0),\"\"),\n_xlpm.row,IF(_xlpm.col=\"\",\"\",ROW(INDEX(ExtensionsTable[], MATCH($E130, INDEX(ExtensionsTable[], , _xlpm.col), 0), 1))-ROW(ExtensionsTable[[#Headers],[Gene Expression ]])),\nIF(OR(_xlpm.col=\"\",_xlpm.row=\"\"),\"\",INDEX(SuffixesTable[], _xlpm.row, _xlpm.col)))","v":""}]
[115,null,null,{"$f":"_xlfn.IFNA(_xlfn.TEXTJOIN(\"; \",TRUE,INDEX(ItemDescriptionsTable[#Data],,MATCH($C131, ItemDescriptionsTable[#Headers], 0))),\"\")","v":""},null,null,null,null,null,null,null,null,null,null,null,null,null,null,{"$f":"_xlfn.LET(_xlpm.col,IF(NOT(OR(IsEmpty($B131),IsEmpty($C131),IsEmpty($E131))),MATCH($C131,ExtensionsTable[#Headers],0),\"\"),\n_xlpm.row,IF(_xlpm.col=\"\",\"\",ROW(INDEX(ExtensionsTable[], MATCH($E131, INDEX(ExtensionsTable[], , _xlpm.col), 0), 1))-ROW(ExtensionsTable[[#Headers],[Gene Expression ]])),\nIF(OR(_xlpm.col=\"\",_xlpm.row=\"\"),\"\",INDEX(SuffixesTable[], _xlpm.row, _xlpm.col)))","v":""}]
[116,null,null,{"$f":"_xlfn.IFNA(_xlfn.TEXTJOIN(\"; \",TRUE,INDEX(ItemDescriptionsTable[#Data],,MATCH($C132, ItemDescriptionsTable[#Headers], 0))),\"\")","v":""},null,null,null,null,null,null,null,null,null,null,null,null,null,null,{"$f":"_xlfn.LET(_xlpm.col,IF(NOT(OR(IsEmpty($B132),IsEmpty($C132),IsEmpty($E132))),MATCH($C132,ExtensionsTable[#Headers],0),\"\"),\n_xlpm.row,IF(_xlpm.col=\"\",\"\",ROW(INDEX(ExtensionsTable[], MATCH($E132, INDEX(ExtensionsTable[], , _xlpm.col), 0), 1))-ROW(ExtensionsTable[[#Headers],[Gene Expression ]])),\nIF(OR(_xlpm.col=\"\",_xlpm.row=\"\"),\"\",INDEX(SuffixesTable[], _xlpm.row, _xlpm.col)))","v":""}]
[117,null,null,{"$f":"_xlfn.IFNA(_xlfn.TEXTJOIN(\"; \",TRUE,INDEX(ItemDescriptionsTable[#Data],,MATCH($C133, ItemDescriptionsTable[#Headers], 0))),\"\")","v":""},null,null,null,null,null,null,null,null,null,null,null,null,null,null,{"$f":"_xlfn.LET(_xlpm.col,IF(NOT(OR(IsEmpty($B133),IsEmpty($C133),IsEmpty($E133))),MATCH($C133,ExtensionsTable[#Headers],0),\"\"),\n_xlpm.row,IF(_xlpm.col=\"\",\"\",ROW(INDEX(ExtensionsTable[], MATCH($E133, INDEX(ExtensionsTable[], , _xlpm.col), 0), 1))-ROW(ExtensionsTable[[#Headers],[Gene Expression ]])),\nIF(OR(_xlpm.col=\"\",_xlpm.row=\"\"),\"\",INDEX(SuffixesTable[], _xlpm.row, _xlpm.col)))","v":""}]
[118,null,null,{"$f":"_xlfn.IFNA(_xlfn.TEXTJOIN(\"; \",TRUE,INDEX(ItemDescriptionsTable[#Data],,MATCH($C134, ItemDescriptionsTable[#Headers], 0))),\"\")","v":""},null,null,null,null,null,null,null,null,null,null,null,null,null,null,{"$f":"_xlfn.LET(_xlpm.col,IF(NOT(OR(IsEmpty($B134),IsEmpty($C134),IsEmpty($E134))),MATCH($C134,ExtensionsTable[#Headers],0),\"\"),\n_xlpm.row,IF(_xlpm.col=\"\",\"\",ROW(INDEX(ExtensionsTable[], MATCH($E134, INDEX(ExtensionsTable[], , _xlpm.col), 0), 1))-ROW(ExtensionsTable[[#Headers],[Gene Expression ]])),\nIF(OR(_xlpm.col=\"\",_xlpm.row=\"\"),\"\",INDEX(SuffixesTable[], _xlpm.row, _xlpm.col)))","v":""}]
[119,null,null,{"$f":"_xlfn.IFNA(_xlfn.TEXTJOIN(\"; \",TRUE,INDEX(ItemDescriptionsTable[#Data],,MATCH($C135, ItemDescriptionsTable[#Headers], 0))),\"\")","v":""},null,null,null,null,null,null,null,null,null,null,null,null,null,null,{"$f":"_xlfn.LET(_xlpm.col,IF(NOT(OR(IsEmpty($B135),IsEmpty($C135),IsEmpty($E135))),MATCH($C135,ExtensionsTable[#Headers],0),\"\"),\n_xlpm.row,IF(_xlpm.col=\"\",\"\",ROW(INDEX(ExtensionsTable[], MATCH($E135, INDEX(ExtensionsTable[], , _xlpm.col), 0), 1))-ROW(ExtensionsTable[[#Headers],[Gene Expression ]])),\nIF(OR(_xlpm.col=\"\",_xlpm.row=\"\"),\"\",INDEX(SuffixesTable[], _xlpm.row, _xlpm.col)))","v":""}]
[120,null,null,{"$f":"_xlfn.IFNA(_xlfn.TEXTJOIN(\"; \",TRUE,INDEX(ItemDescriptionsTable[#Data],,MATCH($C136, ItemDescriptionsTable[#Headers], 0))),\"\")","v":""},null,null,null,null,null,null,null,null,null,null,null,null,null,null,{"$f":"_xlfn.LET(_xlpm.col,IF(NOT(OR(IsEmpty($B136),IsEmpty($C136),IsEmpty($E136))),MATCH($C136,ExtensionsTable[#Headers],0),\"\"),\n_xlpm.row,IF(_xlpm.col=\"\",\"\",ROW(INDEX(ExtensionsTable[], MATCH($E136, INDEX(ExtensionsTable[], , _xlpm.col), 0), 1))-ROW(ExtensionsTable[[#Headers],[Gene Expression ]])),\nIF(OR(_xlpm.col=\"\",_xlpm.row=\"\"),\"\",INDEX(SuffixesTable[], _xlpm.row, _xlpm.col)))","v":""}]
[121,null,null,{"$f":"_xlfn.IFNA(_xlfn.TEXTJOIN(\"; \",TRUE,INDEX(ItemDescriptionsTable[#Data],,MATCH($C137, ItemDescriptionsTable[#Headers], 0))),\"\")","v":""},null,null,null,null,null,null,null,null,null,null,null,null,null,null,{"$f":"_xlfn.LET(_xlpm.col,IF(NOT(OR(IsEmpty($B137),IsEmpty($C137),IsEmpty($E137))),MATCH($C137,ExtensionsTable[#Headers],0),\"\"),\n_xlpm.row,IF(_xlpm.col=\"\",\"\",ROW(INDEX(ExtensionsTable[], MATCH($E137, INDEX(ExtensionsTable[], , _xlpm.col), 0), 1))-ROW(ExtensionsTable[[#Headers],[Gene Expression ]])),\nIF(OR(_xlpm.col=\"\",_xlpm.row=\"\"),\"\",INDEX(SuffixesTable[], _xlpm.row, _xlpm.col)))","v":""}]
[122,null,null,{"$f":"_xlfn.IFNA(_xlfn.TEXTJOIN(\"; \",TRUE,INDEX(ItemDescriptionsTable[#Data],,MATCH($C138, ItemDescriptionsTable[#Headers], 0))),\"\")","v":""},null,null,null,null,null,null,null,null,null,null,null,null,null,null,{"$f":"_xlfn.LET(_xlpm.col,IF(NOT(OR(IsEmpty($B138),IsEmpty($C138),IsEmpty($E138))),MATCH($C138,ExtensionsTable[#Headers],0),\"\"),\n_xlpm.row,IF(_xlpm.col=\"\",\"\",ROW(INDEX(ExtensionsTable[], MATCH($E138, INDEX(ExtensionsTable[], , _xlpm.col), 0), 1))-ROW(ExtensionsTable[[#Headers],[Gene Expression ]])),\nIF(OR(_xlpm.col=\"\",_xlpm.row=\"\"),\"\",INDEX(SuffixesTable[], _xlpm.row, _xlpm.col)))","v":""}]
[123,null,null,{"$f":"_xlfn.IFNA(_xlfn.TEXTJOIN(\"; \",TRUE,INDEX(ItemDescriptionsTable[#Data],,MATCH($C139, ItemDescriptionsTable[#Headers], 0))),\"\")","v":""},null,null,null,null,null,null,null,null,null,null,null,null,null,null,{"$f":"_xlfn.LET(_xlpm.col,IF(NOT(OR(IsEmpty($B139),IsEmpty($C139),IsEmpty($E139))),MATCH($C139,ExtensionsTable[#Headers],0),\"\"),\n_xlpm.row,IF(_xlpm.col=\"\",\"\",ROW(INDEX(ExtensionsTable[], MATCH($E139, INDEX(ExtensionsTable[], , _xlpm.col), 0), 1))-ROW(ExtensionsTable[[#Headers],[Gene Expression ]])),\nIF(OR(_xlpm.col=\"\",_xlpm.row=\"\"),\"\",INDEX(SuffixesTable[], _xlpm.row, _xlpm.col)))","v":""}]
[124,null,null,{"$f":"_xlfn.IFNA(_xlfn.TEXTJOIN(\"; \",TRUE,INDEX(ItemDescriptionsTable[#Data],,MATCH($C140, ItemDescriptionsTable[#Headers], 0))),\"\")","v":""},null,null,null,null,null,null,null,null,null,null,null,null,null,null,{"$f":"_xlfn.LET(_xlpm.col,IF(NOT(OR(IsEmpty($B140),IsEmpty($C140),IsEmpty($E140))),MATCH($C140,ExtensionsTable[#Headers],0),\"\"),\n_xlpm.row,IF(_xlpm.col=\"\",\"\",ROW(INDEX(ExtensionsTable[], MATCH($E140, INDEX(ExtensionsTable[], , _xlpm.col), 0), 1))-ROW(ExtensionsTable[[#Headers],[Gene Expression ]])),\nIF(OR(_xlpm.col=\"\",_xlpm.row=\"\"),\"\",INDEX(SuffixesTable[], _xlpm.row, _xlpm.col)))","v":""}]
[125,null,null,{"$f":"_xlfn.IFNA(_xlfn.TEXTJOIN(\"; \",TRUE,INDEX(ItemDescriptionsTable[#Data],,MATCH($C141, ItemDescriptionsTable[#Headers], 0))),\"\")","v":""},null,null,null,null,null,null,null,null,null,null,null,null,null,null,{"$f":"_xlfn.LET(_xlpm.col,IF(NOT(OR(IsEmpty($B141),IsEmpty($C141),IsEmpty($E141))),MATCH($C141,ExtensionsTable[#Headers],0),\"\"),\n_xlpm.row,IF(_xlpm.col=\"\",\"\",ROW(INDEX(ExtensionsTable[], MATCH($E141, INDEX(ExtensionsTable[], , _xlpm.col), 0), 1))-ROW(ExtensionsTable[[#Headers],[Gene Expression ]])),\nIF(OR(_xlpm.col=\"\",_xlpm.row=\"\"),\"\",INDEX(SuffixesTable[], _xlpm.row, _xlpm.col)))","v":""}]
[126,null,null,{"$f":"_xlfn.IFNA(_xlfn.TEXTJOIN(\"; \",TRUE,INDEX(ItemDescriptionsTable[#Data],,MATCH($C142, ItemDescriptionsTable[#Headers], 0))),\"\")","v":""},null,null,null,null,null,null,null,null,null,null,null,null,null,null,{"$f":"_xlfn.LET(_xlpm.col,IF(NOT(OR(IsEmpty($B142),IsEmpty($C142),IsEmpty($E142))),MATCH($C142,ExtensionsTable[#Headers],0),\"\"),\n_xlpm.row,IF(_xlpm.col=\"\",\"\",ROW(INDEX(ExtensionsTable[], MATCH($E142, INDEX(ExtensionsTable[], , _xlpm.col), 0), 1))-ROW(ExtensionsTable[[#Headers],[Gene Expression ]])),\nIF(OR(_xlpm.col=\"\",_xlpm.row=\"\"),\"\",INDEX(SuffixesTable[], _xlpm.row, _xlpm.col)))","v":""}]
[127,null,null,{"$f":"_xlfn.IFNA(_xlfn.TEXTJOIN(\"; \",TRUE,INDEX(ItemDescriptionsTable[#Data],,MATCH($C143, ItemDescriptionsTable[#Headers], 0))),\"\")","v":""},null,null,null,null,null,null,null,null,null,null,null,null,null,null,{"$f":"_xlfn.LET(_xlpm.col,IF(NOT(OR(IsEmpty($B143),IsEmpty($C143),IsEmpty($E143))),MATCH($C143,ExtensionsTable[#Headers],0),\"\"),\n_xlpm.row,IF(_xlpm.col=\"\",\"\",ROW(INDEX(ExtensionsTable[], MATCH($E143, INDEX(ExtensionsTable[], , _xlpm.col), 0), 1))-ROW(ExtensionsTable[[#Headers],[Gene Expression ]])),\nIF(OR(_xlpm.col=\"\",_xlpm.row=\"\"),\"\",INDEX(SuffixesTable[], _xlpm.row, _xlpm.col)))","v":""}]
[128,null,null,{"$f":"_xlfn.IFNA(_xlfn.TEXTJOIN(\"; \",TRUE,INDEX(ItemDescriptionsTable[#Data],,MATCH($C144, ItemDescriptionsTable[#Headers], 0))),\"\")","v":""},null,null,null,null,null,null,null,null,null,null,null,null,null,null,{"$f":"_xlfn.LET(_xlpm.col,IF(NOT(OR(IsEmpty($B144),IsEmpty($C144),IsEmpty($E144))),MATCH($C144,ExtensionsTable[#Headers],0),\"\"),\n_xlpm.row,IF(_xlpm.col=\"\",\"\",ROW(INDEX(ExtensionsTable[], MATCH($E144, INDEX(ExtensionsTable[], , _xlpm.col), 0), 1))-ROW(ExtensionsTable[[#Headers],[Gene Expression ]])),\nIF(OR(_xlpm.col=\"\",_xlpm.row=\"\"),\"\",INDEX(SuffixesTable[], _xlpm.row, _xlpm.col)))","v":""}]
[129,null,null,{"$f":"_xlfn.IFNA(_xlfn.TEXTJOIN(\"; \",TRUE,INDEX(ItemDescriptionsTable[#Data],,MATCH($C145, ItemDescriptionsTable[#Headers], 0))),\"\")","v":""},null,null,null,null,null,null,null,null,null,null,null,null,null,null,{"$f":"_xlfn.LET(_xlpm.col,IF(NOT(OR(IsEmpty($B145),IsEmpty($C145),IsEmpty($E145))),MATCH($C145,ExtensionsTable[#Headers],0),\"\"),\n_xlpm.row,IF(_xlpm.col=\"\",\"\",ROW(INDEX(ExtensionsTable[], MATCH($E145, INDEX(ExtensionsTable[], , _xlpm.col), 0), 1))-ROW(ExtensionsTable[[#Headers],[Gene Expression ]])),\nIF(OR(_xlpm.col=\"\",_xlpm.row=\"\"),\"\",INDEX(SuffixesTable[], _xlpm.row, _xlpm.col)))","v":""}]
[130,null,null,{"$f":"_xlfn.IFNA(_xlfn.TEXTJOIN(\"; \",TRUE,INDEX(ItemDescriptionsTable[#Data],,MATCH($C146, ItemDescriptionsTable[#Headers], 0))),\"\")","v":""},null,null,null,null,null,null,null,null,null,null,null,null,null,null,{"$f":"_xlfn.LET(_xlpm.col,IF(NOT(OR(IsEmpty($B146),IsEmpty($C146),IsEmpty($E146))),MATCH($C146,ExtensionsTable[#Headers],0),\"\"),\n_xlpm.row,IF(_xlpm.col=\"\",\"\",ROW(INDEX(ExtensionsTable[], MATCH($E146, INDEX(ExtensionsTable[], , _xlpm.col), 0), 1))-ROW(ExtensionsTable[[#Headers],[Gene Expression ]])),\nIF(OR(_xlpm.col=\"\",_xlpm.row=\"\"),\"\",INDEX(SuffixesTable[], _xlpm.row, _xlpm.col)))","v":""}]
[131,null,null,{"$f":"_xlfn.IFNA(_xlfn.TEXTJOIN(\"; \",TRUE,INDEX(ItemDescriptionsTable[#Data],,MATCH($C147, ItemDescriptionsTable[#Headers], 0))),\"\")","v":""},null,null,null,null,null,null,null,null,null,null,null,null,null,null,{"$f":"_xlfn.LET(_xlpm.col,IF(NOT(OR(IsEmpty($B147),IsEmpty($C147),IsEmpty($E147))),MATCH($C147,ExtensionsTable[#Headers],0),\"\"),\n_xlpm.row,IF(_xlpm.col=\"\",\"\",ROW(INDEX(ExtensionsTable[], MATCH($E147, INDEX(ExtensionsTable[], , _xlpm.col), 0), 1))-ROW(ExtensionsTable[[#Headers],[Gene Expression ]])),\nIF(OR(_xlpm.col=\"\",_xlpm.row=\"\"),\"\",INDEX(SuffixesTable[], _xlpm.row, _xlpm.col)))","v":""}]
[132,null,null,{"$f":"_xlfn.IFNA(_xlfn.TEXTJOIN(\"; \",TRUE,INDEX(ItemDescriptionsTable[#Data],,MATCH($C148, ItemDescriptionsTable[#Headers], 0))),\"\")","v":""},null,null,null,null,null,null,null,null,null,null,null,null,null,null,{"$f":"_xlfn.LET(_xlpm.col,IF(NOT(OR(IsEmpty($B148),IsEmpty($C148),IsEmpty($E148))),MATCH($C148,ExtensionsTable[#Headers],0),\"\"),\n_xlpm.row,IF(_xlpm.col=\"\",\"\",ROW(INDEX(ExtensionsTable[], MATCH($E148, INDEX(ExtensionsTable[], , _xlpm.col), 0), 1))-ROW(ExtensionsTable[[#Headers],[Gene Expression ]])),\nIF(OR(_xlpm.col=\"\",_xlpm.row=\"\"),\"\",INDEX(SuffixesTable[], _xlpm.row, _xlpm.col)))","v":""}]
[133,null,null,{"$f":"_xlfn.IFNA(_xlfn.TEXTJOIN(\"; \",TRUE,INDEX(ItemDescriptionsTable[#Data],,MATCH($C149, ItemDescriptionsTable[#Headers], 0))),\"\")","v":""},null,null,null,null,null,null,null,null,null,null,null,null,null,null,{"$f":"_xlfn.LET(_xlpm.col,IF(NOT(OR(IsEmpty($B149),IsEmpty($C149),IsEmpty($E149))),MATCH($C149,ExtensionsTable[#Headers],0),\"\"),\n_xlpm.row,IF(_xlpm.col=\"\",\"\",ROW(INDEX(ExtensionsTable[], MATCH($E149, INDEX(ExtensionsTable[], , _xlpm.col), 0), 1))-ROW(ExtensionsTable[[#Headers],[Gene Expression ]])),\nIF(OR(_xlpm.col=\"\",_xlpm.row=\"\"),\"\",INDEX(SuffixesTable[], _xlpm.row, _xlpm.col)))","v":""}]
[134,null,null,{"$f":"_xlfn.IFNA(_xlfn.TEXTJOIN(\"; \",TRUE,INDEX(ItemDescriptionsTable[#Data],,MATCH($C150, ItemDescriptionsTable[#Headers], 0))),\"\")","v":""},null,null,null,null,null,null,null,null,null,null,null,null,null,null,{"$f":"_xlfn.LET(_xlpm.col,IF(NOT(OR(IsEmpty($B150),IsEmpty($C150),IsEmpty($E150))),MATCH($C150,ExtensionsTable[#Headers],0),\"\"),\n_xlpm.row,IF(_xlpm.col=\"\",\"\",ROW(INDEX(ExtensionsTable[], MATCH($E150, INDEX(ExtensionsTable[], , _xlpm.col), 0), 1))-ROW(ExtensionsTable[[#Headers],[Gene Expression ]])),\nIF(OR(_xlpm.col=\"\",_xlpm.row=\"\"),\"\",INDEX(SuffixesTable[], _xlpm.row, _xlpm.col)))","v":""}]
[135,null,null,{"$f":"_xlfn.IFNA(_xlfn.TEXTJOIN(\"; \",TRUE,INDEX(ItemDescriptionsTable[#Data],,MATCH($C151, ItemDescriptionsTable[#Headers], 0))),\"\")","v":""},null,null,null,null,null,null,null,null,null,null,null,null,null,null,{"$f":"_xlfn.LET(_xlpm.col,IF(NOT(OR(IsEmpty($B151),IsEmpty($C151),IsEmpty($E151))),MATCH($C151,ExtensionsTable[#Headers],0),\"\"),\n_xlpm.row,IF(_xlpm.col=\"\",\"\",ROW(INDEX(ExtensionsTable[], MATCH($E151, INDEX(ExtensionsTable[], , _xlpm.col), 0), 1))-ROW(ExtensionsTable[[#Headers],[Gene Expression ]])),\nIF(OR(_xlpm.col=\"\",_xlpm.row=\"\"),\"\",INDEX(SuffixesTable[], _xlpm.row, _xlpm.col)))","v":""}]
[136,null,null,{"$f":"_xlfn.IFNA(_xlfn.TEXTJOIN(\"; \",TRUE,INDEX(ItemDescriptionsTable[#Data],,MATCH($C152, ItemDescriptionsTable[#Headers], 0))),\"\")","v":""},null,null,null,null,null,null,null,null,null,null,null,null,null,null,{"$f":"_xlfn.LET(_xlpm.col,IF(NOT(OR(IsEmpty($B152),IsEmpty($C152),IsEmpty($E152))),MATCH($C152,ExtensionsTable[#Headers],0),\"\"),\n_xlpm.row,IF(_xlpm.col=\"\",\"\",ROW(INDEX(ExtensionsTable[], MATCH($E152, INDEX(ExtensionsTable[], , _xlpm.col), 0), 1))-ROW(ExtensionsTable[[#Headers],[Gene Expression ]])),\nIF(OR(_xlpm.col=\"\",_xlpm.row=\"\"),\"\",INDEX(SuffixesTable[], _xlpm.row, _xlpm.col)))","v":""}]
[137,null,null,{"$f":"_xlfn.IFNA(_xlfn.TEXTJOIN(\"; \",TRUE,INDEX(ItemDescriptionsTable[#Data],,MATCH($C153, ItemDescriptionsTable[#Headers], 0))),\"\")","v":""},null,null,null,null,null,null,null,null,null,null,null,null,null,null,{"$f":"_xlfn.LET(_xlpm.col,IF(NOT(OR(IsEmpty($B153),IsEmpty($C153),IsEmpty($E153))),MATCH($C153,ExtensionsTable[#Headers],0),\"\"),\n_xlpm.row,IF(_xlpm.col=\"\",\"\",ROW(INDEX(ExtensionsTable[], MATCH($E153, INDEX(ExtensionsTable[], , _xlpm.col), 0), 1))-ROW(ExtensionsTable[[#Headers],[Gene Expression ]])),\nIF(OR(_xlpm.col=\"\",_xlpm.row=\"\"),\"\",INDEX(SuffixesTable[], _xlpm.row, _xlpm.col)))","v":""}]
[138,null,null,{"$f":"_xlfn.IFNA(_xlfn.TEXTJOIN(\"; \",TRUE,INDEX(ItemDescriptionsTable[#Data],,MATCH($C154, ItemDescriptionsTable[#Headers], 0))),\"\")","v":""},null,null,null,null,null,null,null,null,null,null,null,null,null,null,{"$f":"_xlfn.LET(_xlpm.col,IF(NOT(OR(IsEmpty($B154),IsEmpty($C154),IsEmpty($E154))),MATCH($C154,ExtensionsTable[#Headers],0),\"\"),\n_xlpm.row,IF(_xlpm.col=\"\",\"\",ROW(INDEX(ExtensionsTable[], MATCH($E154, INDEX(ExtensionsTable[], , _xlpm.col), 0), 1))-ROW(ExtensionsTable[[#Headers],[Gene Expression ]])),\nIF(OR(_xlpm.col=\"\",_xlpm.row=\"\"),\"\",INDEX(SuffixesTable[], _xlpm.row, _xlpm.col)))","v":""}]
[139,null,null,{"$f":"_xlfn.IFNA(_xlfn.TEXTJOIN(\"; \",TRUE,INDEX(ItemDescriptionsTable[#Data],,MATCH($C155, ItemDescriptionsTable[#Headers], 0))),\"\")","v":""},null,null,null,null,null,null,null,null,null,null,null,null,null,null,{"$f":"_xlfn.LET(_xlpm.col,IF(NOT(OR(IsEmpty($B155),IsEmpty($C155),IsEmpty($E155))),MATCH($C155,ExtensionsTable[#Headers],0),\"\"),\n_xlpm.row,IF(_xlpm.col=\"\",\"\",ROW(INDEX(ExtensionsTable[], MATCH($E155, INDEX(ExtensionsTable[], , _xlpm.col), 0), 1))-ROW(ExtensionsTable[[#Headers],[Gene Expression ]])),\nIF(OR(_xlpm.col=\"\",_xlpm.row=\"\"),\"\",INDEX(SuffixesTable[], _xlpm.row, _xlpm.col)))","v":""}]
[140,null,null,{"$f":"_xlfn.IFNA(_xlfn.TEXTJOIN(\"; \",TRUE,INDEX(ItemDescriptionsTable[#Data],,MATCH($C156, ItemDescriptionsTable[#Headers], 0))),\"\")","v":""},null,null,null,null,null,null,null,null,null,null,null,null,null,null,{"$f":"_xlfn.LET(_xlpm.col,IF(NOT(OR(IsEmpty($B156),IsEmpty($C156),IsEmpty($E156))),MATCH($C156,ExtensionsTable[#Headers],0),\"\"),\n_xlpm.row,IF(_xlpm.col=\"\",\"\",ROW(INDEX(ExtensionsTable[], MATCH($E156, INDEX(ExtensionsTable[], , _xlpm.col), 0), 1))-ROW(ExtensionsTable[[#Headers],[Gene Expression ]])),\nIF(OR(_xlpm.col=\"\",_xlpm.row=\"\"),\"\",INDEX(SuffixesTable[], _xlpm.row, _xlpm.col)))","v":""}]
[141,null,null,{"$f":"_xlfn.IFNA(_xlfn.TEXTJOIN(\"; \",TRUE,INDEX(ItemDescriptionsTable[#Data],,MATCH($C157, ItemDescriptionsTable[#Headers], 0))),\"\")","v":""},null,null,null,null,null,null,null,null,null,null,null,null,null,null,{"$f":"_xlfn.LET(_xlpm.col,IF(NOT(OR(IsEmpty($B157),IsEmpty($C157),IsEmpty($E157))),MATCH($C157,ExtensionsTable[#Headers],0),\"\"),\n_xlpm.row,IF(_xlpm.col=\"\",\"\",ROW(INDEX(ExtensionsTable[], MATCH($E157, INDEX(ExtensionsTable[], , _xlpm.col), 0), 1))-ROW(ExtensionsTable[[#Headers],[Gene Expression ]])),\nIF(OR(_xlpm.col=\"\",_xlpm.row=\"\"),\"\",INDEX(SuffixesTable[], _xlpm.row, _xlpm.col)))","v":""}]
[142,null,null,{"$f":"_xlfn.IFNA(_xlfn.TEXTJOIN(\"; \",TRUE,INDEX(ItemDescriptionsTable[#Data],,MATCH($C158, ItemDescriptionsTable[#Headers], 0))),\"\")","v":""},null,null,null,null,null,null,null,null,null,null,null,null,null,null,{"$f":"_xlfn.LET(_xlpm.col,IF(NOT(OR(IsEmpty($B158),IsEmpty($C158),IsEmpty($E158))),MATCH($C158,ExtensionsTable[#Headers],0),\"\"),\n_xlpm.row,IF(_xlpm.col=\"\",\"\",ROW(INDEX(ExtensionsTable[], MATCH($E158, INDEX(ExtensionsTable[], , _xlpm.col), 0), 1))-ROW(ExtensionsTable[[#Headers],[Gene Expression ]])),\nIF(OR(_xlpm.col=\"\",_xlpm.row=\"\"),\"\",INDEX(SuffixesTable[], _xlpm.row, _xlpm.col)))","v":""}]
[143,null,null,{"$f":"_xlfn.IFNA(_xlfn.TEXTJOIN(\"; \",TRUE,INDEX(ItemDescriptionsTable[#Data],,MATCH($C159, ItemDescriptionsTable[#Headers], 0))),\"\")","v":""},null,null,null,null,null,null,null,null,null,null,null,null,null,null,{"$f":"_xlfn.LET(_xlpm.col,IF(NOT(OR(IsEmpty($B159),IsEmpty($C159),IsEmpty($E159))),MATCH($C159,ExtensionsTable[#Headers],0),\"\"),\n_xlpm.row,IF(_xlpm.col=\"\",\"\",ROW(INDEX(ExtensionsTable[], MATCH($E159, INDEX(ExtensionsTable[], , _xlpm.col), 0), 1))-ROW(ExtensionsTable[[#Headers],[Gene Expression ]])),\nIF(OR(_xlpm.col=\"\",_xlpm.row=\"\"),\"\",INDEX(SuffixesTable[], _xlpm.row, _xlpm.col)))","v":""}]
[144,null,null,{"$f":"_xlfn.IFNA(_xlfn.TEXTJOIN(\"; \",TRUE,INDEX(ItemDescriptionsTable[#Data],,MATCH($C160, ItemDescriptionsTable[#Headers], 0))),\"\")","v":""},null,null,null,null,null,null,null,null,null,null,null,null,null,null,{"$f":"_xlfn.LET(_xlpm.col,IF(NOT(OR(IsEmpty($B160),IsEmpty($C160),IsEmpty($E160))),MATCH($C160,ExtensionsTable[#Headers],0),\"\"),\n_xlpm.row,IF(_xlpm.col=\"\",\"\",ROW(INDEX(ExtensionsTable[], MATCH($E160, INDEX(ExtensionsTable[], , _xlpm.col), 0), 1))-ROW(ExtensionsTable[[#Headers],[Gene Expression ]])),\nIF(OR(_xlpm.col=\"\",_xlpm.row=\"\"),\"\",INDEX(SuffixesTable[], _xlpm.row, _xlpm.col)))","v":""}]
[145,null,null,{"$f":"_xlfn.IFNA(_xlfn.TEXTJOIN(\"; \",TRUE,INDEX(ItemDescriptionsTable[#Data],,MATCH($C161, ItemDescriptionsTable[#Headers], 0))),\"\")","v":""},null,null,null,null,null,null,null,null,null,null,null,null,null,null,{"$f":"_xlfn.LET(_xlpm.col,IF(NOT(OR(IsEmpty($B161),IsEmpty($C161),IsEmpty($E161))),MATCH($C161,ExtensionsTable[#Headers],0),\"\"),\n_xlpm.row,IF(_xlpm.col=\"\",\"\",ROW(INDEX(ExtensionsTable[], MATCH($E161, INDEX(ExtensionsTable[], , _xlpm.col), 0), 1))-ROW(ExtensionsTable[[#Headers],[Gene Expression ]])),\nIF(OR(_xlpm.col=\"\",_xlpm.row=\"\"),\"\",INDEX(SuffixesTable[], _xlpm.row, _xlpm.col)))","v":""}]
[146,null,null,{"$f":"_xlfn.IFNA(_xlfn.TEXTJOIN(\"; \",TRUE,INDEX(ItemDescriptionsTable[#Data],,MATCH($C162, ItemDescriptionsTable[#Headers], 0))),\"\")","v":""},null,null,null,null,null,null,null,null,null,null,null,null,null,null,{"$f":"_xlfn.LET(_xlpm.col,IF(NOT(OR(IsEmpty($B162),IsEmpty($C162),IsEmpty($E162))),MATCH($C162,ExtensionsTable[#Headers],0),\"\"),\n_xlpm.row,IF(_xlpm.col=\"\",\"\",ROW(INDEX(ExtensionsTable[], MATCH($E162, INDEX(ExtensionsTable[], , _xlpm.col), 0), 1))-ROW(ExtensionsTable[[#Headers],[Gene Expression ]])),\nIF(OR(_xlpm.col=\"\",_xlpm.row=\"\"),\"\",INDEX(SuffixesTable[], _xlpm.row, _xlpm.col)))","v":""}]
[147,null,null,{"$f":"_xlfn.IFNA(_xlfn.TEXTJOIN(\"; \",TRUE,INDEX(ItemDescriptionsTable[#Data],,MATCH($C163, ItemDescriptionsTable[#Headers], 0))),\"\")","v":""},null,null,null,null,null,null,null,null,null,null,null,null,null,null,{"$f":"_xlfn.LET(_xlpm.col,IF(NOT(OR(IsEmpty($B163),IsEmpty($C163),IsEmpty($E163))),MATCH($C163,ExtensionsTable[#Headers],0),\"\"),\n_xlpm.row,IF(_xlpm.col=\"\",\"\",ROW(INDEX(ExtensionsTable[], MATCH($E163, INDEX(ExtensionsTable[], , _xlpm.col), 0), 1))-ROW(ExtensionsTable[[#Headers],[Gene Expression ]])),\nIF(OR(_xlpm.col=\"\",_xlpm.row=\"\"),\"\",INDEX(SuffixesTable[], _xlpm.row, _xlpm.col)))","v":""}]
[148,null,null,{"$f":"_xlfn.IFNA(_xlfn.TEXTJOIN(\"; \",TRUE,INDEX(ItemDescriptionsTable[#Data],,MATCH($C164, ItemDescriptionsTable[#Headers], 0))),\"\")","v":""},null,null,null,null,null,null,null,null,null,null,null,null,null,null,{"$f":"_xlfn.LET(_xlpm.col,IF(NOT(OR(IsEmpty($B164),IsEmpty($C164),IsEmpty($E164))),MATCH($C164,ExtensionsTable[#Headers],0),\"\"),\n_xlpm.row,IF(_xlpm.col=\"\",\"\",ROW(INDEX(ExtensionsTable[], MATCH($E164, INDEX(ExtensionsTable[], , _xlpm.col), 0), 1))-ROW(ExtensionsTable[[#Headers],[Gene Expression ]])),\nIF(OR(_xlpm.col=\"\",_xlpm.row=\"\"),\"\",INDEX(SuffixesTable[], _xlpm.row, _xlpm.col)))","v":""}]
[149,null,null,{"$f":"_xlfn.IFNA(_xlfn.TEXTJOIN(\"; \",TRUE,INDEX(ItemDescriptionsTable[#Data],,MATCH($C165, ItemDescriptionsTable[#Headers], 0))),\"\")","v":""},null,null,null,null,null,null,null,null,null,null,null,null,null,null,{"$f":"_xlfn.LET(_xlpm.col,IF(NOT(OR(IsEmpty($B165),IsEmpty($C165),IsEmpty($E165))),MATCH($C165,ExtensionsTable[#Headers],0),\"\"),\n_xlpm.row,IF(_xlpm.col=\"\",\"\",ROW(INDEX(ExtensionsTable[], MATCH($E165, INDEX(ExtensionsTable[], , _xlpm.col), 0), 1))-ROW(ExtensionsTable[[#Headers],[Gene Expression ]])),\nIF(OR(_xlpm.col=\"\",_xlpm.row=\"\"),\"\",INDEX(SuffixesTable[], _xlpm.row, _xlpm.col)))","v":""}]
[150,null,null,{"$f":"_xlfn.IFNA(_xlfn.TEXTJOIN(\"; \",TRUE,INDEX(ItemDescriptionsTable[#Data],,MATCH($C166, ItemDescriptionsTable[#Headers], 0))),\"\")","v":""},null,null,null,null,null,null,null,null,null,null,null,null,null,null,{"$f":"_xlfn.LET(_xlpm.col,IF(NOT(OR(IsEmpty($B166),IsEmpty($C166),IsEmpty($E166))),MATCH($C166,ExtensionsTable[#Headers],0),\"\"),\n_xlpm.row,IF(_xlpm.col=\"\",\"\",ROW(INDEX(ExtensionsTable[], MATCH($E166, INDEX(ExtensionsTable[], , _xlpm.col), 0), 1))-ROW(ExtensionsTable[[#Headers],[Gene Expression ]])),\nIF(OR(_xlpm.col=\"\",_xlpm.row=\"\"),\"\",INDEX(SuffixesTable[], _xlpm.row, _xlpm.col)))","v":""}]
[151,null,null,{"$f":"_xlfn.IFNA(_xlfn.TEXTJOIN(\"; \",TRUE,INDEX(ItemDescriptionsTable[#Data],,MATCH($C167, ItemDescriptionsTable[#Headers], 0))),\"\")","v":""},null,null,null,null,null,null,null,null,null,null,null,null,null,null,{"$f":"_xlfn.LET(_xlpm.col,IF(NOT(OR(IsEmpty($B167),IsEmpty($C167),IsEmpty($E167))),MATCH($C167,ExtensionsTable[#Headers],0),\"\"),\n_xlpm.row,IF(_xlpm.col=\"\",\"\",ROW(INDEX(ExtensionsTable[], MATCH($E167, INDEX(ExtensionsTable[], , _xlpm.col), 0), 1))-ROW(ExtensionsTable[[#Headers],[Gene Expression ]])),\nIF(OR(_xlpm.col=\"\",_xlpm.row=\"\"),\"\",INDEX(SuffixesTable[], _xlpm.row, _xlpm.col)))","v":""}]
[152,null,null,{"$f":"_xlfn.IFNA(_xlfn.TEXTJOIN(\"; \",TRUE,INDEX(ItemDescriptionsTable[#Data],,MATCH($C168, ItemDescriptionsTable[#Headers], 0))),\"\")","v":""},null,null,null,null,null,null,null,null,null,null,null,null,null,null,{"$f":"_xlfn.LET(_xlpm.col,IF(NOT(OR(IsEmpty($B168),IsEmpty($C168),IsEmpty($E168))),MATCH($C168,ExtensionsTable[#Headers],0),\"\"),\n_xlpm.row,IF(_xlpm.col=\"\",\"\",ROW(INDEX(ExtensionsTable[], MATCH($E168, INDEX(ExtensionsTable[], , _xlpm.col), 0), 1))-ROW(ExtensionsTable[[#Headers],[Gene Expression ]])),\nIF(OR(_xlpm.col=\"\",_xlpm.row=\"\"),\"\",INDEX(SuffixesTable[], _xlpm.row, _xlpm.col)))","v":""}]
[153,null,null,{"$f":"_xlfn.IFNA(_xlfn.TEXTJOIN(\"; \",TRUE,INDEX(ItemDescriptionsTable[#Data],,MATCH($C169, ItemDescriptionsTable[#Headers], 0))),\"\")","v":""},null,null,null,null,null,null,null,null,null,null,null,null,null,null,{"$f":"_xlfn.LET(_xlpm.col,IF(NOT(OR(IsEmpty($B169),IsEmpty($C169),IsEmpty($E169))),MATCH($C169,ExtensionsTable[#Headers],0),\"\"),\n_xlpm.row,IF(_xlpm.col=\"\",\"\",ROW(INDEX(ExtensionsTable[], MATCH($E169, INDEX(ExtensionsTable[], , _xlpm.col), 0), 1))-ROW(ExtensionsTable[[#Headers],[Gene Expression ]])),\nIF(OR(_xlpm.col=\"\",_xlpm.row=\"\"),\"\",INDEX(SuffixesTable[], _xlpm.row, _xlpm.col)))","v":""}]
[154,null,null,{"$f":"_xlfn.IFNA(_xlfn.TEXTJOIN(\"; \",TRUE,INDEX(ItemDescriptionsTable[#Data],,MATCH($C170, ItemDescriptionsTable[#Headers], 0))),\"\")","v":""},null,null,null,null,null,null,null,null,null,null,null,null,null,null,{"$f":"_xlfn.LET(_xlpm.col,IF(NOT(OR(IsEmpty($B170),IsEmpty($C170),IsEmpty($E170))),MATCH($C170,ExtensionsTable[#Headers],0),\"\"),\n_xlpm.row,IF(_xlpm.col=\"\",\"\",ROW(INDEX(ExtensionsTable[], MATCH($E170, INDEX(ExtensionsTable[], , _xlpm.col), 0), 1))-ROW(ExtensionsTable[[#Headers],[Gene Expression ]])),\nIF(OR(_xlpm.col=\"\",_xlpm.row=\"\"),\"\",INDEX(SuffixesTable[], _xlpm.row, _xlpm.col)))","v":""}]
[155,null,null,{"$f":"_xlfn.IFNA(_xlfn.TEXTJOIN(\"; \",TRUE,INDEX(ItemDescriptionsTable[#Data],,MATCH($C171, ItemDescriptionsTable[#Headers], 0))),\"\")","v":""},null,null,null,null,null,null,null,null,null,null,null,null,null,null,{"$f":"_xlfn.LET(_xlpm.col,IF(NOT(OR(IsEmpty($B171),IsEmpty($C171),IsEmpty($E171))),MATCH($C171,ExtensionsTable[#Headers],0),\"\"),\n_xlpm.row,IF(_xlpm.col=\"\",\"\",ROW(INDEX(ExtensionsTable[], MATCH($E171, INDEX(ExtensionsTable[], , _xlpm.col), 0), 1))-ROW(ExtensionsTable[[#Headers],[Gene Expression ]])),\nIF(OR(_xlpm.col=\"\",_xlpm.row=\"\"),\"\",INDEX(SuffixesTable[], _xlpm.row, _xlpm.col)))","v":""}]
[156,null,null,{"$f":"_xlfn.IFNA(_xlfn.TEXTJOIN(\"; \",TRUE,INDEX(ItemDescriptionsTable[#Data],,MATCH($C172, ItemDescriptionsTable[#Headers], 0))),\"\")","v":""},null,null,null,null,null,null,null,null,null,null,null,null,null,null,{"$f":"_xlfn.LET(_xlpm.col,IF(NOT(OR(IsEmpty($B172),IsEmpty($C172),IsEmpty($E172))),MATCH($C172,ExtensionsTable[#Headers],0),\"\"),\n_xlpm.row,IF(_xlpm.col=\"\",\"\",ROW(INDEX(ExtensionsTable[], MATCH($E172, INDEX(ExtensionsTable[], , _xlpm.col), 0), 1))-ROW(ExtensionsTable[[#Headers],[Gene Expression ]])),\nIF(OR(_xlpm.col=\"\",_xlpm.row=\"\"),\"\",INDEX(SuffixesTable[], _xlpm.row, _xlpm.col)))","v":""}]
[157,null,null,{"$f":"_xlfn.IFNA(_xlfn.TEXTJOIN(\"; \",TRUE,INDEX(ItemDescriptionsTable[#Data],,MATCH($C173, ItemDescriptionsTable[#Headers], 0))),\"\")","v":""},null,null,null,null,null,null,null,null,null,null,null,null,null,null,{"$f":"_xlfn.LET(_xlpm.col,IF(NOT(OR(IsEmpty($B173),IsEmpty($C173),IsEmpty($E173))),MATCH($C173,ExtensionsTable[#Headers],0),\"\"),\n_xlpm.row,IF(_xlpm.col=\"\",\"\",ROW(INDEX(ExtensionsTable[], MATCH($E173, INDEX(ExtensionsTable[], , _xlpm.col), 0), 1))-ROW(ExtensionsTable[[#Headers],[Gene Expression ]])),\nIF(OR(_xlpm.col=\"\",_xlpm.row=\"\"),\"\",INDEX(SuffixesTable[], _xlpm.row, _xlpm.col)))","v":""}]
[158,null,null,{"$f":"_xlfn.IFNA(_xlfn.TEXTJOIN(\"; \",TRUE,INDEX(ItemDescriptionsTable[#Data],,MATCH($C174, ItemDescriptionsTable[#Headers], 0))),\"\")","v":""},null,null,null,null,null,null,null,null,null,null,null,null,null,null,{"$f":"_xlfn.LET(_xlpm.col,IF(NOT(OR(IsEmpty($B174),IsEmpty($C174),IsEmpty($E174))),MATCH($C174,ExtensionsTable[#Headers],0),\"\"),\n_xlpm.row,IF(_xlpm.col=\"\",\"\",ROW(INDEX(ExtensionsTable[], MATCH($E174, INDEX(ExtensionsTable[], , _xlpm.col), 0), 1))-ROW(ExtensionsTable[[#Headers],[Gene Expression ]])),\nIF(OR(_xlpm.col=\"\",_xlpm.row=\"\"),\"\",INDEX(SuffixesTable[], _xlpm.row, _xlpm.col)))","v":""}]
[159,null,null,{"$f":"_xlfn.IFNA(_xlfn.TEXTJOIN(\"; \",TRUE,INDEX(ItemDescriptionsTable[#Data],,MATCH($C175, ItemDescriptionsTable[#Headers], 0))),\"\")","v":""},null,null,null,null,null,null,null,null,null,null,null,null,null,null,{"$f":"_xlfn.LET(_xlpm.col,IF(NOT(OR(IsEmpty($B175),IsEmpty($C175),IsEmpty($E175))),MATCH($C175,ExtensionsTable[#Headers],0),\"\"),\n_xlpm.row,IF(_xlpm.col=\"\",\"\",ROW(INDEX(ExtensionsTable[], MATCH($E175, INDEX(ExtensionsTable[], , _xlpm.col), 0), 1))-ROW(ExtensionsTable[[#Headers],[Gene Expression ]])),\nIF(OR(_xlpm.col=\"\",_xlpm.row=\"\"),\"\",INDEX(SuffixesTable[], _xlpm.row, _xlpm.col)))","v":""}]
[160,null,null,{"$f":"_xlfn.IFNA(_xlfn.TEXTJOIN(\"; \",TRUE,INDEX(ItemDescriptionsTable[#Data],,MATCH($C176, ItemDescriptionsTable[#Headers], 0))),\"\")","v":""},null,null,null,null,null,null,null,null,null,null,null,null,null,null,{"$f":"_xlfn.LET(_xlpm.col,IF(NOT(OR(IsEmpty($B176),IsEmpty($C176),IsEmpty($E176))),MATCH($C176,ExtensionsTable[#Headers],0),\"\"),\n_xlpm.row,IF(_xlpm.col=\"\",\"\",ROW(INDEX(ExtensionsTable[], MATCH($E176, INDEX(ExtensionsTable[], , _xlpm.col), 0), 1))-ROW(ExtensionsTable[[#Headers],[Gene Expression ]])),\nIF(OR(_xlpm.col=\"\",_xlpm.row=\"\"),\"\",INDEX(SuffixesTable[], _xlpm.row, _xlpm.col)))","v":""}]
[161,null,null,{"$f":"_xlfn.IFNA(_xlfn.TEXTJOIN(\"; \",TRUE,INDEX(ItemDescriptionsTable[#Data],,MATCH($C177, ItemDescriptionsTable[#Headers], 0))),\"\")","v":""},null,null,null,null,null,null,null,null,null,null,null,null,null,null,{"$f":"_xlfn.LET(_xlpm.col,IF(NOT(OR(IsEmpty($B177),IsEmpty($C177),IsEmpty($E177))),MATCH($C177,ExtensionsTable[#Headers],0),\"\"),\n_xlpm.row,IF(_xlpm.col=\"\",\"\",ROW(INDEX(ExtensionsTable[], MATCH($E177, INDEX(ExtensionsTable[], , _xlpm.col), 0), 1))-ROW(ExtensionsTable[[#Headers],[Gene Expression ]])),\nIF(OR(_xlpm.col=\"\",_xlpm.row=\"\"),\"\",INDEX(SuffixesTable[], _xlpm.row, _xlpm.col)))","v":""}]
[162,null,null,{"$f":"_xlfn.IFNA(_xlfn.TEXTJOIN(\"; \",TRUE,INDEX(ItemDescriptionsTable[#Data],,MATCH($C178, ItemDescriptionsTable[#Headers], 0))),\"\")","v":""},null,null,null,null,null,null,null,null,null,null,null,null,null,null,{"$f":"_xlfn.LET(_xlpm.col,IF(NOT(OR(IsEmpty($B178),IsEmpty($C178),IsEmpty($E178))),MATCH($C178,ExtensionsTable[#Headers],0),\"\"),\n_xlpm.row,IF(_xlpm.col=\"\",\"\",ROW(INDEX(ExtensionsTable[], MATCH($E178, INDEX(ExtensionsTable[], , _xlpm.col), 0), 1))-ROW(ExtensionsTable[[#Headers],[Gene Expression ]])),\nIF(OR(_xlpm.col=\"\",_xlpm.row=\"\"),\"\",INDEX(SuffixesTable[], _xlpm.row, _xlpm.col)))","v":""}]
[163,null,null,{"$f":"_xlfn.IFNA(_xlfn.TEXTJOIN(\"; \",TRUE,INDEX(ItemDescriptionsTable[#Data],,MATCH($C179, ItemDescriptionsTable[#Headers], 0))),\"\")","v":""},null,null,null,null,null,null,null,null,null,null,null,null,null,null,{"$f":"_xlfn.LET(_xlpm.col,IF(NOT(OR(IsEmpty($B179),IsEmpty($C179),IsEmpty($E179))),MATCH($C179,ExtensionsTable[#Headers],0),\"\"),\n_xlpm.row,IF(_xlpm.col=\"\",\"\",ROW(INDEX(ExtensionsTable[], MATCH($E179, INDEX(ExtensionsTable[], , _xlpm.col), 0), 1))-ROW(ExtensionsTable[[#Headers],[Gene Expression ]])),\nIF(OR(_xlpm.col=\"\",_xlpm.row=\"\"),\"\",INDEX(SuffixesTable[], _xlpm.row, _xlpm.col)))","v":""}]
[164,null,null,{"$f":"_xlfn.IFNA(_xlfn.TEXTJOIN(\"; \",TRUE,INDEX(ItemDescriptionsTable[#Data],,MATCH($C180, ItemDescriptionsTable[#Headers], 0))),\"\")","v":""},null,null,null,null,null,null,null,null,null,null,null,null,null,null,{"$f":"_xlfn.LET(_xlpm.col,IF(NOT(OR(IsEmpty($B180),IsEmpty($C180),IsEmpty($E180))),MATCH($C180,ExtensionsTable[#Headers],0),\"\"),\n_xlpm.row,IF(_xlpm.col=\"\",\"\",ROW(INDEX(ExtensionsTable[], MATCH($E180, INDEX(ExtensionsTable[], , _xlpm.col), 0), 1))-ROW(ExtensionsTable[[#Headers],[Gene Expression ]])),\nIF(OR(_xlpm.col=\"\",_xlpm.row=\"\"),\"\",INDEX(SuffixesTable[], _xlpm.row, _xlpm.col)))","v":""}]
[165,null,null,{"$f":"_xlfn.IFNA(_xlfn.TEXTJOIN(\"; \",TRUE,INDEX(ItemDescriptionsTable[#Data],,MATCH($C181, ItemDescriptionsTable[#Headers], 0))),\"\")","v":""},null,null,null,null,null,null,null,null,null,null,null,null,null,null,{"$f":"_xlfn.LET(_xlpm.col,IF(NOT(OR(IsEmpty($B181),IsEmpty($C181),IsEmpty($E181))),MATCH($C181,ExtensionsTable[#Headers],0),\"\"),\n_xlpm.row,IF(_xlpm.col=\"\",\"\",ROW(INDEX(ExtensionsTable[], MATCH($E181, INDEX(ExtensionsTable[], , _xlpm.col), 0), 1))-ROW(ExtensionsTable[[#Headers],[Gene Expression ]])),\nIF(OR(_xlpm.col=\"\",_xlpm.row=\"\"),\"\",INDEX(SuffixesTable[], _xlpm.row, _xlpm.col)))","v":""}]
[166,null,null,{"$f":"_xlfn.IFNA(_xlfn.TEXTJOIN(\"; \",TRUE,INDEX(ItemDescriptionsTable[#Data],,MATCH($C182, ItemDescriptionsTable[#Headers], 0))),\"\")","v":""},null,null,null,null,null,null,null,null,null,null,null,null,null,null,{"$f":"_xlfn.LET(_xlpm.col,IF(NOT(OR(IsEmpty($B182),IsEmpty($C182),IsEmpty($E182))),MATCH($C182,ExtensionsTable[#Headers],0),\"\"),\n_xlpm.row,IF(_xlpm.col=\"\",\"\",ROW(INDEX(ExtensionsTable[], MATCH($E182, INDEX(ExtensionsTable[], , _xlpm.col), 0), 1))-ROW(ExtensionsTable[[#Headers],[Gene Expression ]])),\nIF(OR(_xlpm.col=\"\",_xlpm.row=\"\"),\"\",INDEX(SuffixesTable[], _xlpm.row, _xlpm.col)))","v":""}]
[167,null,null,{"$f":"_xlfn.IFNA(_xlfn.TEXTJOIN(\"; \",TRUE,INDEX(ItemDescriptionsTable[#Data],,MATCH($C183, ItemDescriptionsTable[#Headers], 0))),\"\")","v":""},null,null,null,null,null,null,null,null,null,null,null,null,null,null,{"$f":"_xlfn.LET(_xlpm.col,IF(NOT(OR(IsEmpty($B183),IsEmpty($C183),IsEmpty($E183))),MATCH($C183,ExtensionsTable[#Headers],0),\"\"),\n_xlpm.row,IF(_xlpm.col=\"\",\"\",ROW(INDEX(ExtensionsTable[], MATCH($E183, INDEX(ExtensionsTable[], , _xlpm.col), 0), 1))-ROW(ExtensionsTable[[#Headers],[Gene Expression ]])),\nIF(OR(_xlpm.col=\"\",_xlpm.row=\"\"),\"\",INDEX(SuffixesTable[], _xlpm.row, _xlpm.col)))","v":""}]
[168,null,null,{"$f":"_xlfn.IFNA(_xlfn.TEXTJOIN(\"; \",TRUE,INDEX(ItemDescriptionsTable[#Data],,MATCH($C184, ItemDescriptionsTable[#Headers], 0))),\"\")","v":""},null,null,null,null,null,null,null,null,null,null,null,null,null,null,{"$f":"_xlfn.LET(_xlpm.col,IF(NOT(OR(IsEmpty($B184),IsEmpty($C184),IsEmpty($E184))),MATCH($C184,ExtensionsTable[#Headers],0),\"\"),\n_xlpm.row,IF(_xlpm.col=\"\",\"\",ROW(INDEX(ExtensionsTable[], MATCH($E184, INDEX(ExtensionsTable[], , _xlpm.col), 0), 1))-ROW(ExtensionsTable[[#Headers],[Gene Expression ]])),\nIF(OR(_xlpm.col=\"\",_xlpm.row=\"\"),\"\",INDEX(SuffixesTable[], _xlpm.row, _xlpm.col)))","v":""}]
[169,null,null,{"$f":"_xlfn.IFNA(_xlfn.TEXTJOIN(\"; \",TRUE,INDEX(ItemDescriptionsTable[#Data],,MATCH($C185, ItemDescriptionsTable[#Headers], 0))),\"\")","v":""},null,null,null,null,null,null,null,null,null,null,null,null,null,null,{"$f":"_xlfn.LET(_xlpm.col,IF(NOT(OR(IsEmpty($B185),IsEmpty($C185),IsEmpty($E185))),MATCH($C185,ExtensionsTable[#Headers],0),\"\"),\n_xlpm.row,IF(_xlpm.col=\"\",\"\",ROW(INDEX(ExtensionsTable[], MATCH($E185, INDEX(ExtensionsTable[], , _xlpm.col), 0), 1))-ROW(ExtensionsTable[[#Headers],[Gene Expression ]])),\nIF(OR(_xlpm.col=\"\",_xlpm.row=\"\"),\"\",INDEX(SuffixesTable[], _xlpm.row, _xlpm.col)))","v":""}]
[170,null,null,{"$f":"_xlfn.IFNA(_xlfn.TEXTJOIN(\"; \",TRUE,INDEX(ItemDescriptionsTable[#Data],,MATCH($C186, ItemDescriptionsTable[#Headers], 0))),\"\")","v":""},null,null,null,null,null,null,null,null,null,null,null,null,null,null,{"$f":"_xlfn.LET(_xlpm.col,IF(NOT(OR(IsEmpty($B186),IsEmpty($C186),IsEmpty($E186))),MATCH($C186,ExtensionsTable[#Headers],0),\"\"),\n_xlpm.row,IF(_xlpm.col=\"\",\"\",ROW(INDEX(ExtensionsTable[], MATCH($E186, INDEX(ExtensionsTable[], , _xlpm.col), 0), 1))-ROW(ExtensionsTable[[#Headers],[Gene Expression ]])),\nIF(OR(_xlpm.col=\"\",_xlpm.row=\"\"),\"\",INDEX(SuffixesTable[], _xlpm.row, _xlpm.col)))","v":""}]
[171,null,null,{"$f":"_xlfn.IFNA(_xlfn.TEXTJOIN(\"; \",TRUE,INDEX(ItemDescriptionsTable[#Data],,MATCH($C187, ItemDescriptionsTable[#Headers], 0))),\"\")","v":""},null,null,null,null,null,null,null,null,null,null,null,null,null,null,{"$f":"_xlfn.LET(_xlpm.col,IF(NOT(OR(IsEmpty($B187),IsEmpty($C187),IsEmpty($E187))),MATCH($C187,ExtensionsTable[#Headers],0),\"\"),\n_xlpm.row,IF(_xlpm.col=\"\",\"\",ROW(INDEX(ExtensionsTable[], MATCH($E187, INDEX(ExtensionsTable[], , _xlpm.col), 0), 1))-ROW(ExtensionsTable[[#Headers],[Gene Expression ]])),\nIF(OR(_xlpm.col=\"\",_xlpm.row=\"\"),\"\",INDEX(SuffixesTable[], _xlpm.row, _xlpm.col)))","v":""}]
[172,null,null,{"$f":"_xlfn.IFNA(_xlfn.TEXTJOIN(\"; \",TRUE,INDEX(ItemDescriptionsTable[#Data],,MATCH($C188, ItemDescriptionsTable[#Headers], 0))),\"\")","v":""},null,null,null,null,null,null,null,null,null,null,null,null,null,null,{"$f":"_xlfn.LET(_xlpm.col,IF(NOT(OR(IsEmpty($B188),IsEmpty($C188),IsEmpty($E188))),MATCH($C188,ExtensionsTable[#Headers],0),\"\"),\n_xlpm.row,IF(_xlpm.col=\"\",\"\",ROW(INDEX(ExtensionsTable[], MATCH($E188, INDEX(ExtensionsTable[], , _xlpm.col), 0), 1))-ROW(ExtensionsTable[[#Headers],[Gene Expression ]])),\nIF(OR(_xlpm.col=\"\",_xlpm.row=\"\"),\"\",INDEX(SuffixesTable[], _xlpm.row, _xlpm.col)))","v":""}]
[173,null,null,{"$f":"_xlfn.IFNA(_xlfn.TEXTJOIN(\"; \",TRUE,INDEX(ItemDescriptionsTable[#Data],,MATCH($C189, ItemDescriptionsTable[#Headers], 0))),\"\")","v":""},null,null,null,null,null,null,null,null,null,null,null,null,null,null,{"$f":"_xlfn.LET(_xlpm.col,IF(NOT(OR(IsEmpty($B189),IsEmpty($C189),IsEmpty($E189))),MATCH($C189,ExtensionsTable[#Headers],0),\"\"),\n_xlpm.row,IF(_xlpm.col=\"\",\"\",ROW(INDEX(ExtensionsTable[], MATCH($E189, INDEX(ExtensionsTable[], , _xlpm.col), 0), 1))-ROW(ExtensionsTable[[#Headers],[Gene Expression ]])),\nIF(OR(_xlpm.col=\"\",_xlpm.row=\"\"),\"\",INDEX(SuffixesTable[], _xlpm.row, _xlpm.col)))","v":""}]
[174,null,null,{"$f":"_xlfn.IFNA(_xlfn.TEXTJOIN(\"; \",TRUE,INDEX(ItemDescriptionsTable[#Data],,MATCH($C190, ItemDescriptionsTable[#Headers], 0))),\"\")","v":""},null,null,null,null,null,null,null,null,null,null,null,null,null,null,{"$f":"_xlfn.LET(_xlpm.col,IF(NOT(OR(IsEmpty($B190),IsEmpty($C190),IsEmpty($E190))),MATCH($C190,ExtensionsTable[#Headers],0),\"\"),\n_xlpm.row,IF(_xlpm.col=\"\",\"\",ROW(INDEX(ExtensionsTable[], MATCH($E190, INDEX(ExtensionsTable[], , _xlpm.col), 0), 1))-ROW(ExtensionsTable[[#Headers],[Gene Expression ]])),\nIF(OR(_xlpm.col=\"\",_xlpm.row=\"\"),\"\",INDEX(SuffixesTable[], _xlpm.row, _xlpm.col)))","v":""}]
[175,null,null,{"$f":"_xlfn.IFNA(_xlfn.TEXTJOIN(\"; \",TRUE,INDEX(ItemDescriptionsTable[#Data],,MATCH($C191, ItemDescriptionsTable[#Headers], 0))),\"\")","v":""},null,null,null,null,null,null,null,null,null,null,null,null,null,null,{"$f":"_xlfn.LET(_xlpm.col,IF(NOT(OR(IsEmpty($B191),IsEmpty($C191),IsEmpty($E191))),MATCH($C191,ExtensionsTable[#Headers],0),\"\"),\n_xlpm.row,IF(_xlpm.col=\"\",\"\",ROW(INDEX(ExtensionsTable[], MATCH($E191, INDEX(ExtensionsTable[], , _xlpm.col), 0), 1))-ROW(ExtensionsTable[[#Headers],[Gene Expression ]])),\nIF(OR(_xlpm.col=\"\",_xlpm.row=\"\"),\"\",INDEX(SuffixesTable[], _xlpm.row, _xlpm.col)))","v":""}]
[176,null,null,{"$f":"_xlfn.IFNA(_xlfn.TEXTJOIN(\"; \",TRUE,INDEX(ItemDescriptionsTable[#Data],,MATCH($C192, ItemDescriptionsTable[#Headers], 0))),\"\")","v":""},null,null,null,null,null,null,null,null,null,null,null,null,null,null,{"$f":"_xlfn.LET(_xlpm.col,IF(NOT(OR(IsEmpty($B192),IsEmpty($C192),IsEmpty($E192))),MATCH($C192,ExtensionsTable[#Headers],0),\"\"),\n_xlpm.row,IF(_xlpm.col=\"\",\"\",ROW(INDEX(ExtensionsTable[], MATCH($E192, INDEX(ExtensionsTable[], , _xlpm.col), 0), 1))-ROW(ExtensionsTable[[#Headers],[Gene Expression ]])),\nIF(OR(_xlpm.col=\"\",_xlpm.row=\"\"),\"\",INDEX(SuffixesTable[], _xlpm.row, _xlpm.col)))","v":""}]
[177,null,null,{"$f":"_xlfn.IFNA(_xlfn.TEXTJOIN(\"; \",TRUE,INDEX(ItemDescriptionsTable[#Data],,MATCH($C193, ItemDescriptionsTable[#Headers], 0))),\"\")","v":""},null,null,null,null,null,null,null,null,null,null,null,null,null,null,{"$f":"_xlfn.LET(_xlpm.col,IF(NOT(OR(IsEmpty($B193),IsEmpty($C193),IsEmpty($E193))),MATCH($C193,ExtensionsTable[#Headers],0),\"\"),\n_xlpm.row,IF(_xlpm.col=\"\",\"\",ROW(INDEX(ExtensionsTable[], MATCH($E193, INDEX(ExtensionsTable[], , _xlpm.col), 0), 1))-ROW(ExtensionsTable[[#Headers],[Gene Expression ]])),\nIF(OR(_xlpm.col=\"\",_xlpm.row=\"\"),\"\",INDEX(SuffixesTable[], _xlpm.row, _xlpm.col)))","v":""}]
[178,null,null,{"$f":"_xlfn.IFNA(_xlfn.TEXTJOIN(\"; \",TRUE,INDEX(ItemDescriptionsTable[#Data],,MATCH($C194, ItemDescriptionsTable[#Headers], 0))),\"\")","v":""},null,null,null,null,null,null,null,null,null,null,null,null,null,null,{"$f":"_xlfn.LET(_xlpm.col,IF(NOT(OR(IsEmpty($B194),IsEmpty($C194),IsEmpty($E194))),MATCH($C194,ExtensionsTable[#Headers],0),\"\"),\n_xlpm.row,IF(_xlpm.col=\"\",\"\",ROW(INDEX(ExtensionsTable[], MATCH($E194, INDEX(ExtensionsTable[], , _xlpm.col), 0), 1))-ROW(ExtensionsTable[[#Headers],[Gene Expression ]])),\nIF(OR(_xlpm.col=\"\",_xlpm.row=\"\"),\"\",INDEX(SuffixesTable[], _xlpm.row, _xlpm.col)))","v":""}]
[179,null,null,{"$f":"_xlfn.IFNA(_xlfn.TEXTJOIN(\"; \",TRUE,INDEX(ItemDescriptionsTable[#Data],,MATCH($C195, ItemDescriptionsTable[#Headers], 0))),\"\")","v":""},null,null,null,null,null,null,null,null,null,null,null,null,null,null,{"$f":"_xlfn.LET(_xlpm.col,IF(NOT(OR(IsEmpty($B195),IsEmpty($C195),IsEmpty($E195))),MATCH($C195,ExtensionsTable[#Headers],0),\"\"),\n_xlpm.row,IF(_xlpm.col=\"\",\"\",ROW(INDEX(ExtensionsTable[], MATCH($E195, INDEX(ExtensionsTable[], , _xlpm.col), 0), 1))-ROW(ExtensionsTable[[#Headers],[Gene Expression ]])),\nIF(OR(_xlpm.col=\"\",_xlpm.row=\"\"),\"\",INDEX(SuffixesTable[], _xlpm.row, _xlpm.col)))","v":""}]
[180,null,null,{"$f":"_xlfn.IFNA(_xlfn.TEXTJOIN(\"; \",TRUE,INDEX(ItemDescriptionsTable[#Data],,MATCH($C196, ItemDescriptionsTable[#Headers], 0))),\"\")","v":""},null,null,null,null,null,null,null,null,null,null,null,null,null,null,{"$f":"_xlfn.LET(_xlpm.col,IF(NOT(OR(IsEmpty($B196),IsEmpty($C196),IsEmpty($E196))),MATCH($C196,ExtensionsTable[#Headers],0),\"\"),\n_xlpm.row,IF(_xlpm.col=\"\",\"\",ROW(INDEX(ExtensionsTable[], MATCH($E196, INDEX(ExtensionsTable[], , _xlpm.col), 0), 1))-ROW(ExtensionsTable[[#Headers],[Gene Expression ]])),\nIF(OR(_xlpm.col=\"\",_xlpm.row=\"\"),\"\",INDEX(SuffixesTable[], _xlpm.row, _xlpm.col)))","v":""}]
[181,null,null,{"$f":"_xlfn.IFNA(_xlfn.TEXTJOIN(\"; \",TRUE,INDEX(ItemDescriptionsTable[#Data],,MATCH($C197, ItemDescriptionsTable[#Headers], 0))),\"\")","v":""},null,null,null,null,null,null,null,null,null,null,null,null,null,null,{"$f":"_xlfn.LET(_xlpm.col,IF(NOT(OR(IsEmpty($B197),IsEmpty($C197),IsEmpty($E197))),MATCH($C197,ExtensionsTable[#Headers],0),\"\"),\n_xlpm.row,IF(_xlpm.col=\"\",\"\",ROW(INDEX(ExtensionsTable[], MATCH($E197, INDEX(ExtensionsTable[], , _xlpm.col), 0), 1))-ROW(ExtensionsTable[[#Headers],[Gene Expression ]])),\nIF(OR(_xlpm.col=\"\",_xlpm.row=\"\"),\"\",INDEX(SuffixesTable[], _xlpm.row, _xlpm.col)))","v":""}]
[182,null,null,{"$f":"_xlfn.IFNA(_xlfn.TEXTJOIN(\"; \",TRUE,INDEX(ItemDescriptionsTable[#Data],,MATCH($C198, ItemDescriptionsTable[#Headers], 0))),\"\")","v":""},null,null,null,null,null,null,null,null,null,null,null,null,null,null,{"$f":"_xlfn.LET(_xlpm.col,IF(NOT(OR(IsEmpty($B198),IsEmpty($C198),IsEmpty($E198))),MATCH($C198,ExtensionsTable[#Headers],0),\"\"),\n_xlpm.row,IF(_xlpm.col=\"\",\"\",ROW(INDEX(ExtensionsTable[], MATCH($E198, INDEX(ExtensionsTable[], , _xlpm.col), 0), 1))-ROW(ExtensionsTable[[#Headers],[Gene Expression ]])),\nIF(OR(_xlpm.col=\"\",_xlpm.row=\"\"),\"\",INDEX(SuffixesTable[], _xlpm.row, _xlpm.col)))","v":""}]
[183,null,null,{"$f":"_xlfn.IFNA(_xlfn.TEXTJOIN(\"; \",TRUE,INDEX(ItemDescriptionsTable[#Data],,MATCH($C199, ItemDescriptionsTable[#Headers], 0))),\"\")","v":""},null,null,null,null,null,null,null,null,null,null,null,null,null,null,{"$f":"_xlfn.LET(_xlpm.col,IF(NOT(OR(IsEmpty($B199),IsEmpty($C199),IsEmpty($E199))),MATCH($C199,ExtensionsTable[#Headers],0),\"\"),\n_xlpm.row,IF(_xlpm.col=\"\",\"\",ROW(INDEX(ExtensionsTable[], MATCH($E199, INDEX(ExtensionsTable[], , _xlpm.col), 0), 1))-ROW(ExtensionsTable[[#Headers],[Gene Expression ]])),\nIF(OR(_xlpm.col=\"\",_xlpm.row=\"\"),\"\",INDEX(SuffixesTable[], _xlpm.row, _xlpm.col)))","v":""}]
[184,null,null,{"$f":"_xlfn.IFNA(_xlfn.TEXTJOIN(\"; \",TRUE,INDEX(ItemDescriptionsTable[#Data],,MATCH($C200, ItemDescriptionsTable[#Headers], 0))),\"\")","v":""},null,null,null,null,null,null,null,null,null,null,null,null,null,null,{"$f":"_xlfn.LET(_xlpm.col,IF(NOT(OR(IsEmpty($B200),IsEmpty($C200),IsEmpty($E200))),MATCH($C200,ExtensionsTable[#Headers],0),\"\"),\n_xlpm.row,IF(_xlpm.col=\"\",\"\",ROW(INDEX(ExtensionsTable[], MATCH($E200, INDEX(ExtensionsTable[], , _xlpm.col), 0), 1))-ROW(ExtensionsTable[[#Headers],[Gene Expression ]])),\nIF(OR(_xlpm.col=\"\",_xlpm.row=\"\"),\"\",INDEX(SuffixesTable[], _xlpm.row, _xlpm.col)))","v":""}]
[185,null,null,{"$f":"_xlfn.IFNA(_xlfn.TEXTJOIN(\"; \",TRUE,INDEX(ItemDescriptionsTable[#Data],,MATCH($C201, ItemDescriptionsTable[#Headers], 0))),\"\")","v":""},null,null,null,null,null,null,null,null,null,null,null,null,null,null,{"$f":"_xlfn.LET(_xlpm.col,IF(NOT(OR(IsEmpty($B201),IsEmpty($C201),IsEmpty($E201))),MATCH($C201,ExtensionsTable[#Headers],0),\"\"),\n_xlpm.row,IF(_xlpm.col=\"\",\"\",ROW(INDEX(ExtensionsTable[], MATCH($E201, INDEX(ExtensionsTable[], , _xlpm.col), 0), 1))-ROW(ExtensionsTable[[#Headers],[Gene Expression ]])),\nIF(OR(_xlpm.col=\"\",_xlpm.row=\"\"),\"\",INDEX(SuffixesTable[], _xlpm.row, _xlpm.col)))","v":""}]
[186,null,null,{"$f":"_xlfn.IFNA(_xlfn.TEXTJOIN(\"; \",TRUE,INDEX(ItemDescriptionsTable[#Data],,MATCH($C202, ItemDescriptionsTable[#Headers], 0))),\"\")","v":""},null,null,null,null,null,null,null,null,null,null,null,null,null,null,{"$f":"_xlfn.LET(_xlpm.col,IF(NOT(OR(IsEmpty($B202),IsEmpty($C202),IsEmpty($E202))),MATCH($C202,ExtensionsTable[#Headers],0),\"\"),\n_xlpm.row,IF(_xlpm.col=\"\",\"\",ROW(INDEX(ExtensionsTable[], MATCH($E202, INDEX(ExtensionsTable[], , _xlpm.col), 0), 1))-ROW(ExtensionsTable[[#Headers],[Gene Expression ]])),\nIF(OR(_xlpm.col=\"\",_xlpm.row=\"\"),\"\",INDEX(SuffixesTable[], _xlpm.row, _xlpm.col)))","v":""}]
[187,null,null,{"$f":"_xlfn.IFNA(_xlfn.TEXTJOIN(\"; \",TRUE,INDEX(ItemDescriptionsTable[#Data],,MATCH($C203, ItemDescriptionsTable[#Headers], 0))),\"\")","v":""},null,null,null,null,null,null,null,null,null,null,null,null,null,null,{"$f":"_xlfn.LET(_xlpm.col,IF(NOT(OR(IsEmpty($B203),IsEmpty($C203),IsEmpty($E203))),MATCH($C203,ExtensionsTable[#Headers],0),\"\"),\n_xlpm.row,IF(_xlpm.col=\"\",\"\",ROW(INDEX(ExtensionsTable[], MATCH($E203, INDEX(ExtensionsTable[], , _xlpm.col), 0), 1))-ROW(ExtensionsTable[[#Headers],[Gene Expression ]])),\nIF(OR(_xlpm.col=\"\",_xlpm.row=\"\"),\"\",INDEX(SuffixesTable[], _xlpm.row, _xlpm.col)))","v":""}]
[188,null,null,{"$f":"_xlfn.IFNA(_xlfn.TEXTJOIN(\"; \",TRUE,INDEX(ItemDescriptionsTable[#Data],,MATCH($C204, ItemDescriptionsTable[#Headers], 0))),\"\")","v":""},null,null,null,null,null,null,null,null,null,null,null,null,null,null,{"$f":"_xlfn.LET(_xlpm.col,IF(NOT(OR(IsEmpty($B204),IsEmpty($C204),IsEmpty($E204))),MATCH($C204,ExtensionsTable[#Headers],0),\"\"),\n_xlpm.row,IF(_xlpm.col=\"\",\"\",ROW(INDEX(ExtensionsTable[], MATCH($E204, INDEX(ExtensionsTable[], , _xlpm.col), 0), 1))-ROW(ExtensionsTable[[#Headers],[Gene Expression ]])),\nIF(OR(_xlpm.col=\"\",_xlpm.row=\"\"),\"\",INDEX(SuffixesTable[], _xlpm.row, _xlpm.col)))","v":""}]
[189,null,null,{"$f":"_xlfn.IFNA(_xlfn.TEXTJOIN(\"; \",TRUE,INDEX(ItemDescriptionsTable[#Data],,MATCH($C205, ItemDescriptionsTable[#Headers], 0))),\"\")","v":""},null,null,null,null,null,null,null,null,null,null,null,null,null,null,{"$f":"_xlfn.LET(_xlpm.col,IF(NOT(OR(IsEmpty($B205),IsEmpty($C205),IsEmpty($E205))),MATCH($C205,ExtensionsTable[#Headers],0),\"\"),\n_xlpm.row,IF(_xlpm.col=\"\",\"\",ROW(INDEX(ExtensionsTable[], MATCH($E205, INDEX(ExtensionsTable[], , _xlpm.col), 0), 1))-ROW(ExtensionsTable[[#Headers],[Gene Expression ]])),\nIF(OR(_xlpm.col=\"\",_xlpm.row=\"\"),\"\",INDEX(SuffixesTable[], _xlpm.row, _xlpm.col)))","v":""}]
[190,null,null,{"$f":"_xlfn.IFNA(_xlfn.TEXTJOIN(\"; \",TRUE,INDEX(ItemDescriptionsTable[#Data],,MATCH($C206, ItemDescriptionsTable[#Headers], 0))),\"\")","v":""},null,null,null,null,null,null,null,null,null,null,null,null,null,null,{"$f":"_xlfn.LET(_xlpm.col,IF(NOT(OR(IsEmpty($B206),IsEmpty($C206),IsEmpty($E206))),MATCH($C206,ExtensionsTable[#Headers],0),\"\"),\n_xlpm.row,IF(_xlpm.col=\"\",\"\",ROW(INDEX(ExtensionsTable[], MATCH($E206, INDEX(ExtensionsTable[], , _xlpm.col), 0), 1))-ROW(ExtensionsTable[[#Headers],[Gene Expression ]])),\nIF(OR(_xlpm.col=\"\",_xlpm.row=\"\"),\"\",INDEX(SuffixesTable[], _xlpm.row, _xlpm.col)))","v":""}]
[191,null,null,{"$f":"_xlfn.IFNA(_xlfn.TEXTJOIN(\"; \",TRUE,INDEX(ItemDescriptionsTable[#Data],,MATCH($C207, ItemDescriptionsTable[#Headers], 0))),\"\")","v":""},null,null,null,null,null,null,null,null,null,null,null,null,null,null,{"$f":"_xlfn.LET(_xlpm.col,IF(NOT(OR(IsEmpty($B207),IsEmpty($C207),IsEmpty($E207))),MATCH($C207,ExtensionsTable[#Headers],0),\"\"),\n_xlpm.row,IF(_xlpm.col=\"\",\"\",ROW(INDEX(ExtensionsTable[], MATCH($E207, INDEX(ExtensionsTable[], , _xlpm.col), 0), 1))-ROW(ExtensionsTable[[#Headers],[Gene Expression ]])),\nIF(OR(_xlpm.col=\"\",_xlpm.row=\"\"),\"\",INDEX(SuffixesTable[], _xlpm.row, _xlpm.col)))","v":""}]
[192,null,null,{"$f":"_xlfn.IFNA(_xlfn.TEXTJOIN(\"; \",TRUE,INDEX(ItemDescriptionsTable[#Data],,MATCH($C208, ItemDescriptionsTable[#Headers], 0))),\"\")","v":""},null,null,null,null,null,null,null,null,null,null,null,null,null,null,{"$f":"_xlfn.LET(_xlpm.col,IF(NOT(OR(IsEmpty($B208),IsEmpty($C208),IsEmpty($E208))),MATCH($C208,ExtensionsTable[#Headers],0),\"\"),\n_xlpm.row,IF(_xlpm.col=\"\",\"\",ROW(INDEX(ExtensionsTable[], MATCH($E208, INDEX(ExtensionsTable[], , _xlpm.col), 0), 1))-ROW(ExtensionsTable[[#Headers],[Gene Expression ]])),\nIF(OR(_xlpm.col=\"\",_xlpm.row=\"\"),\"\",INDEX(SuffixesTable[], _xlpm.row, _xlpm.col)))","v":""}]
[193,null,null,{"$f":"_xlfn.IFNA(_xlfn.TEXTJOIN(\"; \",TRUE,INDEX(ItemDescriptionsTable[#Data],,MATCH($C209, ItemDescriptionsTable[#Headers], 0))),\"\")","v":""},null,null,null,null,null,null,null,null,null,null,null,null,null,null,{"$f":"_xlfn.LET(_xlpm.col,IF(NOT(OR(IsEmpty($B209),IsEmpty($C209),IsEmpty($E209))),MATCH($C209,ExtensionsTable[#Headers],0),\"\"),\n_xlpm.row,IF(_xlpm.col=\"\",\"\",ROW(INDEX(ExtensionsTable[], MATCH($E209, INDEX(ExtensionsTable[], , _xlpm.col), 0), 1))-ROW(ExtensionsTable[[#Headers],[Gene Expression ]])),\nIF(OR(_xlpm.col=\"\",_xlpm.row=\"\"),\"\",INDEX(SuffixesTable[], _xlpm.row, _xlpm.col)))","v":""}]
[194,null,null,{"$f":"_xlfn.IFNA(_xlfn.TEXTJOIN(\"; \",TRUE,INDEX(ItemDescriptionsTable[#Data],,MATCH($C210, ItemDescriptionsTable[#Headers], 0))),\"\")","v":""},null,null,null,null,null,null,null,null,null,null,null,null,null,null,{"$f":"_xlfn.LET(_xlpm.col,IF(NOT(OR(IsEmpty($B210),IsEmpty($C210),IsEmpty($E210))),MATCH($C210,ExtensionsTable[#Headers],0),\"\"),\n_xlpm.row,IF(_xlpm.col=\"\",\"\",ROW(INDEX(ExtensionsTable[], MATCH($E210, INDEX(ExtensionsTable[], , _xlpm.col), 0), 1))-ROW(ExtensionsTable[[#Headers],[Gene Expression ]])),\nIF(OR(_xlpm.col=\"\",_xlpm.row=\"\"),\"\",INDEX(SuffixesTable[], _xlpm.row, _xlpm.col)))","v":""}]
[195,null,null,{"$f":"_xlfn.IFNA(_xlfn.TEXTJOIN(\"; \",TRUE,INDEX(ItemDescriptionsTable[#Data],,MATCH($C211, ItemDescriptionsTable[#Headers], 0))),\"\")","v":""},null,null,null,null,null,null,null,null,null,null,null,null,null,null,{"$f":"_xlfn.LET(_xlpm.col,IF(NOT(OR(IsEmpty($B211),IsEmpty($C211),IsEmpty($E211))),MATCH($C211,ExtensionsTable[#Headers],0),\"\"),\n_xlpm.row,IF(_xlpm.col=\"\",\"\",ROW(INDEX(ExtensionsTable[], MATCH($E211, INDEX(ExtensionsTable[], , _xlpm.col), 0), 1))-ROW(ExtensionsTable[[#Headers],[Gene Expression ]])),\nIF(OR(_xlpm.col=\"\",_xlpm.row=\"\"),\"\",INDEX(SuffixesTable[], _xlpm.row, _xlpm.col)))","v":""}]
[196,null,null,{"$f":"_xlfn.IFNA(_xlfn.TEXTJOIN(\"; \",TRUE,INDEX(ItemDescriptionsTable[#Data],,MATCH($C212, ItemDescriptionsTable[#Headers], 0))),\"\")","v":""},null,null,null,null,null,null,null,null,null,null,null,null,null,null,{"$f":"_xlfn.LET(_xlpm.col,IF(NOT(OR(IsEmpty($B212),IsEmpty($C212),IsEmpty($E212))),MATCH($C212,ExtensionsTable[#Headers],0),\"\"),\n_xlpm.row,IF(_xlpm.col=\"\",\"\",ROW(INDEX(ExtensionsTable[], MATCH($E212, INDEX(ExtensionsTable[], , _xlpm.col), 0), 1))-ROW(ExtensionsTable[[#Headers],[Gene Expression ]])),\nIF(OR(_xlpm.col=\"\",_xlpm.row=\"\"),\"\",INDEX(SuffixesTable[], _xlpm.row, _xlpm.col)))","v":""}]
[197,null,null,{"$f":"_xlfn.IFNA(_xlfn.TEXTJOIN(\"; \",TRUE,INDEX(ItemDescriptionsTable[#Data],,MATCH($C213, ItemDescriptionsTable[#Headers], 0))),\"\")","v":""},null,null,null,null,null,null,null,null,null,null,null,null,null,null,{"$f":"_xlfn.LET(_xlpm.col,IF(NOT(OR(IsEmpty($B213),IsEmpty($C213),IsEmpty($E213))),MATCH($C213,ExtensionsTable[#Headers],0),\"\"),\n_xlpm.row,IF(_xlpm.col=\"\",\"\",ROW(INDEX(ExtensionsTable[], MATCH($E213, INDEX(ExtensionsTable[], , _xlpm.col), 0), 1))-ROW(ExtensionsTable[[#Headers],[Gene Expression ]])),\nIF(OR(_xlpm.col=\"\",_xlpm.row=\"\"),\"\",INDEX(SuffixesTable[], _xlpm.row, _xlpm.col)))","v":""}]
[198,null,null,{"$f":"_xlfn.IFNA(_xlfn.TEXTJOIN(\"; \",TRUE,INDEX(ItemDescriptionsTable[#Data],,MATCH($C214, ItemDescriptionsTable[#Headers], 0))),\"\")","v":""},null,null,null,null,null,null,null,null,null,null,null,null,null,null,{"$f":"_xlfn.LET(_xlpm.col,IF(NOT(OR(IsEmpty($B214),IsEmpty($C214),IsEmpty($E214))),MATCH($C214,ExtensionsTable[#Headers],0),\"\"),\n_xlpm.row,IF(_xlpm.col=\"\",\"\",ROW(INDEX(ExtensionsTable[], MATCH($E214, INDEX(ExtensionsTable[], , _xlpm.col), 0), 1))-ROW(ExtensionsTable[[#Headers],[Gene Expression ]])),\nIF(OR(_xlpm.col=\"\",_xlpm.row=\"\"),\"\",INDEX(SuffixesTable[], _xlpm.row, _xlpm.col)))","v":""}]
[199,null,null,{"$f":"_xlfn.IFNA(_xlfn.TEXTJOIN(\"; \",TRUE,INDEX(ItemDescriptionsTable[#Data],,MATCH($C215, ItemDescriptionsTable[#Headers], 0))),\"\")","v":""},null,null,null,null,null,null,null,null,null,null,null,null,null,null,{"$f":"_xlfn.LET(_xlpm.col,IF(NOT(OR(IsEmpty($B215),IsEmpty($C215),IsEmpty($E215))),MATCH($C215,ExtensionsTable[#Headers],0),\"\"),\n_xlpm.row,IF(_xlpm.col=\"\",\"\",ROW(INDEX(ExtensionsTable[], MATCH($E215, INDEX(ExtensionsTable[], , _xlpm.col), 0), 1))-ROW(ExtensionsTable[[#Headers],[Gene Expression ]])),\nIF(OR(_xlpm.col=\"\",_xlpm.row=\"\"),\"\",INDEX(SuffixesTable[], _xlpm.row, _xlpm.col)))","v":""}]
[200,null,null,{"$f":"_xlfn.IFNA(_xlfn.TEXTJOIN(\"; \",TRUE,INDEX(ItemDescriptionsTable[#Data],,MATCH($C216, ItemDescriptionsTable[#Headers], 0))),\"\")","v":""},null,null,null,null,null,null,null,null,null,null,null,null,null,null,{"$f":"_xlfn.LET(_xlpm.col,IF(NOT(OR(IsEmpty($B216),IsEmpty($C216),IsEmpty($E216))),MATCH($C216,ExtensionsTable[#Headers],0),\"\"),\n_xlpm.row,IF(_xlpm.col=\"\",\"\",ROW(INDEX(ExtensionsTable[], MATCH($E216, INDEX(ExtensionsTable[], , _xlpm.col), 0), 1))-ROW(ExtensionsTable[[#Headers],[Gene Expression ]])),\nIF(OR(_xlpm.col=\"\",_xlpm.row=\"\"),\"\",INDEX(SuffixesTable[], _xlpm.row, _xlpm.col)))","v":""}]
[201,null,null,{"$f":"_xlfn.IFNA(_xlfn.TEXTJOIN(\"; \",TRUE,INDEX(ItemDescriptionsTable[#Data],,MATCH($C217, ItemDescriptionsTable[#Headers], 0))),\"\")","v":""},null,null,null,null,null,null,null,null,null,null,null,null,null,null,{"$f":"_xlfn.LET(_xlpm.col,IF(NOT(OR(IsEmpty($B217),IsEmpty($C217),IsEmpty($E217))),MATCH($C217,ExtensionsTable[#Headers],0),\"\"),\n_xlpm.row,IF(_xlpm.col=\"\",\"\",ROW(INDEX(ExtensionsTable[], MATCH($E217, INDEX(ExtensionsTable[], , _xlpm.col), 0), 1))-ROW(ExtensionsTable[[#Headers],[Gene Expression ]])),\nIF(OR(_xlpm.col=\"\",_xlpm.row=\"\"),\"\",INDEX(SuffixesTable[], _xlpm.row, _xlpm.col)))","v":""}]
[202,null,null,{"$f":"_xlfn.IFNA(_xlfn.TEXTJOIN(\"; \",TRUE,INDEX(ItemDescriptionsTable[#Data],,MATCH($C218, ItemDescriptionsTable[#Headers], 0))),\"\")","v":""},null,null,null,null,null,null,null,null,null,null,null,null,null,null,{"$f":"_xlfn.LET(_xlpm.col,IF(NOT(OR(IsEmpty($B218),IsEmpty($C218),IsEmpty($E218))),MATCH($C218,ExtensionsTable[#Headers],0),\"\"),\n_xlpm.row,IF(_xlpm.col=\"\",\"\",ROW(INDEX(ExtensionsTable[], MATCH($E218, INDEX(ExtensionsTable[], , _xlpm.col), 0), 1))-ROW(ExtensionsTable[[#Headers],[Gene Expression ]])),\nIF(OR(_xlpm.col=\"\",_xlpm.row=\"\"),\"\",INDEX(SuffixesTable[], _xlpm.row, _xlpm.col)))","v":""}]
[203,null,null,{"$f":"_xlfn.IFNA(_xlfn.TEXTJOIN(\"; \",TRUE,INDEX(ItemDescriptionsTable[#Data],,MATCH($C219, ItemDescriptionsTable[#Headers], 0))),\"\")","v":""},null,null,null,null,null,null,null,null,null,null,null,null,null,null,{"$f":"_xlfn.LET(_xlpm.col,IF(NOT(OR(IsEmpty($B219),IsEmpty($C219),IsEmpty($E219))),MATCH($C219,ExtensionsTable[#Headers],0),\"\"),\n_xlpm.row,IF(_xlpm.col=\"\",\"\",ROW(INDEX(ExtensionsTable[], MATCH($E219, INDEX(ExtensionsTable[], , _xlpm.col), 0), 1))-ROW(ExtensionsTable[[#Headers],[Gene Expression ]])),\nIF(OR(_xlpm.col=\"\",_xlpm.row=\"\"),\"\",INDEX(SuffixesTable[], _xlpm.row, _xlpm.col)))","v":""}]
[204,null,null,{"$f":"_xlfn.IFNA(_xlfn.TEXTJOIN(\"; \",TRUE,INDEX(ItemDescriptionsTable[#Data],,MATCH($C220, ItemDescriptionsTable[#Headers], 0))),\"\")","v":""},null,null,null,null,null,null,null,null,null,null,null,null,null,null,{"$f":"_xlfn.LET(_xlpm.col,IF(NOT(OR(IsEmpty($B220),IsEmpty($C220),IsEmpty($E220))),MATCH($C220,ExtensionsTable[#Headers],0),\"\"),\n_xlpm.row,IF(_xlpm.col=\"\",\"\",ROW(INDEX(ExtensionsTable[], MATCH($E220, INDEX(ExtensionsTable[], , _xlpm.col), 0), 1))-ROW(ExtensionsTable[[#Headers],[Gene Expression ]])),\nIF(OR(_xlpm.col=\"\",_xlpm.row=\"\"),\"\",INDEX(SuffixesTable[], _xlpm.row, _xlpm.col)))","v":""}]
[205,null,null,{"$f":"_xlfn.IFNA(_xlfn.TEXTJOIN(\"; \",TRUE,INDEX(ItemDescriptionsTable[#Data],,MATCH($C221, ItemDescriptionsTable[#Headers], 0))),\"\")","v":""},null,null,null,null,null,null,null,null,null,null,null,null,null,null,{"$f":"_xlfn.LET(_xlpm.col,IF(NOT(OR(IsEmpty($B221),IsEmpty($C221),IsEmpty($E221))),MATCH($C221,ExtensionsTable[#Headers],0),\"\"),\n_xlpm.row,IF(_xlpm.col=\"\",\"\",ROW(INDEX(ExtensionsTable[], MATCH($E221, INDEX(ExtensionsTable[], , _xlpm.col), 0), 1))-ROW(ExtensionsTable[[#Headers],[Gene Expression ]])),\nIF(OR(_xlpm.col=\"\",_xlpm.row=\"\"),\"\",INDEX(SuffixesTable[], _xlpm.row, _xlpm.col)))","v":""}]
[206,null,null,{"$f":"_xlfn.IFNA(_xlfn.TEXTJOIN(\"; \",TRUE,INDEX(ItemDescriptionsTable[#Data],,MATCH($C222, ItemDescriptionsTable[#Headers], 0))),\"\")","v":""},null,null,null,null,null,null,null,null,null,null,null,null,null,null,{"$f":"_xlfn.LET(_xlpm.col,IF(NOT(OR(IsEmpty($B222),IsEmpty($C222),IsEmpty($E222))),MATCH($C222,ExtensionsTable[#Headers],0),\"\"),\n_xlpm.row,IF(_xlpm.col=\"\",\"\",ROW(INDEX(ExtensionsTable[], MATCH($E222, INDEX(ExtensionsTable[], , _xlpm.col), 0), 1))-ROW(ExtensionsTable[[#Headers],[Gene Expression ]])),\nIF(OR(_xlpm.col=\"\",_xlpm.row=\"\"),\"\",INDEX(SuffixesTable[], _xlpm.row, _xlpm.col)))","v":""}]
[207,null,null,{"$f":"_xlfn.IFNA(_xlfn.TEXTJOIN(\"; \",TRUE,INDEX(ItemDescriptionsTable[#Data],,MATCH($C223, ItemDescriptionsTable[#Headers], 0))),\"\")","v":""},null,null,null,null,null,null,null,null,null,null,null,null,null,null,{"$f":"_xlfn.LET(_xlpm.col,IF(NOT(OR(IsEmpty($B223),IsEmpty($C223),IsEmpty($E223))),MATCH($C223,ExtensionsTable[#Headers],0),\"\"),\n_xlpm.row,IF(_xlpm.col=\"\",\"\",ROW(INDEX(ExtensionsTable[], MATCH($E223, INDEX(ExtensionsTable[], , _xlpm.col), 0), 1))-ROW(ExtensionsTable[[#Headers],[Gene Expression ]])),\nIF(OR(_xlpm.col=\"\",_xlpm.row=\"\"),\"\",INDEX(SuffixesTable[], _xlpm.row, _xlpm.col)))","v":""}]
[208,null,null,{"$f":"_xlfn.IFNA(_xlfn.TEXTJOIN(\"; \",TRUE,INDEX(ItemDescriptionsTable[#Data],,MATCH($C224, ItemDescriptionsTable[#Headers], 0))),\"\")","v":""},null,null,null,null,null,null,null,null,null,null,null,null,null,null,{"$f":"_xlfn.LET(_xlpm.col,IF(NOT(OR(IsEmpty($B224),IsEmpty($C224),IsEmpty($E224))),MATCH($C224,ExtensionsTable[#Headers],0),\"\"),\n_xlpm.row,IF(_xlpm.col=\"\",\"\",ROW(INDEX(ExtensionsTable[], MATCH($E224, INDEX(ExtensionsTable[], , _xlpm.col), 0), 1))-ROW(ExtensionsTable[[#Headers],[Gene Expression ]])),\nIF(OR(_xlpm.col=\"\",_xlpm.row=\"\"),\"\",INDEX(SuffixesTable[], _xlpm.row, _xlpm.col)))","v":""}]
[209,null,null,{"$f":"_xlfn.IFNA(_xlfn.TEXTJOIN(\"; \",TRUE,INDEX(ItemDescriptionsTable[#Data],,MATCH($C225, ItemDescriptionsTable[#Headers], 0))),\"\")","v":""},null,null,null,null,null,null,null,null,null,null,null,null,null,null,{"$f":"_xlfn.LET(_xlpm.col,IF(NOT(OR(IsEmpty($B225),IsEmpty($C225),IsEmpty($E225))),MATCH($C225,ExtensionsTable[#Headers],0),\"\"),\n_xlpm.row,IF(_xlpm.col=\"\",\"\",ROW(INDEX(ExtensionsTable[], MATCH($E225, INDEX(ExtensionsTable[], , _xlpm.col), 0), 1))-ROW(ExtensionsTable[[#Headers],[Gene Expression ]])),\nIF(OR(_xlpm.col=\"\",_xlpm.row=\"\"),\"\",INDEX(SuffixesTable[], _xlpm.row, _xlpm.col)))","v":""}]
[210,null,null,{"$f":"_xlfn.IFNA(_xlfn.TEXTJOIN(\"; \",TRUE,INDEX(ItemDescriptionsTable[#Data],,MATCH($C226, ItemDescriptionsTable[#Headers], 0))),\"\")","v":""},null,null,null,null,null,null,null,null,null,null,null,null,null,null,{"$f":"_xlfn.LET(_xlpm.col,IF(NOT(OR(IsEmpty($B226),IsEmpty($C226),IsEmpty($E226))),MATCH($C226,ExtensionsTable[#Headers],0),\"\"),\n_xlpm.row,IF(_xlpm.col=\"\",\"\",ROW(INDEX(ExtensionsTable[], MATCH($E226, INDEX(ExtensionsTable[], , _xlpm.col), 0), 1))-ROW(ExtensionsTable[[#Headers],[Gene Expression ]])),\nIF(OR(_xlpm.col=\"\",_xlpm.row=\"\"),\"\",INDEX(SuffixesTable[], _xlpm.row, _xlpm.col)))","v":""}]
[211,null,null,{"$f":"_xlfn.IFNA(_xlfn.TEXTJOIN(\"; \",TRUE,INDEX(ItemDescriptionsTable[#Data],,MATCH($C227, ItemDescriptionsTable[#Headers], 0))),\"\")","v":""},null,null,null,null,null,null,null,null,null,null,null,null,null,null,{"$f":"_xlfn.LET(_xlpm.col,IF(NOT(OR(IsEmpty($B227),IsEmpty($C227),IsEmpty($E227))),MATCH($C227,ExtensionsTable[#Headers],0),\"\"),\n_xlpm.row,IF(_xlpm.col=\"\",\"\",ROW(INDEX(ExtensionsTable[], MATCH($E227, INDEX(ExtensionsTable[], , _xlpm.col), 0), 1))-ROW(ExtensionsTable[[#Headers],[Gene Expression ]])),\nIF(OR(_xlpm.col=\"\",_xlpm.row=\"\"),\"\",INDEX(SuffixesTable[], _xlpm.row, _xlpm.col)))","v":""}]
[212,null,null,{"$f":"_xlfn.IFNA(_xlfn.TEXTJOIN(\"; \",TRUE,INDEX(ItemDescriptionsTable[#Data],,MATCH($C228, ItemDescriptionsTable[#Headers], 0))),\"\")","v":""},null,null,null,null,null,null,null,null,null,null,null,null,null,null,{"$f":"_xlfn.LET(_xlpm.col,IF(NOT(OR(IsEmpty($B228),IsEmpty($C228),IsEmpty($E228))),MATCH($C228,ExtensionsTable[#Headers],0),\"\"),\n_xlpm.row,IF(_xlpm.col=\"\",\"\",ROW(INDEX(ExtensionsTable[], MATCH($E228, INDEX(ExtensionsTable[], , _xlpm.col), 0), 1))-ROW(ExtensionsTable[[#Headers],[Gene Expression ]])),\nIF(OR(_xlpm.col=\"\",_xlpm.row=\"\"),\"\",INDEX(SuffixesTable[], _xlpm.row, _xlpm.col)))","v":""}]
[213,null,null,{"$f":"_xlfn.IFNA(_xlfn.TEXTJOIN(\"; \",TRUE,INDEX(ItemDescriptionsTable[#Data],,MATCH($C229, ItemDescriptionsTable[#Headers], 0))),\"\")","v":""},null,null,null,null,null,null,null,null,null,null,null,null,null,null,{"$f":"_xlfn.LET(_xlpm.col,IF(NOT(OR(IsEmpty($B229),IsEmpty($C229),IsEmpty($E229))),MATCH($C229,ExtensionsTable[#Headers],0),\"\"),\n_xlpm.row,IF(_xlpm.col=\"\",\"\",ROW(INDEX(ExtensionsTable[], MATCH($E229, INDEX(ExtensionsTable[], , _xlpm.col), 0), 1))-ROW(ExtensionsTable[[#Headers],[Gene Expression ]])),\nIF(OR(_xlpm.col=\"\",_xlpm.row=\"\"),\"\",INDEX(SuffixesTable[], _xlpm.row, _xlpm.col)))","v":""}]
[214,null,null,{"$f":"_xlfn.IFNA(_xlfn.TEXTJOIN(\"; \",TRUE,INDEX(ItemDescriptionsTable[#Data],,MATCH($C230, ItemDescriptionsTable[#Headers], 0))),\"\")","v":""},null,null,null,null,null,null,null,null,null,null,null,null,null,null,{"$f":"_xlfn.LET(_xlpm.col,IF(NOT(OR(IsEmpty($B230),IsEmpty($C230),IsEmpty($E230))),MATCH($C230,ExtensionsTable[#Headers],0),\"\"),\n_xlpm.row,IF(_xlpm.col=\"\",\"\",ROW(INDEX(ExtensionsTable[], MATCH($E230, INDEX(ExtensionsTable[], , _xlpm.col), 0), 1))-ROW(ExtensionsTable[[#Headers],[Gene Expression ]])),\nIF(OR(_xlpm.col=\"\",_xlpm.row=\"\"),\"\",INDEX(SuffixesTable[], _xlpm.row, _xlpm.col)))","v":""}]
[215,null,null,{"$f":"_xlfn.IFNA(_xlfn.TEXTJOIN(\"; \",TRUE,INDEX(ItemDescriptionsTable[#Data],,MATCH($C231, ItemDescriptionsTable[#Headers], 0))),\"\")","v":""},null,null,null,null,null,null,null,null,null,null,null,null,null,null,{"$f":"_xlfn.LET(_xlpm.col,IF(NOT(OR(IsEmpty($B231),IsEmpty($C231),IsEmpty($E231))),MATCH($C231,ExtensionsTable[#Headers],0),\"\"),\n_xlpm.row,IF(_xlpm.col=\"\",\"\",ROW(INDEX(ExtensionsTable[], MATCH($E231, INDEX(ExtensionsTable[], , _xlpm.col), 0), 1))-ROW(ExtensionsTable[[#Headers],[Gene Expression ]])),\nIF(OR(_xlpm.col=\"\",_xlpm.row=\"\"),\"\",INDEX(SuffixesTable[], _xlpm.row, _xlpm.col)))","v":""}]
[216,null,null,{"$f":"_xlfn.IFNA(_xlfn.TEXTJOIN(\"; \",TRUE,INDEX(ItemDescriptionsTable[#Data],,MATCH($C232, ItemDescriptionsTable[#Headers], 0))),\"\")","v":""},null,null,null,null,null,null,null,null,null,null,null,null,null,null,{"$f":"_xlfn.LET(_xlpm.col,IF(NOT(OR(IsEmpty($B232),IsEmpty($C232),IsEmpty($E232))),MATCH($C232,ExtensionsTable[#Headers],0),\"\"),\n_xlpm.row,IF(_xlpm.col=\"\",\"\",ROW(INDEX(ExtensionsTable[], MATCH($E232, INDEX(ExtensionsTable[], , _xlpm.col), 0), 1))-ROW(ExtensionsTable[[#Headers],[Gene Expression ]])),\nIF(OR(_xlpm.col=\"\",_xlpm.row=\"\"),\"\",INDEX(SuffixesTable[], _xlpm.row, _xlpm.col)))","v":""}]
[217,null,null,{"$f":"_xlfn.IFNA(_xlfn.TEXTJOIN(\"; \",TRUE,INDEX(ItemDescriptionsTable[#Data],,MATCH($C233, ItemDescriptionsTable[#Headers], 0))),\"\")","v":""},null,null,null,null,null,null,null,null,null,null,null,null,null,null,{"$f":"_xlfn.LET(_xlpm.col,IF(NOT(OR(IsEmpty($B233),IsEmpty($C233),IsEmpty($E233))),MATCH($C233,ExtensionsTable[#Headers],0),\"\"),\n_xlpm.row,IF(_xlpm.col=\"\",\"\",ROW(INDEX(ExtensionsTable[], MATCH($E233, INDEX(ExtensionsTable[], , _xlpm.col), 0), 1))-ROW(ExtensionsTable[[#Headers],[Gene Expression ]])),\nIF(OR(_xlpm.col=\"\",_xlpm.row=\"\"),\"\",INDEX(SuffixesTable[], _xlpm.row, _xlpm.col)))","v":""}]
[218,null,null,{"$f":"_xlfn.IFNA(_xlfn.TEXTJOIN(\"; \",TRUE,INDEX(ItemDescriptionsTable[#Data],,MATCH($C234, ItemDescriptionsTable[#Headers], 0))),\"\")","v":""},null,null,null,null,null,null,null,null,null,null,null,null,null,null,{"$f":"_xlfn.LET(_xlpm.col,IF(NOT(OR(IsEmpty($B234),IsEmpty($C234),IsEmpty($E234))),MATCH($C234,ExtensionsTable[#Headers],0),\"\"),\n_xlpm.row,IF(_xlpm.col=\"\",\"\",ROW(INDEX(ExtensionsTable[], MATCH($E234, INDEX(ExtensionsTable[], , _xlpm.col), 0), 1))-ROW(ExtensionsTable[[#Headers],[Gene Expression ]])),\nIF(OR(_xlpm.col=\"\",_xlpm.row=\"\"),\"\",INDEX(SuffixesTable[], _xlpm.row, _xlpm.col)))","v":""}]
[219,null,null,{"$f":"_xlfn.IFNA(_xlfn.TEXTJOIN(\"; \",TRUE,INDEX(ItemDescriptionsTable[#Data],,MATCH($C235, ItemDescriptionsTable[#Headers], 0))),\"\")","v":""},null,null,null,null,null,null,null,null,null,null,null,null,null,null,{"$f":"_xlfn.LET(_xlpm.col,IF(NOT(OR(IsEmpty($B235),IsEmpty($C235),IsEmpty($E235))),MATCH($C235,ExtensionsTable[#Headers],0),\"\"),\n_xlpm.row,IF(_xlpm.col=\"\",\"\",ROW(INDEX(ExtensionsTable[], MATCH($E235, INDEX(ExtensionsTable[], , _xlpm.col), 0), 1))-ROW(ExtensionsTable[[#Headers],[Gene Expression ]])),\nIF(OR(_xlpm.col=\"\",_xlpm.row=\"\"),\"\",INDEX(SuffixesTable[], _xlpm.row, _xlpm.col)))","v":""}]
[220,null,null,{"$f":"_xlfn.IFNA(_xlfn.TEXTJOIN(\"; \",TRUE,INDEX(ItemDescriptionsTable[#Data],,MATCH($C236, ItemDescriptionsTable[#Headers], 0))),\"\")","v":""},null,null,null,null,null,null,null,null,null,null,null,null,null,null,{"$f":"_xlfn.LET(_xlpm.col,IF(NOT(OR(IsEmpty($B236),IsEmpty($C236),IsEmpty($E236))),MATCH($C236,ExtensionsTable[#Headers],0),\"\"),\n_xlpm.row,IF(_xlpm.col=\"\",\"\",ROW(INDEX(ExtensionsTable[], MATCH($E236, INDEX(ExtensionsTable[], , _xlpm.col), 0), 1))-ROW(ExtensionsTable[[#Headers],[Gene Expression ]])),\nIF(OR(_xlpm.col=\"\",_xlpm.row=\"\"),\"\",INDEX(SuffixesTable[], _xlpm.row, _xlpm.col)))","v":""}]
[221,null,null,{"$f":"_xlfn.IFNA(_xlfn.TEXTJOIN(\"; \",TRUE,INDEX(ItemDescriptionsTable[#Data],,MATCH($C237, ItemDescriptionsTable[#Headers], 0))),\"\")","v":""},null,null,null,null,null,null,null,null,null,null,null,null,null,null,{"$f":"_xlfn.LET(_xlpm.col,IF(NOT(OR(IsEmpty($B237),IsEmpty($C237),IsEmpty($E237))),MATCH($C237,ExtensionsTable[#Headers],0),\"\"),\n_xlpm.row,IF(_xlpm.col=\"\",\"\",ROW(INDEX(ExtensionsTable[], MATCH($E237, INDEX(ExtensionsTable[], , _xlpm.col), 0), 1))-ROW(ExtensionsTable[[#Headers],[Gene Expression ]])),\nIF(OR(_xlpm.col=\"\",_xlpm.row=\"\"),\"\",INDEX(SuffixesTable[], _xlpm.row, _xlpm.col)))","v":""}]
[222,null,null,{"$f":"_xlfn.IFNA(_xlfn.TEXTJOIN(\"; \",TRUE,INDEX(ItemDescriptionsTable[#Data],,MATCH($C238, ItemDescriptionsTable[#Headers], 0))),\"\")","v":""},null,null,null,null,null,null,null,null,null,null,null,null,null,null,{"$f":"_xlfn.LET(_xlpm.col,IF(NOT(OR(IsEmpty($B238),IsEmpty($C238),IsEmpty($E238))),MATCH($C238,ExtensionsTable[#Headers],0),\"\"),\n_xlpm.row,IF(_xlpm.col=\"\",\"\",ROW(INDEX(ExtensionsTable[], MATCH($E238, INDEX(ExtensionsTable[], , _xlpm.col), 0), 1))-ROW(ExtensionsTable[[#Headers],[Gene Expression ]])),\nIF(OR(_xlpm.col=\"\",_xlpm.row=\"\"),\"\",INDEX(SuffixesTable[], _xlpm.row, _xlpm.col)))","v":""}]
[223,null,null,{"$f":"_xlfn.IFNA(_xlfn.TEXTJOIN(\"; \",TRUE,INDEX(ItemDescriptionsTable[#Data],,MATCH($C239, ItemDescriptionsTable[#Headers], 0))),\"\")","v":""},null,null,null,null,null,null,null,null,null,null,null,null,null,null,{"$f":"_xlfn.LET(_xlpm.col,IF(NOT(OR(IsEmpty($B239),IsEmpty($C239),IsEmpty($E239))),MATCH($C239,ExtensionsTable[#Headers],0),\"\"),\n_xlpm.row,IF(_xlpm.col=\"\",\"\",ROW(INDEX(ExtensionsTable[], MATCH($E239, INDEX(ExtensionsTable[], , _xlpm.col), 0), 1))-ROW(ExtensionsTable[[#Headers],[Gene Expression ]])),\nIF(OR(_xlpm.col=\"\",_xlpm.row=\"\"),\"\",INDEX(SuffixesTable[], _xlpm.row, _xlpm.col)))","v":""}]
[224,null,null,{"$f":"_xlfn.IFNA(_xlfn.TEXTJOIN(\"; \",TRUE,INDEX(ItemDescriptionsTable[#Data],,MATCH($C240, ItemDescriptionsTable[#Headers], 0))),\"\")","v":""},null,null,null,null,null,null,null,null,null,null,null,null,null,null,{"$f":"_xlfn.LET(_xlpm.col,IF(NOT(OR(IsEmpty($B240),IsEmpty($C240),IsEmpty($E240))),MATCH($C240,ExtensionsTable[#Headers],0),\"\"),\n_xlpm.row,IF(_xlpm.col=\"\",\"\",ROW(INDEX(ExtensionsTable[], MATCH($E240, INDEX(ExtensionsTable[], , _xlpm.col), 0), 1))-ROW(ExtensionsTable[[#Headers],[Gene Expression ]])),\nIF(OR(_xlpm.col=\"\",_xlpm.row=\"\"),\"\",INDEX(SuffixesTable[], _xlpm.row, _xlpm.col)))","v":""}]
[225,null,null,{"$f":"_xlfn.IFNA(_xlfn.TEXTJOIN(\"; \",TRUE,INDEX(ItemDescriptionsTable[#Data],,MATCH($C241, ItemDescriptionsTable[#Headers], 0))),\"\")","v":""},null,null,null,null,null,null,null,null,null,null,null,null,null,null,{"$f":"_xlfn.LET(_xlpm.col,IF(NOT(OR(IsEmpty($B241),IsEmpty($C241),IsEmpty($E241))),MATCH($C241,ExtensionsTable[#Headers],0),\"\"),\n_xlpm.row,IF(_xlpm.col=\"\",\"\",ROW(INDEX(ExtensionsTable[], MATCH($E241, INDEX(ExtensionsTable[], , _xlpm.col), 0), 1))-ROW(ExtensionsTable[[#Headers],[Gene Expression ]])),\nIF(OR(_xlpm.col=\"\",_xlpm.row=\"\"),\"\",INDEX(SuffixesTable[], _xlpm.row, _xlpm.col)))","v":""}]
[226,null,null,{"$f":"_xlfn.IFNA(_xlfn.TEXTJOIN(\"; \",TRUE,INDEX(ItemDescriptionsTable[#Data],,MATCH($C242, ItemDescriptionsTable[#Headers], 0))),\"\")","v":""},null,null,null,null,null,null,null,null,null,null,null,null,null,null,{"$f":"_xlfn.LET(_xlpm.col,IF(NOT(OR(IsEmpty($B242),IsEmpty($C242),IsEmpty($E242))),MATCH($C242,ExtensionsTable[#Headers],0),\"\"),\n_xlpm.row,IF(_xlpm.col=\"\",\"\",ROW(INDEX(ExtensionsTable[], MATCH($E242, INDEX(ExtensionsTable[], , _xlpm.col), 0), 1))-ROW(ExtensionsTable[[#Headers],[Gene Expression ]])),\nIF(OR(_xlpm.col=\"\",_xlpm.row=\"\"),\"\",INDEX(SuffixesTable[], _xlpm.row, _xlpm.col)))","v":""}]
[227,null,null,{"$f":"_xlfn.IFNA(_xlfn.TEXTJOIN(\"; \",TRUE,INDEX(ItemDescriptionsTable[#Data],,MATCH($C243, ItemDescriptionsTable[#Headers], 0))),\"\")","v":""},null,null,null,null,null,null,null,null,null,null,null,null,null,null,{"$f":"_xlfn.LET(_xlpm.col,IF(NOT(OR(IsEmpty($B243),IsEmpty($C243),IsEmpty($E243))),MATCH($C243,ExtensionsTable[#Headers],0),\"\"),\n_xlpm.row,IF(_xlpm.col=\"\",\"\",ROW(INDEX(ExtensionsTable[], MATCH($E243, INDEX(ExtensionsTable[], , _xlpm.col), 0), 1))-ROW(ExtensionsTable[[#Headers],[Gene Expression ]])),\nIF(OR(_xlpm.col=\"\",_xlpm.row=\"\"),\"\",INDEX(SuffixesTable[], _xlpm.row, _xlpm.col)))","v":""}]
[228,null,null,{"$f":"_xlfn.IFNA(_xlfn.TEXTJOIN(\"; \",TRUE,INDEX(ItemDescriptionsTable[#Data],,MATCH($C244, ItemDescriptionsTable[#Headers], 0))),\"\")","v":""},null,null,null,null,null,null,null,null,null,null,null,null,null,null,{"$f":"_xlfn.LET(_xlpm.col,IF(NOT(OR(IsEmpty($B244),IsEmpty($C244),IsEmpty($E244))),MATCH($C244,ExtensionsTable[#Headers],0),\"\"),\n_xlpm.row,IF(_xlpm.col=\"\",\"\",ROW(INDEX(ExtensionsTable[], MATCH($E244, INDEX(ExtensionsTable[], , _xlpm.col), 0), 1))-ROW(ExtensionsTable[[#Headers],[Gene Expression ]])),\nIF(OR(_xlpm.col=\"\",_xlpm.row=\"\"),\"\",INDEX(SuffixesTable[], _xlpm.row, _xlpm.col)))","v":""}]
[229,null,null,{"$f":"_xlfn.IFNA(_xlfn.TEXTJOIN(\"; \",TRUE,INDEX(ItemDescriptionsTable[#Data],,MATCH($C245, ItemDescriptionsTable[#Headers], 0))),\"\")","v":""},null,null,null,null,null,null,null,null,null,null,null,null,null,null,{"$f":"_xlfn.LET(_xlpm.col,IF(NOT(OR(IsEmpty($B245),IsEmpty($C245),IsEmpty($E245))),MATCH($C245,ExtensionsTable[#Headers],0),\"\"),\n_xlpm.row,IF(_xlpm.col=\"\",\"\",ROW(INDEX(ExtensionsTable[], MATCH($E245, INDEX(ExtensionsTable[], , _xlpm.col), 0), 1))-ROW(ExtensionsTable[[#Headers],[Gene Expression ]])),\nIF(OR(_xlpm.col=\"\",_xlpm.row=\"\"),\"\",INDEX(SuffixesTable[], _xlpm.row, _xlpm.col)))","v":""}]
[230,null,null,{"$f":"_xlfn.IFNA(_xlfn.TEXTJOIN(\"; \",TRUE,INDEX(ItemDescriptionsTable[#Data],,MATCH($C246, ItemDescriptionsTable[#Headers], 0))),\"\")","v":""},null,null,null,null,null,null,null,null,null,null,null,null,null,null,{"$f":"_xlfn.LET(_xlpm.col,IF(NOT(OR(IsEmpty($B246),IsEmpty($C246),IsEmpty($E246))),MATCH($C246,ExtensionsTable[#Headers],0),\"\"),\n_xlpm.row,IF(_xlpm.col=\"\",\"\",ROW(INDEX(ExtensionsTable[], MATCH($E246, INDEX(ExtensionsTable[], , _xlpm.col), 0), 1))-ROW(ExtensionsTable[[#Headers],[Gene Expression ]])),\nIF(OR(_xlpm.col=\"\",_xlpm.row=\"\"),\"\",INDEX(SuffixesTable[], _xlpm.row, _xlpm.col)))","v":""}]
[231,null,null,{"$f":"_xlfn.IFNA(_xlfn.TEXTJOIN(\"; \",TRUE,INDEX(ItemDescriptionsTable[#Data],,MATCH($C247, ItemDescriptionsTable[#Headers], 0))),\"\")","v":""},null,null,null,null,null,null,null,null,null,null,null,null,null,null,{"$f":"_xlfn.LET(_xlpm.col,IF(NOT(OR(IsEmpty($B247),IsEmpty($C247),IsEmpty($E247))),MATCH($C247,ExtensionsTable[#Headers],0),\"\"),\n_xlpm.row,IF(_xlpm.col=\"\",\"\",ROW(INDEX(ExtensionsTable[], MATCH($E247, INDEX(ExtensionsTable[], , _xlpm.col), 0), 1))-ROW(ExtensionsTable[[#Headers],[Gene Expression ]])),\nIF(OR(_xlpm.col=\"\",_xlpm.row=\"\"),\"\",INDEX(SuffixesTable[], _xlpm.row, _xlpm.col)))","v":""}]
[232,null,null,{"$f":"_xlfn.IFNA(_xlfn.TEXTJOIN(\"; \",TRUE,INDEX(ItemDescriptionsTable[#Data],,MATCH($C248, ItemDescriptionsTable[#Headers], 0))),\"\")","v":""},null,null,null,null,null,null,null,null,null,null,null,null,null,null,{"$f":"_xlfn.LET(_xlpm.col,IF(NOT(OR(IsEmpty($B248),IsEmpty($C248),IsEmpty($E248))),MATCH($C248,ExtensionsTable[#Headers],0),\"\"),\n_xlpm.row,IF(_xlpm.col=\"\",\"\",ROW(INDEX(ExtensionsTable[], MATCH($E248, INDEX(ExtensionsTable[], , _xlpm.col), 0), 1))-ROW(ExtensionsTable[[#Headers],[Gene Expression ]])),\nIF(OR(_xlpm.col=\"\",_xlpm.row=\"\"),\"\",INDEX(SuffixesTable[], _xlpm.row, _xlpm.col)))","v":""}]
[233,null,null,{"$f":"_xlfn.IFNA(_xlfn.TEXTJOIN(\"; \",TRUE,INDEX(ItemDescriptionsTable[#Data],,MATCH($C249, ItemDescriptionsTable[#Headers], 0))),\"\")","v":""},null,null,null,null,null,null,null,null,null,null,null,null,null,null,{"$f":"_xlfn.LET(_xlpm.col,IF(NOT(OR(IsEmpty($B249),IsEmpty($C249),IsEmpty($E249))),MATCH($C249,ExtensionsTable[#Headers],0),\"\"),\n_xlpm.row,IF(_xlpm.col=\"\",\"\",ROW(INDEX(ExtensionsTable[], MATCH($E249, INDEX(ExtensionsTable[], , _xlpm.col), 0), 1))-ROW(ExtensionsTable[[#Headers],[Gene Expression ]])),\nIF(OR(_xlpm.col=\"\",_xlpm.row=\"\"),\"\",INDEX(SuffixesTable[], _xlpm.row, _xlpm.col)))","v":""}]
[234,null,null,{"$f":"_xlfn.IFNA(_xlfn.TEXTJOIN(\"; \",TRUE,INDEX(ItemDescriptionsTable[#Data],,MATCH($C250, ItemDescriptionsTable[#Headers], 0))),\"\")","v":""},null,null,null,null,null,null,null,null,null,null,null,null,null,null,{"$f":"_xlfn.LET(_xlpm.col,IF(NOT(OR(IsEmpty($B250),IsEmpty($C250),IsEmpty($E250))),MATCH($C250,ExtensionsTable[#Headers],0),\"\"),\n_xlpm.row,IF(_xlpm.col=\"\",\"\",ROW(INDEX(ExtensionsTable[], MATCH($E250, INDEX(ExtensionsTable[], , _xlpm.col), 0), 1))-ROW(ExtensionsTable[[#Headers],[Gene Expression ]])),\nIF(OR(_xlpm.col=\"\",_xlpm.row=\"\"),\"\",INDEX(SuffixesTable[], _xlpm.row, _xlpm.col)))","v":""}]
[235,null,null,{"$f":"_xlfn.IFNA(_xlfn.TEXTJOIN(\"; \",TRUE,INDEX(ItemDescriptionsTable[#Data],,MATCH($C251, ItemDescriptionsTable[#Headers], 0))),\"\")","v":""},null,null,null,null,null,null,null,null,null,null,null,null,null,null,{"$f":"_xlfn.LET(_xlpm.col,IF(NOT(OR(IsEmpty($B251),IsEmpty($C251),IsEmpty($E251))),MATCH($C251,ExtensionsTable[#Headers],0),\"\"),\n_xlpm.row,IF(_xlpm.col=\"\",\"\",ROW(INDEX(ExtensionsTable[], MATCH($E251, INDEX(ExtensionsTable[], , _xlpm.col), 0), 1))-ROW(ExtensionsTable[[#Headers],[Gene Expression ]])),\nIF(OR(_xlpm.col=\"\",_xlpm.row=\"\"),\"\",INDEX(SuffixesTable[], _xlpm.row, _xlpm.col)))","v":""}]
[236,null,null,{"$f":"_xlfn.IFNA(_xlfn.TEXTJOIN(\"; \",TRUE,INDEX(ItemDescriptionsTable[#Data],,MATCH($C252, ItemDescriptionsTable[#Headers], 0))),\"\")","v":""},null,null,null,null,null,null,null,null,null,null,null,null,null,null,{"$f":"_xlfn.LET(_xlpm.col,IF(NOT(OR(IsEmpty($B252),IsEmpty($C252),IsEmpty($E252))),MATCH($C252,ExtensionsTable[#Headers],0),\"\"),\n_xlpm.row,IF(_xlpm.col=\"\",\"\",ROW(INDEX(ExtensionsTable[], MATCH($E252, INDEX(ExtensionsTable[], , _xlpm.col), 0), 1))-ROW(ExtensionsTable[[#Headers],[Gene Expression ]])),\nIF(OR(_xlpm.col=\"\",_xlpm.row=\"\"),\"\",INDEX(SuffixesTable[], _xlpm.row, _xlpm.col)))","v":""}]
[237,null,null,{"$f":"_xlfn.IFNA(_xlfn.TEXTJOIN(\"; \",TRUE,INDEX(ItemDescriptionsTable[#Data],,MATCH($C253, ItemDescriptionsTable[#Headers], 0))),\"\")","v":""},null,null,null,null,null,null,null,null,null,null,null,null,null,null,{"$f":"_xlfn.LET(_xlpm.col,IF(NOT(OR(IsEmpty($B253),IsEmpty($C253),IsEmpty($E253))),MATCH($C253,ExtensionsTable[#Headers],0),\"\"),\n_xlpm.row,IF(_xlpm.col=\"\",\"\",ROW(INDEX(ExtensionsTable[], MATCH($E253, INDEX(ExtensionsTable[], , _xlpm.col), 0), 1))-ROW(ExtensionsTable[[#Headers],[Gene Expression ]])),\nIF(OR(_xlpm.col=\"\",_xlpm.row=\"\"),\"\",INDEX(SuffixesTable[], _xlpm.row, _xlpm.col)))","v":""}]
[238,null,null,{"$f":"_xlfn.IFNA(_xlfn.TEXTJOIN(\"; \",TRUE,INDEX(ItemDescriptionsTable[#Data],,MATCH($C254, ItemDescriptionsTable[#Headers], 0))),\"\")","v":""},null,null,null,null,null,null,null,null,null,null,null,null,null,null,{"$f":"_xlfn.LET(_xlpm.col,IF(NOT(OR(IsEmpty($B254),IsEmpty($C254),IsEmpty($E254))),MATCH($C254,ExtensionsTable[#Headers],0),\"\"),\n_xlpm.row,IF(_xlpm.col=\"\",\"\",ROW(INDEX(ExtensionsTable[], MATCH($E254, INDEX(ExtensionsTable[], , _xlpm.col), 0), 1))-ROW(ExtensionsTable[[#Headers],[Gene Expression ]])),\nIF(OR(_xlpm.col=\"\",_xlpm.row=\"\"),\"\",INDEX(SuffixesTable[], _xlpm.row, _xlpm.col)))","v":""}]
[239,null,null,{"$f":"_xlfn.IFNA(_xlfn.TEXTJOIN(\"; \",TRUE,INDEX(ItemDescriptionsTable[#Data],,MATCH($C255, ItemDescriptionsTable[#Headers], 0))),\"\")","v":""},null,null,null,null,null,null,null,null,null,null,null,null,null,null,{"$f":"_xlfn.LET(_xlpm.col,IF(NOT(OR(IsEmpty($B255),IsEmpty($C255),IsEmpty($E255))),MATCH($C255,ExtensionsTable[#Headers],0),\"\"),\n_xlpm.row,IF(_xlpm.col=\"\",\"\",ROW(INDEX(ExtensionsTable[], MATCH($E255, INDEX(ExtensionsTable[], , _xlpm.col), 0), 1))-ROW(ExtensionsTable[[#Headers],[Gene Expression ]])),\nIF(OR(_xlpm.col=\"\",_xlpm.row=\"\"),\"\",INDEX(SuffixesTable[], _xlpm.row, _xlpm.col)))","v":""}]
[240,null,null,{"$f":"_xlfn.IFNA(_xlfn.TEXTJOIN(\"; \",TRUE,INDEX(ItemDescriptionsTable[#Data],,MATCH($C256, ItemDescriptionsTable[#Headers], 0))),\"\")","v":""},null,null,null,null,null,null,null,null,null,null,null,null,null,null,{"$f":"_xlfn.LET(_xlpm.col,IF(NOT(OR(IsEmpty($B256),IsEmpty($C256),IsEmpty($E256))),MATCH($C256,ExtensionsTable[#Headers],0),\"\"),\n_xlpm.row,IF(_xlpm.col=\"\",\"\",ROW(INDEX(ExtensionsTable[], MATCH($E256, INDEX(ExtensionsTable[], , _xlpm.col), 0), 1))-ROW(ExtensionsTable[[#Headers],[Gene Expression ]])),\nIF(OR(_xlpm.col=\"\",_xlpm.row=\"\"),\"\",INDEX(SuffixesTable[], _xlpm.row, _xlpm.col)))","v":""}]
[241,null,null,{"$f":"_xlfn.IFNA(_xlfn.TEXTJOIN(\"; \",TRUE,INDEX(ItemDescriptionsTable[#Data],,MATCH($C257, ItemDescriptionsTable[#Headers], 0))),\"\")","v":""},null,null,null,null,null,null,null,null,null,null,null,null,null,null,{"$f":"_xlfn.LET(_xlpm.col,IF(NOT(OR(IsEmpty($B257),IsEmpty($C257),IsEmpty($E257))),MATCH($C257,ExtensionsTable[#Headers],0),\"\"),\n_xlpm.row,IF(_xlpm.col=\"\",\"\",ROW(INDEX(ExtensionsTable[], MATCH($E257, INDEX(ExtensionsTable[], , _xlpm.col), 0), 1))-ROW(ExtensionsTable[[#Headers],[Gene Expression ]])),\nIF(OR(_xlpm.col=\"\",_xlpm.row=\"\"),\"\",INDEX(SuffixesTable[], _xlpm.row, _xlpm.col)))","v":""}]
[242,null,null,{"$f":"_xlfn.IFNA(_xlfn.TEXTJOIN(\"; \",TRUE,INDEX(ItemDescriptionsTable[#Data],,MATCH($C258, ItemDescriptionsTable[#Headers], 0))),\"\")","v":""},null,null,null,null,null,null,null,null,null,null,null,null,null,null,{"$f":"_xlfn.LET(_xlpm.col,IF(NOT(OR(IsEmpty($B258),IsEmpty($C258),IsEmpty($E258))),MATCH($C258,ExtensionsTable[#Headers],0),\"\"),\n_xlpm.row,IF(_xlpm.col=\"\",\"\",ROW(INDEX(ExtensionsTable[], MATCH($E258, INDEX(ExtensionsTable[], , _xlpm.col), 0), 1))-ROW(ExtensionsTable[[#Headers],[Gene Expression ]])),\nIF(OR(_xlpm.col=\"\",_xlpm.row=\"\"),\"\",INDEX(SuffixesTable[], _xlpm.row, _xlpm.col)))","v":""}]
[243,null,null,{"$f":"_xlfn.IFNA(_xlfn.TEXTJOIN(\"; \",TRUE,INDEX(ItemDescriptionsTable[#Data],,MATCH($C259, ItemDescriptionsTable[#Headers], 0))),\"\")","v":""},null,null,null,null,null,null,null,null,null,null,null,null,null,null,{"$f":"_xlfn.LET(_xlpm.col,IF(NOT(OR(IsEmpty($B259),IsEmpty($C259),IsEmpty($E259))),MATCH($C259,ExtensionsTable[#Headers],0),\"\"),\n_xlpm.row,IF(_xlpm.col=\"\",\"\",ROW(INDEX(ExtensionsTable[], MATCH($E259, INDEX(ExtensionsTable[], , _xlpm.col), 0), 1))-ROW(ExtensionsTable[[#Headers],[Gene Expression ]])),\nIF(OR(_xlpm.col=\"\",_xlpm.row=\"\"),\"\",INDEX(SuffixesTable[], _xlpm.row, _xlpm.col)))","v":""}]
[244,null,null,{"$f":"_xlfn.IFNA(_xlfn.TEXTJOIN(\"; \",TRUE,INDEX(ItemDescriptionsTable[#Data],,MATCH($C260, ItemDescriptionsTable[#Headers], 0))),\"\")","v":""},null,null,null,null,null,null,null,null,null,null,null,null,null,null,{"$f":"_xlfn.LET(_xlpm.col,IF(NOT(OR(IsEmpty($B260),IsEmpty($C260),IsEmpty($E260))),MATCH($C260,ExtensionsTable[#Headers],0),\"\"),\n_xlpm.row,IF(_xlpm.col=\"\",\"\",ROW(INDEX(ExtensionsTable[], MATCH($E260, INDEX(ExtensionsTable[], , _xlpm.col), 0), 1))-ROW(ExtensionsTable[[#Headers],[Gene Expression ]])),\nIF(OR(_xlpm.col=\"\",_xlpm.row=\"\"),\"\",INDEX(SuffixesTable[], _xlpm.row, _xlpm.col)))","v":""}]
[245,null,null,{"$f":"_xlfn.IFNA(_xlfn.TEXTJOIN(\"; \",TRUE,INDEX(ItemDescriptionsTable[#Data],,MATCH($C261, ItemDescriptionsTable[#Headers], 0))),\"\")","v":""},null,null,null,null,null,null,null,null,null,null,null,null,null,null,{"$f":"_xlfn.LET(_xlpm.col,IF(NOT(OR(IsEmpty($B261),IsEmpty($C261),IsEmpty($E261))),MATCH($C261,ExtensionsTable[#Headers],0),\"\"),\n_xlpm.row,IF(_xlpm.col=\"\",\"\",ROW(INDEX(ExtensionsTable[], MATCH($E261, INDEX(ExtensionsTable[], , _xlpm.col), 0), 1))-ROW(ExtensionsTable[[#Headers],[Gene Expression ]])),\nIF(OR(_xlpm.col=\"\",_xlpm.row=\"\"),\"\",INDEX(SuffixesTable[], _xlpm.row, _xlpm.col)))","v":""}]
[246,null,null,{"$f":"_xlfn.IFNA(_xlfn.TEXTJOIN(\"; \",TRUE,INDEX(ItemDescriptionsTable[#Data],,MATCH($C262, ItemDescriptionsTable[#Headers], 0))),\"\")","v":""},null,null,null,null,null,null,null,null,null,null,null,null,null,null,{"$f":"_xlfn.LET(_xlpm.col,IF(NOT(OR(IsEmpty($B262),IsEmpty($C262),IsEmpty($E262))),MATCH($C262,ExtensionsTable[#Headers],0),\"\"),\n_xlpm.row,IF(_xlpm.col=\"\",\"\",ROW(INDEX(ExtensionsTable[], MATCH($E262, INDEX(ExtensionsTable[], , _xlpm.col), 0), 1))-ROW(ExtensionsTable[[#Headers],[Gene Expression ]])),\nIF(OR(_xlpm.col=\"\",_xlpm.row=\"\"),\"\",INDEX(SuffixesTable[], _xlpm.row, _xlpm.col)))","v":""}]
[247,null,null,{"$f":"_xlfn.IFNA(_xlfn.TEXTJOIN(\"; \",TRUE,INDEX(ItemDescriptionsTable[#Data],,MATCH($C263, ItemDescriptionsTable[#Headers], 0))),\"\")","v":""},null,null,null,null,null,null,null,null,null,null,null,null,null,null,{"$f":"_xlfn.LET(_xlpm.col,IF(NOT(OR(IsEmpty($B263),IsEmpty($C263),IsEmpty($E263))),MATCH($C263,ExtensionsTable[#Headers],0),\"\"),\n_xlpm.row,IF(_xlpm.col=\"\",\"\",ROW(INDEX(ExtensionsTable[], MATCH($E263, INDEX(ExtensionsTable[], , _xlpm.col), 0), 1))-ROW(ExtensionsTable[[#Headers],[Gene Expression ]])),\nIF(OR(_xlpm.col=\"\",_xlpm.row=\"\"),\"\",INDEX(SuffixesTable[], _xlpm.row, _xlpm.col)))","v":""}]
[248,null,null,{"$f":"_xlfn.IFNA(_xlfn.TEXTJOIN(\"; \",TRUE,INDEX(ItemDescriptionsTable[#Data],,MATCH($C264, ItemDescriptionsTable[#Headers], 0))),\"\")","v":""},null,null,null,null,null,null,null,null,null,null,null,null,null,null,{"$f":"_xlfn.LET(_xlpm.col,IF(NOT(OR(IsEmpty($B264),IsEmpty($C264),IsEmpty($E264))),MATCH($C264,ExtensionsTable[#Headers],0),\"\"),\n_xlpm.row,IF(_xlpm.col=\"\",\"\",ROW(INDEX(ExtensionsTable[], MATCH($E264, INDEX(ExtensionsTable[], , _xlpm.col), 0), 1))-ROW(ExtensionsTable[[#Headers],[Gene Expression ]])),\nIF(OR(_xlpm.col=\"\",_xlpm.row=\"\"),\"\",INDEX(SuffixesTable[], _xlpm.row, _xlpm.col)))","v":""}]
[249,null,null,{"$f":"_xlfn.IFNA(_xlfn.TEXTJOIN(\"; \",TRUE,INDEX(ItemDescriptionsTable[#Data],,MATCH($C265, ItemDescriptionsTable[#Headers], 0))),\"\")","v":""},null,null,null,null,null,null,null,null,null,null,null,null,null,null,{"$f":"_xlfn.LET(_xlpm.col,IF(NOT(OR(IsEmpty($B265),IsEmpty($C265),IsEmpty($E265))),MATCH($C265,ExtensionsTable[#Headers],0),\"\"),\n_xlpm.row,IF(_xlpm.col=\"\",\"\",ROW(INDEX(ExtensionsTable[], MATCH($E265, INDEX(ExtensionsTable[], , _xlpm.col), 0), 1))-ROW(ExtensionsTable[[#Headers],[Gene Expression ]])),\nIF(OR(_xlpm.col=\"\",_xlpm.row=\"\"),\"\",INDEX(SuffixesTable[], _xlpm.row, _xlpm.col)))","v":""}]
[250,null,null,{"$f":"_xlfn.IFNA(_xlfn.TEXTJOIN(\"; \",TRUE,INDEX(ItemDescriptionsTable[#Data],,MATCH($C266, ItemDescriptionsTable[#Headers], 0))),\"\")","v":""},null,null,null,null,null,null,null,null,null,null,null,null,null,null,{"$f":"_xlfn.LET(_xlpm.col,IF(NOT(OR(IsEmpty($B266),IsEmpty($C266),IsEmpty($E266))),MATCH($C266,ExtensionsTable[#Headers],0),\"\"),\n_xlpm.row,IF(_xlpm.col=\"\",\"\",ROW(INDEX(ExtensionsTable[], MATCH($E266, INDEX(ExtensionsTable[], , _xlpm.col), 0), 1))-ROW(ExtensionsTable[[#Headers],[Gene Expression ]])),\nIF(OR(_xlpm.col=\"\",_xlpm.row=\"\"),\"\",INDEX(SuffixesTable[], _xlpm.row, _xlpm.col)))","v":""}]
[251,null,null,{"$f":"_xlfn.IFNA(_xlfn.TEXTJOIN(\"; \",TRUE,INDEX(ItemDescriptionsTable[#Data],,MATCH($C267, ItemDescriptionsTable[#Headers], 0))),\"\")","v":""},null,null,null,null,null,null,null,null,null,null,null,null,null,null,{"$f":"_xlfn.LET(_xlpm.col,IF(NOT(OR(IsEmpty($B267),IsEmpty($C267),IsEmpty($E267))),MATCH($C267,ExtensionsTable[#Headers],0),\"\"),\n_xlpm.row,IF(_xlpm.col=\"\",\"\",ROW(INDEX(ExtensionsTable[], MATCH($E267, INDEX(ExtensionsTable[], , _xlpm.col), 0), 1))-ROW(ExtensionsTable[[#Headers],[Gene Expression ]])),\nIF(OR(_xlpm.col=\"\",_xlpm.row=\"\"),\"\",INDEX(SuffixesTable[], _xlpm.row, _xlpm.col)))","v":""}]
[252,null,null,{"$f":"_xlfn.IFNA(_xlfn.TEXTJOIN(\"; \",TRUE,INDEX(ItemDescriptionsTable[#Data],,MATCH($C268, ItemDescriptionsTable[#Headers], 0))),\"\")","v":""},null,null,null,null,null,null,null,null,null,null,null,null,null,null,{"$f":"_xlfn.LET(_xlpm.col,IF(NOT(OR(IsEmpty($B268),IsEmpty($C268),IsEmpty($E268))),MATCH($C268,ExtensionsTable[#Headers],0),\"\"),\n_xlpm.row,IF(_xlpm.col=\"\",\"\",ROW(INDEX(ExtensionsTable[], MATCH($E268, INDEX(ExtensionsTable[], , _xlpm.col), 0), 1))-ROW(ExtensionsTable[[#Headers],[Gene Expression ]])),\nIF(OR(_xlpm.col=\"\",_xlpm.row=\"\"),\"\",INDEX(SuffixesTable[], _xlpm.row, _xlpm.col)))","v":""}]
[253,null,null,{"$f":"_xlfn.IFNA(_xlfn.TEXTJOIN(\"; \",TRUE,INDEX(ItemDescriptionsTable[#Data],,MATCH($C269, ItemDescriptionsTable[#Headers], 0))),\"\")","v":""},null,null,null,null,null,null,null,null,null,null,null,null,null,null,{"$f":"_xlfn.LET(_xlpm.col,IF(NOT(OR(IsEmpty($B269),IsEmpty($C269),IsEmpty($E269))),MATCH($C269,ExtensionsTable[#Headers],0),\"\"),\n_xlpm.row,IF(_xlpm.col=\"\",\"\",ROW(INDEX(ExtensionsTable[], MATCH($E269, INDEX(ExtensionsTable[], , _xlpm.col), 0), 1))-ROW(ExtensionsTable[[#Headers],[Gene Expression ]])),\nIF(OR(_xlpm.col=\"\",_xlpm.row=\"\"),\"\",INDEX(SuffixesTable[], _xlpm.row, _xlpm.col)))","v":""}]
[254,null,null,{"$f":"_xlfn.IFNA(_xlfn.TEXTJOIN(\"; \",TRUE,INDEX(ItemDescriptionsTable[#Data],,MATCH($C270, ItemDescriptionsTable[#Headers], 0))),\"\")","v":""},null,null,null,null,null,null,null,null,null,null,null,null,null,null,{"$f":"_xlfn.LET(_xlpm.col,IF(NOT(OR(IsEmpty($B270),IsEmpty($C270),IsEmpty($E270))),MATCH($C270,ExtensionsTable[#Headers],0),\"\"),\n_xlpm.row,IF(_xlpm.col=\"\",\"\",ROW(INDEX(ExtensionsTable[], MATCH($E270, INDEX(ExtensionsTable[], , _xlpm.col), 0), 1))-ROW(ExtensionsTable[[#Headers],[Gene Expression ]])),\nIF(OR(_xlpm.col=\"\",_xlpm.row=\"\"),\"\",INDEX(SuffixesTable[], _xlpm.row, _xlpm.col)))","v":""}]
[255,null,null,{"$f":"_xlfn.IFNA(_xlfn.TEXTJOIN(\"; \",TRUE,INDEX(ItemDescriptionsTable[#Data],,MATCH($C271, ItemDescriptionsTable[#Headers], 0))),\"\")","v":""},null,null,null,null,null,null,null,null,null,null,null,null,null,null,{"$f":"_xlfn.LET(_xlpm.col,IF(NOT(OR(IsEmpty($B271),IsEmpty($C271),IsEmpty($E271))),MATCH($C271,ExtensionsTable[#Headers],0),\"\"),\n_xlpm.row,IF(_xlpm.col=\"\",\"\",ROW(INDEX(ExtensionsTable[], MATCH($E271, INDEX(ExtensionsTable[], , _xlpm.col), 0), 1))-ROW(ExtensionsTable[[#Headers],[Gene Expression ]])),\nIF(OR(_xlpm.col=\"\",_xlpm.row=\"\"),\"\",INDEX(SuffixesTable[], _xlpm.row, _xlpm.col)))","v":""}]
[256,null,null,{"$f":"_xlfn.IFNA(_xlfn.TEXTJOIN(\"; \",TRUE,INDEX(ItemDescriptionsTable[#Data],,MATCH($C272, ItemDescriptionsTable[#Headers], 0))),\"\")","v":""},null,null,null,null,null,null,null,null,null,null,null,null,null,null,{"$f":"_xlfn.LET(_xlpm.col,IF(NOT(OR(IsEmpty($B272),IsEmpty($C272),IsEmpty($E272))),MATCH($C272,ExtensionsTable[#Headers],0),\"\"),\n_xlpm.row,IF(_xlpm.col=\"\",\"\",ROW(INDEX(ExtensionsTable[], MATCH($E272, INDEX(ExtensionsTable[], , _xlpm.col), 0), 1))-ROW(ExtensionsTable[[#Headers],[Gene Expression ]])),\nIF(OR(_xlpm.col=\"\",_xlpm.row=\"\"),\"\",INDEX(SuffixesTable[], _xlpm.row, _xlpm.col)))","v":""}]
[257,null,null,{"$f":"_xlfn.IFNA(_xlfn.TEXTJOIN(\"; \",TRUE,INDEX(ItemDescriptionsTable[#Data],,MATCH($C273, ItemDescriptionsTable[#Headers], 0))),\"\")","v":""},null,null,null,null,null,null,null,null,null,null,null,null,null,null,{"$f":"_xlfn.LET(_xlpm.col,IF(NOT(OR(IsEmpty($B273),IsEmpty($C273),IsEmpty($E273))),MATCH($C273,ExtensionsTable[#Headers],0),\"\"),\n_xlpm.row,IF(_xlpm.col=\"\",\"\",ROW(INDEX(ExtensionsTable[], MATCH($E273, INDEX(ExtensionsTable[], , _xlpm.col), 0), 1))-ROW(ExtensionsTable[[#Headers],[Gene Expression ]])),\nIF(OR(_xlpm.col=\"\",_xlpm.row=\"\"),\"\",INDEX(SuffixesTable[], _xlpm.row, _xlpm.col)))","v":""}]
[258,null,null,{"$f":"_xlfn.IFNA(_xlfn.TEXTJOIN(\"; \",TRUE,INDEX(ItemDescriptionsTable[#Data],,MATCH($C274, ItemDescriptionsTable[#Headers], 0))),\"\")","v":""},null,null,null,null,null,null,null,null,null,null,null,null,null,null,{"$f":"_xlfn.LET(_xlpm.col,IF(NOT(OR(IsEmpty($B274),IsEmpty($C274),IsEmpty($E274))),MATCH($C274,ExtensionsTable[#Headers],0),\"\"),\n_xlpm.row,IF(_xlpm.col=\"\",\"\",ROW(INDEX(ExtensionsTable[], MATCH($E274, INDEX(ExtensionsTable[], , _xlpm.col), 0), 1))-ROW(ExtensionsTable[[#Headers],[Gene Expression ]])),\nIF(OR(_xlpm.col=\"\",_xlpm.row=\"\"),\"\",INDEX(SuffixesTable[], _xlpm.row, _xlpm.col)))","v":""}]
[259,null,null,{"$f":"_xlfn.IFNA(_xlfn.TEXTJOIN(\"; \",TRUE,INDEX(ItemDescriptionsTable[#Data],,MATCH($C275, ItemDescriptionsTable[#Headers], 0))),\"\")","v":""},null,null,null,null,null,null,null,null,null,null,null,null,null,null,{"$f":"_xlfn.LET(_xlpm.col,IF(NOT(OR(IsEmpty($B275),IsEmpty($C275),IsEmpty($E275))),MATCH($C275,ExtensionsTable[#Headers],0),\"\"),\n_xlpm.row,IF(_xlpm.col=\"\",\"\",ROW(INDEX(ExtensionsTable[], MATCH($E275, INDEX(ExtensionsTable[], , _xlpm.col), 0), 1))-ROW(ExtensionsTable[[#Headers],[Gene Expression ]])),\nIF(OR(_xlpm.col=\"\",_xlpm.row=\"\"),\"\",INDEX(SuffixesTable[], _xlpm.row, _xlpm.col)))","v":""}]
[260,null,null,{"$f":"_xlfn.IFNA(_xlfn.TEXTJOIN(\"; \",TRUE,INDEX(ItemDescriptionsTable[#Data],,MATCH($C276, ItemDescriptionsTable[#Headers], 0))),\"\")","v":""},null,null,null,null,null,null,null,null,null,null,null,null,null,null,{"$f":"_xlfn.LET(_xlpm.col,IF(NOT(OR(IsEmpty($B276),IsEmpty($C276),IsEmpty($E276))),MATCH($C276,ExtensionsTable[#Headers],0),\"\"),\n_xlpm.row,IF(_xlpm.col=\"\",\"\",ROW(INDEX(ExtensionsTable[], MATCH($E276, INDEX(ExtensionsTable[], , _xlpm.col), 0), 1))-ROW(ExtensionsTable[[#Headers],[Gene Expression ]])),\nIF(OR(_xlpm.col=\"\",_xlpm.row=\"\"),\"\",INDEX(SuffixesTable[], _xlpm.row, _xlpm.col)))","v":""}]
[261,null,null,{"$f":"_xlfn.IFNA(_xlfn.TEXTJOIN(\"; \",TRUE,INDEX(ItemDescriptionsTable[#Data],,MATCH($C277, ItemDescriptionsTable[#Headers], 0))),\"\")","v":""},null,null,null,null,null,null,null,null,null,null,null,null,null,null,{"$f":"_xlfn.LET(_xlpm.col,IF(NOT(OR(IsEmpty($B277),IsEmpty($C277),IsEmpty($E277))),MATCH($C277,ExtensionsTable[#Headers],0),\"\"),\n_xlpm.row,IF(_xlpm.col=\"\",\"\",ROW(INDEX(ExtensionsTable[], MATCH($E277, INDEX(ExtensionsTable[], , _xlpm.col), 0), 1))-ROW(ExtensionsTable[[#Headers],[Gene Expression ]])),\nIF(OR(_xlpm.col=\"\",_xlpm.row=\"\"),\"\",INDEX(SuffixesTable[], _xlpm.row, _xlpm.col)))","v":""}]
[262,null,null,{"$f":"_xlfn.IFNA(_xlfn.TEXTJOIN(\"; \",TRUE,INDEX(ItemDescriptionsTable[#Data],,MATCH($C278, ItemDescriptionsTable[#Headers], 0))),\"\")","v":""},null,null,null,null,null,null,null,null,null,null,null,null,null,null,{"$f":"_xlfn.LET(_xlpm.col,IF(NOT(OR(IsEmpty($B278),IsEmpty($C278),IsEmpty($E278))),MATCH($C278,ExtensionsTable[#Headers],0),\"\"),\n_xlpm.row,IF(_xlpm.col=\"\",\"\",ROW(INDEX(ExtensionsTable[], MATCH($E278, INDEX(ExtensionsTable[], , _xlpm.col), 0), 1))-ROW(ExtensionsTable[[#Headers],[Gene Expression ]])),\nIF(OR(_xlpm.col=\"\",_xlpm.row=\"\"),\"\",INDEX(SuffixesTable[], _xlpm.row, _xlpm.col)))","v":""}]
[263,null,null,{"$f":"_xlfn.IFNA(_xlfn.TEXTJOIN(\"; \",TRUE,INDEX(ItemDescriptionsTable[#Data],,MATCH($C279, ItemDescriptionsTable[#Headers], 0))),\"\")","v":""},null,null,null,null,null,null,null,null,null,null,null,null,null,null,{"$f":"_xlfn.LET(_xlpm.col,IF(NOT(OR(IsEmpty($B279),IsEmpty($C279),IsEmpty($E279))),MATCH($C279,ExtensionsTable[#Headers],0),\"\"),\n_xlpm.row,IF(_xlpm.col=\"\",\"\",ROW(INDEX(ExtensionsTable[], MATCH($E279, INDEX(ExtensionsTable[], , _xlpm.col), 0), 1))-ROW(ExtensionsTable[[#Headers],[Gene Expression ]])),\nIF(OR(_xlpm.col=\"\",_xlpm.row=\"\"),\"\",INDEX(SuffixesTable[], _xlpm.row, _xlpm.col)))","v":""}]
[264,null,null,{"$f":"_xlfn.IFNA(_xlfn.TEXTJOIN(\"; \",TRUE,INDEX(ItemDescriptionsTable[#Data],,MATCH($C280, ItemDescriptionsTable[#Headers], 0))),\"\")","v":""},null,null,null,null,null,null,null,null,null,null,null,null,null,null,{"$f":"_xlfn.LET(_xlpm.col,IF(NOT(OR(IsEmpty($B280),IsEmpty($C280),IsEmpty($E280))),MATCH($C280,ExtensionsTable[#Headers],0),\"\"),\n_xlpm.row,IF(_xlpm.col=\"\",\"\",ROW(INDEX(ExtensionsTable[], MATCH($E280, INDEX(ExtensionsTable[], , _xlpm.col), 0), 1))-ROW(ExtensionsTable[[#Headers],[Gene Expression ]])),\nIF(OR(_xlpm.col=\"\",_xlpm.row=\"\"),\"\",INDEX(SuffixesTable[], _xlpm.row, _xlpm.col)))","v":""}]
[265,null,null,{"$f":"_xlfn.IFNA(_xlfn.TEXTJOIN(\"; \",TRUE,INDEX(ItemDescriptionsTable[#Data],,MATCH($C281, ItemDescriptionsTable[#Headers], 0))),\"\")","v":""},null,null,null,null,null,null,null,null,null,null,null,null,null,null,{"$f":"_xlfn.LET(_xlpm.col,IF(NOT(OR(IsEmpty($B281),IsEmpty($C281),IsEmpty($E281))),MATCH($C281,ExtensionsTable[#Headers],0),\"\"),\n_xlpm.row,IF(_xlpm.col=\"\",\"\",ROW(INDEX(ExtensionsTable[], MATCH($E281, INDEX(ExtensionsTable[], , _xlpm.col), 0), 1))-ROW(ExtensionsTable[[#Headers],[Gene Expression ]])),\nIF(OR(_xlpm.col=\"\",_xlpm.row=\"\"),\"\",INDEX(SuffixesTable[], _xlpm.row, _xlpm.col)))","v":""}]
[266,null,null,{"$f":"_xlfn.IFNA(_xlfn.TEXTJOIN(\"; \",TRUE,INDEX(ItemDescriptionsTable[#Data],,MATCH($C282, ItemDescriptionsTable[#Headers], 0))),\"\")","v":""},null,null,null,null,null,null,null,null,null,null,null,null,null,null,{"$f":"_xlfn.LET(_xlpm.col,IF(NOT(OR(IsEmpty($B282),IsEmpty($C282),IsEmpty($E282))),MATCH($C282,ExtensionsTable[#Headers],0),\"\"),\n_xlpm.row,IF(_xlpm.col=\"\",\"\",ROW(INDEX(ExtensionsTable[], MATCH($E282, INDEX(ExtensionsTable[], , _xlpm.col), 0), 1))-ROW(ExtensionsTable[[#Headers],[Gene Expression ]])),\nIF(OR(_xlpm.col=\"\",_xlpm.row=\"\"),\"\",INDEX(SuffixesTable[], _xlpm.row, _xlpm.col)))","v":""}]
[267,null,null,{"$f":"_xlfn.IFNA(_xlfn.TEXTJOIN(\"; \",TRUE,INDEX(ItemDescriptionsTable[#Data],,MATCH($C283, ItemDescriptionsTable[#Headers], 0))),\"\")","v":""},null,null,null,null,null,null,null,null,null,null,null,null,null,null,{"$f":"_xlfn.LET(_xlpm.col,IF(NOT(OR(IsEmpty($B283),IsEmpty($C283),IsEmpty($E283))),MATCH($C283,ExtensionsTable[#Headers],0),\"\"),\n_xlpm.row,IF(_xlpm.col=\"\",\"\",ROW(INDEX(ExtensionsTable[], MATCH($E283, INDEX(ExtensionsTable[], , _xlpm.col), 0), 1))-ROW(ExtensionsTable[[#Headers],[Gene Expression ]])),\nIF(OR(_xlpm.col=\"\",_xlpm.row=\"\"),\"\",INDEX(SuffixesTable[], _xlpm.row, _xlpm.col)))","v":""}]
[268,null,null,{"$f":"_xlfn.IFNA(_xlfn.TEXTJOIN(\"; \",TRUE,INDEX(ItemDescriptionsTable[#Data],,MATCH($C284, ItemDescriptionsTable[#Headers], 0))),\"\")","v":""},null,null,null,null,null,null,null,null,null,null,null,null,null,null,{"$f":"_xlfn.LET(_xlpm.col,IF(NOT(OR(IsEmpty($B284),IsEmpty($C284),IsEmpty($E284))),MATCH($C284,ExtensionsTable[#Headers],0),\"\"),\n_xlpm.row,IF(_xlpm.col=\"\",\"\",ROW(INDEX(ExtensionsTable[], MATCH($E284, INDEX(ExtensionsTable[], , _xlpm.col), 0), 1))-ROW(ExtensionsTable[[#Headers],[Gene Expression ]])),\nIF(OR(_xlpm.col=\"\",_xlpm.row=\"\"),\"\",INDEX(SuffixesTable[], _xlpm.row, _xlpm.col)))","v":""}]
[269,null,null,{"$f":"_xlfn.IFNA(_xlfn.TEXTJOIN(\"; \",TRUE,INDEX(ItemDescriptionsTable[#Data],,MATCH($C285, ItemDescriptionsTable[#Headers], 0))),\"\")","v":""},null,null,null,null,null,null,null,null,null,null,null,null,null,null,{"$f":"_xlfn.LET(_xlpm.col,IF(NOT(OR(IsEmpty($B285),IsEmpty($C285),IsEmpty($E285))),MATCH($C285,ExtensionsTable[#Headers],0),\"\"),\n_xlpm.row,IF(_xlpm.col=\"\",\"\",ROW(INDEX(ExtensionsTable[], MATCH($E285, INDEX(ExtensionsTable[], , _xlpm.col), 0), 1))-ROW(ExtensionsTable[[#Headers],[Gene Expression ]])),\nIF(OR(_xlpm.col=\"\",_xlpm.row=\"\"),\"\",INDEX(SuffixesTable[], _xlpm.row, _xlpm.col)))","v":""}]
[270,null,null,{"$f":"_xlfn.IFNA(_xlfn.TEXTJOIN(\"; \",TRUE,INDEX(ItemDescriptionsTable[#Data],,MATCH($C286, ItemDescriptionsTable[#Headers], 0))),\"\")","v":""},null,null,null,null,null,null,null,null,null,null,null,null,null,null,{"$f":"_xlfn.LET(_xlpm.col,IF(NOT(OR(IsEmpty($B286),IsEmpty($C286),IsEmpty($E286))),MATCH($C286,ExtensionsTable[#Headers],0),\"\"),\n_xlpm.row,IF(_xlpm.col=\"\",\"\",ROW(INDEX(ExtensionsTable[], MATCH($E286, INDEX(ExtensionsTable[], , _xlpm.col), 0), 1))-ROW(ExtensionsTable[[#Headers],[Gene Expression ]])),\nIF(OR(_xlpm.col=\"\",_xlpm.row=\"\"),\"\",INDEX(SuffixesTable[], _xlpm.row, _xlpm.col)))","v":""}]
[271,null,null,{"$f":"_xlfn.IFNA(_xlfn.TEXTJOIN(\"; \",TRUE,INDEX(ItemDescriptionsTable[#Data],,MATCH($C287, ItemDescriptionsTable[#Headers], 0))),\"\")","v":""},null,null,null,null,null,null,null,null,null,null,null,null,null,null,{"$f":"_xlfn.LET(_xlpm.col,IF(NOT(OR(IsEmpty($B287),IsEmpty($C287),IsEmpty($E287))),MATCH($C287,ExtensionsTable[#Headers],0),\"\"),\n_xlpm.row,IF(_xlpm.col=\"\",\"\",ROW(INDEX(ExtensionsTable[], MATCH($E287, INDEX(ExtensionsTable[], , _xlpm.col), 0), 1))-ROW(ExtensionsTable[[#Headers],[Gene Expression ]])),\nIF(OR(_xlpm.col=\"\",_xlpm.row=\"\"),\"\",INDEX(SuffixesTable[], _xlpm.row, _xlpm.col)))","v":""}]
[272,null,null,{"$f":"_xlfn.IFNA(_xlfn.TEXTJOIN(\"; \",TRUE,INDEX(ItemDescriptionsTable[#Data],,MATCH($C288, ItemDescriptionsTable[#Headers], 0))),\"\")","v":""},null,null,null,null,null,null,null,null,null,null,null,null,null,null,{"$f":"_xlfn.LET(_xlpm.col,IF(NOT(OR(IsEmpty($B288),IsEmpty($C288),IsEmpty($E288))),MATCH($C288,ExtensionsTable[#Headers],0),\"\"),\n_xlpm.row,IF(_xlpm.col=\"\",\"\",ROW(INDEX(ExtensionsTable[], MATCH($E288, INDEX(ExtensionsTable[], , _xlpm.col), 0), 1))-ROW(ExtensionsTable[[#Headers],[Gene Expression ]])),\nIF(OR(_xlpm.col=\"\",_xlpm.row=\"\"),\"\",INDEX(SuffixesTable[], _xlpm.row, _xlpm.col)))","v":""}]
[273,null,null,{"$f":"_xlfn.IFNA(_xlfn.TEXTJOIN(\"; \",TRUE,INDEX(ItemDescriptionsTable[#Data],,MATCH($C289, ItemDescriptionsTable[#Headers], 0))),\"\")","v":""},null,null,null,null,null,null,null,null,null,null,null,null,null,null,{"$f":"_xlfn.LET(_xlpm.col,IF(NOT(OR(IsEmpty($B289),IsEmpty($C289),IsEmpty($E289))),MATCH($C289,ExtensionsTable[#Headers],0),\"\"),\n_xlpm.row,IF(_xlpm.col=\"\",\"\",ROW(INDEX(ExtensionsTable[], MATCH($E289, INDEX(ExtensionsTable[], , _xlpm.col), 0), 1))-ROW(ExtensionsTable[[#Headers],[Gene Expression ]])),\nIF(OR(_xlpm.col=\"\",_xlpm.row=\"\"),\"\",INDEX(SuffixesTable[], _xlpm.row, _xlpm.col)))","v":""}]
[274,null,null,{"$f":"_xlfn.IFNA(_xlfn.TEXTJOIN(\"; \",TRUE,INDEX(ItemDescriptionsTable[#Data],,MATCH($C290, ItemDescriptionsTable[#Headers], 0))),\"\")","v":""},null,null,null,null,null,null,null,null,null,null,null,null,null,null,{"$f":"_xlfn.LET(_xlpm.col,IF(NOT(OR(IsEmpty($B290),IsEmpty($C290),IsEmpty($E290))),MATCH($C290,ExtensionsTable[#Headers],0),\"\"),\n_xlpm.row,IF(_xlpm.col=\"\",\"\",ROW(INDEX(ExtensionsTable[], MATCH($E290, INDEX(ExtensionsTable[], , _xlpm.col), 0), 1))-ROW(ExtensionsTable[[#Headers],[Gene Expression ]])),\nIF(OR(_xlpm.col=\"\",_xlpm.row=\"\"),\"\",INDEX(SuffixesTable[], _xlpm.row, _xlpm.col)))","v":""}]
[275,null,null,{"$f":"_xlfn.IFNA(_xlfn.TEXTJOIN(\"; \",TRUE,INDEX(ItemDescriptionsTable[#Data],,MATCH($C291, ItemDescriptionsTable[#Headers], 0))),\"\")","v":""},null,null,null,null,null,null,null,null,null,null,null,null,null,null,{"$f":"_xlfn.LET(_xlpm.col,IF(NOT(OR(IsEmpty($B291),IsEmpty($C291),IsEmpty($E291))),MATCH($C291,ExtensionsTable[#Headers],0),\"\"),\n_xlpm.row,IF(_xlpm.col=\"\",\"\",ROW(INDEX(ExtensionsTable[], MATCH($E291, INDEX(ExtensionsTable[], , _xlpm.col), 0), 1))-ROW(ExtensionsTable[[#Headers],[Gene Expression ]])),\nIF(OR(_xlpm.col=\"\",_xlpm.row=\"\"),\"\",INDEX(SuffixesTable[], _xlpm.row, _xlpm.col)))","v":""}]
[276,null,null,{"$f":"_xlfn.IFNA(_xlfn.TEXTJOIN(\"; \",TRUE,INDEX(ItemDescriptionsTable[#Data],,MATCH($C292, ItemDescriptionsTable[#Headers], 0))),\"\")","v":""},null,null,null,null,null,null,null,null,null,null,null,null,null,null,{"$f":"_xlfn.LET(_xlpm.col,IF(NOT(OR(IsEmpty($B292),IsEmpty($C292),IsEmpty($E292))),MATCH($C292,ExtensionsTable[#Headers],0),\"\"),\n_xlpm.row,IF(_xlpm.col=\"\",\"\",ROW(INDEX(ExtensionsTable[], MATCH($E292, INDEX(ExtensionsTable[], , _xlpm.col), 0), 1))-ROW(ExtensionsTable[[#Headers],[Gene Expression ]])),\nIF(OR(_xlpm.col=\"\",_xlpm.row=\"\"),\"\",INDEX(SuffixesTable[], _xlpm.row, _xlpm.col)))","v":""}]
[277,null,null,{"$f":"_xlfn.IFNA(_xlfn.TEXTJOIN(\"; \",TRUE,INDEX(ItemDescriptionsTable[#Data],,MATCH($C293, ItemDescriptionsTable[#Headers], 0))),\"\")","v":""},null,null,null,null,null,null,null,null,null,null,null,null,null,null,{"$f":"_xlfn.LET(_xlpm.col,IF(NOT(OR(IsEmpty($B293),IsEmpty($C293),IsEmpty($E293))),MATCH($C293,ExtensionsTable[#Headers],0),\"\"),\n_xlpm.row,IF(_xlpm.col=\"\",\"\",ROW(INDEX(ExtensionsTable[], MATCH($E293, INDEX(ExtensionsTable[], , _xlpm.col), 0), 1))-ROW(ExtensionsTable[[#Headers],[Gene Expression ]])),\nIF(OR(_xlpm.col=\"\",_xlpm.row=\"\"),\"\",INDEX(SuffixesTable[], _xlpm.row, _xlpm.col)))","v":""}]
[278,null,null,{"$f":"_xlfn.IFNA(_xlfn.TEXTJOIN(\"; \",TRUE,INDEX(ItemDescriptionsTable[#Data],,MATCH($C294, ItemDescriptionsTable[#Headers], 0))),\"\")","v":""},null,null,null,null,null,null,null,null,null,null,null,null,null,null,{"$f":"_xlfn.LET(_xlpm.col,IF(NOT(OR(IsEmpty($B294),IsEmpty($C294),IsEmpty($E294))),MATCH($C294,ExtensionsTable[#Headers],0),\"\"),\n_xlpm.row,IF(_xlpm.col=\"\",\"\",ROW(INDEX(ExtensionsTable[], MATCH($E294, INDEX(ExtensionsTable[], , _xlpm.col), 0), 1))-ROW(ExtensionsTable[[#Headers],[Gene Expression ]])),\nIF(OR(_xlpm.col=\"\",_xlpm.row=\"\"),\"\",INDEX(SuffixesTable[], _xlpm.row, _xlpm.col)))","v":""}]
[279,null,null,{"$f":"_xlfn.IFNA(_xlfn.TEXTJOIN(\"; \",TRUE,INDEX(ItemDescriptionsTable[#Data],,MATCH($C295, ItemDescriptionsTable[#Headers], 0))),\"\")","v":""},null,null,null,null,null,null,null,null,null,null,null,null,null,null,{"$f":"_xlfn.LET(_xlpm.col,IF(NOT(OR(IsEmpty($B295),IsEmpty($C295),IsEmpty($E295))),MATCH($C295,ExtensionsTable[#Headers],0),\"\"),\n_xlpm.row,IF(_xlpm.col=\"\",\"\",ROW(INDEX(ExtensionsTable[], MATCH($E295, INDEX(ExtensionsTable[], , _xlpm.col), 0), 1))-ROW(ExtensionsTable[[#Headers],[Gene Expression ]])),\nIF(OR(_xlpm.col=\"\",_xlpm.row=\"\"),\"\",INDEX(SuffixesTable[], _xlpm.row, _xlpm.col)))","v":""}]
[280,null,null,{"$f":"_xlfn.IFNA(_xlfn.TEXTJOIN(\"; \",TRUE,INDEX(ItemDescriptionsTable[#Data],,MATCH($C296, ItemDescriptionsTable[#Headers], 0))),\"\")","v":""},null,null,null,null,null,null,null,null,null,null,null,null,null,null,{"$f":"_xlfn.LET(_xlpm.col,IF(NOT(OR(IsEmpty($B296),IsEmpty($C296),IsEmpty($E296))),MATCH($C296,ExtensionsTable[#Headers],0),\"\"),\n_xlpm.row,IF(_xlpm.col=\"\",\"\",ROW(INDEX(ExtensionsTable[], MATCH($E296, INDEX(ExtensionsTable[], , _xlpm.col), 0), 1))-ROW(ExtensionsTable[[#Headers],[Gene Expression ]])),\nIF(OR(_xlpm.col=\"\",_xlpm.row=\"\"),\"\",INDEX(SuffixesTable[], _xlpm.row, _xlpm.col)))","v":""}]
[281,null,null,{"$f":"_xlfn.IFNA(_xlfn.TEXTJOIN(\"; \",TRUE,INDEX(ItemDescriptionsTable[#Data],,MATCH($C297, ItemDescriptionsTable[#Headers], 0))),\"\")","v":""},null,null,null,null,null,null,null,null,null,null,null,null,null,null,{"$f":"_xlfn.LET(_xlpm.col,IF(NOT(OR(IsEmpty($B297),IsEmpty($C297),IsEmpty($E297))),MATCH($C297,ExtensionsTable[#Headers],0),\"\"),\n_xlpm.row,IF(_xlpm.col=\"\",\"\",ROW(INDEX(ExtensionsTable[], MATCH($E297, INDEX(ExtensionsTable[], , _xlpm.col), 0), 1))-ROW(ExtensionsTable[[#Headers],[Gene Expression ]])),\nIF(OR(_xlpm.col=\"\",_xlpm.row=\"\"),\"\",INDEX(SuffixesTable[], _xlpm.row, _xlpm.col)))","v":""}]
[282,null,null,{"$f":"_xlfn.IFNA(_xlfn.TEXTJOIN(\"; \",TRUE,INDEX(ItemDescriptionsTable[#Data],,MATCH($C298, ItemDescriptionsTable[#Headers], 0))),\"\")","v":""},null,null,null,null,null,null,null,null,null,null,null,null,null,null,{"$f":"_xlfn.LET(_xlpm.col,IF(NOT(OR(IsEmpty($B298),IsEmpty($C298),IsEmpty($E298))),MATCH($C298,ExtensionsTable[#Headers],0),\"\"),\n_xlpm.row,IF(_xlpm.col=\"\",\"\",ROW(INDEX(ExtensionsTable[], MATCH($E298, INDEX(ExtensionsTable[], , _xlpm.col), 0), 1))-ROW(ExtensionsTable[[#Headers],[Gene Expression ]])),\nIF(OR(_xlpm.col=\"\",_xlpm.row=\"\"),\"\",INDEX(SuffixesTable[], _xlpm.row, _xlpm.col)))","v":""}]
[283,null,null,{"$f":"_xlfn.IFNA(_xlfn.TEXTJOIN(\"; \",TRUE,INDEX(ItemDescriptionsTable[#Data],,MATCH($C299, ItemDescriptionsTable[#Headers], 0))),\"\")","v":""},null,null,null,null,null,null,null,null,null,null,null,null,null,null,{"$f":"_xlfn.LET(_xlpm.col,IF(NOT(OR(IsEmpty($B299),IsEmpty($C299),IsEmpty($E299))),MATCH($C299,ExtensionsTable[#Headers],0),\"\"),\n_xlpm.row,IF(_xlpm.col=\"\",\"\",ROW(INDEX(ExtensionsTable[], MATCH($E299, INDEX(ExtensionsTable[], , _xlpm.col), 0), 1))-ROW(ExtensionsTable[[#Headers],[Gene Expression ]])),\nIF(OR(_xlpm.col=\"\",_xlpm.row=\"\"),\"\",INDEX(SuffixesTable[], _xlpm.row, _xlpm.col)))","v":""}]
[284,null,null,{"$f":"_xlfn.IFNA(_xlfn.TEXTJOIN(\"; \",TRUE,INDEX(ItemDescriptionsTable[#Data],,MATCH($C300, ItemDescriptionsTable[#Headers], 0))),\"\")","v":""},null,null,null,null,null,null,null,null,null,null,null,null,null,null,{"$f":"_xlfn.LET(_xlpm.col,IF(NOT(OR(IsEmpty($B300),IsEmpty($C300),IsEmpty($E300))),MATCH($C300,ExtensionsTable[#Headers],0),\"\"),\n_xlpm.row,IF(_xlpm.col=\"\",\"\",ROW(INDEX(ExtensionsTable[], MATCH($E300, INDEX(ExtensionsTable[], , _xlpm.col), 0), 1))-ROW(ExtensionsTable[[#Headers],[Gene Expression ]])),\nIF(OR(_xlpm.col=\"\",_xlpm.row=\"\"),\"\",INDEX(SuffixesTable[], _xlpm.row, _xlpm.col)))","v":""}]
[285,null,null,{"$f":"_xlfn.IFNA(_xlfn.TEXTJOIN(\"; \",TRUE,INDEX(ItemDescriptionsTable[#Data],,MATCH($C301, ItemDescriptionsTable[#Headers], 0))),\"\")","v":""},null,null,null,null,null,null,null,null,null,null,null,null,null,null,{"$f":"_xlfn.LET(_xlpm.col,IF(NOT(OR(IsEmpty($B301),IsEmpty($C301),IsEmpty($E301))),MATCH($C301,ExtensionsTable[#Headers],0),\"\"),\n_xlpm.row,IF(_xlpm.col=\"\",\"\",ROW(INDEX(ExtensionsTable[], MATCH($E301, INDEX(ExtensionsTable[], , _xlpm.col), 0), 1))-ROW(ExtensionsTable[[#Headers],[Gene Expression ]])),\nIF(OR(_xlpm.col=\"\",_xlpm.row=\"\"),\"\",INDEX(SuffixesTable[], _xlpm.row, _xlpm.col)))","v":""}]
[286,null,null,{"$f":"_xlfn.IFNA(_xlfn.TEXTJOIN(\"; \",TRUE,INDEX(ItemDescriptionsTable[#Data],,MATCH($C302, ItemDescriptionsTable[#Headers], 0))),\"\")","v":""},null,null,null,null,null,null,null,null,null,null,null,null,null,null,{"$f":"_xlfn.LET(_xlpm.col,IF(NOT(OR(IsEmpty($B302),IsEmpty($C302),IsEmpty($E302))),MATCH($C302,ExtensionsTable[#Headers],0),\"\"),\n_xlpm.row,IF(_xlpm.col=\"\",\"\",ROW(INDEX(ExtensionsTable[], MATCH($E302, INDEX(ExtensionsTable[], , _xlpm.col), 0), 1))-ROW(ExtensionsTable[[#Headers],[Gene Expression ]])),\nIF(OR(_xlpm.col=\"\",_xlpm.row=\"\"),\"\",INDEX(SuffixesTable[], _xlpm.row, _xlpm.col)))","v":""}]
[287,null,null,{"$f":"_xlfn.IFNA(_xlfn.TEXTJOIN(\"; \",TRUE,INDEX(ItemDescriptionsTable[#Data],,MATCH($C303, ItemDescriptionsTable[#Headers], 0))),\"\")","v":""},null,null,null,null,null,null,null,null,null,null,null,null,null,null,{"$f":"_xlfn.LET(_xlpm.col,IF(NOT(OR(IsEmpty($B303),IsEmpty($C303),IsEmpty($E303))),MATCH($C303,ExtensionsTable[#Headers],0),\"\"),\n_xlpm.row,IF(_xlpm.col=\"\",\"\",ROW(INDEX(ExtensionsTable[], MATCH($E303, INDEX(ExtensionsTable[], , _xlpm.col), 0), 1))-ROW(ExtensionsTable[[#Headers],[Gene Expression ]])),\nIF(OR(_xlpm.col=\"\",_xlpm.row=\"\"),\"\",INDEX(SuffixesTable[], _xlpm.row, _xlpm.col)))","v":""}]
[288,null,null,{"$f":"_xlfn.IFNA(_xlfn.TEXTJOIN(\"; \",TRUE,INDEX(ItemDescriptionsTable[#Data],,MATCH($C304, ItemDescriptionsTable[#Headers], 0))),\"\")","v":""},null,null,null,null,null,null,null,null,null,null,null,null,null,null,{"$f":"_xlfn.LET(_xlpm.col,IF(NOT(OR(IsEmpty($B304),IsEmpty($C304),IsEmpty($E304))),MATCH($C304,ExtensionsTable[#Headers],0),\"\"),\n_xlpm.row,IF(_xlpm.col=\"\",\"\",ROW(INDEX(ExtensionsTable[], MATCH($E304, INDEX(ExtensionsTable[], , _xlpm.col), 0), 1))-ROW(ExtensionsTable[[#Headers],[Gene Expression ]])),\nIF(OR(_xlpm.col=\"\",_xlpm.row=\"\"),\"\",INDEX(SuffixesTable[], _xlpm.row, _xlpm.col)))","v":""}]
[289,null,null,{"$f":"_xlfn.IFNA(_xlfn.TEXTJOIN(\"; \",TRUE,INDEX(ItemDescriptionsTable[#Data],,MATCH($C305, ItemDescriptionsTable[#Headers], 0))),\"\")","v":""},null,null,null,null,null,null,null,null,null,null,null,null,null,null,{"$f":"_xlfn.LET(_xlpm.col,IF(NOT(OR(IsEmpty($B305),IsEmpty($C305),IsEmpty($E305))),MATCH($C305,ExtensionsTable[#Headers],0),\"\"),\n_xlpm.row,IF(_xlpm.col=\"\",\"\",ROW(INDEX(ExtensionsTable[], MATCH($E305, INDEX(ExtensionsTable[], , _xlpm.col), 0), 1))-ROW(ExtensionsTable[[#Headers],[Gene Expression ]])),\nIF(OR(_xlpm.col=\"\",_xlpm.row=\"\"),\"\",INDEX(SuffixesTable[], _xlpm.row, _xlpm.col)))","v":""}]
[290,null,null,{"$f":"_xlfn.IFNA(_xlfn.TEXTJOIN(\"; \",TRUE,INDEX(ItemDescriptionsTable[#Data],,MATCH($C306, ItemDescriptionsTable[#Headers], 0))),\"\")","v":""},null,null,null,null,null,null,null,null,null,null,null,null,null,null,{"$f":"_xlfn.LET(_xlpm.col,IF(NOT(OR(IsEmpty($B306),IsEmpty($C306),IsEmpty($E306))),MATCH($C306,ExtensionsTable[#Headers],0),\"\"),\n_xlpm.row,IF(_xlpm.col=\"\",\"\",ROW(INDEX(ExtensionsTable[], MATCH($E306, INDEX(ExtensionsTable[], , _xlpm.col), 0), 1))-ROW(ExtensionsTable[[#Headers],[Gene Expression ]])),\nIF(OR(_xlpm.col=\"\",_xlpm.row=\"\"),\"\",INDEX(SuffixesTable[], _xlpm.row, _xlpm.col)))","v":""}]
[291,null,null,{"$f":"_xlfn.IFNA(_xlfn.TEXTJOIN(\"; \",TRUE,INDEX(ItemDescriptionsTable[#Data],,MATCH($C307, ItemDescriptionsTable[#Headers], 0))),\"\")","v":""},null,null,null,null,null,null,null,null,null,null,null,null,null,null,{"$f":"_xlfn.LET(_xlpm.col,IF(NOT(OR(IsEmpty($B307),IsEmpty($C307),IsEmpty($E307))),MATCH($C307,ExtensionsTable[#Headers],0),\"\"),\n_xlpm.row,IF(_xlpm.col=\"\",\"\",ROW(INDEX(ExtensionsTable[], MATCH($E307, INDEX(ExtensionsTable[], , _xlpm.col), 0), 1))-ROW(ExtensionsTable[[#Headers],[Gene Expression ]])),\nIF(OR(_xlpm.col=\"\",_xlpm.row=\"\"),\"\",INDEX(SuffixesTable[], _xlpm.row, _xlpm.col)))","v":""}]
[292,null,null,{"$f":"_xlfn.IFNA(_xlfn.TEXTJOIN(\"; \",TRUE,INDEX(ItemDescriptionsTable[#Data],,MATCH($C308, ItemDescriptionsTable[#Headers], 0))),\"\")","v":""},null,null,null,null,null,null,null,null,null,null,null,null,null,null,{"$f":"_xlfn.LET(_xlpm.col,IF(NOT(OR(IsEmpty($B308),IsEmpty($C308),IsEmpty($E308))),MATCH($C308,ExtensionsTable[#Headers],0),\"\"),\n_xlpm.row,IF(_xlpm.col=\"\",\"\",ROW(INDEX(ExtensionsTable[], MATCH($E308, INDEX(ExtensionsTable[], , _xlpm.col), 0), 1))-ROW(ExtensionsTable[[#Headers],[Gene Expression ]])),\nIF(OR(_xlpm.col=\"\",_xlpm.row=\"\"),\"\",INDEX(SuffixesTable[], _xlpm.row, _xlpm.col)))","v":""}]
[293,null,null,{"$f":"_xlfn.IFNA(_xlfn.TEXTJOIN(\"; \",TRUE,INDEX(ItemDescriptionsTable[#Data],,MATCH($C309, ItemDescriptionsTable[#Headers], 0))),\"\")","v":""},null,null,null,null,null,null,null,null,null,null,null,null,null,null,{"$f":"_xlfn.LET(_xlpm.col,IF(NOT(OR(IsEmpty($B309),IsEmpty($C309),IsEmpty($E309))),MATCH($C309,ExtensionsTable[#Headers],0),\"\"),\n_xlpm.row,IF(_xlpm.col=\"\",\"\",ROW(INDEX(ExtensionsTable[], MATCH($E309, INDEX(ExtensionsTable[], , _xlpm.col), 0), 1))-ROW(ExtensionsTable[[#Headers],[Gene Expression ]])),\nIF(OR(_xlpm.col=\"\",_xlpm.row=\"\"),\"\",INDEX(SuffixesTable[], _xlpm.row, _xlpm.col)))","v":""}]
[294,null,null,{"$f":"_xlfn.IFNA(_xlfn.TEXTJOIN(\"; \",TRUE,INDEX(ItemDescriptionsTable[#Data],,MATCH($C310, ItemDescriptionsTable[#Headers], 0))),\"\")","v":""},null,null,null,null,null,null,null,null,null,null,null,null,null,null,{"$f":"_xlfn.LET(_xlpm.col,IF(NOT(OR(IsEmpty($B310),IsEmpty($C310),IsEmpty($E310))),MATCH($C310,ExtensionsTable[#Headers],0),\"\"),\n_xlpm.row,IF(_xlpm.col=\"\",\"\",ROW(INDEX(ExtensionsTable[], MATCH($E310, INDEX(ExtensionsTable[], , _xlpm.col), 0), 1))-ROW(ExtensionsTable[[#Headers],[Gene Expression ]])),\nIF(OR(_xlpm.col=\"\",_xlpm.row=\"\"),\"\",INDEX(SuffixesTable[], _xlpm.row, _xlpm.col)))","v":""}]
[295,null,null,{"$f":"_xlfn.IFNA(_xlfn.TEXTJOIN(\"; \",TRUE,INDEX(ItemDescriptionsTable[#Data],,MATCH($C311, ItemDescriptionsTable[#Headers], 0))),\"\")","v":""},null,null,null,null,null,null,null,null,null,null,null,null,null,null,{"$f":"_xlfn.LET(_xlpm.col,IF(NOT(OR(IsEmpty($B311),IsEmpty($C311),IsEmpty($E311))),MATCH($C311,ExtensionsTable[#Headers],0),\"\"),\n_xlpm.row,IF(_xlpm.col=\"\",\"\",ROW(INDEX(ExtensionsTable[], MATCH($E311, INDEX(ExtensionsTable[], , _xlpm.col), 0), 1))-ROW(ExtensionsTable[[#Headers],[Gene Expression ]])),\nIF(OR(_xlpm.col=\"\",_xlpm.row=\"\"),\"\",INDEX(SuffixesTable[], _xlpm.row, _xlpm.col)))","v":""}]
[296,null,null,{"$f":"_xlfn.IFNA(_xlfn.TEXTJOIN(\"; \",TRUE,INDEX(ItemDescriptionsTable[#Data],,MATCH($C312, ItemDescriptionsTable[#Headers], 0))),\"\")","v":""},null,null,null,null,null,null,null,null,null,null,null,null,null,null,{"$f":"_xlfn.LET(_xlpm.col,IF(NOT(OR(IsEmpty($B312),IsEmpty($C312),IsEmpty($E312))),MATCH($C312,ExtensionsTable[#Headers],0),\"\"),\n_xlpm.row,IF(_xlpm.col=\"\",\"\",ROW(INDEX(ExtensionsTable[], MATCH($E312, INDEX(ExtensionsTable[], , _xlpm.col), 0), 1))-ROW(ExtensionsTable[[#Headers],[Gene Expression ]])),\nIF(OR(_xlpm.col=\"\",_xlpm.row=\"\"),\"\",INDEX(SuffixesTable[], _xlpm.row, _xlpm.col)))","v":""}]
[297,null,null,{"$f":"_xlfn.IFNA(_xlfn.TEXTJOIN(\"; \",TRUE,INDEX(ItemDescriptionsTable[#Data],,MATCH($C313, ItemDescriptionsTable[#Headers], 0))),\"\")","v":""},null,null,null,null,null,null,null,null,null,null,null,null,null,null,{"$f":"_xlfn.LET(_xlpm.col,IF(NOT(OR(IsEmpty($B313),IsEmpty($C313),IsEmpty($E313))),MATCH($C313,ExtensionsTable[#Headers],0),\"\"),\n_xlpm.row,IF(_xlpm.col=\"\",\"\",ROW(INDEX(ExtensionsTable[], MATCH($E313, INDEX(ExtensionsTable[], , _xlpm.col), 0), 1))-ROW(ExtensionsTable[[#Headers],[Gene Expression ]])),\nIF(OR(_xlpm.col=\"\",_xlpm.row=\"\"),\"\",INDEX(SuffixesTable[], _xlpm.row, _xlpm.col)))","v":""}]
[298,null,null,{"$f":"_xlfn.IFNA(_xlfn.TEXTJOIN(\"; \",TRUE,INDEX(ItemDescriptionsTable[#Data],,MATCH($C314, ItemDescriptionsTable[#Headers], 0))),\"\")","v":""},null,null,null,null,null,null,null,null,null,null,null,null,null,null,{"$f":"_xlfn.LET(_xlpm.col,IF(NOT(OR(IsEmpty($B314),IsEmpty($C314),IsEmpty($E314))),MATCH($C314,ExtensionsTable[#Headers],0),\"\"),\n_xlpm.row,IF(_xlpm.col=\"\",\"\",ROW(INDEX(ExtensionsTable[], MATCH($E314, INDEX(ExtensionsTable[], , _xlpm.col), 0), 1))-ROW(ExtensionsTable[[#Headers],[Gene Expression ]])),\nIF(OR(_xlpm.col=\"\",_xlpm.row=\"\"),\"\",INDEX(SuffixesTable[], _xlpm.row, _xlpm.col)))","v":""}]
[299,null,null,{"$f":"_xlfn.IFNA(_xlfn.TEXTJOIN(\"; \",TRUE,INDEX(ItemDescriptionsTable[#Data],,MATCH($C315, ItemDescriptionsTable[#Headers], 0))),\"\")","v":""},null,null,null,null,null,null,null,null,null,null,null,null,null,null,{"$f":"_xlfn.LET(_xlpm.col,IF(NOT(OR(IsEmpty($B315),IsEmpty($C315),IsEmpty($E315))),MATCH($C315,ExtensionsTable[#Headers],0),\"\"),\n_xlpm.row,IF(_xlpm.col=\"\",\"\",ROW(INDEX(ExtensionsTable[], MATCH($E315, INDEX(ExtensionsTable[], , _xlpm.col), 0), 1))-ROW(ExtensionsTable[[#Headers],[Gene Expression ]])),\nIF(OR(_xlpm.col=\"\",_xlpm.row=\"\"),\"\",INDEX(SuffixesTable[], _xlpm.row, _xlpm.col)))","v":""}]
[300,null,null,{"$f":"_xlfn.IFNA(_xlfn.TEXTJOIN(\"; \",TRUE,INDEX(ItemDescriptionsTable[#Data],,MATCH($C316, ItemDescriptionsTable[#Headers], 0))),\"\")","v":""},null,null,null,null,null,null,null,null,null,null,null,null,null,null,{"$f":"_xlfn.LET(_xlpm.col,IF(NOT(OR(IsEmpty($B316),IsEmpty($C316),IsEmpty($E316))),MATCH($C316,ExtensionsTable[#Headers],0),\"\"),\n_xlpm.row,IF(_xlpm.col=\"\",\"\",ROW(INDEX(ExtensionsTable[], MATCH($E316, INDEX(ExtensionsTable[], , _xlpm.col), 0), 1))-ROW(ExtensionsTable[[#Headers],[Gene Expression ]])),\nIF(OR(_xlpm.col=\"\",_xlpm.row=\"\"),\"\",INDEX(SuffixesTable[], _xlpm.row, _xlpm.col)))","v":""}]
[301,null,null,{"$f":"_xlfn.IFNA(_xlfn.TEXTJOIN(\"; \",TRUE,INDEX(ItemDescriptionsTable[#Data],,MATCH($C317, ItemDescriptionsTable[#Headers], 0))),\"\")","v":""},null,null,null,null,null,null,null,null,null,null,null,null,null,null,{"$f":"_xlfn.LET(_xlpm.col,IF(NOT(OR(IsEmpty($B317),IsEmpty($C317),IsEmpty($E317))),MATCH($C317,ExtensionsTable[#Headers],0),\"\"),\n_xlpm.row,IF(_xlpm.col=\"\",\"\",ROW(INDEX(ExtensionsTable[], MATCH($E317, INDEX(ExtensionsTable[], , _xlpm.col), 0), 1))-ROW(ExtensionsTable[[#Headers],[Gene Expression ]])),\nIF(OR(_xlpm.col=\"\",_xlpm.row=\"\"),\"\",INDEX(SuffixesTable[], _xlpm.row, _xlpm.col)))","v":""}]
[302,null,null,{"$f":"_xlfn.IFNA(_xlfn.TEXTJOIN(\"; \",TRUE,INDEX(ItemDescriptionsTable[#Data],,MATCH($C318, ItemDescriptionsTable[#Headers], 0))),\"\")","v":""},null,null,null,null,null,null,null,null,null,null,null,null,null,null,{"$f":"_xlfn.LET(_xlpm.col,IF(NOT(OR(IsEmpty($B318),IsEmpty($C318),IsEmpty($E318))),MATCH($C318,ExtensionsTable[#Headers],0),\"\"),\n_xlpm.row,IF(_xlpm.col=\"\",\"\",ROW(INDEX(ExtensionsTable[], MATCH($E318, INDEX(ExtensionsTable[], , _xlpm.col), 0), 1))-ROW(ExtensionsTable[[#Headers],[Gene Expression ]])),\nIF(OR(_xlpm.col=\"\",_xlpm.row=\"\"),\"\",INDEX(SuffixesTable[], _xlpm.row, _xlpm.col)))","v":""}]
[303,null,null,{"$f":"_xlfn.IFNA(_xlfn.TEXTJOIN(\"; \",TRUE,INDEX(ItemDescriptionsTable[#Data],,MATCH($C319, ItemDescriptionsTable[#Headers], 0))),\"\")","v":""},null,null,null,null,null,null,null,null,null,null,null,null,null,null,{"$f":"_xlfn.LET(_xlpm.col,IF(NOT(OR(IsEmpty($B319),IsEmpty($C319),IsEmpty($E319))),MATCH($C319,ExtensionsTable[#Headers],0),\"\"),\n_xlpm.row,IF(_xlpm.col=\"\",\"\",ROW(INDEX(ExtensionsTable[], MATCH($E319, INDEX(ExtensionsTable[], , _xlpm.col), 0), 1))-ROW(ExtensionsTable[[#Headers],[Gene Expression ]])),\nIF(OR(_xlpm.col=\"\",_xlpm.row=\"\"),\"\",INDEX(SuffixesTable[], _xlpm.row, _xlpm.col)))","v":""}]
[304,null,null,{"$f":"_xlfn.IFNA(_xlfn.TEXTJOIN(\"; \",TRUE,INDEX(ItemDescriptionsTable[#Data],,MATCH($C320, ItemDescriptionsTable[#Headers], 0))),\"\")","v":""},null,null,null,null,null,null,null,null,null,null,null,null,null,null,{"$f":"_xlfn.LET(_xlpm.col,IF(NOT(OR(IsEmpty($B320),IsEmpty($C320),IsEmpty($E320))),MATCH($C320,ExtensionsTable[#Headers],0),\"\"),\n_xlpm.row,IF(_xlpm.col=\"\",\"\",ROW(INDEX(ExtensionsTable[], MATCH($E320, INDEX(ExtensionsTable[], , _xlpm.col), 0), 1))-ROW(ExtensionsTable[[#Headers],[Gene Expression ]])),\nIF(OR(_xlpm.col=\"\",_xlpm.row=\"\"),\"\",INDEX(SuffixesTable[], _xlpm.row, _xlpm.col)))","v":""}]
[305,null,null,{"$f":"_xlfn.IFNA(_xlfn.TEXTJOIN(\"; \",TRUE,INDEX(ItemDescriptionsTable[#Data],,MATCH($C321, ItemDescriptionsTable[#Headers], 0))),\"\")","v":""},null,null,null,null,null,null,null,null,null,null,null,null,null,null,{"$f":"_xlfn.LET(_xlpm.col,IF(NOT(OR(IsEmpty($B321),IsEmpty($C321),IsEmpty($E321))),MATCH($C321,ExtensionsTable[#Headers],0),\"\"),\n_xlpm.row,IF(_xlpm.col=\"\",\"\",ROW(INDEX(ExtensionsTable[], MATCH($E321, INDEX(ExtensionsTable[], , _xlpm.col), 0), 1))-ROW(ExtensionsTable[[#Headers],[Gene Expression ]])),\nIF(OR(_xlpm.col=\"\",_xlpm.row=\"\"),\"\",INDEX(SuffixesTable[], _xlpm.row, _xlpm.col)))","v":""}]
[306,null,null,{"$f":"_xlfn.IFNA(_xlfn.TEXTJOIN(\"; \",TRUE,INDEX(ItemDescriptionsTable[#Data],,MATCH($C322, ItemDescriptionsTable[#Headers], 0))),\"\")","v":""},null,null,null,null,null,null,null,null,null,null,null,null,null,null,{"$f":"_xlfn.LET(_xlpm.col,IF(NOT(OR(IsEmpty($B322),IsEmpty($C322),IsEmpty($E322))),MATCH($C322,ExtensionsTable[#Headers],0),\"\"),\n_xlpm.row,IF(_xlpm.col=\"\",\"\",ROW(INDEX(ExtensionsTable[], MATCH($E322, INDEX(ExtensionsTable[], , _xlpm.col), 0), 1))-ROW(ExtensionsTable[[#Headers],[Gene Expression ]])),\nIF(OR(_xlpm.col=\"\",_xlpm.row=\"\"),\"\",INDEX(SuffixesTable[], _xlpm.row, _xlpm.col)))","v":""}]
[307,null,null,{"$f":"_xlfn.IFNA(_xlfn.TEXTJOIN(\"; \",TRUE,INDEX(ItemDescriptionsTable[#Data],,MATCH($C323, ItemDescriptionsTable[#Headers], 0))),\"\")","v":""},null,null,null,null,null,null,null,null,null,null,null,null,null,null,{"$f":"_xlfn.LET(_xlpm.col,IF(NOT(OR(IsEmpty($B323),IsEmpty($C323),IsEmpty($E323))),MATCH($C323,ExtensionsTable[#Headers],0),\"\"),\n_xlpm.row,IF(_xlpm.col=\"\",\"\",ROW(INDEX(ExtensionsTable[], MATCH($E323, INDEX(ExtensionsTable[], , _xlpm.col), 0), 1))-ROW(ExtensionsTable[[#Headers],[Gene Expression ]])),\nIF(OR(_xlpm.col=\"\",_xlpm.row=\"\"),\"\",INDEX(SuffixesTable[], _xlpm.row, _xlpm.col)))","v":""}]
[308,null,null,{"$f":"_xlfn.IFNA(_xlfn.TEXTJOIN(\"; \",TRUE,INDEX(ItemDescriptionsTable[#Data],,MATCH($C324, ItemDescriptionsTable[#Headers], 0))),\"\")","v":""},null,null,null,null,null,null,null,null,null,null,null,null,null,null,{"$f":"_xlfn.LET(_xlpm.col,IF(NOT(OR(IsEmpty($B324),IsEmpty($C324),IsEmpty($E324))),MATCH($C324,ExtensionsTable[#Headers],0),\"\"),\n_xlpm.row,IF(_xlpm.col=\"\",\"\",ROW(INDEX(ExtensionsTable[], MATCH($E324, INDEX(ExtensionsTable[], , _xlpm.col), 0), 1))-ROW(ExtensionsTable[[#Headers],[Gene Expression ]])),\nIF(OR(_xlpm.col=\"\",_xlpm.row=\"\"),\"\",INDEX(SuffixesTable[], _xlpm.row, _xlpm.col)))","v":""}]
[309,null,null,{"$f":"_xlfn.IFNA(_xlfn.TEXTJOIN(\"; \",TRUE,INDEX(ItemDescriptionsTable[#Data],,MATCH($C325, ItemDescriptionsTable[#Headers], 0))),\"\")","v":""},null,null,null,null,null,null,null,null,null,null,null,null,null,null,{"$f":"_xlfn.LET(_xlpm.col,IF(NOT(OR(IsEmpty($B325),IsEmpty($C325),IsEmpty($E325))),MATCH($C325,ExtensionsTable[#Headers],0),\"\"),\n_xlpm.row,IF(_xlpm.col=\"\",\"\",ROW(INDEX(ExtensionsTable[], MATCH($E325, INDEX(ExtensionsTable[], , _xlpm.col), 0), 1))-ROW(ExtensionsTable[[#Headers],[Gene Expression ]])),\nIF(OR(_xlpm.col=\"\",_xlpm.row=\"\"),\"\",INDEX(SuffixesTable[], _xlpm.row, _xlpm.col)))","v":""}]
[310,null,null,{"$f":"_xlfn.IFNA(_xlfn.TEXTJOIN(\"; \",TRUE,INDEX(ItemDescriptionsTable[#Data],,MATCH($C326, ItemDescriptionsTable[#Headers], 0))),\"\")","v":""},null,null,null,null,null,null,null,null,null,null,null,null,null,null,{"$f":"_xlfn.LET(_xlpm.col,IF(NOT(OR(IsEmpty($B326),IsEmpty($C326),IsEmpty($E326))),MATCH($C326,ExtensionsTable[#Headers],0),\"\"),\n_xlpm.row,IF(_xlpm.col=\"\",\"\",ROW(INDEX(ExtensionsTable[], MATCH($E326, INDEX(ExtensionsTable[], , _xlpm.col), 0), 1))-ROW(ExtensionsTable[[#Headers],[Gene Expression ]])),\nIF(OR(_xlpm.col=\"\",_xlpm.row=\"\"),\"\",INDEX(SuffixesTable[], _xlpm.row, _xlpm.col)))","v":""}]
[311,null,null,{"$f":"_xlfn.IFNA(_xlfn.TEXTJOIN(\"; \",TRUE,INDEX(ItemDescriptionsTable[#Data],,MATCH($C327, ItemDescriptionsTable[#Headers], 0))),\"\")","v":""},null,null,null,null,null,null,null,null,null,null,null,null,null,null,{"$f":"_xlfn.LET(_xlpm.col,IF(NOT(OR(IsEmpty($B327),IsEmpty($C327),IsEmpty($E327))),MATCH($C327,ExtensionsTable[#Headers],0),\"\"),\n_xlpm.row,IF(_xlpm.col=\"\",\"\",ROW(INDEX(ExtensionsTable[], MATCH($E327, INDEX(ExtensionsTable[], , _xlpm.col), 0), 1))-ROW(ExtensionsTable[[#Headers],[Gene Expression ]])),\nIF(OR(_xlpm.col=\"\",_xlpm.row=\"\"),\"\",INDEX(SuffixesTable[], _xlpm.row, _xlpm.col)))","v":""}]
[312,null,null,{"$f":"_xlfn.IFNA(_xlfn.TEXTJOIN(\"; \",TRUE,INDEX(ItemDescriptionsTable[#Data],,MATCH($C328, ItemDescriptionsTable[#Headers], 0))),\"\")","v":""},null,null,null,null,null,null,null,null,null,null,null,null,null,null,{"$f":"_xlfn.LET(_xlpm.col,IF(NOT(OR(IsEmpty($B328),IsEmpty($C328),IsEmpty($E328))),MATCH($C328,ExtensionsTable[#Headers],0),\"\"),\n_xlpm.row,IF(_xlpm.col=\"\",\"\",ROW(INDEX(ExtensionsTable[], MATCH($E328, INDEX(ExtensionsTable[], , _xlpm.col), 0), 1))-ROW(ExtensionsTable[[#Headers],[Gene Expression ]])),\nIF(OR(_xlpm.col=\"\",_xlpm.row=\"\"),\"\",INDEX(SuffixesTable[], _xlpm.row, _xlpm.col)))","v":""}]
[313,null,null,{"$f":"_xlfn.IFNA(_xlfn.TEXTJOIN(\"; \",TRUE,INDEX(ItemDescriptionsTable[#Data],,MATCH($C329, ItemDescriptionsTable[#Headers], 0))),\"\")","v":""},null,null,null,null,null,null,null,null,null,null,null,null,null,null,{"$f":"_xlfn.LET(_xlpm.col,IF(NOT(OR(IsEmpty($B329),IsEmpty($C329),IsEmpty($E329))),MATCH($C329,ExtensionsTable[#Headers],0),\"\"),\n_xlpm.row,IF(_xlpm.col=\"\",\"\",ROW(INDEX(ExtensionsTable[], MATCH($E329, INDEX(ExtensionsTable[], , _xlpm.col), 0), 1))-ROW(ExtensionsTable[[#Headers],[Gene Expression ]])),\nIF(OR(_xlpm.col=\"\",_xlpm.row=\"\"),\"\",INDEX(SuffixesTable[], _xlpm.row, _xlpm.col)))","v":""}]
[314,null,null,{"$f":"_xlfn.IFNA(_xlfn.TEXTJOIN(\"; \",TRUE,INDEX(ItemDescriptionsTable[#Data],,MATCH($C330, ItemDescriptionsTable[#Headers], 0))),\"\")","v":""},null,null,null,null,null,null,null,null,null,null,null,null,null,null,{"$f":"_xlfn.LET(_xlpm.col,IF(NOT(OR(IsEmpty($B330),IsEmpty($C330),IsEmpty($E330))),MATCH($C330,ExtensionsTable[#Headers],0),\"\"),\n_xlpm.row,IF(_xlpm.col=\"\",\"\",ROW(INDEX(ExtensionsTable[], MATCH($E330, INDEX(ExtensionsTable[], , _xlpm.col), 0), 1))-ROW(ExtensionsTable[[#Headers],[Gene Expression ]])),\nIF(OR(_xlpm.col=\"\",_xlpm.row=\"\"),\"\",INDEX(SuffixesTable[], _xlpm.row, _xlpm.col)))","v":""}]
[315,null,null,{"$f":"_xlfn.IFNA(_xlfn.TEXTJOIN(\"; \",TRUE,INDEX(ItemDescriptionsTable[#Data],,MATCH($C331, ItemDescriptionsTable[#Headers], 0))),\"\")","v":""},null,null,null,null,null,null,null,null,null,null,null,null,null,null,{"$f":"_xlfn.LET(_xlpm.col,IF(NOT(OR(IsEmpty($B331),IsEmpty($C331),IsEmpty($E331))),MATCH($C331,ExtensionsTable[#Headers],0),\"\"),\n_xlpm.row,IF(_xlpm.col=\"\",\"\",ROW(INDEX(ExtensionsTable[], MATCH($E331, INDEX(ExtensionsTable[], , _xlpm.col), 0), 1))-ROW(ExtensionsTable[[#Headers],[Gene Expression ]])),\nIF(OR(_xlpm.col=\"\",_xlpm.row=\"\"),\"\",INDEX(SuffixesTable[], _xlpm.row, _xlpm.col)))","v":""}]
[316,null,null,{"$f":"_xlfn.IFNA(_xlfn.TEXTJOIN(\"; \",TRUE,INDEX(ItemDescriptionsTable[#Data],,MATCH($C332, ItemDescriptionsTable[#Headers], 0))),\"\")","v":""},null,null,null,null,null,null,null,null,null,null,null,null,null,null,{"$f":"_xlfn.LET(_xlpm.col,IF(NOT(OR(IsEmpty($B332),IsEmpty($C332),IsEmpty($E332))),MATCH($C332,ExtensionsTable[#Headers],0),\"\"),\n_xlpm.row,IF(_xlpm.col=\"\",\"\",ROW(INDEX(ExtensionsTable[], MATCH($E332, INDEX(ExtensionsTable[], , _xlpm.col), 0), 1))-ROW(ExtensionsTable[[#Headers],[Gene Expression ]])),\nIF(OR(_xlpm.col=\"\",_xlpm.row=\"\"),\"\",INDEX(SuffixesTable[], _xlpm.row, _xlpm.col)))","v":""}]
[317,null,null,{"$f":"_xlfn.IFNA(_xlfn.TEXTJOIN(\"; \",TRUE,INDEX(ItemDescriptionsTable[#Data],,MATCH($C333, ItemDescriptionsTable[#Headers], 0))),\"\")","v":""},null,null,null,null,null,null,null,null,null,null,null,null,null,null,{"$f":"_xlfn.LET(_xlpm.col,IF(NOT(OR(IsEmpty($B333),IsEmpty($C333),IsEmpty($E333))),MATCH($C333,ExtensionsTable[#Headers],0),\"\"),\n_xlpm.row,IF(_xlpm.col=\"\",\"\",ROW(INDEX(ExtensionsTable[], MATCH($E333, INDEX(ExtensionsTable[], , _xlpm.col), 0), 1))-ROW(ExtensionsTable[[#Headers],[Gene Expression ]])),\nIF(OR(_xlpm.col=\"\",_xlpm.row=\"\"),\"\",INDEX(SuffixesTable[], _xlpm.row, _xlpm.col)))","v":""}]
[318,null,null,{"$f":"_xlfn.IFNA(_xlfn.TEXTJOIN(\"; \",TRUE,INDEX(ItemDescriptionsTable[#Data],,MATCH($C334, ItemDescriptionsTable[#Headers], 0))),\"\")","v":""},null,null,null,null,null,null,null,null,null,null,null,null,null,null,{"$f":"_xlfn.LET(_xlpm.col,IF(NOT(OR(IsEmpty($B334),IsEmpty($C334),IsEmpty($E334))),MATCH($C334,ExtensionsTable[#Headers],0),\"\"),\n_xlpm.row,IF(_xlpm.col=\"\",\"\",ROW(INDEX(ExtensionsTable[], MATCH($E334, INDEX(ExtensionsTable[], , _xlpm.col), 0), 1))-ROW(ExtensionsTable[[#Headers],[Gene Expression ]])),\nIF(OR(_xlpm.col=\"\",_xlpm.row=\"\"),\"\",INDEX(SuffixesTable[], _xlpm.row, _xlpm.col)))","v":""}]
[319,null,null,{"$f":"_xlfn.IFNA(_xlfn.TEXTJOIN(\"; \",TRUE,INDEX(ItemDescriptionsTable[#Data],,MATCH($C335, ItemDescriptionsTable[#Headers], 0))),\"\")","v":""},null,null,null,null,null,null,null,null,null,null,null,null,null,null,{"$f":"_xlfn.LET(_xlpm.col,IF(NOT(OR(IsEmpty($B335),IsEmpty($C335),IsEmpty($E335))),MATCH($C335,ExtensionsTable[#Headers],0),\"\"),\n_xlpm.row,IF(_xlpm.col=\"\",\"\",ROW(INDEX(ExtensionsTable[], MATCH($E335, INDEX(ExtensionsTable[], , _xlpm.col), 0), 1))-ROW(ExtensionsTable[[#Headers],[Gene Expression ]])),\nIF(OR(_xlpm.col=\"\",_xlpm.row=\"\"),\"\",INDEX(SuffixesTable[], _xlpm.row, _xlpm.col)))","v":""}]
[320,null,null,{"$f":"_xlfn.IFNA(_xlfn.TEXTJOIN(\"; \",TRUE,INDEX(ItemDescriptionsTable[#Data],,MATCH($C336, ItemDescriptionsTable[#Headers], 0))),\"\")","v":""},null,null,null,null,null,null,null,null,null,null,null,null,null,null,{"$f":"_xlfn.LET(_xlpm.col,IF(NOT(OR(IsEmpty($B336),IsEmpty($C336),IsEmpty($E336))),MATCH($C336,ExtensionsTable[#Headers],0),\"\"),\n_xlpm.row,IF(_xlpm.col=\"\",\"\",ROW(INDEX(ExtensionsTable[], MATCH($E336, INDEX(ExtensionsTable[], , _xlpm.col), 0), 1))-ROW(ExtensionsTable[[#Headers],[Gene Expression ]])),\nIF(OR(_xlpm.col=\"\",_xlpm.row=\"\"),\"\",INDEX(SuffixesTable[], _xlpm.row, _xlpm.col)))","v":""}]
[321,null,null,{"$f":"_xlfn.IFNA(_xlfn.TEXTJOIN(\"; \",TRUE,INDEX(ItemDescriptionsTable[#Data],,MATCH($C337, ItemDescriptionsTable[#Headers], 0))),\"\")","v":""},null,null,null,null,null,null,null,null,null,null,null,null,null,null,{"$f":"_xlfn.LET(_xlpm.col,IF(NOT(OR(IsEmpty($B337),IsEmpty($C337),IsEmpty($E337))),MATCH($C337,ExtensionsTable[#Headers],0),\"\"),\n_xlpm.row,IF(_xlpm.col=\"\",\"\",ROW(INDEX(ExtensionsTable[], MATCH($E337, INDEX(ExtensionsTable[], , _xlpm.col), 0), 1))-ROW(ExtensionsTable[[#Headers],[Gene Expression ]])),\nIF(OR(_xlpm.col=\"\",_xlpm.row=\"\"),\"\",INDEX(SuffixesTable[], _xlpm.row, _xlpm.col)))","v":""}]
[322,null,null,{"$f":"_xlfn.IFNA(_xlfn.TEXTJOIN(\"; \",TRUE,INDEX(ItemDescriptionsTable[#Data],,MATCH($C338, ItemDescriptionsTable[#Headers], 0))),\"\")","v":""},null,null,null,null,null,null,null,null,null,null,null,null,null,null,{"$f":"_xlfn.LET(_xlpm.col,IF(NOT(OR(IsEmpty($B338),IsEmpty($C338),IsEmpty($E338))),MATCH($C338,ExtensionsTable[#Headers],0),\"\"),\n_xlpm.row,IF(_xlpm.col=\"\",\"\",ROW(INDEX(ExtensionsTable[], MATCH($E338, INDEX(ExtensionsTable[], , _xlpm.col), 0), 1))-ROW(ExtensionsTable[[#Headers],[Gene Expression ]])),\nIF(OR(_xlpm.col=\"\",_xlpm.row=\"\"),\"\",INDEX(SuffixesTable[], _xlpm.row, _xlpm.col)))","v":""}]
[323,null,null,{"$f":"_xlfn.IFNA(_xlfn.TEXTJOIN(\"; \",TRUE,INDEX(ItemDescriptionsTable[#Data],,MATCH($C339, ItemDescriptionsTable[#Headers], 0))),\"\")","v":""},null,null,null,null,null,null,null,null,null,null,null,null,null,null,{"$f":"_xlfn.LET(_xlpm.col,IF(NOT(OR(IsEmpty($B339),IsEmpty($C339),IsEmpty($E339))),MATCH($C339,ExtensionsTable[#Headers],0),\"\"),\n_xlpm.row,IF(_xlpm.col=\"\",\"\",ROW(INDEX(ExtensionsTable[], MATCH($E339, INDEX(ExtensionsTable[], , _xlpm.col), 0), 1))-ROW(ExtensionsTable[[#Headers],[Gene Expression ]])),\nIF(OR(_xlpm.col=\"\",_xlpm.row=\"\"),\"\",INDEX(SuffixesTable[], _xlpm.row, _xlpm.col)))","v":""}]
[324,null,null,{"$f":"_xlfn.IFNA(_xlfn.TEXTJOIN(\"; \",TRUE,INDEX(ItemDescriptionsTable[#Data],,MATCH($C340, ItemDescriptionsTable[#Headers], 0))),\"\")","v":""},null,null,null,null,null,null,null,null,null,null,null,null,null,null,{"$f":"_xlfn.LET(_xlpm.col,IF(NOT(OR(IsEmpty($B340),IsEmpty($C340),IsEmpty($E340))),MATCH($C340,ExtensionsTable[#Headers],0),\"\"),\n_xlpm.row,IF(_xlpm.col=\"\",\"\",ROW(INDEX(ExtensionsTable[], MATCH($E340, INDEX(ExtensionsTable[], , _xlpm.col), 0), 1))-ROW(ExtensionsTable[[#Headers],[Gene Expression ]])),\nIF(OR(_xlpm.col=\"\",_xlpm.row=\"\"),\"\",INDEX(SuffixesTable[], _xlpm.row, _xlpm.col)))","v":""}]
[325,null,null,{"$f":"_xlfn.IFNA(_xlfn.TEXTJOIN(\"; \",TRUE,INDEX(ItemDescriptionsTable[#Data],,MATCH($C341, ItemDescriptionsTable[#Headers], 0))),\"\")","v":""},null,null,null,null,null,null,null,null,null,null,null,null,null,null,{"$f":"_xlfn.LET(_xlpm.col,IF(NOT(OR(IsEmpty($B341),IsEmpty($C341),IsEmpty($E341))),MATCH($C341,ExtensionsTable[#Headers],0),\"\"),\n_xlpm.row,IF(_xlpm.col=\"\",\"\",ROW(INDEX(ExtensionsTable[], MATCH($E341, INDEX(ExtensionsTable[], , _xlpm.col), 0), 1))-ROW(ExtensionsTable[[#Headers],[Gene Expression ]])),\nIF(OR(_xlpm.col=\"\",_xlpm.row=\"\"),\"\",INDEX(SuffixesTable[], _xlpm.row, _xlpm.col)))","v":""}]
[326,null,null,{"$f":"_xlfn.IFNA(_xlfn.TEXTJOIN(\"; \",TRUE,INDEX(ItemDescriptionsTable[#Data],,MATCH($C342, ItemDescriptionsTable[#Headers], 0))),\"\")","v":""},null,null,null,null,null,null,null,null,null,null,null,null,null,null,{"$f":"_xlfn.LET(_xlpm.col,IF(NOT(OR(IsEmpty($B342),IsEmpty($C342),IsEmpty($E342))),MATCH($C342,ExtensionsTable[#Headers],0),\"\"),\n_xlpm.row,IF(_xlpm.col=\"\",\"\",ROW(INDEX(ExtensionsTable[], MATCH($E342, INDEX(ExtensionsTable[], , _xlpm.col), 0), 1))-ROW(ExtensionsTable[[#Headers],[Gene Expression ]])),\nIF(OR(_xlpm.col=\"\",_xlpm.row=\"\"),\"\",INDEX(SuffixesTable[], _xlpm.row, _xlpm.col)))","v":""}]
[327,null,null,{"$f":"_xlfn.IFNA(_xlfn.TEXTJOIN(\"; \",TRUE,INDEX(ItemDescriptionsTable[#Data],,MATCH($C343, ItemDescriptionsTable[#Headers], 0))),\"\")","v":""},null,null,null,null,null,null,null,null,null,null,null,null,null,null,{"$f":"_xlfn.LET(_xlpm.col,IF(NOT(OR(IsEmpty($B343),IsEmpty($C343),IsEmpty($E343))),MATCH($C343,ExtensionsTable[#Headers],0),\"\"),\n_xlpm.row,IF(_xlpm.col=\"\",\"\",ROW(INDEX(ExtensionsTable[], MATCH($E343, INDEX(ExtensionsTable[], , _xlpm.col), 0), 1))-ROW(ExtensionsTable[[#Headers],[Gene Expression ]])),\nIF(OR(_xlpm.col=\"\",_xlpm.row=\"\"),\"\",INDEX(SuffixesTable[], _xlpm.row, _xlpm.col)))","v":""}]
[328,null,null,{"$f":"_xlfn.IFNA(_xlfn.TEXTJOIN(\"; \",TRUE,INDEX(ItemDescriptionsTable[#Data],,MATCH($C344, ItemDescriptionsTable[#Headers], 0))),\"\")","v":""},null,null,null,null,null,null,null,null,null,null,null,null,null,null,{"$f":"_xlfn.LET(_xlpm.col,IF(NOT(OR(IsEmpty($B344),IsEmpty($C344),IsEmpty($E344))),MATCH($C344,ExtensionsTable[#Headers],0),\"\"),\n_xlpm.row,IF(_xlpm.col=\"\",\"\",ROW(INDEX(ExtensionsTable[], MATCH($E344, INDEX(ExtensionsTable[], , _xlpm.col), 0), 1))-ROW(ExtensionsTable[[#Headers],[Gene Expression ]])),\nIF(OR(_xlpm.col=\"\",_xlpm.row=\"\"),\"\",INDEX(SuffixesTable[], _xlpm.row, _xlpm.col)))","v":""}]
[329,null,null,{"$f":"_xlfn.IFNA(_xlfn.TEXTJOIN(\"; \",TRUE,INDEX(ItemDescriptionsTable[#Data],,MATCH($C345, ItemDescriptionsTable[#Headers], 0))),\"\")","v":""},null,null,null,null,null,null,null,null,null,null,null,null,null,null,{"$f":"_xlfn.LET(_xlpm.col,IF(NOT(OR(IsEmpty($B345),IsEmpty($C345),IsEmpty($E345))),MATCH($C345,ExtensionsTable[#Headers],0),\"\"),\n_xlpm.row,IF(_xlpm.col=\"\",\"\",ROW(INDEX(ExtensionsTable[], MATCH($E345, INDEX(ExtensionsTable[], , _xlpm.col), 0), 1))-ROW(ExtensionsTable[[#Headers],[Gene Expression ]])),\nIF(OR(_xlpm.col=\"\",_xlpm.row=\"\"),\"\",INDEX(SuffixesTable[], _xlpm.row, _xlpm.col)))","v":""}]
[330,null,null,{"$f":"_xlfn.IFNA(_xlfn.TEXTJOIN(\"; \",TRUE,INDEX(ItemDescriptionsTable[#Data],,MATCH($C346, ItemDescriptionsTable[#Headers], 0))),\"\")","v":""},null,null,null,null,null,null,null,null,null,null,null,null,null,null,{"$f":"_xlfn.LET(_xlpm.col,IF(NOT(OR(IsEmpty($B346),IsEmpty($C346),IsEmpty($E346))),MATCH($C346,ExtensionsTable[#Headers],0),\"\"),\n_xlpm.row,IF(_xlpm.col=\"\",\"\",ROW(INDEX(ExtensionsTable[], MATCH($E346, INDEX(ExtensionsTable[], , _xlpm.col), 0), 1))-ROW(ExtensionsTable[[#Headers],[Gene Expression ]])),\nIF(OR(_xlpm.col=\"\",_xlpm.row=\"\"),\"\",INDEX(SuffixesTable[], _xlpm.row, _xlpm.col)))","v":""}]
[331,null,null,{"$f":"_xlfn.IFNA(_xlfn.TEXTJOIN(\"; \",TRUE,INDEX(ItemDescriptionsTable[#Data],,MATCH($C347, ItemDescriptionsTable[#Headers], 0))),\"\")","v":""},null,null,null,null,null,null,null,null,null,null,null,null,null,null,{"$f":"_xlfn.LET(_xlpm.col,IF(NOT(OR(IsEmpty($B347),IsEmpty($C347),IsEmpty($E347))),MATCH($C347,ExtensionsTable[#Headers],0),\"\"),\n_xlpm.row,IF(_xlpm.col=\"\",\"\",ROW(INDEX(ExtensionsTable[], MATCH($E347, INDEX(ExtensionsTable[], , _xlpm.col), 0), 1))-ROW(ExtensionsTable[[#Headers],[Gene Expression ]])),\nIF(OR(_xlpm.col=\"\",_xlpm.row=\"\"),\"\",INDEX(SuffixesTable[], _xlpm.row, _xlpm.col)))","v":""}]
[332,null,null,{"$f":"_xlfn.IFNA(_xlfn.TEXTJOIN(\"; \",TRUE,INDEX(ItemDescriptionsTable[#Data],,MATCH($C348, ItemDescriptionsTable[#Headers], 0))),\"\")","v":""},null,null,null,null,null,null,null,null,null,null,null,null,null,null,{"$f":"_xlfn.LET(_xlpm.col,IF(NOT(OR(IsEmpty($B348),IsEmpty($C348),IsEmpty($E348))),MATCH($C348,ExtensionsTable[#Headers],0),\"\"),\n_xlpm.row,IF(_xlpm.col=\"\",\"\",ROW(INDEX(ExtensionsTable[], MATCH($E348, INDEX(ExtensionsTable[], , _xlpm.col), 0), 1))-ROW(ExtensionsTable[[#Headers],[Gene Expression ]])),\nIF(OR(_xlpm.col=\"\",_xlpm.row=\"\"),\"\",INDEX(SuffixesTable[], _xlpm.row, _xlpm.col)))","v":""}]
[333,null,null,{"$f":"_xlfn.IFNA(_xlfn.TEXTJOIN(\"; \",TRUE,INDEX(ItemDescriptionsTable[#Data],,MATCH($C349, ItemDescriptionsTable[#Headers], 0))),\"\")","v":""},null,null,null,null,null,null,null,null,null,null,null,null,null,null,{"$f":"_xlfn.LET(_xlpm.col,IF(NOT(OR(IsEmpty($B349),IsEmpty($C349),IsEmpty($E349))),MATCH($C349,ExtensionsTable[#Headers],0),\"\"),\n_xlpm.row,IF(_xlpm.col=\"\",\"\",ROW(INDEX(ExtensionsTable[], MATCH($E349, INDEX(ExtensionsTable[], , _xlpm.col), 0), 1))-ROW(ExtensionsTable[[#Headers],[Gene Expression ]])),\nIF(OR(_xlpm.col=\"\",_xlpm.row=\"\"),\"\",INDEX(SuffixesTable[], _xlpm.row, _xlpm.col)))","v":""}]
[334,null,null,{"$f":"_xlfn.IFNA(_xlfn.TEXTJOIN(\"; \",TRUE,INDEX(ItemDescriptionsTable[#Data],,MATCH($C350, ItemDescriptionsTable[#Headers], 0))),\"\")","v":""},null,null,null,null,null,null,null,null,null,null,null,null,null,null,{"$f":"_xlfn.LET(_xlpm.col,IF(NOT(OR(IsEmpty($B350),IsEmpty($C350),IsEmpty($E350))),MATCH($C350,ExtensionsTable[#Headers],0),\"\"),\n_xlpm.row,IF(_xlpm.col=\"\",\"\",ROW(INDEX(ExtensionsTable[], MATCH($E350, INDEX(ExtensionsTable[], , _xlpm.col), 0), 1))-ROW(ExtensionsTable[[#Headers],[Gene Expression ]])),\nIF(OR(_xlpm.col=\"\",_xlpm.row=\"\"),\"\",INDEX(SuffixesTable[], _xlpm.row, _xlpm.col)))","v":""}]
[335,null,null,{"$f":"_xlfn.IFNA(_xlfn.TEXTJOIN(\"; \",TRUE,INDEX(ItemDescriptionsTable[#Data],,MATCH($C351, ItemDescriptionsTable[#Headers], 0))),\"\")","v":""},null,null,null,null,null,null,null,null,null,null,null,null,null,null,{"$f":"_xlfn.LET(_xlpm.col,IF(NOT(OR(IsEmpty($B351),IsEmpty($C351),IsEmpty($E351))),MATCH($C351,ExtensionsTable[#Headers],0),\"\"),\n_xlpm.row,IF(_xlpm.col=\"\",\"\",ROW(INDEX(ExtensionsTable[], MATCH($E351, INDEX(ExtensionsTable[], , _xlpm.col), 0), 1))-ROW(ExtensionsTable[[#Headers],[Gene Expression ]])),\nIF(OR(_xlpm.col=\"\",_xlpm.row=\"\"),\"\",INDEX(SuffixesTable[], _xlpm.row, _xlpm.col)))","v":""}]
[336,null,null,{"$f":"_xlfn.IFNA(_xlfn.TEXTJOIN(\"; \",TRUE,INDEX(ItemDescriptionsTable[#Data],,MATCH($C352, ItemDescriptionsTable[#Headers], 0))),\"\")","v":""},null,null,null,null,null,null,null,null,null,null,null,null,null,null,{"$f":"_xlfn.LET(_xlpm.col,IF(NOT(OR(IsEmpty($B352),IsEmpty($C352),IsEmpty($E352))),MATCH($C352,ExtensionsTable[#Headers],0),\"\"),\n_xlpm.row,IF(_xlpm.col=\"\",\"\",ROW(INDEX(ExtensionsTable[], MATCH($E352, INDEX(ExtensionsTable[], , _xlpm.col), 0), 1))-ROW(ExtensionsTable[[#Headers],[Gene Expression ]])),\nIF(OR(_xlpm.col=\"\",_xlpm.row=\"\"),\"\",INDEX(SuffixesTable[], _xlpm.row, _xlpm.col)))","v":""}]
[337,null,null,{"$f":"_xlfn.IFNA(_xlfn.TEXTJOIN(\"; \",TRUE,INDEX(ItemDescriptionsTable[#Data],,MATCH($C353, ItemDescriptionsTable[#Headers], 0))),\"\")","v":""},null,null,null,null,null,null,null,null,null,null,null,null,null,null,{"$f":"_xlfn.LET(_xlpm.col,IF(NOT(OR(IsEmpty($B353),IsEmpty($C353),IsEmpty($E353))),MATCH($C353,ExtensionsTable[#Headers],0),\"\"),\n_xlpm.row,IF(_xlpm.col=\"\",\"\",ROW(INDEX(ExtensionsTable[], MATCH($E353, INDEX(ExtensionsTable[], , _xlpm.col), 0), 1))-ROW(ExtensionsTable[[#Headers],[Gene Expression ]])),\nIF(OR(_xlpm.col=\"\",_xlpm.row=\"\"),\"\",INDEX(SuffixesTable[], _xlpm.row, _xlpm.col)))","v":""}]
[338,null,null,{"$f":"_xlfn.IFNA(_xlfn.TEXTJOIN(\"; \",TRUE,INDEX(ItemDescriptionsTable[#Data],,MATCH($C354, ItemDescriptionsTable[#Headers], 0))),\"\")","v":""},null,null,null,null,null,null,null,null,null,null,null,null,null,null,{"$f":"_xlfn.LET(_xlpm.col,IF(NOT(OR(IsEmpty($B354),IsEmpty($C354),IsEmpty($E354))),MATCH($C354,ExtensionsTable[#Headers],0),\"\"),\n_xlpm.row,IF(_xlpm.col=\"\",\"\",ROW(INDEX(ExtensionsTable[], MATCH($E354, INDEX(ExtensionsTable[], , _xlpm.col), 0), 1))-ROW(ExtensionsTable[[#Headers],[Gene Expression ]])),\nIF(OR(_xlpm.col=\"\",_xlpm.row=\"\"),\"\",INDEX(SuffixesTable[], _xlpm.row, _xlpm.col)))","v":""}]
[339,null,null,{"$f":"_xlfn.IFNA(_xlfn.TEXTJOIN(\"; \",TRUE,INDEX(ItemDescriptionsTable[#Data],,MATCH($C355, ItemDescriptionsTable[#Headers], 0))),\"\")","v":""},null,null,null,null,null,null,null,null,null,null,null,null,null,null,{"$f":"_xlfn.LET(_xlpm.col,IF(NOT(OR(IsEmpty($B355),IsEmpty($C355),IsEmpty($E355))),MATCH($C355,ExtensionsTable[#Headers],0),\"\"),\n_xlpm.row,IF(_xlpm.col=\"\",\"\",ROW(INDEX(ExtensionsTable[], MATCH($E355, INDEX(ExtensionsTable[], , _xlpm.col), 0), 1))-ROW(ExtensionsTable[[#Headers],[Gene Expression ]])),\nIF(OR(_xlpm.col=\"\",_xlpm.row=\"\"),\"\",INDEX(SuffixesTable[], _xlpm.row, _xlpm.col)))","v":""}]
[340,null,null,{"$f":"_xlfn.IFNA(_xlfn.TEXTJOIN(\"; \",TRUE,INDEX(ItemDescriptionsTable[#Data],,MATCH($C356, ItemDescriptionsTable[#Headers], 0))),\"\")","v":""},null,null,null,null,null,null,null,null,null,null,null,null,null,null,{"$f":"_xlfn.LET(_xlpm.col,IF(NOT(OR(IsEmpty($B356),IsEmpty($C356),IsEmpty($E356))),MATCH($C356,ExtensionsTable[#Headers],0),\"\"),\n_xlpm.row,IF(_xlpm.col=\"\",\"\",ROW(INDEX(ExtensionsTable[], MATCH($E356, INDEX(ExtensionsTable[], , _xlpm.col), 0), 1))-ROW(ExtensionsTable[[#Headers],[Gene Expression ]])),\nIF(OR(_xlpm.col=\"\",_xlpm.row=\"\"),\"\",INDEX(SuffixesTable[], _xlpm.row, _xlpm.col)))","v":""}]
[341,null,null,{"$f":"_xlfn.IFNA(_xlfn.TEXTJOIN(\"; \",TRUE,INDEX(ItemDescriptionsTable[#Data],,MATCH($C357, ItemDescriptionsTable[#Headers], 0))),\"\")","v":""},null,null,null,null,null,null,null,null,null,null,null,null,null,null,{"$f":"_xlfn.LET(_xlpm.col,IF(NOT(OR(IsEmpty($B357),IsEmpty($C357),IsEmpty($E357))),MATCH($C357,ExtensionsTable[#Headers],0),\"\"),\n_xlpm.row,IF(_xlpm.col=\"\",\"\",ROW(INDEX(ExtensionsTable[], MATCH($E357, INDEX(ExtensionsTable[], , _xlpm.col), 0), 1))-ROW(ExtensionsTable[[#Headers],[Gene Expression ]])),\nIF(OR(_xlpm.col=\"\",_xlpm.row=\"\"),\"\",INDEX(SuffixesTable[], _xlpm.row, _xlpm.col)))","v":""}]
[342,null,null,{"$f":"_xlfn.IFNA(_xlfn.TEXTJOIN(\"; \",TRUE,INDEX(ItemDescriptionsTable[#Data],,MATCH($C358, ItemDescriptionsTable[#Headers], 0))),\"\")","v":""},null,null,null,null,null,null,null,null,null,null,null,null,null,null,{"$f":"_xlfn.LET(_xlpm.col,IF(NOT(OR(IsEmpty($B358),IsEmpty($C358),IsEmpty($E358))),MATCH($C358,ExtensionsTable[#Headers],0),\"\"),\n_xlpm.row,IF(_xlpm.col=\"\",\"\",ROW(INDEX(ExtensionsTable[], MATCH($E358, INDEX(ExtensionsTable[], , _xlpm.col), 0), 1))-ROW(ExtensionsTable[[#Headers],[Gene Expression ]])),\nIF(OR(_xlpm.col=\"\",_xlpm.row=\"\"),\"\",INDEX(SuffixesTable[], _xlpm.row, _xlpm.col)))","v":""}]
[343,null,null,{"$f":"_xlfn.IFNA(_xlfn.TEXTJOIN(\"; \",TRUE,INDEX(ItemDescriptionsTable[#Data],,MATCH($C359, ItemDescriptionsTable[#Headers], 0))),\"\")","v":""},null,null,null,null,null,null,null,null,null,null,null,null,null,null,{"$f":"_xlfn.LET(_xlpm.col,IF(NOT(OR(IsEmpty($B359),IsEmpty($C359),IsEmpty($E359))),MATCH($C359,ExtensionsTable[#Headers],0),\"\"),\n_xlpm.row,IF(_xlpm.col=\"\",\"\",ROW(INDEX(ExtensionsTable[], MATCH($E359, INDEX(ExtensionsTable[], , _xlpm.col), 0), 1))-ROW(ExtensionsTable[[#Headers],[Gene Expression ]])),\nIF(OR(_xlpm.col=\"\",_xlpm.row=\"\"),\"\",INDEX(SuffixesTable[], _xlpm.row, _xlpm.col)))","v":""}]
[344,null,null,{"$f":"_xlfn.IFNA(_xlfn.TEXTJOIN(\"; \",TRUE,INDEX(ItemDescriptionsTable[#Data],,MATCH($C360, ItemDescriptionsTable[#Headers], 0))),\"\")","v":""},null,null,null,null,null,null,null,null,null,null,null,null,null,null,{"$f":"_xlfn.LET(_xlpm.col,IF(NOT(OR(IsEmpty($B360),IsEmpty($C360),IsEmpty($E360))),MATCH($C360,ExtensionsTable[#Headers],0),\"\"),\n_xlpm.row,IF(_xlpm.col=\"\",\"\",ROW(INDEX(ExtensionsTable[], MATCH($E360, INDEX(ExtensionsTable[], , _xlpm.col), 0), 1))-ROW(ExtensionsTable[[#Headers],[Gene Expression ]])),\nIF(OR(_xlpm.col=\"\",_xlpm.row=\"\"),\"\",INDEX(SuffixesTable[], _xlpm.row, _xlpm.col)))","v":""}]
[345,null,null,{"$f":"_xlfn.IFNA(_xlfn.TEXTJOIN(\"; \",TRUE,INDEX(ItemDescriptionsTable[#Data],,MATCH($C361, ItemDescriptionsTable[#Headers], 0))),\"\")","v":""},null,null,null,null,null,null,null,null,null,null,null,null,null,null,{"$f":"_xlfn.LET(_xlpm.col,IF(NOT(OR(IsEmpty($B361),IsEmpty($C361),IsEmpty($E361))),MATCH($C361,ExtensionsTable[#Headers],0),\"\"),\n_xlpm.row,IF(_xlpm.col=\"\",\"\",ROW(INDEX(ExtensionsTable[], MATCH($E361, INDEX(ExtensionsTable[], , _xlpm.col), 0), 1))-ROW(ExtensionsTable[[#Headers],[Gene Expression ]])),\nIF(OR(_xlpm.col=\"\",_xlpm.row=\"\"),\"\",INDEX(SuffixesTable[], _xlpm.row, _xlpm.col)))","v":""}]
[346,null,null,{"$f":"_xlfn.IFNA(_xlfn.TEXTJOIN(\"; \",TRUE,INDEX(ItemDescriptionsTable[#Data],,MATCH($C362, ItemDescriptionsTable[#Headers], 0))),\"\")","v":""},null,null,null,null,null,null,null,null,null,null,null,null,null,null,{"$f":"_xlfn.LET(_xlpm.col,IF(NOT(OR(IsEmpty($B362),IsEmpty($C362),IsEmpty($E362))),MATCH($C362,ExtensionsTable[#Headers],0),\"\"),\n_xlpm.row,IF(_xlpm.col=\"\",\"\",ROW(INDEX(ExtensionsTable[], MATCH($E362, INDEX(ExtensionsTable[], , _xlpm.col), 0), 1))-ROW(ExtensionsTable[[#Headers],[Gene Expression ]])),\nIF(OR(_xlpm.col=\"\",_xlpm.row=\"\"),\"\",INDEX(SuffixesTable[], _xlpm.row, _xlpm.col)))","v":""}]
[347,null,null,{"$f":"_xlfn.IFNA(_xlfn.TEXTJOIN(\"; \",TRUE,INDEX(ItemDescriptionsTable[#Data],,MATCH($C363, ItemDescriptionsTable[#Headers], 0))),\"\")","v":""},null,null,null,null,null,null,null,null,null,null,null,null,null,null,{"$f":"_xlfn.LET(_xlpm.col,IF(NOT(OR(IsEmpty($B363),IsEmpty($C363),IsEmpty($E363))),MATCH($C363,ExtensionsTable[#Headers],0),\"\"),\n_xlpm.row,IF(_xlpm.col=\"\",\"\",ROW(INDEX(ExtensionsTable[], MATCH($E363, INDEX(ExtensionsTable[], , _xlpm.col), 0), 1))-ROW(ExtensionsTable[[#Headers],[Gene Expression ]])),\nIF(OR(_xlpm.col=\"\",_xlpm.row=\"\"),\"\",INDEX(SuffixesTable[], _xlpm.row, _xlpm.col)))","v":""}]
[348,null,null,{"$f":"_xlfn.IFNA(_xlfn.TEXTJOIN(\"; \",TRUE,INDEX(ItemDescriptionsTable[#Data],,MATCH($C364, ItemDescriptionsTable[#Headers], 0))),\"\")","v":""},null,null,null,null,null,null,null,null,null,null,null,null,null,null,{"$f":"_xlfn.LET(_xlpm.col,IF(NOT(OR(IsEmpty($B364),IsEmpty($C364),IsEmpty($E364))),MATCH($C364,ExtensionsTable[#Headers],0),\"\"),\n_xlpm.row,IF(_xlpm.col=\"\",\"\",ROW(INDEX(ExtensionsTable[], MATCH($E364, INDEX(ExtensionsTable[], , _xlpm.col), 0), 1))-ROW(ExtensionsTable[[#Headers],[Gene Expression ]])),\nIF(OR(_xlpm.col=\"\",_xlpm.row=\"\"),\"\",INDEX(SuffixesTable[], _xlpm.row, _xlpm.col)))","v":""}]
[349,null,null,{"$f":"_xlfn.IFNA(_xlfn.TEXTJOIN(\"; \",TRUE,INDEX(ItemDescriptionsTable[#Data],,MATCH($C365, ItemDescriptionsTable[#Headers], 0))),\"\")","v":""},null,null,null,null,null,null,null,null,null,null,null,null,null,null,{"$f":"_xlfn.LET(_xlpm.col,IF(NOT(OR(IsEmpty($B365),IsEmpty($C365),IsEmpty($E365))),MATCH($C365,ExtensionsTable[#Headers],0),\"\"),\n_xlpm.row,IF(_xlpm.col=\"\",\"\",ROW(INDEX(ExtensionsTable[], MATCH($E365, INDEX(ExtensionsTable[], , _xlpm.col), 0), 1))-ROW(ExtensionsTable[[#Headers],[Gene Expression ]])),\nIF(OR(_xlpm.col=\"\",_xlpm.row=\"\"),\"\",INDEX(SuffixesTable[], _xlpm.row, _xlpm.col)))","v":""}]
[350,null,null,{"$f":"_xlfn.IFNA(_xlfn.TEXTJOIN(\"; \",TRUE,INDEX(ItemDescriptionsTable[#Data],,MATCH($C366, ItemDescriptionsTable[#Headers], 0))),\"\")","v":""},null,null,null,null,null,null,null,null,null,null,null,null,null,null,{"$f":"_xlfn.LET(_xlpm.col,IF(NOT(OR(IsEmpty($B366),IsEmpty($C366),IsEmpty($E366))),MATCH($C366,ExtensionsTable[#Headers],0),\"\"),\n_xlpm.row,IF(_xlpm.col=\"\",\"\",ROW(INDEX(ExtensionsTable[], MATCH($E366, INDEX(ExtensionsTable[], , _xlpm.col), 0), 1))-ROW(ExtensionsTable[[#Headers],[Gene Expression ]])),\nIF(OR(_xlpm.col=\"\",_xlpm.row=\"\"),\"\",INDEX(SuffixesTable[], _xlpm.row, _xlpm.col)))","v":""}]
[351,null,null,{"$f":"_xlfn.IFNA(_xlfn.TEXTJOIN(\"; \",TRUE,INDEX(ItemDescriptionsTable[#Data],,MATCH($C367, ItemDescriptionsTable[#Headers], 0))),\"\")","v":""},null,null,null,null,null,null,null,null,null,null,null,null,null,null,{"$f":"_xlfn.LET(_xlpm.col,IF(NOT(OR(IsEmpty($B367),IsEmpty($C367),IsEmpty($E367))),MATCH($C367,ExtensionsTable[#Headers],0),\"\"),\n_xlpm.row,IF(_xlpm.col=\"\",\"\",ROW(INDEX(ExtensionsTable[], MATCH($E367, INDEX(ExtensionsTable[], , _xlpm.col), 0), 1))-ROW(ExtensionsTable[[#Headers],[Gene Expression ]])),\nIF(OR(_xlpm.col=\"\",_xlpm.row=\"\"),\"\",INDEX(SuffixesTable[], _xlpm.row, _xlpm.col)))","v":""}]
[352,null,null,{"$f":"_xlfn.IFNA(_xlfn.TEXTJOIN(\"; \",TRUE,INDEX(ItemDescriptionsTable[#Data],,MATCH($C368, ItemDescriptionsTable[#Headers], 0))),\"\")","v":""},null,null,null,null,null,null,null,null,null,null,null,null,null,null,{"$f":"_xlfn.LET(_xlpm.col,IF(NOT(OR(IsEmpty($B368),IsEmpty($C368),IsEmpty($E368))),MATCH($C368,ExtensionsTable[#Headers],0),\"\"),\n_xlpm.row,IF(_xlpm.col=\"\",\"\",ROW(INDEX(ExtensionsTable[], MATCH($E368, INDEX(ExtensionsTable[], , _xlpm.col), 0), 1))-ROW(ExtensionsTable[[#Headers],[Gene Expression ]])),\nIF(OR(_xlpm.col=\"\",_xlpm.row=\"\"),\"\",INDEX(SuffixesTable[], _xlpm.row, _xlpm.col)))","v":""}]
[353,null,null,{"$f":"_xlfn.IFNA(_xlfn.TEXTJOIN(\"; \",TRUE,INDEX(ItemDescriptionsTable[#Data],,MATCH($C369, ItemDescriptionsTable[#Headers], 0))),\"\")","v":""},null,null,null,null,null,null,null,null,null,null,null,null,null,null,{"$f":"_xlfn.LET(_xlpm.col,IF(NOT(OR(IsEmpty($B369),IsEmpty($C369),IsEmpty($E369))),MATCH($C369,ExtensionsTable[#Headers],0),\"\"),\n_xlpm.row,IF(_xlpm.col=\"\",\"\",ROW(INDEX(ExtensionsTable[], MATCH($E369, INDEX(ExtensionsTable[], , _xlpm.col), 0), 1))-ROW(ExtensionsTable[[#Headers],[Gene Expression ]])),\nIF(OR(_xlpm.col=\"\",_xlpm.row=\"\"),\"\",INDEX(SuffixesTable[], _xlpm.row, _xlpm.col)))","v":""}]
[354,null,null,{"$f":"_xlfn.IFNA(_xlfn.TEXTJOIN(\"; \",TRUE,INDEX(ItemDescriptionsTable[#Data],,MATCH($C370, ItemDescriptionsTable[#Headers], 0))),\"\")","v":""},null,null,null,null,null,null,null,null,null,null,null,null,null,null,{"$f":"_xlfn.LET(_xlpm.col,IF(NOT(OR(IsEmpty($B370),IsEmpty($C370),IsEmpty($E370))),MATCH($C370,ExtensionsTable[#Headers],0),\"\"),\n_xlpm.row,IF(_xlpm.col=\"\",\"\",ROW(INDEX(ExtensionsTable[], MATCH($E370, INDEX(ExtensionsTable[], , _xlpm.col), 0), 1))-ROW(ExtensionsTable[[#Headers],[Gene Expression ]])),\nIF(OR(_xlpm.col=\"\",_xlpm.row=\"\"),\"\",INDEX(SuffixesTable[], _xlpm.row, _xlpm.col)))","v":""}]
[355,null,null,{"$f":"_xlfn.IFNA(_xlfn.TEXTJOIN(\"; \",TRUE,INDEX(ItemDescriptionsTable[#Data],,MATCH($C371, ItemDescriptionsTable[#Headers], 0))),\"\")","v":""},null,null,null,null,null,null,null,null,null,null,null,null,null,null,{"$f":"_xlfn.LET(_xlpm.col,IF(NOT(OR(IsEmpty($B371),IsEmpty($C371),IsEmpty($E371))),MATCH($C371,ExtensionsTable[#Headers],0),\"\"),\n_xlpm.row,IF(_xlpm.col=\"\",\"\",ROW(INDEX(ExtensionsTable[], MATCH($E371, INDEX(ExtensionsTable[], , _xlpm.col), 0), 1))-ROW(ExtensionsTable[[#Headers],[Gene Expression ]])),\nIF(OR(_xlpm.col=\"\",_xlpm.row=\"\"),\"\",INDEX(SuffixesTable[], _xlpm.row, _xlpm.col)))","v":""}]
[356,null,null,{"$f":"_xlfn.IFNA(_xlfn.TEXTJOIN(\"; \",TRUE,INDEX(ItemDescriptionsTable[#Data],,MATCH($C372, ItemDescriptionsTable[#Headers], 0))),\"\")","v":""},null,null,null,null,null,null,null,null,null,null,null,null,null,null,{"$f":"_xlfn.LET(_xlpm.col,IF(NOT(OR(IsEmpty($B372),IsEmpty($C372),IsEmpty($E372))),MATCH($C372,ExtensionsTable[#Headers],0),\"\"),\n_xlpm.row,IF(_xlpm.col=\"\",\"\",ROW(INDEX(ExtensionsTable[], MATCH($E372, INDEX(ExtensionsTable[], , _xlpm.col), 0), 1))-ROW(ExtensionsTable[[#Headers],[Gene Expression ]])),\nIF(OR(_xlpm.col=\"\",_xlpm.row=\"\"),\"\",INDEX(SuffixesTable[], _xlpm.row, _xlpm.col)))","v":""}]
[357,null,null,{"$f":"_xlfn.IFNA(_xlfn.TEXTJOIN(\"; \",TRUE,INDEX(ItemDescriptionsTable[#Data],,MATCH($C373, ItemDescriptionsTable[#Headers], 0))),\"\")","v":""},null,null,null,null,null,null,null,null,null,null,null,null,null,null,{"$f":"_xlfn.LET(_xlpm.col,IF(NOT(OR(IsEmpty($B373),IsEmpty($C373),IsEmpty($E373))),MATCH($C373,ExtensionsTable[#Headers],0),\"\"),\n_xlpm.row,IF(_xlpm.col=\"\",\"\",ROW(INDEX(ExtensionsTable[], MATCH($E373, INDEX(ExtensionsTable[], , _xlpm.col), 0), 1))-ROW(ExtensionsTable[[#Headers],[Gene Expression ]])),\nIF(OR(_xlpm.col=\"\",_xlpm.row=\"\"),\"\",INDEX(SuffixesTable[], _xlpm.row, _xlpm.col)))","v":""}]
[358,null,null,{"$f":"_xlfn.IFNA(_xlfn.TEXTJOIN(\"; \",TRUE,INDEX(ItemDescriptionsTable[#Data],,MATCH($C374, ItemDescriptionsTable[#Headers], 0))),\"\")","v":""},null,null,null,null,null,null,null,null,null,null,null,null,null,null,{"$f":"_xlfn.LET(_xlpm.col,IF(NOT(OR(IsEmpty($B374),IsEmpty($C374),IsEmpty($E374))),MATCH($C374,ExtensionsTable[#Headers],0),\"\"),\n_xlpm.row,IF(_xlpm.col=\"\",\"\",ROW(INDEX(ExtensionsTable[], MATCH($E374, INDEX(ExtensionsTable[], , _xlpm.col), 0), 1))-ROW(ExtensionsTable[[#Headers],[Gene Expression ]])),\nIF(OR(_xlpm.col=\"\",_xlpm.row=\"\"),\"\",INDEX(SuffixesTable[], _xlpm.row, _xlpm.col)))","v":""}]
[359,null,null,{"$f":"_xlfn.IFNA(_xlfn.TEXTJOIN(\"; \",TRUE,INDEX(ItemDescriptionsTable[#Data],,MATCH($C375, ItemDescriptionsTable[#Headers], 0))),\"\")","v":""},null,null,null,null,null,null,null,null,null,null,null,null,null,null,{"$f":"_xlfn.LET(_xlpm.col,IF(NOT(OR(IsEmpty($B375),IsEmpty($C375),IsEmpty($E375))),MATCH($C375,ExtensionsTable[#Headers],0),\"\"),\n_xlpm.row,IF(_xlpm.col=\"\",\"\",ROW(INDEX(ExtensionsTable[], MATCH($E375, INDEX(ExtensionsTable[], , _xlpm.col), 0), 1))-ROW(ExtensionsTable[[#Headers],[Gene Expression ]])),\nIF(OR(_xlpm.col=\"\",_xlpm.row=\"\"),\"\",INDEX(SuffixesTable[], _xlpm.row, _xlpm.col)))","v":""}]
[360,null,null,{"$f":"_xlfn.IFNA(_xlfn.TEXTJOIN(\"; \",TRUE,INDEX(ItemDescriptionsTable[#Data],,MATCH($C376, ItemDescriptionsTable[#Headers], 0))),\"\")","v":""},null,null,null,null,null,null,null,null,null,null,null,null,null,null,{"$f":"_xlfn.LET(_xlpm.col,IF(NOT(OR(IsEmpty($B376),IsEmpty($C376),IsEmpty($E376))),MATCH($C376,ExtensionsTable[#Headers],0),\"\"),\n_xlpm.row,IF(_xlpm.col=\"\",\"\",ROW(INDEX(ExtensionsTable[], MATCH($E376, INDEX(ExtensionsTable[], , _xlpm.col), 0), 1))-ROW(ExtensionsTable[[#Headers],[Gene Expression ]])),\nIF(OR(_xlpm.col=\"\",_xlpm.row=\"\"),\"\",INDEX(SuffixesTable[], _xlpm.row, _xlpm.col)))","v":""}]
[361,null,null,{"$f":"_xlfn.IFNA(_xlfn.TEXTJOIN(\"; \",TRUE,INDEX(ItemDescriptionsTable[#Data],,MATCH($C377, ItemDescriptionsTable[#Headers], 0))),\"\")","v":""},null,null,null,null,null,null,null,null,null,null,null,null,null,null,{"$f":"_xlfn.LET(_xlpm.col,IF(NOT(OR(IsEmpty($B377),IsEmpty($C377),IsEmpty($E377))),MATCH($C377,ExtensionsTable[#Headers],0),\"\"),\n_xlpm.row,IF(_xlpm.col=\"\",\"\",ROW(INDEX(ExtensionsTable[], MATCH($E377, INDEX(ExtensionsTable[], , _xlpm.col), 0), 1))-ROW(ExtensionsTable[[#Headers],[Gene Expression ]])),\nIF(OR(_xlpm.col=\"\",_xlpm.row=\"\"),\"\",INDEX(SuffixesTable[], _xlpm.row, _xlpm.col)))","v":""}]
[362,null,null,{"$f":"_xlfn.IFNA(_xlfn.TEXTJOIN(\"; \",TRUE,INDEX(ItemDescriptionsTable[#Data],,MATCH($C378, ItemDescriptionsTable[#Headers], 0))),\"\")","v":""},null,null,null,null,null,null,null,null,null,null,null,null,null,null,{"$f":"_xlfn.LET(_xlpm.col,IF(NOT(OR(IsEmpty($B378),IsEmpty($C378),IsEmpty($E378))),MATCH($C378,ExtensionsTable[#Headers],0),\"\"),\n_xlpm.row,IF(_xlpm.col=\"\",\"\",ROW(INDEX(ExtensionsTable[], MATCH($E378, INDEX(ExtensionsTable[], , _xlpm.col), 0), 1))-ROW(ExtensionsTable[[#Headers],[Gene Expression ]])),\nIF(OR(_xlpm.col=\"\",_xlpm.row=\"\"),\"\",INDEX(SuffixesTable[], _xlpm.row, _xlpm.col)))","v":""}]
[363,null,null,{"$f":"_xlfn.IFNA(_xlfn.TEXTJOIN(\"; \",TRUE,INDEX(ItemDescriptionsTable[#Data],,MATCH($C379, ItemDescriptionsTable[#Headers], 0))),\"\")","v":""},null,null,null,null,null,null,null,null,null,null,null,null,null,null,{"$f":"_xlfn.LET(_xlpm.col,IF(NOT(OR(IsEmpty($B379),IsEmpty($C379),IsEmpty($E379))),MATCH($C379,ExtensionsTable[#Headers],0),\"\"),\n_xlpm.row,IF(_xlpm.col=\"\",\"\",ROW(INDEX(ExtensionsTable[], MATCH($E379, INDEX(ExtensionsTable[], , _xlpm.col), 0), 1))-ROW(ExtensionsTable[[#Headers],[Gene Expression ]])),\nIF(OR(_xlpm.col=\"\",_xlpm.row=\"\"),\"\",INDEX(SuffixesTable[], _xlpm.row, _xlpm.col)))","v":""}]
[364,null,null,{"$f":"_xlfn.IFNA(_xlfn.TEXTJOIN(\"; \",TRUE,INDEX(ItemDescriptionsTable[#Data],,MATCH($C380, ItemDescriptionsTable[#Headers], 0))),\"\")","v":""},null,null,null,null,null,null,null,null,null,null,null,null,null,null,{"$f":"_xlfn.LET(_xlpm.col,IF(NOT(OR(IsEmpty($B380),IsEmpty($C380),IsEmpty($E380))),MATCH($C380,ExtensionsTable[#Headers],0),\"\"),\n_xlpm.row,IF(_xlpm.col=\"\",\"\",ROW(INDEX(ExtensionsTable[], MATCH($E380, INDEX(ExtensionsTable[], , _xlpm.col), 0), 1))-ROW(ExtensionsTable[[#Headers],[Gene Expression ]])),\nIF(OR(_xlpm.col=\"\",_xlpm.row=\"\"),\"\",INDEX(SuffixesTable[], _xlpm.row, _xlpm.col)))","v":""}]
[365,null,null,{"$f":"_xlfn.IFNA(_xlfn.TEXTJOIN(\"; \",TRUE,INDEX(ItemDescriptionsTable[#Data],,MATCH($C381, ItemDescriptionsTable[#Headers], 0))),\"\")","v":""},null,null,null,null,null,null,null,null,null,null,null,null,null,null,{"$f":"_xlfn.LET(_xlpm.col,IF(NOT(OR(IsEmpty($B381),IsEmpty($C381),IsEmpty($E381))),MATCH($C381,ExtensionsTable[#Headers],0),\"\"),\n_xlpm.row,IF(_xlpm.col=\"\",\"\",ROW(INDEX(ExtensionsTable[], MATCH($E381, INDEX(ExtensionsTable[], , _xlpm.col), 0), 1))-ROW(ExtensionsTable[[#Headers],[Gene Expression ]])),\nIF(OR(_xlpm.col=\"\",_xlpm.row=\"\"),\"\",INDEX(SuffixesTable[], _xlpm.row, _xlpm.col)))","v":""}]
[366,null,null,{"$f":"_xlfn.IFNA(_xlfn.TEXTJOIN(\"; \",TRUE,INDEX(ItemDescriptionsTable[#Data],,MATCH($C382, ItemDescriptionsTable[#Headers], 0))),\"\")","v":""},null,null,null,null,null,null,null,null,null,null,null,null,null,null,{"$f":"_xlfn.LET(_xlpm.col,IF(NOT(OR(IsEmpty($B382),IsEmpty($C382),IsEmpty($E382))),MATCH($C382,ExtensionsTable[#Headers],0),\"\"),\n_xlpm.row,IF(_xlpm.col=\"\",\"\",ROW(INDEX(ExtensionsTable[], MATCH($E382, INDEX(ExtensionsTable[], , _xlpm.col), 0), 1))-ROW(ExtensionsTable[[#Headers],[Gene Expression ]])),\nIF(OR(_xlpm.col=\"\",_xlpm.row=\"\"),\"\",INDEX(SuffixesTable[], _xlpm.row, _xlpm.col)))","v":""}]
[367,null,null,{"$f":"_xlfn.IFNA(_xlfn.TEXTJOIN(\"; \",TRUE,INDEX(ItemDescriptionsTable[#Data],,MATCH($C383, ItemDescriptionsTable[#Headers], 0))),\"\")","v":""},null,null,null,null,null,null,null,null,null,null,null,null,null,null,{"$f":"_xlfn.LET(_xlpm.col,IF(NOT(OR(IsEmpty($B383),IsEmpty($C383),IsEmpty($E383))),MATCH($C383,ExtensionsTable[#Headers],0),\"\"),\n_xlpm.row,IF(_xlpm.col=\"\",\"\",ROW(INDEX(ExtensionsTable[], MATCH($E383, INDEX(ExtensionsTable[], , _xlpm.col), 0), 1))-ROW(ExtensionsTable[[#Headers],[Gene Expression ]])),\nIF(OR(_xlpm.col=\"\",_xlpm.row=\"\"),\"\",INDEX(SuffixesTable[], _xlpm.row, _xlpm.col)))","v":""}]
[368,null,null,{"$f":"_xlfn.IFNA(_xlfn.TEXTJOIN(\"; \",TRUE,INDEX(ItemDescriptionsTable[#Data],,MATCH($C384, ItemDescriptionsTable[#Headers], 0))),\"\")","v":""},null,null,null,null,null,null,null,null,null,null,null,null,null,null,{"$f":"_xlfn.LET(_xlpm.col,IF(NOT(OR(IsEmpty($B384),IsEmpty($C384),IsEmpty($E384))),MATCH($C384,ExtensionsTable[#Headers],0),\"\"),\n_xlpm.row,IF(_xlpm.col=\"\",\"\",ROW(INDEX(ExtensionsTable[], MATCH($E384, INDEX(ExtensionsTable[], , _xlpm.col), 0), 1))-ROW(ExtensionsTable[[#Headers],[Gene Expression ]])),\nIF(OR(_xlpm.col=\"\",_xlpm.row=\"\"),\"\",INDEX(SuffixesTable[], _xlpm.row, _xlpm.col)))","v":""}]
[369,null,null,{"$f":"_xlfn.IFNA(_xlfn.TEXTJOIN(\"; \",TRUE,INDEX(ItemDescriptionsTable[#Data],,MATCH($C385, ItemDescriptionsTable[#Headers], 0))),\"\")","v":""},null,null,null,null,null,null,null,null,null,null,null,null,null,null,{"$f":"_xlfn.LET(_xlpm.col,IF(NOT(OR(IsEmpty($B385),IsEmpty($C385),IsEmpty($E385))),MATCH($C385,ExtensionsTable[#Headers],0),\"\"),\n_xlpm.row,IF(_xlpm.col=\"\",\"\",ROW(INDEX(ExtensionsTable[], MATCH($E385, INDEX(ExtensionsTable[], , _xlpm.col), 0), 1))-ROW(ExtensionsTable[[#Headers],[Gene Expression ]])),\nIF(OR(_xlpm.col=\"\",_xlpm.row=\"\"),\"\",INDEX(SuffixesTable[], _xlpm.row, _xlpm.col)))","v":""}]
[370,null,null,{"$f":"_xlfn.IFNA(_xlfn.TEXTJOIN(\"; \",TRUE,INDEX(ItemDescriptionsTable[#Data],,MATCH($C386, ItemDescriptionsTable[#Headers], 0))),\"\")","v":""},null,null,null,null,null,null,null,null,null,null,null,null,null,null,{"$f":"_xlfn.LET(_xlpm.col,IF(NOT(OR(IsEmpty($B386),IsEmpty($C386),IsEmpty($E386))),MATCH($C386,ExtensionsTable[#Headers],0),\"\"),\n_xlpm.row,IF(_xlpm.col=\"\",\"\",ROW(INDEX(ExtensionsTable[], MATCH($E386, INDEX(ExtensionsTable[], , _xlpm.col), 0), 1))-ROW(ExtensionsTable[[#Headers],[Gene Expression ]])),\nIF(OR(_xlpm.col=\"\",_xlpm.row=\"\"),\"\",INDEX(SuffixesTable[], _xlpm.row, _xlpm.col)))","v":""}]
[371,null,null,{"$f":"_xlfn.IFNA(_xlfn.TEXTJOIN(\"; \",TRUE,INDEX(ItemDescriptionsTable[#Data],,MATCH($C387, ItemDescriptionsTable[#Headers], 0))),\"\")","v":""},null,null,null,null,null,null,null,null,null,null,null,null,null,null,{"$f":"_xlfn.LET(_xlpm.col,IF(NOT(OR(IsEmpty($B387),IsEmpty($C387),IsEmpty($E387))),MATCH($C387,ExtensionsTable[#Headers],0),\"\"),\n_xlpm.row,IF(_xlpm.col=\"\",\"\",ROW(INDEX(ExtensionsTable[], MATCH($E387, INDEX(ExtensionsTable[], , _xlpm.col), 0), 1))-ROW(ExtensionsTable[[#Headers],[Gene Expression ]])),\nIF(OR(_xlpm.col=\"\",_xlpm.row=\"\"),\"\",INDEX(SuffixesTable[], _xlpm.row, _xlpm.col)))","v":""}]
[372,null,null,{"$f":"_xlfn.IFNA(_xlfn.TEXTJOIN(\"; \",TRUE,INDEX(ItemDescriptionsTable[#Data],,MATCH($C388, ItemDescriptionsTable[#Headers], 0))),\"\")","v":""},null,null,null,null,null,null,null,null,null,null,null,null,null,null,{"$f":"_xlfn.LET(_xlpm.col,IF(NOT(OR(IsEmpty($B388),IsEmpty($C388),IsEmpty($E388))),MATCH($C388,ExtensionsTable[#Headers],0),\"\"),\n_xlpm.row,IF(_xlpm.col=\"\",\"\",ROW(INDEX(ExtensionsTable[], MATCH($E388, INDEX(ExtensionsTable[], , _xlpm.col), 0), 1))-ROW(ExtensionsTable[[#Headers],[Gene Expression ]])),\nIF(OR(_xlpm.col=\"\",_xlpm.row=\"\"),\"\",INDEX(SuffixesTable[], _xlpm.row, _xlpm.col)))","v":""}]
[373,null,null,{"$f":"_xlfn.IFNA(_xlfn.TEXTJOIN(\"; \",TRUE,INDEX(ItemDescriptionsTable[#Data],,MATCH($C389, ItemDescriptionsTable[#Headers], 0))),\"\")","v":""},null,null,null,null,null,null,null,null,null,null,null,null,null,null,{"$f":"_xlfn.LET(_xlpm.col,IF(NOT(OR(IsEmpty($B389),IsEmpty($C389),IsEmpty($E389))),MATCH($C389,ExtensionsTable[#Headers],0),\"\"),\n_xlpm.row,IF(_xlpm.col=\"\",\"\",ROW(INDEX(ExtensionsTable[], MATCH($E389, INDEX(ExtensionsTable[], , _xlpm.col), 0), 1))-ROW(ExtensionsTable[[#Headers],[Gene Expression ]])),\nIF(OR(_xlpm.col=\"\",_xlpm.row=\"\"),\"\",INDEX(SuffixesTable[], _xlpm.row, _xlpm.col)))","v":""}]
[374,null,null,{"$f":"_xlfn.IFNA(_xlfn.TEXTJOIN(\"; \",TRUE,INDEX(ItemDescriptionsTable[#Data],,MATCH($C390, ItemDescriptionsTable[#Headers], 0))),\"\")","v":""},null,null,null,null,null,null,null,null,null,null,null,null,null,null,{"$f":"_xlfn.LET(_xlpm.col,IF(NOT(OR(IsEmpty($B390),IsEmpty($C390),IsEmpty($E390))),MATCH($C390,ExtensionsTable[#Headers],0),\"\"),\n_xlpm.row,IF(_xlpm.col=\"\",\"\",ROW(INDEX(ExtensionsTable[], MATCH($E390, INDEX(ExtensionsTable[], , _xlpm.col), 0), 1))-ROW(ExtensionsTable[[#Headers],[Gene Expression ]])),\nIF(OR(_xlpm.col=\"\",_xlpm.row=\"\"),\"\",INDEX(SuffixesTable[], _xlpm.row, _xlpm.col)))","v":""}]
[375,null,null,{"$f":"_xlfn.IFNA(_xlfn.TEXTJOIN(\"; \",TRUE,INDEX(ItemDescriptionsTable[#Data],,MATCH($C391, ItemDescriptionsTable[#Headers], 0))),\"\")","v":""},null,null,null,null,null,null,null,null,null,null,null,null,null,null,{"$f":"_xlfn.LET(_xlpm.col,IF(NOT(OR(IsEmpty($B391),IsEmpty($C391),IsEmpty($E391))),MATCH($C391,ExtensionsTable[#Headers],0),\"\"),\n_xlpm.row,IF(_xlpm.col=\"\",\"\",ROW(INDEX(ExtensionsTable[], MATCH($E391, INDEX(ExtensionsTable[], , _xlpm.col), 0), 1))-ROW(ExtensionsTable[[#Headers],[Gene Expression ]])),\nIF(OR(_xlpm.col=\"\",_xlpm.row=\"\"),\"\",INDEX(SuffixesTable[], _xlpm.row, _xlpm.col)))","v":""}]
[376,null,null,{"$f":"_xlfn.IFNA(_xlfn.TEXTJOIN(\"; \",TRUE,INDEX(ItemDescriptionsTable[#Data],,MATCH($C392, ItemDescriptionsTable[#Headers], 0))),\"\")","v":""},null,null,null,null,null,null,null,null,null,null,null,null,null,null,{"$f":"_xlfn.LET(_xlpm.col,IF(NOT(OR(IsEmpty($B392),IsEmpty($C392),IsEmpty($E392))),MATCH($C392,ExtensionsTable[#Headers],0),\"\"),\n_xlpm.row,IF(_xlpm.col=\"\",\"\",ROW(INDEX(ExtensionsTable[], MATCH($E392, INDEX(ExtensionsTable[], , _xlpm.col), 0), 1))-ROW(ExtensionsTable[[#Headers],[Gene Expression ]])),\nIF(OR(_xlpm.col=\"\",_xlpm.row=\"\"),\"\",INDEX(SuffixesTable[], _xlpm.row, _xlpm.col)))","v":""}]
[377,null,null,{"$f":"_xlfn.IFNA(_xlfn.TEXTJOIN(\"; \",TRUE,INDEX(ItemDescriptionsTable[#Data],,MATCH($C393, ItemDescriptionsTable[#Headers], 0))),\"\")","v":""},null,null,null,null,null,null,null,null,null,null,null,null,null,null,{"$f":"_xlfn.LET(_xlpm.col,IF(NOT(OR(IsEmpty($B393),IsEmpty($C393),IsEmpty($E393))),MATCH($C393,ExtensionsTable[#Headers],0),\"\"),\n_xlpm.row,IF(_xlpm.col=\"\",\"\",ROW(INDEX(ExtensionsTable[], MATCH($E393, INDEX(ExtensionsTable[], , _xlpm.col), 0), 1))-ROW(ExtensionsTable[[#Headers],[Gene Expression ]])),\nIF(OR(_xlpm.col=\"\",_xlpm.row=\"\"),\"\",INDEX(SuffixesTable[], _xlpm.row, _xlpm.col)))","v":""}]
[378,null,null,{"$f":"_xlfn.IFNA(_xlfn.TEXTJOIN(\"; \",TRUE,INDEX(ItemDescriptionsTable[#Data],,MATCH($C394, ItemDescriptionsTable[#Headers], 0))),\"\")","v":""},null,null,null,null,null,null,null,null,null,null,null,null,null,null,{"$f":"_xlfn.LET(_xlpm.col,IF(NOT(OR(IsEmpty($B394),IsEmpty($C394),IsEmpty($E394))),MATCH($C394,ExtensionsTable[#Headers],0),\"\"),\n_xlpm.row,IF(_xlpm.col=\"\",\"\",ROW(INDEX(ExtensionsTable[], MATCH($E394, INDEX(ExtensionsTable[], , _xlpm.col), 0), 1))-ROW(ExtensionsTable[[#Headers],[Gene Expression ]])),\nIF(OR(_xlpm.col=\"\",_xlpm.row=\"\"),\"\",INDEX(SuffixesTable[], _xlpm.row, _xlpm.col)))","v":""}]
[379,null,null,{"$f":"_xlfn.IFNA(_xlfn.TEXTJOIN(\"; \",TRUE,INDEX(ItemDescriptionsTable[#Data],,MATCH($C395, ItemDescriptionsTable[#Headers], 0))),\"\")","v":""},null,null,null,null,null,null,null,null,null,null,null,null,null,null,{"$f":"_xlfn.LET(_xlpm.col,IF(NOT(OR(IsEmpty($B395),IsEmpty($C395),IsEmpty($E395))),MATCH($C395,ExtensionsTable[#Headers],0),\"\"),\n_xlpm.row,IF(_xlpm.col=\"\",\"\",ROW(INDEX(ExtensionsTable[], MATCH($E395, INDEX(ExtensionsTable[], , _xlpm.col), 0), 1))-ROW(ExtensionsTable[[#Headers],[Gene Expression ]])),\nIF(OR(_xlpm.col=\"\",_xlpm.row=\"\"),\"\",INDEX(SuffixesTable[], _xlpm.row, _xlpm.col)))","v":""}]
[380,null,null,{"$f":"_xlfn.IFNA(_xlfn.TEXTJOIN(\"; \",TRUE,INDEX(ItemDescriptionsTable[#Data],,MATCH($C396, ItemDescriptionsTable[#Headers], 0))),\"\")","v":""},null,null,null,null,null,null,null,null,null,null,null,null,null,null,{"$f":"_xlfn.LET(_xlpm.col,IF(NOT(OR(IsEmpty($B396),IsEmpty($C396),IsEmpty($E396))),MATCH($C396,ExtensionsTable[#Headers],0),\"\"),\n_xlpm.row,IF(_xlpm.col=\"\",\"\",ROW(INDEX(ExtensionsTable[], MATCH($E396, INDEX(ExtensionsTable[], , _xlpm.col), 0), 1))-ROW(ExtensionsTable[[#Headers],[Gene Expression ]])),\nIF(OR(_xlpm.col=\"\",_xlpm.row=\"\"),\"\",INDEX(SuffixesTable[], _xlpm.row, _xlpm.col)))","v":""}]
[381,null,null,{"$f":"_xlfn.IFNA(_xlfn.TEXTJOIN(\"; \",TRUE,INDEX(ItemDescriptionsTable[#Data],,MATCH($C397, ItemDescriptionsTable[#Headers], 0))),\"\")","v":""},null,null,null,null,null,null,null,null,null,null,null,null,null,null,{"$f":"_xlfn.LET(_xlpm.col,IF(NOT(OR(IsEmpty($B397),IsEmpty($C397),IsEmpty($E397))),MATCH($C397,ExtensionsTable[#Headers],0),\"\"),\n_xlpm.row,IF(_xlpm.col=\"\",\"\",ROW(INDEX(ExtensionsTable[], MATCH($E397, INDEX(ExtensionsTable[], , _xlpm.col), 0), 1))-ROW(ExtensionsTable[[#Headers],[Gene Expression ]])),\nIF(OR(_xlpm.col=\"\",_xlpm.row=\"\"),\"\",INDEX(SuffixesTable[], _xlpm.row, _xlpm.col)))","v":""}]
[382,null,null,{"$f":"_xlfn.IFNA(_xlfn.TEXTJOIN(\"; \",TRUE,INDEX(ItemDescriptionsTable[#Data],,MATCH($C398, ItemDescriptionsTable[#Headers], 0))),\"\")","v":""},null,null,null,null,null,null,null,null,null,null,null,null,null,null,{"$f":"_xlfn.LET(_xlpm.col,IF(NOT(OR(IsEmpty($B398),IsEmpty($C398),IsEmpty($E398))),MATCH($C398,ExtensionsTable[#Headers],0),\"\"),\n_xlpm.row,IF(_xlpm.col=\"\",\"\",ROW(INDEX(ExtensionsTable[], MATCH($E398, INDEX(ExtensionsTable[], , _xlpm.col), 0), 1))-ROW(ExtensionsTable[[#Headers],[Gene Expression ]])),\nIF(OR(_xlpm.col=\"\",_xlpm.row=\"\"),\"\",INDEX(SuffixesTable[], _xlpm.row, _xlpm.col)))","v":""}]
[383,null,null,{"$f":"_xlfn.IFNA(_xlfn.TEXTJOIN(\"; \",TRUE,INDEX(ItemDescriptionsTable[#Data],,MATCH($C399, ItemDescriptionsTable[#Headers], 0))),\"\")","v":""},null,null,null,null,null,null,null,null,null,null,null,null,null,null,{"$f":"_xlfn.LET(_xlpm.col,IF(NOT(OR(IsEmpty($B399),IsEmpty($C399),IsEmpty($E399))),MATCH($C399,ExtensionsTable[#Headers],0),\"\"),\n_xlpm.row,IF(_xlpm.col=\"\",\"\",ROW(INDEX(ExtensionsTable[], MATCH($E399, INDEX(ExtensionsTable[], , _xlpm.col), 0), 1))-ROW(ExtensionsTable[[#Headers],[Gene Expression ]])),\nIF(OR(_xlpm.col=\"\",_xlpm.row=\"\"),\"\",INDEX(SuffixesTable[], _xlpm.row, _xlpm.col)))","v":""}]
[384,null,null,{"$f":"_xlfn.IFNA(_xlfn.TEXTJOIN(\"; \",TRUE,INDEX(ItemDescriptionsTable[#Data],,MATCH($C400, ItemDescriptionsTable[#Headers], 0))),\"\")","v":""},null,null,null,null,null,null,null,null,null,null,null,null,null,null,{"$f":"_xlfn.LET(_xlpm.col,IF(NOT(OR(IsEmpty($B400),IsEmpty($C400),IsEmpty($E400))),MATCH($C400,ExtensionsTable[#Headers],0),\"\"),\n_xlpm.row,IF(_xlpm.col=\"\",\"\",ROW(INDEX(ExtensionsTable[], MATCH($E400, INDEX(ExtensionsTable[], , _xlpm.col), 0), 1))-ROW(ExtensionsTable[[#Headers],[Gene Expression ]])),\nIF(OR(_xlpm.col=\"\",_xlpm.row=\"\"),\"\",INDEX(SuffixesTable[], _xlpm.row, _xlpm.col)))","v":""}]
[385,null,null,{"$f":"_xlfn.IFNA(_xlfn.TEXTJOIN(\"; \",TRUE,INDEX(ItemDescriptionsTable[#Data],,MATCH($C401, ItemDescriptionsTable[#Headers], 0))),\"\")","v":""},null,null,null,null,null,null,null,null,null,null,null,null,null,null,{"$f":"_xlfn.LET(_xlpm.col,IF(NOT(OR(IsEmpty($B401),IsEmpty($C401),IsEmpty($E401))),MATCH($C401,ExtensionsTable[#Headers],0),\"\"),\n_xlpm.row,IF(_xlpm.col=\"\",\"\",ROW(INDEX(ExtensionsTable[], MATCH($E401, INDEX(ExtensionsTable[], , _xlpm.col), 0), 1))-ROW(ExtensionsTable[[#Headers],[Gene Expression ]])),\nIF(OR(_xlpm.col=\"\",_xlpm.row=\"\"),\"\",INDEX(SuffixesTable[], _xlpm.row, _xlpm.col)))","v":""}]
[386,null,null,{"$f":"_xlfn.IFNA(_xlfn.TEXTJOIN(\"; \",TRUE,INDEX(ItemDescriptionsTable[#Data],,MATCH($C402, ItemDescriptionsTable[#Headers], 0))),\"\")","v":""},null,null,null,null,null,null,null,null,null,null,null,null,null,null,{"$f":"_xlfn.LET(_xlpm.col,IF(NOT(OR(IsEmpty($B402),IsEmpty($C402),IsEmpty($E402))),MATCH($C402,ExtensionsTable[#Headers],0),\"\"),\n_xlpm.row,IF(_xlpm.col=\"\",\"\",ROW(INDEX(ExtensionsTable[], MATCH($E402, INDEX(ExtensionsTable[], , _xlpm.col), 0), 1))-ROW(ExtensionsTable[[#Headers],[Gene Expression ]])),\nIF(OR(_xlpm.col=\"\",_xlpm.row=\"\"),\"\",INDEX(SuffixesTable[], _xlpm.row, _xlpm.col)))","v":""}]
[387,null,null,{"$f":"_xlfn.IFNA(_xlfn.TEXTJOIN(\"; \",TRUE,INDEX(ItemDescriptionsTable[#Data],,MATCH($C403, ItemDescriptionsTable[#Headers], 0))),\"\")","v":""},null,null,null,null,null,null,null,null,null,null,null,null,null,null,{"$f":"_xlfn.LET(_xlpm.col,IF(NOT(OR(IsEmpty($B403),IsEmpty($C403),IsEmpty($E403))),MATCH($C403,ExtensionsTable[#Headers],0),\"\"),\n_xlpm.row,IF(_xlpm.col=\"\",\"\",ROW(INDEX(ExtensionsTable[], MATCH($E403, INDEX(ExtensionsTable[], , _xlpm.col), 0), 1))-ROW(ExtensionsTable[[#Headers],[Gene Expression ]])),\nIF(OR(_xlpm.col=\"\",_xlpm.row=\"\"),\"\",INDEX(SuffixesTable[], _xlpm.row, _xlpm.col)))","v":""}]
[388,null,null,{"$f":"_xlfn.IFNA(_xlfn.TEXTJOIN(\"; \",TRUE,INDEX(ItemDescriptionsTable[#Data],,MATCH($C404, ItemDescriptionsTable[#Headers], 0))),\"\")","v":""},null,null,null,null,null,null,null,null,null,null,null,null,null,null,{"$f":"_xlfn.LET(_xlpm.col,IF(NOT(OR(IsEmpty($B404),IsEmpty($C404),IsEmpty($E404))),MATCH($C404,ExtensionsTable[#Headers],0),\"\"),\n_xlpm.row,IF(_xlpm.col=\"\",\"\",ROW(INDEX(ExtensionsTable[], MATCH($E404, INDEX(ExtensionsTable[], , _xlpm.col), 0), 1))-ROW(ExtensionsTable[[#Headers],[Gene Expression ]])),\nIF(OR(_xlpm.col=\"\",_xlpm.row=\"\"),\"\",INDEX(SuffixesTable[], _xlpm.row, _xlpm.col)))","v":""}]
[389,null,null,{"$f":"_xlfn.IFNA(_xlfn.TEXTJOIN(\"; \",TRUE,INDEX(ItemDescriptionsTable[#Data],,MATCH($C405, ItemDescriptionsTable[#Headers], 0))),\"\")","v":""},null,null,null,null,null,null,null,null,null,null,null,null,null,null,{"$f":"_xlfn.LET(_xlpm.col,IF(NOT(OR(IsEmpty($B405),IsEmpty($C405),IsEmpty($E405))),MATCH($C405,ExtensionsTable[#Headers],0),\"\"),\n_xlpm.row,IF(_xlpm.col=\"\",\"\",ROW(INDEX(ExtensionsTable[], MATCH($E405, INDEX(ExtensionsTable[], , _xlpm.col), 0), 1))-ROW(ExtensionsTable[[#Headers],[Gene Expression ]])),\nIF(OR(_xlpm.col=\"\",_xlpm.row=\"\"),\"\",INDEX(SuffixesTable[], _xlpm.row, _xlpm.col)))","v":""}]
[390,null,null,{"$f":"_xlfn.IFNA(_xlfn.TEXTJOIN(\"; \",TRUE,INDEX(ItemDescriptionsTable[#Data],,MATCH($C406, ItemDescriptionsTable[#Headers], 0))),\"\")","v":""},null,null,null,null,null,null,null,null,null,null,null,null,null,null,{"$f":"_xlfn.LET(_xlpm.col,IF(NOT(OR(IsEmpty($B406),IsEmpty($C406),IsEmpty($E406))),MATCH($C406,ExtensionsTable[#Headers],0),\"\"),\n_xlpm.row,IF(_xlpm.col=\"\",\"\",ROW(INDEX(ExtensionsTable[], MATCH($E406, INDEX(ExtensionsTable[], , _xlpm.col), 0), 1))-ROW(ExtensionsTable[[#Headers],[Gene Expression ]])),\nIF(OR(_xlpm.col=\"\",_xlpm.row=\"\"),\"\",INDEX(SuffixesTable[], _xlpm.row, _xlpm.col)))","v":""}]
[391,null,null,{"$f":"_xlfn.IFNA(_xlfn.TEXTJOIN(\"; \",TRUE,INDEX(ItemDescriptionsTable[#Data],,MATCH($C407, ItemDescriptionsTable[#Headers], 0))),\"\")","v":""},null,null,null,null,null,null,null,null,null,null,null,null,null,null,{"$f":"_xlfn.LET(_xlpm.col,IF(NOT(OR(IsEmpty($B407),IsEmpty($C407),IsEmpty($E407))),MATCH($C407,ExtensionsTable[#Headers],0),\"\"),\n_xlpm.row,IF(_xlpm.col=\"\",\"\",ROW(INDEX(ExtensionsTable[], MATCH($E407, INDEX(ExtensionsTable[], , _xlpm.col), 0), 1))-ROW(ExtensionsTable[[#Headers],[Gene Expression ]])),\nIF(OR(_xlpm.col=\"\",_xlpm.row=\"\"),\"\",INDEX(SuffixesTable[], _xlpm.row, _xlpm.col)))","v":""}]
[392,null,null,{"$f":"_xlfn.IFNA(_xlfn.TEXTJOIN(\"; \",TRUE,INDEX(ItemDescriptionsTable[#Data],,MATCH($C408, ItemDescriptionsTable[#Headers], 0))),\"\")","v":""},null,null,null,null,null,null,null,null,null,null,null,null,null,null,{"$f":"_xlfn.LET(_xlpm.col,IF(NOT(OR(IsEmpty($B408),IsEmpty($C408),IsEmpty($E408))),MATCH($C408,ExtensionsTable[#Headers],0),\"\"),\n_xlpm.row,IF(_xlpm.col=\"\",\"\",ROW(INDEX(ExtensionsTable[], MATCH($E408, INDEX(ExtensionsTable[], , _xlpm.col), 0), 1))-ROW(ExtensionsTable[[#Headers],[Gene Expression ]])),\nIF(OR(_xlpm.col=\"\",_xlpm.row=\"\"),\"\",INDEX(SuffixesTable[], _xlpm.row, _xlpm.col)))","v":""}]
[393,null,null,{"$f":"_xlfn.IFNA(_xlfn.TEXTJOIN(\"; \",TRUE,INDEX(ItemDescriptionsTable[#Data],,MATCH($C409, ItemDescriptionsTable[#Headers], 0))),\"\")","v":""},null,null,null,null,null,null,null,null,null,null,null,null,null,null,{"$f":"_xlfn.LET(_xlpm.col,IF(NOT(OR(IsEmpty($B409),IsEmpty($C409),IsEmpty($E409))),MATCH($C409,ExtensionsTable[#Headers],0),\"\"),\n_xlpm.row,IF(_xlpm.col=\"\",\"\",ROW(INDEX(ExtensionsTable[], MATCH($E409, INDEX(ExtensionsTable[], , _xlpm.col), 0), 1))-ROW(ExtensionsTable[[#Headers],[Gene Expression ]])),\nIF(OR(_xlpm.col=\"\",_xlpm.row=\"\"),\"\",INDEX(SuffixesTable[], _xlpm.row, _xlpm.col)))","v":""}]
[394,null,null,{"$f":"_xlfn.IFNA(_xlfn.TEXTJOIN(\"; \",TRUE,INDEX(ItemDescriptionsTable[#Data],,MATCH($C410, ItemDescriptionsTable[#Headers], 0))),\"\")","v":""},null,null,null,null,null,null,null,null,null,null,null,null,null,null,{"$f":"_xlfn.LET(_xlpm.col,IF(NOT(OR(IsEmpty($B410),IsEmpty($C410),IsEmpty($E410))),MATCH($C410,ExtensionsTable[#Headers],0),\"\"),\n_xlpm.row,IF(_xlpm.col=\"\",\"\",ROW(INDEX(ExtensionsTable[], MATCH($E410, INDEX(ExtensionsTable[], , _xlpm.col), 0), 1))-ROW(ExtensionsTable[[#Headers],[Gene Expression ]])),\nIF(OR(_xlpm.col=\"\",_xlpm.row=\"\"),\"\",INDEX(SuffixesTable[], _xlpm.row, _xlpm.col)))","v":""}]
[395,null,null,{"$f":"_xlfn.IFNA(_xlfn.TEXTJOIN(\"; \",TRUE,INDEX(ItemDescriptionsTable[#Data],,MATCH($C411, ItemDescriptionsTable[#Headers], 0))),\"\")","v":""},null,null,null,null,null,null,null,null,null,null,null,null,null,null,{"$f":"_xlfn.LET(_xlpm.col,IF(NOT(OR(IsEmpty($B411),IsEmpty($C411),IsEmpty($E411))),MATCH($C411,ExtensionsTable[#Headers],0),\"\"),\n_xlpm.row,IF(_xlpm.col=\"\",\"\",ROW(INDEX(ExtensionsTable[], MATCH($E411, INDEX(ExtensionsTable[], , _xlpm.col), 0), 1))-ROW(ExtensionsTable[[#Headers],[Gene Expression ]])),\nIF(OR(_xlpm.col=\"\",_xlpm.row=\"\"),\"\",INDEX(SuffixesTable[], _xlpm.row, _xlpm.col)))","v":""}]
[396,null,null,{"$f":"_xlfn.IFNA(_xlfn.TEXTJOIN(\"; \",TRUE,INDEX(ItemDescriptionsTable[#Data],,MATCH($C412, ItemDescriptionsTable[#Headers], 0))),\"\")","v":""},null,null,null,null,null,null,null,null,null,null,null,null,null,null,{"$f":"_xlfn.LET(_xlpm.col,IF(NOT(OR(IsEmpty($B412),IsEmpty($C412),IsEmpty($E412))),MATCH($C412,ExtensionsTable[#Headers],0),\"\"),\n_xlpm.row,IF(_xlpm.col=\"\",\"\",ROW(INDEX(ExtensionsTable[], MATCH($E412, INDEX(ExtensionsTable[], , _xlpm.col), 0), 1))-ROW(ExtensionsTable[[#Headers],[Gene Expression ]])),\nIF(OR(_xlpm.col=\"\",_xlpm.row=\"\"),\"\",INDEX(SuffixesTable[], _xlpm.row, _xlpm.col)))","v":""}]
[397,null,null,{"$f":"_xlfn.IFNA(_xlfn.TEXTJOIN(\"; \",TRUE,INDEX(ItemDescriptionsTable[#Data],,MATCH($C413, ItemDescriptionsTable[#Headers], 0))),\"\")","v":""},null,null,null,null,null,null,null,null,null,null,null,null,null,null,{"$f":"_xlfn.LET(_xlpm.col,IF(NOT(OR(IsEmpty($B413),IsEmpty($C413),IsEmpty($E413))),MATCH($C413,ExtensionsTable[#Headers],0),\"\"),\n_xlpm.row,IF(_xlpm.col=\"\",\"\",ROW(INDEX(ExtensionsTable[], MATCH($E413, INDEX(ExtensionsTable[], , _xlpm.col), 0), 1))-ROW(ExtensionsTable[[#Headers],[Gene Expression ]])),\nIF(OR(_xlpm.col=\"\",_xlpm.row=\"\"),\"\",INDEX(SuffixesTable[], _xlpm.row, _xlpm.col)))","v":""}]
[398,null,null,{"$f":"_xlfn.IFNA(_xlfn.TEXTJOIN(\"; \",TRUE,INDEX(ItemDescriptionsTable[#Data],,MATCH($C414, ItemDescriptionsTable[#Headers], 0))),\"\")","v":""},null,null,null,null,null,null,null,null,null,null,null,null,null,null,{"$f":"_xlfn.LET(_xlpm.col,IF(NOT(OR(IsEmpty($B414),IsEmpty($C414),IsEmpty($E414))),MATCH($C414,ExtensionsTable[#Headers],0),\"\"),\n_xlpm.row,IF(_xlpm.col=\"\",\"\",ROW(INDEX(ExtensionsTable[], MATCH($E414, INDEX(ExtensionsTable[], , _xlpm.col), 0), 1))-ROW(ExtensionsTable[[#Headers],[Gene Expression ]])),\nIF(OR(_xlpm.col=\"\",_xlpm.row=\"\"),\"\",INDEX(SuffixesTable[], _xlpm.row, _xlpm.col)))","v":""}]
[399,null,null,{"$f":"_xlfn.IFNA(_xlfn.TEXTJOIN(\"; \",TRUE,INDEX(ItemDescriptionsTable[#Data],,MATCH($C415, ItemDescriptionsTable[#Headers], 0))),\"\")","v":""},null,null,null,null,null,null,null,null,null,null,null,null,null,null,{"$f":"_xlfn.LET(_xlpm.col,IF(NOT(OR(IsEmpty($B415),IsEmpty($C415),IsEmpty($E415))),MATCH($C415,ExtensionsTable[#Headers],0),\"\"),\n_xlpm.row,IF(_xlpm.col=\"\",\"\",ROW(INDEX(ExtensionsTable[], MATCH($E415, INDEX(ExtensionsTable[], , _xlpm.col), 0), 1))-ROW(ExtensionsTable[[#Headers],[Gene Expression ]])),\nIF(OR(_xlpm.col=\"\",_xlpm.row=\"\"),\"\",INDEX(SuffixesTable[], _xlpm.row, _xlpm.col)))","v":""}]
[400,null,null,{"$f":"_xlfn.IFNA(_xlfn.TEXTJOIN(\"; \",TRUE,INDEX(ItemDescriptionsTable[#Data],,MATCH($C416, ItemDescriptionsTable[#Headers], 0))),\"\")","v":""},null,null,null,null,null,null,null,null,null,null,null,null,null,null,{"$f":"_xlfn.LET(_xlpm.col,IF(NOT(OR(IsEmpty($B416),IsEmpty($C416),IsEmpty($E416))),MATCH($C416,ExtensionsTable[#Headers],0),\"\"),\n_xlpm.row,IF(_xlpm.col=\"\",\"\",ROW(INDEX(ExtensionsTable[], MATCH($E416, INDEX(ExtensionsTable[], , _xlpm.col), 0), 1))-ROW(ExtensionsTable[[#Headers],[Gene Expression ]])),\nIF(OR(_xlpm.col=\"\",_xlpm.row=\"\"),\"\",INDEX(SuffixesTable[], _xlpm.row, _xlpm.col)))","v":""}]
[401,null,null,{"$f":"_xlfn.IFNA(_xlfn.TEXTJOIN(\"; \",TRUE,INDEX(ItemDescriptionsTable[#Data],,MATCH($C417, ItemDescriptionsTable[#Headers], 0))),\"\")","v":""},null,null,null,null,null,null,null,null,null,null,null,null,null,null,{"$f":"_xlfn.LET(_xlpm.col,IF(NOT(OR(IsEmpty($B417),IsEmpty($C417),IsEmpty($E417))),MATCH($C417,ExtensionsTable[#Headers],0),\"\"),\n_xlpm.row,IF(_xlpm.col=\"\",\"\",ROW(INDEX(ExtensionsTable[], MATCH($E417, INDEX(ExtensionsTable[], , _xlpm.col), 0), 1))-ROW(ExtensionsTable[[#Headers],[Gene Expression ]])),\nIF(OR(_xlpm.col=\"\",_xlpm.row=\"\"),\"\",INDEX(SuffixesTable[], _xlpm.row, _xlpm.col)))","v":""}]

{"sheet":"Settings","index":2,"n_rows":22,"n_cols":26,"rows_kept":22,"cut":false,"hidden":true,"merged":[]}
["Institute ","INCPM Bioinformatics Analysis","Library Type","illumina Sequencer and Run Mode","Measured by","Kits","NextSeq Kits","Library Type","*RNA preparation protocol","Final cell suspension","Output of cells","MiSeq","NextSeq High Output","NextSeq Mid Output","NovaSeq X Plus 1.5B","NovaSeq X Plus 10B","NovaSeq X Plus 25B","Not yet determined",null,null,null,null,null,null,null,"ValidPhoneNumber"]
["ARO- Volcani","Yes","INCPM mRNA Seq","NovaSeq X Plus 1.5B","Qubit",1,0.5,"10x genomics","Direct-zol™ RNA MiniPrep, Zymo Research","PBS+0.04%BSA",1000,"V2_50 cycles","NextSeq 75 cycles","NextSeq 150 cycles","NovaSeq X Plus 100 cycles","NovaSeq X Plus 100 cycles","NovaSeq X Plus 100 cycles","Not yet determined",null,null,null,null,null,null,null,{"$f":"IsLocalPhoneNumber('Submission Form'!$B$9)","v":false}]
["Barzilai Medical Center","No","INCPM mRNA Seq w/o PolyA Capture","Not yet determined","Nanodrop",2,1,null,"Direct-zol™-96 RNA, Zymo Research","Other, specify in the comment",2000,"V2_ 300 cycles","NextSeq 150 cycles","NextSeq 300 cycles "]
["BGU",null,"SMARTer Ultra Low Input RNA",null,null,"Not yet determined",2,null,"EZ-RNA Total RNA Isolation Kit, Biological Industries",null,3000,"V2_500 cycles","NextSeq 300 cycles"]
["BIU",null,"TruSeq mRNA",null,null,null,"Not yet determined",null,"GenElute Mammalian Total RNA Miniprep Kit, Sigma-Aldrich",null,4000,"V3_150 cycles"]
["DSASC",null,"TruSeq mRNA w/o PolyA Capture",null,null,null,null,null,"miRNeasy Micro Kit, Qiagen",null,5000,"V3_600 cycles"]
["Hadassah Medical Center",null,"TruSeq Small RNA",null,null,null,null,null,"miRNeasy Mini Kit, Qiagen",null,6000,"MicroV2_300 cycles"]
["Haifa Medical Center ",null,"TruSeq Stranded mRNA",null,null,null,null,null,"NucleoSpin® RNA, MACHEREY-NAGEL",null,7000,"NanoV2_300 cycles"]
["Haifa University",null,"TruSeq Stranded Total RNA   ",null,null,null,null,null,"PerfectPure RNA Cultured Cell Kit, 5 PRIME",null,8000,"NanoV2_500 cycles"]
["HUJI",null,null,null,null,null,null,null,"PerfectPure RNA Tissue Kit, 5 PRIME",null,9000]
["HUJI (Faculty)",null,null,null,null,null,null,null,"QIAzol Lysis Reagent, Qiagen",null,10000]
["Ichilov Medical Center",null,null,null,null,null,null,null,"RNeasy Micro Kit, Qiagen",null,11000]
["IIBR",null,null,null,null,null,null,null,"RNeasy Mini Kit, Qiagen",null,12000]
["Kaplan Medical Center",null,null,null,null,null,null,null,"RNeasy Plant Mini Kit, Qiagen",null,13000]
["Rabin Medical Center",null,null,null,null,null,null,null,"Spectrum Plant Total RNA Kit, Sigma-Aldrich",null,14000]
["Schneider Medical Center",null,null,null,null,null,null,null,"SV Total RNA Isolation System, Promega",null,15000]
["Sheba Medical Center",null,null,null,null,null,null,null,"Synthetic, IDT",null,16000]
["TAU",null,null,null,null,null,null,null,"TRI Reagent, Molecular Research Center",null,17000]
["Technion",null,null,null,null,null,null,null,"TRI Reagent®, Sigma-Aldrich",null,18000]
["Veterinary",null,null,null,null,null,null,null,"TRIzol® Reagent, Life Technologies",null,19000]
["WIS",null,null,null,null,null,null,null,"Other- Type here",null,20000]
["Other- Type here"]

{"sheet":"LibraryTypes","index":3,"n_rows":53,"n_cols":15,"rows_kept":53,"cut":false,"hidden":true,"merged":[]}
[null,"Item Description"]
["LibraryType","Gene Expression ","Immune Profiling and Gene Expression","CRISPR and Gene Expression","Flex Gene Expression (Fixed)","Multiome","On Chip Multiplexing_3'","On Chip Multiplexing_5'","ATAC",null,null,null,null,null,"Gene Expression "]
[null,"10x_Gene_Expression-3'_INCPM","10x_Immune_Profiling_INCPM","10x_Gene_Expression_5'_INCPM_and_CRISPR","Single-cell_Flex_INCPM","Single-cell_Multiome (Gene expression + ATAC)","On-Chip_Multiplexing_Gene_Expression_3'","On-Chip _Multiplexing_Gene_Expression_5'","None",null,null,null,null,null,"Immune Profiling and Gene Expression"]
[null,null,"10x_Gene_Expression_5'_INCPM",null,null,null,null,null,null,null,null,null,null,null,"CRISPR and Gene Expression"]
[null,null,null,null,null,null,null,null,null,null,null,null,null,null,"Flex Gene Expression (Fixed)"]
[null,null,null,null,null,null,null,null,null,null,null,null,null,null,"Multiome"]
[null,"Extension",null,null,null,null,null,null,null,null,null,null,null,null,"On Chip Multiplexing_3'"]
["LibraryType","Gene Expression ","Immune Profiling and Gene Expression","CRISPR and Gene Expression","Flex Gene Expression (Fixed)","Multiome","On Chip Multiplexing_3'","On Chip Multiplexing_5'","ATAC",null,null,null,null,null,"On Chip Multiplexing_5'"]
[null,"None","None","CRISPR","Single Plex","None","None","None","None",null,null,null,null,null,"ATAC"]
[null,"Cell surface Protein","BCR",null,"4-Plex",null,"Cell surface Protein","Cell surface Protein"]
[null,null,"TCR",null,"Single Plex_Cell Surface Protein",null,null,"CRISPR"]
[null,null,"BCR + TCR",null,"4-Plex_Cell Surface Protein",null,null,"TCR"]
[null,null,null,null,"Single Plex_CRISPR",null,null,"BCR"]
[null,null,null,null,"4-Plex_CRISPR",null,null,"BCR + TCR"]
[]
[]
[null,"Targeted Number of Cells"]
["LibraryType","Gene Expression ","Immune Profiling and Gene Expression","CRISPR and Gene Expression","Flex Gene Expression (Fixed)","Multiome","On Chip Multiplexing_3'","On Chip Multiplexing_5'","ATAC"]
[null,20000,20000,20000,20000,10000,5000,5000,10000]
[]
[]
[null,"# LB's per sample"]
["LibraryType","Gene Expression ","Immune Profiling and Gene Expression","CRISPR and Gene Expression","Flex Gene Expression (Fixed)","Multiome","On Chip Multiplexing_3'","On Chip Multiplexing_5'","ATAC"]
[null,1,1,2,1,2,1,1,1]
[null,2,2,null,1,null,2,2]
[null,null,2,null,2,null,null,2]
[null,null,3,null,2,null,null,2]
[null,null,null,null,2,null,null,2]
[null,null,null,null,2,null,null,3]
[]
[null,"Suffixes"]
["LibraryType","Gene Expression ","Immune Profiling and Gene Expression","CRISPR and Gene Expression","Flex Gene Expression (Fixed)","Multiome","On Chip Multiplexing_3'","On Chip Multiplexing_5'","ATAC"]
[null,"GEX","GEX","GEX;CRISPR","FLEX","ATAC;GEX","GEX","GEX","ATAC"]
[null,"GEX;HASH","GEX;BCR",null,"FLEX",null,"GEX;HASH","GEX;HASH"]
[null,null,"GEX;TCR",null,"FLEX;HASH",null,null,"GEX;CRISPR"]
[null,null,"GEX;TCR;BCR",null,"FLEX;HASH",null,null,"GEX;TCR"]
[null,null,null,null,"FLEX;CRISPR",null,null,"GEX;BCR"]
[null,null,null,null,"FLEX;CRISPR",null,null,"GEX;TCR;BCR"]
[]
[]
[]
[null,"SLIMS LB"]
["LibraryType","Gene Expression ","Immune Profiling and Gene Expression","CRISPR and Gene Expression","Flex Gene Expression (Fixed)","Multiome","On Chip Multiplexing_3'","On Chip Multiplexing_5'","ATAC"]
[null,"Gene Expression","Immune Profiling Gene Expression","CRISPR","Flex","Multiome","Gene Expression","Immune Profiling Gene Expression","ATAC Seq"]
[]
[]
[]
[null,"index sets"]
["LibraryType","Gene Expression ","Immune Profiling and Gene Expression","CRISPR and Gene Expression","Flex Gene Expression (Fixed)","Multiome","On Chip Multiplexing_3'","On Chip Multiplexing_5'","ATAC"]
[null,"Dual 10x Genomics -TT","Dual 10x Genomics - TT"]
[null,"Dual 10x Genomics -NT","Dual 10x Genomics - TT"]
[null,null,"Dual 10x Genomics - TT"]
[null,null,"Dual 10x Genomics - TT"]

{"sheet":"Thousands","index":4,"n_rows":416,"n_cols":1,"rows_kept":416,"cut":false,"hidden":true,"merged":[]}
[]
[]
[]
[]
[]
[]
[]
[]
[]
[]
[]
[]
[]
[]
[]
[]
[{"$f":"IFERROR(_xlfn.TOROW(ThousandsList(_xlfn.XLOOKUP('Submission Form'!$C17,LibraryTypes,LibraryTypes!$B$19:$I$19,\"\"))),\"\")","v":""}]
[{"$f":"IFERROR(_xlfn.TOROW(ThousandsList(_xlfn.XLOOKUP('Submission Form'!$C18,LibraryTypes,LibraryTypes!$B$19:$I$19,\"\"))),\"\")","v":""}]
[{"$f":"IFERROR(_xlfn.TOROW(ThousandsList(_xlfn.XLOOKUP('Submission Form'!$C19,LibraryTypes,LibraryTypes!$B$19:$I$19,\"\"))),\"\")","v":""}]
[{"$f":"IFERROR(_xlfn.TOROW(ThousandsList(_xlfn.XLOOKUP('Submission Form'!$C20,LibraryTypes,LibraryTypes!$B$19:$I$19,\"\"))),\"\")","v":""}]
[{"$f":"IFERROR(_xlfn.TOROW(ThousandsList(_xlfn.XLOOKUP('Submission Form'!$C21,LibraryTypes,LibraryTypes!$B$19:$I$19,\"\"))),\"\")","v":""}]
[{"$f":"IFERROR(_xlfn.TOROW(ThousandsList(_xlfn.XLOOKUP('Submission Form'!$C22,LibraryTypes,LibraryTypes!$B$19:$I$19,\"\"))),\"\")","v":""}]
[{"$f":"IFERROR(_xlfn.TOROW(ThousandsList(_xlfn.XLOOKUP('Submission Form'!$C23,LibraryTypes,LibraryTypes!$B$19:$I$19,\"\"))),\"\")","v":""}]
[{"$f":"IFERROR(_xlfn.TOROW(ThousandsList(_xlfn.XLOOKUP('Submission Form'!$C24,LibraryTypes,LibraryTypes!$B$19:$I$19,\"\"))),\"\")","v":""}]
[{"$f":"IFERROR(_xlfn.TOROW(ThousandsList(_xlfn.XLOOKUP('Submission Form'!$C25,LibraryTypes,LibraryTypes!$B$19:$I$19,\"\"))),\"\")","v":""}]
[{"$f":"IFERROR(_xlfn.TOROW(ThousandsList(_xlfn.XLOOKUP('Submission Form'!$C26,LibraryTypes,LibraryTypes!$B$19:$I$19,\"\"))),\"\")","v":""}]
[{"$f":"IFERROR(_xlfn.TOROW(ThousandsList(_xlfn.XLOOKUP('Submission Form'!$C27,LibraryTypes,LibraryTypes!$B$19:$I$19,\"\"))),\"\")","v":""}]
[{"$f":"IFERROR(_xlfn.TOROW(ThousandsList(_xlfn.XLOOKUP('Submission Form'!$C28,LibraryTypes,LibraryTypes!$B$19:$I$19,\"\"))),\"\")","v":""}]
[{"$f":"IFERROR(_xlfn.TOROW(ThousandsList(_xlfn.XLOOKUP('Submission Form'!$C29,LibraryTypes,LibraryTypes!$B$19:$I$19,\"\"))),\"\")","v":""}]
[{"$f":"IFERROR(_xlfn.TOROW(ThousandsList(_xlfn.XLOOKUP('Submission Form'!$C30,LibraryTypes,LibraryTypes!$B$19:$I$19,\"\"))),\"\")","v":""}]
[{"$f":"IFERROR(_xlfn.TOROW(ThousandsList(_xlfn.XLOOKUP('Submission Form'!$C31,LibraryTypes,LibraryTypes!$B$19:$I$19,\"\"))),\"\")","v":""}]
[{"$f":"IFERROR(_xlfn.TOROW(ThousandsList(_xlfn.XLOOKUP('Submission Form'!$C32,LibraryTypes,LibraryTypes!$B$19:$I$19,\"\"))),\"\")","v":""}]
[{"$f":"IFERROR(_xlfn.TOROW(ThousandsList(_xlfn.XLOOKUP('Submission Form'!$C33,LibraryTypes,LibraryTypes!$B$19:$I$19,\"\"))),\"\")","v":""}]
[{"$f":"IFERROR(_xlfn.TOROW(ThousandsList(_xlfn.XLOOKUP('Submission Form'!$C34,LibraryTypes,LibraryTypes!$B$19:$I$19,\"\"))),\"\")","v":""}]
[{"$f":"IFERROR(_xlfn.TOROW(ThousandsList(_xlfn.XLOOKUP('Submission Form'!$C35,LibraryTypes,LibraryTypes!$B$19:$I$19,\"\"))),\"\")","v":""}]
[{"$f":"IFERROR(_xlfn.TOROW(ThousandsList(_xlfn.XLOOKUP('Submission Form'!$C36,LibraryTypes,LibraryTypes!$B$19:$I$19,\"\"))),\"\")","v":""}]
[{"$f":"IFERROR(_xlfn.TOROW(ThousandsList(_xlfn.XLOOKUP('Submission Form'!$C37,LibraryTypes,LibraryTypes!$B$19:$I$19,\"\"))),\"\")","v":""}]
[{"$f":"IFERROR(_xlfn.TOROW(ThousandsList(_xlfn.XLOOKUP('Submission Form'!$C38,LibraryTypes,LibraryTypes!$B$19:$I$19,\"\"))),\"\")","v":""}]
[{"$f":"IFERROR(_xlfn.TOROW(ThousandsList(_xlfn.XLOOKUP('Submission Form'!$C39,LibraryTypes,LibraryTypes!$B$19:$I$19,\"\"))),\"\")","v":""}]
[{"$f":"IFERROR(_xlfn.TOROW(ThousandsList(_xlfn.XLOOKUP('Submission Form'!$C40,LibraryTypes,LibraryTypes!$B$19:$I$19,\"\"))),\"\")","v":""}]
[{"$f":"IFERROR(_xlfn.TOROW(ThousandsList(_xlfn.XLOOKUP('Submission Form'!$C41,LibraryTypes,LibraryTypes!$B$19:$I$19,\"\"))),\"\")","v":""}]
[{"$f":"IFERROR(_xlfn.TOROW(ThousandsList(_xlfn.XLOOKUP('Submission Form'!$C42,LibraryTypes,LibraryTypes!$B$19:$I$19,\"\"))),\"\")","v":""}]
[{"$f":"IFERROR(_xlfn.TOROW(ThousandsList(_xlfn.XLOOKUP('Submission Form'!$C43,LibraryTypes,LibraryTypes!$B$19:$I$19,\"\"))),\"\")","v":""}]
[{"$f":"IFERROR(_xlfn.TOROW(ThousandsList(_xlfn.XLOOKUP('Submission Form'!$C44,LibraryTypes,LibraryTypes!$B$19:$I$19,\"\"))),\"\")","v":""}]
[{"$f":"IFERROR(_xlfn.TOROW(ThousandsList(_xlfn.XLOOKUP('Submission Form'!$C45,LibraryTypes,LibraryTypes!$B$19:$I$19,\"\"))),\"\")","v":""}]
[{"$f":"IFERROR(_xlfn.TOROW(ThousandsList(_xlfn.XLOOKUP('Submission Form'!$C46,LibraryTypes,LibraryTypes!$B$19:$I$19,\"\"))),\"\")","v":""}]
[{"$f":"IFERROR(_xlfn.TOROW(ThousandsList(_xlfn.XLOOKUP('Submission Form'!$C47,LibraryTypes,LibraryTypes!$B$19:$I$19,\"\"))),\"\")","v":""}]
[{"$f":"IFERROR(_xlfn.TOROW(ThousandsList(_xlfn.XLOOKUP('Submission Form'!$C48,LibraryTypes,LibraryTypes!$B$19:$I$19,\"\"))),\"\")","v":""}]
[{"$f":"IFERROR(_xlfn.TOROW(ThousandsList(_xlfn.XLOOKUP('Submission Form'!$C49,LibraryTypes,LibraryTypes!$B$19:$I$19,\"\"))),\"\")","v":""}]
[{"$f":"IFERROR(_xlfn.TOROW(ThousandsList(_xlfn.XLOOKUP('Submission Form'!$C50,LibraryTypes,LibraryTypes!$B$19:$I$19,\"\"))),\"\")","v":""}]
[{"$f":"IFERROR(_xlfn.TOROW(ThousandsList(_xlfn.XLOOKUP('Submission Form'!$C51,LibraryTypes,LibraryTypes!$B$19:$I$19,\"\"))),\"\")","v":""}]
[{"$f":"IFERROR(_xlfn.TOROW(ThousandsList(_xlfn.XLOOKUP('Submission Form'!$C52,LibraryTypes,LibraryTypes!$B$19:$I$19,\"\"))),\"\")","v":""}]
[{"$f":"IFERROR(_xlfn.TOROW(ThousandsList(_xlfn.XLOOKUP('Submission Form'!$C53,LibraryTypes,LibraryTypes!$B$19:$I$19,\"\"))),\"\")","v":""}]
[{"$f":"IFERROR(_xlfn.TOROW(ThousandsList(_xlfn.XLOOKUP('Submission Form'!$C54,LibraryTypes,LibraryTypes!$B$19:$I$19,\"\"))),\"\")","v":""}]
[{"$f":"IFERROR(_xlfn.TOROW(ThousandsList(_xlfn.XLOOKUP('Submission Form'!$C55,LibraryTypes,LibraryTypes!$B$19:$I$19,\"\"))),\"\")","v":""}]
[{"$f":"IFERROR(_xlfn.TOROW(ThousandsList(_xlfn.XLOOKUP('Submission Form'!$C56,LibraryTypes,LibraryTypes!$B$19:$I$19,\"\"))),\"\")","v":""}]
[{"$f":"IFERROR(_xlfn.TOROW(ThousandsList(_xlfn.XLOOKUP('Submission Form'!$C57,LibraryTypes,LibraryTypes!$B$19:$I$19,\"\"))),\"\")","v":""}]
[{"$f":"IFERROR(_xlfn.TOROW(ThousandsList(_xlfn.XLOOKUP('Submission Form'!$C58,LibraryTypes,LibraryTypes!$B$19:$I$19,\"\"))),\"\")","v":""}]
[{"$f":"IFERROR(_xlfn.TOROW(ThousandsList(_xlfn.XLOOKUP('Submission Form'!$C59,LibraryTypes,LibraryTypes!$B$19:$I$19,\"\"))),\"\")","v":""}]
[{"$f":"IFERROR(_xlfn.TOROW(ThousandsList(_xlfn.XLOOKUP('Submission Form'!$C60,LibraryTypes,LibraryTypes!$B$19:$I$19,\"\"))),\"\")","v":""}]
[{"$f":"IFERROR(_xlfn.TOROW(ThousandsList(_xlfn.XLOOKUP('Submission Form'!$C61,LibraryTypes,LibraryTypes!$B$19:$I$19,\"\"))),\"\")","v":""}]
[{"$f":"IFERROR(_xlfn.TOROW(ThousandsList(_xlfn.XLOOKUP('Submission Form'!$C62,LibraryTypes,LibraryTypes!$B$19:$I$19,\"\"))),\"\")","v":""}]
[{"$f":"IFERROR(_xlfn.TOROW(ThousandsList(_xlfn.XLOOKUP('Submission Form'!$C63,LibraryTypes,LibraryTypes!$B$19:$I$19,\"\"))),\"\")","v":""}]
[{"$f":"IFERROR(_xlfn.TOROW(ThousandsList(_xlfn.XLOOKUP('Submission Form'!$C64,LibraryTypes,LibraryTypes!$B$19:$I$19,\"\"))),\"\")","v":""}]
[{"$f":"IFERROR(_xlfn.TOROW(ThousandsList(_xlfn.XLOOKUP('Submission Form'!$C65,LibraryTypes,LibraryTypes!$B$19:$I$19,\"\"))),\"\")","v":""}]
[{"$f":"IFERROR(_xlfn.TOROW(ThousandsList(_xlfn.XLOOKUP('Submission Form'!$C66,LibraryTypes,LibraryTypes!$B$19:$I$19,\"\"))),\"\")","v":""}]
[{"$f":"IFERROR(_xlfn.TOROW(ThousandsList(_xlfn.XLOOKUP('Submission Form'!$C67,LibraryTypes,LibraryTypes!$B$19:$I$19,\"\"))),\"\")","v":""}]
[{"$f":"IFERROR(_xlfn.TOROW(ThousandsList(_xlfn.XLOOKUP('Submission Form'!$C68,LibraryTypes,LibraryTypes!$B$19:$I$19,\"\"))),\"\")","v":""}]
[{"$f":"IFERROR(_xlfn.TOROW(ThousandsList(_xlfn.XLOOKUP('Submission Form'!$C69,LibraryTypes,LibraryTypes!$B$19:$I$19,\"\"))),\"\")","v":""}]
[{"$f":"IFERROR(_xlfn.TOROW(ThousandsList(_xlfn.XLOOKUP('Submission Form'!$C70,LibraryTypes,LibraryTypes!$B$19:$I$19,\"\"))),\"\")","v":""}]
[{"$f":"IFERROR(_xlfn.TOROW(ThousandsList(_xlfn.XLOOKUP('Submission Form'!$C71,LibraryTypes,LibraryTypes!$B$19:$I$19,\"\"))),\"\")","v":""}]
[{"$f":"IFERROR(_xlfn.TOROW(ThousandsList(_xlfn.XLOOKUP('Submission Form'!$C72,LibraryTypes,LibraryTypes!$B$19:$I$19,\"\"))),\"\")","v":""}]
[{"$f":"IFERROR(_xlfn.TOROW(ThousandsList(_xlfn.XLOOKUP('Submission Form'!$C73,LibraryTypes,LibraryTypes!$B$19:$I$19,\"\"))),\"\")","v":""}]
[{"$f":"IFERROR(_xlfn.TOROW(ThousandsList(_xlfn.XLOOKUP('Submission Form'!$C74,LibraryTypes,LibraryTypes!$B$19:$I$19,\"\"))),\"\")","v":""}]
[{"$f":"IFERROR(_xlfn.TOROW(ThousandsList(_xlfn.XLOOKUP('Submission Form'!$C75,LibraryTypes,LibraryTypes!$B$19:$I$19,\"\"))),\"\")","v":""}]
[{"$f":"IFERROR(_xlfn.TOROW(ThousandsList(_xlfn.XLOOKUP('Submission Form'!$C76,LibraryTypes,LibraryTypes!$B$19:$I$19,\"\"))),\"\")","v":""}]
[{"$f":"IFERROR(_xlfn.TOROW(ThousandsList(_xlfn.XLOOKUP('Submission Form'!$C77,LibraryTypes,LibraryTypes!$B$19:$I$19,\"\"))),\"\")","v":""}]
[{"$f":"IFERROR(_xlfn.TOROW(ThousandsList(_xlfn.XLOOKUP('Submission Form'!$C78,LibraryTypes,LibraryTypes!$B$19:$I$19,\"\"))),\"\")","v":""}]
[{"$f":"IFERROR(_xlfn.TOROW(ThousandsList(_xlfn.XLOOKUP('Submission Form'!$C79,LibraryTypes,LibraryTypes!$B$19:$I$19,\"\"))),\"\")","v":""}]
[{"$f":"IFERROR(_xlfn.TOROW(ThousandsList(_xlfn.XLOOKUP('Submission Form'!$C80,LibraryTypes,LibraryTypes!$B$19:$I$19,\"\"))),\"\")","v":""}]
[{"$f":"IFERROR(_xlfn.TOROW(ThousandsList(_xlfn.XLOOKUP('Submission Form'!$C81,LibraryTypes,LibraryTypes!$B$19:$I$19,\"\"))),\"\")","v":""}]
[{"$f":"IFERROR(_xlfn.TOROW(ThousandsList(_xlfn.XLOOKUP('Submission Form'!$C82,LibraryTypes,LibraryTypes!$B$19:$I$19,\"\"))),\"\")","v":""}]
[{"$f":"IFERROR(_xlfn.TOROW(ThousandsList(_xlfn.XLOOKUP('Submission Form'!$C83,LibraryTypes,LibraryTypes!$B$19:$I$19,\"\"))),\"\")","v":""}]
[{"$f":"IFERROR(_xlfn.TOROW(ThousandsList(_xlfn.XLOOKUP('Submission Form'!$C84,LibraryTypes,LibraryTypes!$B$19:$I$19,\"\"))),\"\")","v":""}]
[{"$f":"IFERROR(_xlfn.TOROW(ThousandsList(_xlfn.XLOOKUP('Submission Form'!$C85,LibraryTypes,LibraryTypes!$B$19:$I$19,\"\"))),\"\")","v":""}]
[{"$f":"IFERROR(_xlfn.TOROW(ThousandsList(_xlfn.XLOOKUP('Submission Form'!$C86,LibraryTypes,LibraryTypes!$B$19:$I$19,\"\"))),\"\")","v":""}]
[{"$f":"IFERROR(_xlfn.TOROW(ThousandsList(_xlfn.XLOOKUP('Submission Form'!$C87,LibraryTypes,LibraryTypes!$B$19:$I$19,\"\"))),\"\")","v":""}]
[{"$f":"IFERROR(_xlfn.TOROW(ThousandsList(_xlfn.XLOOKUP('Submission Form'!$C88,LibraryTypes,LibraryTypes!$B$19:$I$19,\"\"))),\"\")","v":""}]
[{"$f":"IFERROR(_xlfn.TOROW(ThousandsList(_xlfn.XLOOKUP('Submission Form'!$C89,LibraryTypes,LibraryTypes!$B$19:$I$19,\"\"))),\"\")","v":""}]
[{"$f":"IFERROR(_xlfn.TOROW(ThousandsList(_xlfn.XLOOKUP('Submission Form'!$C90,LibraryTypes,LibraryTypes!$B$19:$I$19,\"\"))),\"\")","v":""}]
[{"$f":"IFERROR(_xlfn.TOROW(ThousandsList(_xlfn.XLOOKUP('Submission Form'!$C91,LibraryTypes,LibraryTypes!$B$19:$I$19,\"\"))),\"\")","v":""}]
[{"$f":"IFERROR(_xlfn.TOROW(ThousandsList(_xlfn.XLOOKUP('Submission Form'!$C92,LibraryTypes,LibraryTypes!$B$19:$I$19,\"\"))),\"\")","v":""}]
[{"$f":"IFERROR(_xlfn.TOROW(ThousandsList(_xlfn.XLOOKUP('Submission Form'!$C93,LibraryTypes,LibraryTypes!$B$19:$I$19,\"\"))),\"\")","v":""}]
[{"$f":"IFERROR(_xlfn.TOROW(ThousandsList(_xlfn.XLOOKUP('Submission Form'!$C94,LibraryTypes,LibraryTypes!$B$19:$I$19,\"\"))),\"\")","v":""}]
[{"$f":"IFERROR(_xlfn.TOROW(ThousandsList(_xlfn.XLOOKUP('Submission Form'!$C95,LibraryTypes,LibraryTypes!$B$19:$I$19,\"\"))),\"\")","v":""}]
[{"$f":"IFERROR(_xlfn.TOROW(ThousandsList(_xlfn.XLOOKUP('Submission Form'!$C96,LibraryTypes,LibraryTypes!$B$19:$I$19,\"\"))),\"\")","v":""}]
[{"$f":"IFERROR(_xlfn.TOROW(ThousandsList(_xlfn.XLOOKUP('Submission Form'!$C97,LibraryTypes,LibraryTypes!$B$19:$I$19,\"\"))),\"\")","v":""}]
[{"$f":"IFERROR(_xlfn.TOROW(ThousandsList(_xlfn.XLOOKUP('Submission Form'!$C98,LibraryTypes,LibraryTypes!$B$19:$I$19,\"\"))),\"\")","v":""}]
[{"$f":"IFERROR(_xlfn.TOROW(ThousandsList(_xlfn.XLOOKUP('Submission Form'!$C99,LibraryTypes,LibraryTypes!$B$19:$I$19,\"\"))),\"\")","v":""}]
[{"$f":"IFERROR(_xlfn.TOROW(ThousandsList(_xlfn.XLOOKUP('Submission Form'!$C100,LibraryTypes,LibraryTypes!$B$19:$I$19,\"\"))),\"\")","v":""}]
[{"$f":"IFERROR(_xlfn.TOROW(ThousandsList(_xlfn.XLOOKUP('Submission Form'!$C101,LibraryTypes,LibraryTypes!$B$19:$I$19,\"\"))),\"\")","v":""}]
[{"$f":"IFERROR(_xlfn.TOROW(ThousandsList(_xlfn.XLOOKUP('Submission Form'!$C102,LibraryTypes,LibraryTypes!$B$19:$I$19,\"\"))),\"\")","v":""}]
[{"$f":"IFERROR(_xlfn.TOROW(ThousandsList(_xlfn.XLOOKUP('Submission Form'!$C103,LibraryTypes,LibraryTypes!$B$19:$I$19,\"\"))),\"\")","v":""}]
[{"$f":"IFERROR(_xlfn.TOROW(ThousandsList(_xlfn.XLOOKUP('Submission Form'!$C104,LibraryTypes,LibraryTypes!$B$19:$I$19,\"\"))),\"\")","v":""}]
[{"$f":"IFERROR(_xlfn.TOROW(ThousandsList(_xlfn.XLOOKUP('Submission Form'!$C105,LibraryTypes,LibraryTypes!$B$19:$I$19,\"\"))),\"\")","v":""}]
[{"$f":"IFERROR(_xlfn.TOROW(ThousandsList(_xlfn.XLOOKUP('Submission Form'!$C106,LibraryTypes,LibraryTypes!$B$19:$I$19,\"\"))),\"\")","v":""}]
[{"$f":"IFERROR(_xlfn.TOROW(ThousandsList(_xlfn.XLOOKUP('Submission Form'!$C107,LibraryTypes,LibraryTypes!$B$19:$I$19,\"\"))),\"\")","v":""}]
[{"$f":"IFERROR(_xlfn.TOROW(ThousandsList(_xlfn.XLOOKUP('Submission Form'!$C108,LibraryTypes,LibraryTypes!$B$19:$I$19,\"\"))),\"\")","v":""}]
[{"$f":"IFERROR(_xlfn.TOROW(ThousandsList(_xlfn.XLOOKUP('Submission Form'!$C109,LibraryTypes,LibraryTypes!$B$19:$I$19,\"\"))),\"\")","v":""}]
[{"$f":"IFERROR(_xlfn.TOROW(ThousandsList(_xlfn.XLOOKUP('Submission Form'!$C110,LibraryTypes,LibraryTypes!$B$19:$I$19,\"\"))),\"\")","v":""}]
[{"$f":"IFERROR(_xlfn.TOROW(ThousandsList(_xlfn.XLOOKUP('Submission Form'!$C111,LibraryTypes,LibraryTypes!$B$19:$I$19,\"\"))),\"\")","v":""}]
[{"$f":"IFERROR(_xlfn.TOROW(ThousandsList(_xlfn.XLOOKUP('Submission Form'!$C112,LibraryTypes,LibraryTypes!$B$19:$I$19,\"\"))),\"\")","v":""}]
[{"$f":"IFERROR(_xlfn.TOROW(ThousandsList(_xlfn.XLOOKUP('Submission Form'!$C113,LibraryTypes,LibraryTypes!$B$19:$I$19,\"\"))),\"\")","v":""}]
[{"$f":"IFERROR(_xlfn.TOROW(ThousandsList(_xlfn.XLOOKUP('Submission Form'!$C114,LibraryTypes,LibraryTypes!$B$19:$I$19,\"\"))),\"\")","v":""}]
[{"$f":"IFERROR(_xlfn.TOROW(ThousandsList(_xlfn.XLOOKUP('Submission Form'!$C115,LibraryTypes,LibraryTypes!$B$19:$I$19,\"\"))),\"\")","v":""}]
[{"$f":"IFERROR(_xlfn.TOROW(ThousandsList(_xlfn.XLOOKUP('Submission Form'!$C116,LibraryTypes,LibraryTypes!$B$19:$I$19,\"\"))),\"\")","v":""}]
[{"$f":"IFERROR(_xlfn.TOROW(ThousandsList(_xlfn.XLOOKUP('Submission Form'!$C117,LibraryTypes,LibraryTypes!$B$19:$I$19,\"\"))),\"\")","v":""}]
[{"$f":"IFERROR(_xlfn.TOROW(ThousandsList(_xlfn.XLOOKUP('Submission Form'!$C118,LibraryTypes,LibraryTypes!$B$19:$I$19,\"\"))),\"\")","v":""}]
[{"$f":"IFERROR(_xlfn.TOROW(ThousandsList(_xlfn.XLOOKUP('Submission Form'!$C119,LibraryTypes,LibraryTypes!$B$19:$I$19,\"\"))),\"\")","v":""}]
[{"$f":"IFERROR(_xlfn.TOROW(ThousandsList(_xlfn.XLOOKUP('Submission Form'!$C120,LibraryTypes,LibraryTypes!$B$19:$I$19,\"\"))),\"\")","v":""}]
[{"$f":"IFERROR(_xlfn.TOROW(ThousandsList(_xlfn.XLOOKUP('Submission Form'!$C121,LibraryTypes,LibraryTypes!$B$19:$I$19,\"\"))),\"\")","v":""}]
[{"$f":"IFERROR(_xlfn.TOROW(ThousandsList(_xlfn.XLOOKUP('Submission Form'!$C122,LibraryTypes,LibraryTypes!$B$19:$I$19,\"\"))),\"\")","v":""}]
[{"$f":"IFERROR(_xlfn.TOROW(ThousandsList(_xlfn.XLOOKUP('Submission Form'!$C123,LibraryTypes,LibraryTypes!$B$19:$I$19,\"\"))),\"\")","v":""}]
[{"$f":"IFERROR(_xlfn.TOROW(ThousandsList(_xlfn.XLOOKUP('Submission Form'!$C124,LibraryTypes,LibraryTypes!$B$19:$I$19,\"\"))),\"\")","v":""}]
[{"$f":"IFERROR(_xlfn.TOROW(ThousandsList(_xlfn.XLOOKUP('Submission Form'!$C125,LibraryTypes,LibraryTypes!$B$19:$I$19,\"\"))),\"\")","v":""}]
[{"$f":"IFERROR(_xlfn.TOROW(ThousandsList(_xlfn.XLOOKUP('Submission Form'!$C126,LibraryTypes,LibraryTypes!$B$19:$I$19,\"\"))),\"\")","v":""}]
[{"$f":"IFERROR(_xlfn.TOROW(ThousandsList(_xlfn.XLOOKUP('Submission Form'!$C127,LibraryTypes,LibraryTypes!$B$19:$I$19,\"\"))),\"\")","v":""}]
[{"$f":"IFERROR(_xlfn.TOROW(ThousandsList(_xlfn.XLOOKUP('Submission Form'!$C128,LibraryTypes,LibraryTypes!$B$19:$I$19,\"\"))),\"\")","v":""}]
[{"$f":"IFERROR(_xlfn.TOROW(ThousandsList(_xlfn.XLOOKUP('Submission Form'!$C129,LibraryTypes,LibraryTypes!$B$19:$I$19,\"\"))),\"\")","v":""}]
[{"$f":"IFERROR(_xlfn.TOROW(ThousandsList(_xlfn.XLOOKUP('Submission Form'!$C130,LibraryTypes,LibraryTypes!$B$19:$I$19,\"\"))),\"\")","v":""}]
[{"$f":"IFERROR(_xlfn.TOROW(ThousandsList(_xlfn.XLOOKUP('Submission Form'!$C131,LibraryTypes,LibraryTypes!$B$19:$I$19,\"\"))),\"\")","v":""}]
[{"$f":"IFERROR(_xlfn.TOROW(ThousandsList(_xlfn.XLOOKUP('Submission Form'!$C132,LibraryTypes,LibraryTypes!$B$19:$I$19,\"\"))),\"\")","v":""}]
[{"$f":"IFERROR(_xlfn.TOROW(ThousandsList(_xlfn.XLOOKUP('Submission Form'!$C133,LibraryTypes,LibraryTypes!$B$19:$I$19,\"\"))),\"\")","v":""}]
[{"$f":"IFERROR(_xlfn.TOROW(ThousandsList(_xlfn.XLOOKUP('Submission Form'!$C134,LibraryTypes,LibraryTypes!$B$19:$I$19,\"\"))),\"\")","v":""}]
[{"$f":"IFERROR(_xlfn.TOROW(ThousandsList(_xlfn.XLOOKUP('Submission Form'!$C135,LibraryTypes,LibraryTypes!$B$19:$I$19,\"\"))),\"\")","v":""}]
[{"$f":"IFERROR(_xlfn.TOROW(ThousandsList(_xlfn.XLOOKUP('Submission Form'!$C136,LibraryTypes,LibraryTypes!$B$19:$I$19,\"\"))),\"\")","v":""}]
[{"$f":"IFERROR(_xlfn.TOROW(ThousandsList(_xlfn.XLOOKUP('Submission Form'!$C137,LibraryTypes,LibraryTypes!$B$19:$I$19,\"\"))),\"\")","v":""}]
[{"$f":"IFERROR(_xlfn.TOROW(ThousandsList(_xlfn.XLOOKUP('Submission Form'!$C138,LibraryTypes,LibraryTypes!$B$19:$I$19,\"\"))),\"\")","v":""}]
[{"$f":"IFERROR(_xlfn.TOROW(ThousandsList(_xlfn.XLOOKUP('Submission Form'!$C139,LibraryTypes,LibraryTypes!$B$19:$I$19,\"\"))),\"\")","v":""}]
[{"$f":"IFERROR(_xlfn.TOROW(ThousandsList(_xlfn.XLOOKUP('Submission Form'!$C140,LibraryTypes,LibraryTypes!$B$19:$I$19,\"\"))),\"\")","v":""}]
[{"$f":"IFERROR(_xlfn.TOROW(ThousandsList(_xlfn.XLOOKUP('Submission Form'!$C141,LibraryTypes,LibraryTypes!$B$19:$I$19,\"\"))),\"\")","v":""}]
[{"$f":"IFERROR(_xlfn.TOROW(ThousandsList(_xlfn.XLOOKUP('Submission Form'!$C142,LibraryTypes,LibraryTypes!$B$19:$I$19,\"\"))),\"\")","v":""}]
[{"$f":"IFERROR(_xlfn.TOROW(ThousandsList(_xlfn.XLOOKUP('Submission Form'!$C143,LibraryTypes,LibraryTypes!$B$19:$I$19,\"\"))),\"\")","v":""}]
[{"$f":"IFERROR(_xlfn.TOROW(ThousandsList(_xlfn.XLOOKUP('Submission Form'!$C144,LibraryTypes,LibraryTypes!$B$19:$I$19,\"\"))),\"\")","v":""}]
[{"$f":"IFERROR(_xlfn.TOROW(ThousandsList(_xlfn.XLOOKUP('Submission Form'!$C145,LibraryTypes,LibraryTypes!$B$19:$I$19,\"\"))),\"\")","v":""}]
[{"$f":"IFERROR(_xlfn.TOROW(ThousandsList(_xlfn.XLOOKUP('Submission Form'!$C146,LibraryTypes,LibraryTypes!$B$19:$I$19,\"\"))),\"\")","v":""}]
[{"$f":"IFERROR(_xlfn.TOROW(ThousandsList(_xlfn.XLOOKUP('Submission Form'!$C147,LibraryTypes,LibraryTypes!$B$19:$I$19,\"\"))),\"\")","v":""}]
[{"$f":"IFERROR(_xlfn.TOROW(ThousandsList(_xlfn.XLOOKUP('Submission Form'!$C148,LibraryTypes,LibraryTypes!$B$19:$I$19,\"\"))),\"\")","v":""}]
[{"$f":"IFERROR(_xlfn.TOROW(ThousandsList(_xlfn.XLOOKUP('Submission Form'!$C149,LibraryTypes,LibraryTypes!$B$19:$I$19,\"\"))),\"\")","v":""}]
[{"$f":"IFERROR(_xlfn.TOROW(ThousandsList(_xlfn.XLOOKUP('Submission Form'!$C150,LibraryTypes,LibraryTypes!$B$19:$I$19,\"\"))),\"\")","v":""}]
[{"$f":"IFERROR(_xlfn.TOROW(ThousandsList(_xlfn.XLOOKUP('Submission Form'!$C151,LibraryTypes,LibraryTypes!$B$19:$I$19,\"\"))),\"\")","v":""}]
[{"$f":"IFERROR(_xlfn.TOROW(ThousandsList(_xlfn.XLOOKUP('Submission Form'!$C152,LibraryTypes,LibraryTypes!$B$19:$I$19,\"\"))),\"\")","v":""}]
[{"$f":"IFERROR(_xlfn.TOROW(ThousandsList(_xlfn.XLOOKUP('Submission Form'!$C153,LibraryTypes,LibraryTypes!$B$19:$I$19,\"\"))),\"\")","v":""}]
[{"$f":"IFERROR(_xlfn.TOROW(ThousandsList(_xlfn.XLOOKUP('Submission Form'!$C154,LibraryTypes,LibraryTypes!$B$19:$I$19,\"\"))),\"\")","v":""}]
[{"$f":"IFERROR(_xlfn.TOROW(ThousandsList(_xlfn.XLOOKUP('Submission Form'!$C155,LibraryTypes,LibraryTypes!$B$19:$I$19,\"\"))),\"\")","v":""}]
[{"$f":"IFERROR(_xlfn.TOROW(ThousandsList(_xlfn.XLOOKUP('Submission Form'!$C156,LibraryTypes,LibraryTypes!$B$19:$I$19,\"\"))),\"\")","v":""}]
[{"$f":"IFERROR(_xlfn.TOROW(ThousandsList(_xlfn.XLOOKUP('Submission Form'!$C157,LibraryTypes,LibraryTypes!$B$19:$I$19,\"\"))),\"\")","v":""}]
[{"$f":"IFERROR(_xlfn.TOROW(ThousandsList(_xlfn.XLOOKUP('Submission Form'!$C158,LibraryTypes,LibraryTypes!$B$19:$I$19,\"\"))),\"\")","v":""}]
[{"$f":"IFERROR(_xlfn.TOROW(ThousandsList(_xlfn.XLOOKUP('Submission Form'!$C159,LibraryTypes,LibraryTypes!$B$19:$I$19,\"\"))),\"\")","v":""}]
[{"$f":"IFERROR(_xlfn.TOROW(ThousandsList(_xlfn.XLOOKUP('Submission Form'!$C160,LibraryTypes,LibraryTypes!$B$19:$I$19,\"\"))),\"\")","v":""}]
[{"$f":"IFERROR(_xlfn.TOROW(ThousandsList(_xlfn.XLOOKUP('Submission Form'!$C161,LibraryTypes,LibraryTypes!$B$19:$I$19,\"\"))),\"\")","v":""}]
[{"$f":"IFERROR(_xlfn.TOROW(ThousandsList(_xlfn.XLOOKUP('Submission Form'!$C162,LibraryTypes,LibraryTypes!$B$19:$I$19,\"\"))),\"\")","v":""}]
[{"$f":"IFERROR(_xlfn.TOROW(ThousandsList(_xlfn.XLOOKUP('Submission Form'!$C163,LibraryTypes,LibraryTypes!$B$19:$I$19,\"\"))),\"\")","v":""}]
[{"$f":"IFERROR(_xlfn.TOROW(ThousandsList(_xlfn.XLOOKUP('Submission Form'!$C164,LibraryTypes,LibraryTypes!$B$19:$I$19,\"\"))),\"\")","v":""}]
[{"$f":"IFERROR(_xlfn.TOROW(ThousandsList(_xlfn.XLOOKUP('Submission Form'!$C165,LibraryTypes,LibraryTypes!$B$19:$I$19,\"\"))),\"\")","v":""}]
[{"$f":"IFERROR(_xlfn.TOROW(ThousandsList(_xlfn.XLOOKUP('Submission Form'!$C166,LibraryTypes,LibraryTypes!$B$19:$I$19,\"\"))),\"\")","v":""}]
[{"$f":"IFERROR(_xlfn.TOROW(ThousandsList(_xlfn.XLOOKUP('Submission Form'!$C167,LibraryTypes,LibraryTypes!$B$19:$I$19,\"\"))),\"\")","v":""}]
[{"$f":"IFERROR(_xlfn.TOROW(ThousandsList(_xlfn.XLOOKUP('Submission Form'!$C168,LibraryTypes,LibraryTypes!$B$19:$I$19,\"\"))),\"\")","v":""}]
[{"$f":"IFERROR(_xlfn.TOROW(ThousandsList(_xlfn.XLOOKUP('Submission Form'!$C169,LibraryTypes,LibraryTypes!$B$19:$I$19,\"\"))),\"\")","v":""}]
[{"$f":"IFERROR(_xlfn.TOROW(ThousandsList(_xlfn.XLOOKUP('Submission Form'!$C170,LibraryTypes,LibraryTypes!$B$19:$I$19,\"\"))),\"\")","v":""}]
[{"$f":"IFERROR(_xlfn.TOROW(ThousandsList(_xlfn.XLOOKUP('Submission Form'!$C171,LibraryTypes,LibraryTypes!$B$19:$I$19,\"\"))),\"\")","v":""}]
[{"$f":"IFERROR(_xlfn.TOROW(ThousandsList(_xlfn.XLOOKUP('Submission Form'!$C172,LibraryTypes,LibraryTypes!$B$19:$I$19,\"\"))),\"\")","v":""}]
[{"$f":"IFERROR(_xlfn.TOROW(ThousandsList(_xlfn.XLOOKUP('Submission Form'!$C173,LibraryTypes,LibraryTypes!$B$19:$I$19,\"\"))),\"\")","v":""}]
[{"$f":"IFERROR(_xlfn.TOROW(ThousandsList(_xlfn.XLOOKUP('Submission Form'!$C174,LibraryTypes,LibraryTypes!$B$19:$I$19,\"\"))),\"\")","v":""}]
[{"$f":"IFERROR(_xlfn.TOROW(ThousandsList(_xlfn.XLOOKUP('Submission Form'!$C175,LibraryTypes,LibraryTypes!$B$19:$I$19,\"\"))),\"\")","v":""}]
[{"$f":"IFERROR(_xlfn.TOROW(ThousandsList(_xlfn.XLOOKUP('Submission Form'!$C176,LibraryTypes,LibraryTypes!$B$19:$I$19,\"\"))),\"\")","v":""}]
[{"$f":"IFERROR(_xlfn.TOROW(ThousandsList(_xlfn.XLOOKUP('Submission Form'!$C177,LibraryTypes,LibraryTypes!$B$19:$I$19,\"\"))),\"\")","v":""}]
[{"$f":"IFERROR(_xlfn.TOROW(ThousandsList(_xlfn.XLOOKUP('Submission Form'!$C178,LibraryTypes,LibraryTypes!$B$19:$I$19,\"\"))),\"\")","v":""}]
[{"$f":"IFERROR(_xlfn.TOROW(ThousandsList(_xlfn.XLOOKUP('Submission Form'!$C179,LibraryTypes,LibraryTypes!$B$19:$I$19,\"\"))),\"\")","v":""}]
[{"$f":"IFERROR(_xlfn.TOROW(ThousandsList(_xlfn.XLOOKUP('Submission Form'!$C180,LibraryTypes,LibraryTypes!$B$19:$I$19,\"\"))),\"\")","v":""}]
[{"$f":"IFERROR(_xlfn.TOROW(ThousandsList(_xlfn.XLOOKUP('Submission Form'!$C181,LibraryTypes,LibraryTypes!$B$19:$I$19,\"\"))),\"\")","v":""}]
[{"$f":"IFERROR(_xlfn.TOROW(ThousandsList(_xlfn.XLOOKUP('Submission Form'!$C182,LibraryTypes,LibraryTypes!$B$19:$I$19,\"\"))),\"\")","v":""}]
[{"$f":"IFERROR(_xlfn.TOROW(ThousandsList(_xlfn.XLOOKUP('Submission Form'!$C183,LibraryTypes,LibraryTypes!$B$19:$I$19,\"\"))),\"\")","v":""}]
[{"$f":"IFERROR(_xlfn.TOROW(ThousandsList(_xlfn.XLOOKUP('Submission Form'!$C184,LibraryTypes,LibraryTypes!$B$19:$I$19,\"\"))),\"\")","v":""}]
[{"$f":"IFERROR(_xlfn.TOROW(ThousandsList(_xlfn.XLOOKUP('Submission Form'!$C185,LibraryTypes,LibraryTypes!$B$19:$I$19,\"\"))),\"\")","v":""}]
[{"$f":"IFERROR(_xlfn.TOROW(ThousandsList(_xlfn.XLOOKUP('Submission Form'!$C186,LibraryTypes,LibraryTypes!$B$19:$I$19,\"\"))),\"\")","v":""}]
[{"$f":"IFERROR(_xlfn.TOROW(ThousandsList(_xlfn.XLOOKUP('Submission Form'!$C187,LibraryTypes,LibraryTypes!$B$19:$I$19,\"\"))),\"\")","v":""}]
[{"$f":"IFERROR(_xlfn.TOROW(ThousandsList(_xlfn.XLOOKUP('Submission Form'!$C188,LibraryTypes,LibraryTypes!$B$19:$I$19,\"\"))),\"\")","v":""}]
[{"$f":"IFERROR(_xlfn.TOROW(ThousandsList(_xlfn.XLOOKUP('Submission Form'!$C189,LibraryTypes,LibraryTypes!$B$19:$I$19,\"\"))),\"\")","v":""}]
[{"$f":"IFERROR(_xlfn.TOROW(ThousandsList(_xlfn.XLOOKUP('Submission Form'!$C190,LibraryTypes,LibraryTypes!$B$19:$I$19,\"\"))),\"\")","v":""}]
[{"$f":"IFERROR(_xlfn.TOROW(ThousandsList(_xlfn.XLOOKUP('Submission Form'!$C191,LibraryTypes,LibraryTypes!$B$19:$I$19,\"\"))),\"\")","v":""}]
[{"$f":"IFERROR(_xlfn.TOROW(ThousandsList(_xlfn.XLOOKUP('Submission Form'!$C192,LibraryTypes,LibraryTypes!$B$19:$I$19,\"\"))),\"\")","v":""}]
[{"$f":"IFERROR(_xlfn.TOROW(ThousandsList(_xlfn.XLOOKUP('Submission Form'!$C193,LibraryTypes,LibraryTypes!$B$19:$I$19,\"\"))),\"\")","v":""}]
[{"$f":"IFERROR(_xlfn.TOROW(ThousandsList(_xlfn.XLOOKUP('Submission Form'!$C194,LibraryTypes,LibraryTypes!$B$19:$I$19,\"\"))),\"\")","v":""}]
[{"$f":"IFERROR(_xlfn.TOROW(ThousandsList(_xlfn.XLOOKUP('Submission Form'!$C195,LibraryTypes,LibraryTypes!$B$19:$I$19,\"\"))),\"\")","v":""}]
[{"$f":"IFERROR(_xlfn.TOROW(ThousandsList(_xlfn.XLOOKUP('Submission Form'!$C196,LibraryTypes,LibraryTypes!$B$19:$I$19,\"\"))),\"\")","v":""}]
[{"$f":"IFERROR(_xlfn.TOROW(ThousandsList(_xlfn.XLOOKUP('Submission Form'!$C197,LibraryTypes,LibraryTypes!$B$19:$I$19,\"\"))),\"\")","v":""}]
[{"$f":"IFERROR(_xlfn.TOROW(ThousandsList(_xlfn.XLOOKUP('Submission Form'!$C198,LibraryTypes,LibraryTypes!$B$19:$I$19,\"\"))),\"\")","v":""}]
[{"$f":"IFERROR(_xlfn.TOROW(ThousandsList(_xlfn.XLOOKUP('Submission Form'!$C199,LibraryTypes,LibraryTypes!$B$19:$I$19,\"\"))),\"\")","v":""}]
[{"$f":"IFERROR(_xlfn.TOROW(ThousandsList(_xlfn.XLOOKUP('Submission Form'!$C200,LibraryTypes,LibraryTypes!$B$19:$I$19,\"\"))),\"\")","v":""}]
[{"$f":"IFERROR(_xlfn.TOROW(ThousandsList(_xlfn.XLOOKUP('Submission Form'!$C201,LibraryTypes,LibraryTypes!$B$19:$I$19,\"\"))),\"\")","v":""}]
[{"$f":"IFERROR(_xlfn.TOROW(ThousandsList(_xlfn.XLOOKUP('Submission Form'!$C202,LibraryTypes,LibraryTypes!$B$19:$I$19,\"\"))),\"\")","v":""}]
[{"$f":"IFERROR(_xlfn.TOROW(ThousandsList(_xlfn.XLOOKUP('Submission Form'!$C203,LibraryTypes,LibraryTypes!$B$19:$I$19,\"\"))),\"\")","v":""}]
[{"$f":"IFERROR(_xlfn.TOROW(ThousandsList(_xlfn.XLOOKUP('Submission Form'!$C204,LibraryTypes,LibraryTypes!$B$19:$I$19,\"\"))),\"\")","v":""}]
[{"$f":"IFERROR(_xlfn.TOROW(ThousandsList(_xlfn.XLOOKUP('Submission Form'!$C205,LibraryTypes,LibraryTypes!$B$19:$I$19,\"\"))),\"\")","v":""}]
[{"$f":"IFERROR(_xlfn.TOROW(ThousandsList(_xlfn.XLOOKUP('Submission Form'!$C206,LibraryTypes,LibraryTypes!$B$19:$I$19,\"\"))),\"\")","v":""}]
[{"$f":"IFERROR(_xlfn.TOROW(ThousandsList(_xlfn.XLOOKUP('Submission Form'!$C207,LibraryTypes,LibraryTypes!$B$19:$I$19,\"\"))),\"\")","v":""}]
[{"$f":"IFERROR(_xlfn.TOROW(ThousandsList(_xlfn.XLOOKUP('Submission Form'!$C208,LibraryTypes,LibraryTypes!$B$19:$I$19,\"\"))),\"\")","v":""}]
[{"$f":"IFERROR(_xlfn.TOROW(ThousandsList(_xlfn.XLOOKUP('Submission Form'!$C209,LibraryTypes,LibraryTypes!$B$19:$I$19,\"\"))),\"\")","v":""}]
[{"$f":"IFERROR(_xlfn.TOROW(ThousandsList(_xlfn.XLOOKUP('Submission Form'!$C210,LibraryTypes,LibraryTypes!$B$19:$I$19,\"\"))),\"\")","v":""}]
[{"$f":"IFERROR(_xlfn.TOROW(ThousandsList(_xlfn.XLOOKUP('Submission Form'!$C211,LibraryTypes,LibraryTypes!$B$19:$I$19,\"\"))),\"\")","v":""}]
[{"$f":"IFERROR(_xlfn.TOROW(ThousandsList(_xlfn.XLOOKUP('Submission Form'!$C212,LibraryTypes,LibraryTypes!$B$19:$I$19,\"\"))),\"\")","v":""}]
[{"$f":"IFERROR(_xlfn.TOROW(ThousandsList(_xlfn.XLOOKUP('Submission Form'!$C213,LibraryTypes,LibraryTypes!$B$19:$I$19,\"\"))),\"\")","v":""}]
[{"$f":"IFERROR(_xlfn.TOROW(ThousandsList(_xlfn.XLOOKUP('Submission Form'!$C214,LibraryTypes,LibraryTypes!$B$19:$I$19,\"\"))),\"\")","v":""}]
[{"$f":"IFERROR(_xlfn.TOROW(ThousandsList(_xlfn.XLOOKUP('Submission Form'!$C215,LibraryTypes,LibraryTypes!$B$19:$I$19,\"\"))),\"\")","v":""}]
[{"$f":"IFERROR(_xlfn.TOROW(ThousandsList(_xlfn.XLOOKUP('Submission Form'!$C216,LibraryTypes,LibraryTypes!$B$19:$I$19,\"\"))),\"\")","v":""}]
[{"$f":"IFERROR(_xlfn.TOROW(ThousandsList(_xlfn.XLOOKUP('Submission Form'!$C217,LibraryTypes,LibraryTypes!$B$19:$I$19,\"\"))),\"\")","v":""}]
[{"$f":"IFERROR(_xlfn.TOROW(ThousandsList(_xlfn.XLOOKUP('Submission Form'!$C218,LibraryTypes,LibraryTypes!$B$19:$I$19,\"\"))),\"\")","v":""}]
[{"$f":"IFERROR(_xlfn.TOROW(ThousandsList(_xlfn.XLOOKUP('Submission Form'!$C219,LibraryTypes,LibraryTypes!$B$19:$I$19,\"\"))),\"\")","v":""}]
[{"$f":"IFERROR(_xlfn.TOROW(ThousandsList(_xlfn.XLOOKUP('Submission Form'!$C220,LibraryTypes,LibraryTypes!$B$19:$I$19,\"\"))),\"\")","v":""}]
[{"$f":"IFERROR(_xlfn.TOROW(ThousandsList(_xlfn.XLOOKUP('Submission Form'!$C221,LibraryTypes,LibraryTypes!$B$19:$I$19,\"\"))),\"\")","v":""}]
[{"$f":"IFERROR(_xlfn.TOROW(ThousandsList(_xlfn.XLOOKUP('Submission Form'!$C222,LibraryTypes,LibraryTypes!$B$19:$I$19,\"\"))),\"\")","v":""}]
[{"$f":"IFERROR(_xlfn.TOROW(ThousandsList(_xlfn.XLOOKUP('Submission Form'!$C223,LibraryTypes,LibraryTypes!$B$19:$I$19,\"\"))),\"\")","v":""}]
[{"$f":"IFERROR(_xlfn.TOROW(ThousandsList(_xlfn.XLOOKUP('Submission Form'!$C224,LibraryTypes,LibraryTypes!$B$19:$I$19,\"\"))),\"\")","v":""}]
[{"$f":"IFERROR(_xlfn.TOROW(ThousandsList(_xlfn.XLOOKUP('Submission Form'!$C225,LibraryTypes,LibraryTypes!$B$19:$I$19,\"\"))),\"\")","v":""}]
[{"$f":"IFERROR(_xlfn.TOROW(ThousandsList(_xlfn.XLOOKUP('Submission Form'!$C226,LibraryTypes,LibraryTypes!$B$19:$I$19,\"\"))),\"\")","v":""}]
[{"$f":"IFERROR(_xlfn.TOROW(ThousandsList(_xlfn.XLOOKUP('Submission Form'!$C227,LibraryTypes,LibraryTypes!$B$19:$I$19,\"\"))),\"\")","v":""}]
[{"$f":"IFERROR(_xlfn.TOROW(ThousandsList(_xlfn.XLOOKUP('Submission Form'!$C228,LibraryTypes,LibraryTypes!$B$19:$I$19,\"\"))),\"\")","v":""}]
[{"$f":"IFERROR(_xlfn.TOROW(ThousandsList(_xlfn.XLOOKUP('Submission Form'!$C229,LibraryTypes,LibraryTypes!$B$19:$I$19,\"\"))),\"\")","v":""}]
[{"$f":"IFERROR(_xlfn.TOROW(ThousandsList(_xlfn.XLOOKUP('Submission Form'!$C230,LibraryTypes,LibraryTypes!$B$19:$I$19,\"\"))),\"\")","v":""}]
[{"$f":"IFERROR(_xlfn.TOROW(ThousandsList(_xlfn.XLOOKUP('Submission Form'!$C231,LibraryTypes,LibraryTypes!$B$19:$I$19,\"\"))),\"\")","v":""}]
[{"$f":"IFERROR(_xlfn.TOROW(ThousandsList(_xlfn.XLOOKUP('Submission Form'!$C232,LibraryTypes,LibraryTypes!$B$19:$I$19,\"\"))),\"\")","v":""}]
[{"$f":"IFERROR(_xlfn.TOROW(ThousandsList(_xlfn.XLOOKUP('Submission Form'!$C233,LibraryTypes,LibraryTypes!$B$19:$I$19,\"\"))),\"\")","v":""}]
[{"$f":"IFERROR(_xlfn.TOROW(ThousandsList(_xlfn.XLOOKUP('Submission Form'!$C234,LibraryTypes,LibraryTypes!$B$19:$I$19,\"\"))),\"\")","v":""}]
[{"$f":"IFERROR(_xlfn.TOROW(ThousandsList(_xlfn.XLOOKUP('Submission Form'!$C235,LibraryTypes,LibraryTypes!$B$19:$I$19,\"\"))),\"\")","v":""}]
[{"$f":"IFERROR(_xlfn.TOROW(ThousandsList(_xlfn.XLOOKUP('Submission Form'!$C236,LibraryTypes,LibraryTypes!$B$19:$I$19,\"\"))),\"\")","v":""}]
[{"$f":"IFERROR(_xlfn.TOROW(ThousandsList(_xlfn.XLOOKUP('Submission Form'!$C237,LibraryTypes,LibraryTypes!$B$19:$I$19,\"\"))),\"\")","v":""}]
[{"$f":"IFERROR(_xlfn.TOROW(ThousandsList(_xlfn.XLOOKUP('Submission Form'!$C238,LibraryTypes,LibraryTypes!$B$19:$I$19,\"\"))),\"\")","v":""}]
[{"$f":"IFERROR(_xlfn.TOROW(ThousandsList(_xlfn.XLOOKUP('Submission Form'!$C239,LibraryTypes,LibraryTypes!$B$19:$I$19,\"\"))),\"\")","v":""}]
[{"$f":"IFERROR(_xlfn.TOROW(ThousandsList(_xlfn.XLOOKUP('Submission Form'!$C240,LibraryTypes,LibraryTypes!$B$19:$I$19,\"\"))),\"\")","v":""}]
[{"$f":"IFERROR(_xlfn.TOROW(ThousandsList(_xlfn.XLOOKUP('Submission Form'!$C241,LibraryTypes,LibraryTypes!$B$19:$I$19,\"\"))),\"\")","v":""}]
[{"$f":"IFERROR(_xlfn.TOROW(ThousandsList(_xlfn.XLOOKUP('Submission Form'!$C242,LibraryTypes,LibraryTypes!$B$19:$I$19,\"\"))),\"\")","v":""}]
[{"$f":"IFERROR(_xlfn.TOROW(ThousandsList(_xlfn.XLOOKUP('Submission Form'!$C243,LibraryTypes,LibraryTypes!$B$19:$I$19,\"\"))),\"\")","v":""}]
[{"$f":"IFERROR(_xlfn.TOROW(ThousandsList(_xlfn.XLOOKUP('Submission Form'!$C244,LibraryTypes,LibraryTypes!$B$19:$I$19,\"\"))),\"\")","v":""}]
[{"$f":"IFERROR(_xlfn.TOROW(ThousandsList(_xlfn.XLOOKUP('Submission Form'!$C245,LibraryTypes,LibraryTypes!$B$19:$I$19,\"\"))),\"\")","v":""}]
[{"$f":"IFERROR(_xlfn.TOROW(ThousandsList(_xlfn.XLOOKUP('Submission Form'!$C246,LibraryTypes,LibraryTypes!$B$19:$I$19,\"\"))),\"\")","v":""}]
[{"$f":"IFERROR(_xlfn.TOROW(ThousandsList(_xlfn.XLOOKUP('Submission Form'!$C247,LibraryTypes,LibraryTypes!$B$19:$I$19,\"\"))),\"\")","v":""}]
[{"$f":"IFERROR(_xlfn.TOROW(ThousandsList(_xlfn.XLOOKUP('Submission Form'!$C248,LibraryTypes,LibraryTypes!$B$19:$I$19,\"\"))),\"\")","v":""}]
[{"$f":"IFERROR(_xlfn.TOROW(ThousandsList(_xlfn.XLOOKUP('Submission Form'!$C249,LibraryTypes,LibraryTypes!$B$19:$I$19,\"\"))),\"\")","v":""}]
[{"$f":"IFERROR(_xlfn.TOROW(ThousandsList(_xlfn.XLOOKUP('Submission Form'!$C250,LibraryTypes,LibraryTypes!$B$19:$I$19,\"\"))),\"\")","v":""}]
[{"$f":"IFERROR(_xlfn.TOROW(ThousandsList(_xlfn.XLOOKUP('Submission Form'!$C251,LibraryTypes,LibraryTypes!$B$19:$I$19,\"\"))),\"\")","v":""}]
[{"$f":"IFERROR(_xlfn.TOROW(ThousandsList(_xlfn.XLOOKUP('Submission Form'!$C252,LibraryTypes,LibraryTypes!$B$19:$I$19,\"\"))),\"\")","v":""}]
[{"$f":"IFERROR(_xlfn.TOROW(ThousandsList(_xlfn.XLOOKUP('Submission Form'!$C253,LibraryTypes,LibraryTypes!$B$19:$I$19,\"\"))),\"\")","v":""}]
[{"$f":"IFERROR(_xlfn.TOROW(ThousandsList(_xlfn.XLOOKUP('Submission Form'!$C254,LibraryTypes,LibraryTypes!$B$19:$I$19,\"\"))),\"\")","v":""}]
[{"$f":"IFERROR(_xlfn.TOROW(ThousandsList(_xlfn.XLOOKUP('Submission Form'!$C255,LibraryTypes,LibraryTypes!$B$19:$I$19,\"\"))),\"\")","v":""}]
[{"$f":"IFERROR(_xlfn.TOROW(ThousandsList(_xlfn.XLOOKUP('Submission Form'!$C256,LibraryTypes,LibraryTypes!$B$19:$I$19,\"\"))),\"\")","v":""}]
[{"$f":"IFERROR(_xlfn.TOROW(ThousandsList(_xlfn.XLOOKUP('Submission Form'!$C257,LibraryTypes,LibraryTypes!$B$19:$I$19,\"\"))),\"\")","v":""}]
[{"$f":"IFERROR(_xlfn.TOROW(ThousandsList(_xlfn.XLOOKUP('Submission Form'!$C258,LibraryTypes,LibraryTypes!$B$19:$I$19,\"\"))),\"\")","v":""}]
[{"$f":"IFERROR(_xlfn.TOROW(ThousandsList(_xlfn.XLOOKUP('Submission Form'!$C259,LibraryTypes,LibraryTypes!$B$19:$I$19,\"\"))),\"\")","v":""}]
[{"$f":"IFERROR(_xlfn.TOROW(ThousandsList(_xlfn.XLOOKUP('Submission Form'!$C260,LibraryTypes,LibraryTypes!$B$19:$I$19,\"\"))),\"\")","v":""}]
[{"$f":"IFERROR(_xlfn.TOROW(ThousandsList(_xlfn.XLOOKUP('Submission Form'!$C261,LibraryTypes,LibraryTypes!$B$19:$I$19,\"\"))),\"\")","v":""}]
[{"$f":"IFERROR(_xlfn.TOROW(ThousandsList(_xlfn.XLOOKUP('Submission Form'!$C262,LibraryTypes,LibraryTypes!$B$19:$I$19,\"\"))),\"\")","v":""}]
[{"$f":"IFERROR(_xlfn.TOROW(ThousandsList(_xlfn.XLOOKUP('Submission Form'!$C263,LibraryTypes,LibraryTypes!$B$19:$I$19,\"\"))),\"\")","v":""}]
[{"$f":"IFERROR(_xlfn.TOROW(ThousandsList(_xlfn.XLOOKUP('Submission Form'!$C264,LibraryTypes,LibraryTypes!$B$19:$I$19,\"\"))),\"\")","v":""}]
[{"$f":"IFERROR(_xlfn.TOROW(ThousandsList(_xlfn.XLOOKUP('Submission Form'!$C265,LibraryTypes,LibraryTypes!$B$19:$I$19,\"\"))),\"\")","v":""}]
[{"$f":"IFERROR(_xlfn.TOROW(ThousandsList(_xlfn.XLOOKUP('Submission Form'!$C266,LibraryTypes,LibraryTypes!$B$19:$I$19,\"\"))),\"\")","v":""}]
[{"$f":"IFERROR(_xlfn.TOROW(ThousandsList(_xlfn.XLOOKUP('Submission Form'!$C267,LibraryTypes,LibraryTypes!$B$19:$I$19,\"\"))),\"\")","v":""}]
[{"$f":"IFERROR(_xlfn.TOROW(ThousandsList(_xlfn.XLOOKUP('Submission Form'!$C268,LibraryTypes,LibraryTypes!$B$19:$I$19,\"\"))),\"\")","v":""}]
[{"$f":"IFERROR(_xlfn.TOROW(ThousandsList(_xlfn.XLOOKUP('Submission Form'!$C269,LibraryTypes,LibraryTypes!$B$19:$I$19,\"\"))),\"\")","v":""}]
[{"$f":"IFERROR(_xlfn.TOROW(ThousandsList(_xlfn.XLOOKUP('Submission Form'!$C270,LibraryTypes,LibraryTypes!$B$19:$I$19,\"\"))),\"\")","v":""}]
[{"$f":"IFERROR(_xlfn.TOROW(ThousandsList(_xlfn.XLOOKUP('Submission Form'!$C271,LibraryTypes,LibraryTypes!$B$19:$I$19,\"\"))),\"\")","v":""}]
[{"$f":"IFERROR(_xlfn.TOROW(ThousandsList(_xlfn.XLOOKUP('Submission Form'!$C272,LibraryTypes,LibraryTypes!$B$19:$I$19,\"\"))),\"\")","v":""}]
[{"$f":"IFERROR(_xlfn.TOROW(ThousandsList(_xlfn.XLOOKUP('Submission Form'!$C273,LibraryTypes,LibraryTypes!$B$19:$I$19,\"\"))),\"\")","v":""}]
[{"$f":"IFERROR(_xlfn.TOROW(ThousandsList(_xlfn.XLOOKUP('Submission Form'!$C274,LibraryTypes,LibraryTypes!$B$19:$I$19,\"\"))),\"\")","v":""}]
[{"$f":"IFERROR(_xlfn.TOROW(ThousandsList(_xlfn.XLOOKUP('Submission Form'!$C275,LibraryTypes,LibraryTypes!$B$19:$I$19,\"\"))),\"\")","v":""}]
[{"$f":"IFERROR(_xlfn.TOROW(ThousandsList(_xlfn.XLOOKUP('Submission Form'!$C276,LibraryTypes,LibraryTypes!$B$19:$I$19,\"\"))),\"\")","v":""}]
[{"$f":"IFERROR(_xlfn.TOROW(ThousandsList(_xlfn.XLOOKUP('Submission Form'!$C277,LibraryTypes,LibraryTypes!$B$19:$I$19,\"\"))),\"\")","v":""}]
[{"$f":"IFERROR(_xlfn.TOROW(ThousandsList(_xlfn.XLOOKUP('Submission Form'!$C278,LibraryTypes,LibraryTypes!$B$19:$I$19,\"\"))),\"\")","v":""}]
[{"$f":"IFERROR(_xlfn.TOROW(ThousandsList(_xlfn.XLOOKUP('Submission Form'!$C279,LibraryTypes,LibraryTypes!$B$19:$I$19,\"\"))),\"\")","v":""}]
[{"$f":"IFERROR(_xlfn.TOROW(ThousandsList(_xlfn.XLOOKUP('Submission Form'!$C280,LibraryTypes,LibraryTypes!$B$19:$I$19,\"\"))),\"\")","v":""}]
[{"$f":"IFERROR(_xlfn.TOROW(ThousandsList(_xlfn.XLOOKUP('Submission Form'!$C281,LibraryTypes,LibraryTypes!$B$19:$I$19,\"\"))),\"\")","v":""}]
[{"$f":"IFERROR(_xlfn.TOROW(ThousandsList(_xlfn.XLOOKUP('Submission Form'!$C282,LibraryTypes,LibraryTypes!$B$19:$I$19,\"\"))),\"\")","v":""}]
[{"$f":"IFERROR(_xlfn.TOROW(ThousandsList(_xlfn.XLOOKUP('Submission Form'!$C283,LibraryTypes,LibraryTypes!$B$19:$I$19,\"\"))),\"\")","v":""}]
[{"$f":"IFERROR(_xlfn.TOROW(ThousandsList(_xlfn.XLOOKUP('Submission Form'!$C284,LibraryTypes,LibraryTypes!$B$19:$I$19,\"\"))),\"\")","v":""}]
[{"$f":"IFERROR(_xlfn.TOROW(ThousandsList(_xlfn.XLOOKUP('Submission Form'!$C285,LibraryTypes,LibraryTypes!$B$19:$I$19,\"\"))),\"\")","v":""}]
[{"$f":"IFERROR(_xlfn.TOROW(ThousandsList(_xlfn.XLOOKUP('Submission Form'!$C286,LibraryTypes,LibraryTypes!$B$19:$I$19,\"\"))),\"\")","v":""}]
[{"$f":"IFERROR(_xlfn.TOROW(ThousandsList(_xlfn.XLOOKUP('Submission Form'!$C287,LibraryTypes,LibraryTypes!$B$19:$I$19,\"\"))),\"\")","v":""}]
[{"$f":"IFERROR(_xlfn.TOROW(ThousandsList(_xlfn.XLOOKUP('Submission Form'!$C288,LibraryTypes,LibraryTypes!$B$19:$I$19,\"\"))),\"\")","v":""}]
[{"$f":"IFERROR(_xlfn.TOROW(ThousandsList(_xlfn.XLOOKUP('Submission Form'!$C289,LibraryTypes,LibraryTypes!$B$19:$I$19,\"\"))),\"\")","v":""}]
[{"$f":"IFERROR(_xlfn.TOROW(ThousandsList(_xlfn.XLOOKUP('Submission Form'!$C290,LibraryTypes,LibraryTypes!$B$19:$I$19,\"\"))),\"\")","v":""}]
[{"$f":"IFERROR(_xlfn.TOROW(ThousandsList(_xlfn.XLOOKUP('Submission Form'!$C291,LibraryTypes,LibraryTypes!$B$19:$I$19,\"\"))),\"\")","v":""}]
[{"$f":"IFERROR(_xlfn.TOROW(ThousandsList(_xlfn.XLOOKUP('Submission Form'!$C292,LibraryTypes,LibraryTypes!$B$19:$I$19,\"\"))),\"\")","v":""}]
[{"$f":"IFERROR(_xlfn.TOROW(ThousandsList(_xlfn.XLOOKUP('Submission Form'!$C293,LibraryTypes,LibraryTypes!$B$19:$I$19,\"\"))),\"\")","v":""}]
[{"$f":"IFERROR(_xlfn.TOROW(ThousandsList(_xlfn.XLOOKUP('Submission Form'!$C294,LibraryTypes,LibraryTypes!$B$19:$I$19,\"\"))),\"\")","v":""}]
[{"$f":"IFERROR(_xlfn.TOROW(ThousandsList(_xlfn.XLOOKUP('Submission Form'!$C295,LibraryTypes,LibraryTypes!$B$19:$I$19,\"\"))),\"\")","v":""}]
[{"$f":"IFERROR(_xlfn.TOROW(ThousandsList(_xlfn.XLOOKUP('Submission Form'!$C296,LibraryTypes,LibraryTypes!$B$19:$I$19,\"\"))),\"\")","v":""}]
[{"$f":"IFERROR(_xlfn.TOROW(ThousandsList(_xlfn.XLOOKUP('Submission Form'!$C297,LibraryTypes,LibraryTypes!$B$19:$I$19,\"\"))),\"\")","v":""}]
[{"$f":"IFERROR(_xlfn.TOROW(ThousandsList(_xlfn.XLOOKUP('Submission Form'!$C298,LibraryTypes,LibraryTypes!$B$19:$I$19,\"\"))),\"\")","v":""}]
[{"$f":"IFERROR(_xlfn.TOROW(ThousandsList(_xlfn.XLOOKUP('Submission Form'!$C299,LibraryTypes,LibraryTypes!$B$19:$I$19,\"\"))),\"\")","v":""}]
[{"$f":"IFERROR(_xlfn.TOROW(ThousandsList(_xlfn.XLOOKUP('Submission Form'!$C300,LibraryTypes,LibraryTypes!$B$19:$I$19,\"\"))),\"\")","v":""}]
[{"$f":"IFERROR(_xlfn.TOROW(ThousandsList(_xlfn.XLOOKUP('Submission Form'!$C301,LibraryTypes,LibraryTypes!$B$19:$I$19,\"\"))),\"\")","v":""}]
[{"$f":"IFERROR(_xlfn.TOROW(ThousandsList(_xlfn.XLOOKUP('Submission Form'!$C302,LibraryTypes,LibraryTypes!$B$19:$I$19,\"\"))),\"\")","v":""}]
[{"$f":"IFERROR(_xlfn.TOROW(ThousandsList(_xlfn.XLOOKUP('Submission Form'!$C303,LibraryTypes,LibraryTypes!$B$19:$I$19,\"\"))),\"\")","v":""}]
[{"$f":"IFERROR(_xlfn.TOROW(ThousandsList(_xlfn.XLOOKUP('Submission Form'!$C304,LibraryTypes,LibraryTypes!$B$19:$I$19,\"\"))),\"\")","v":""}]
[{"$f":"IFERROR(_xlfn.TOROW(ThousandsList(_xlfn.XLOOKUP('Submission Form'!$C305,LibraryTypes,LibraryTypes!$B$19:$I$19,\"\"))),\"\")","v":""}]
[{"$f":"IFERROR(_xlfn.TOROW(ThousandsList(_xlfn.XLOOKUP('Submission Form'!$C306,LibraryTypes,LibraryTypes!$B$19:$I$19,\"\"))),\"\")","v":""}]
[{"$f":"IFERROR(_xlfn.TOROW(ThousandsList(_xlfn.XLOOKUP('Submission Form'!$C307,LibraryTypes,LibraryTypes!$B$19:$I$19,\"\"))),\"\")","v":""}]
[{"$f":"IFERROR(_xlfn.TOROW(ThousandsList(_xlfn.XLOOKUP('Submission Form'!$C308,LibraryTypes,LibraryTypes!$B$19:$I$19,\"\"))),\"\")","v":""}]
[{"$f":"IFERROR(_xlfn.TOROW(ThousandsList(_xlfn.XLOOKUP('Submission Form'!$C309,LibraryTypes,LibraryTypes!$B$19:$I$19,\"\"))),\"\")","v":""}]
[{"$f":"IFERROR(_xlfn.TOROW(ThousandsList(_xlfn.XLOOKUP('Submission Form'!$C310,LibraryTypes,LibraryTypes!$B$19:$I$19,\"\"))),\"\")","v":""}]
[{"$f":"IFERROR(_xlfn.TOROW(ThousandsList(_xlfn.XLOOKUP('Submission Form'!$C311,LibraryTypes,LibraryTypes!$B$19:$I$19,\"\"))),\"\")","v":""}]
[{"$f":"IFERROR(_xlfn.TOROW(ThousandsList(_xlfn.XLOOKUP('Submission Form'!$C312,LibraryTypes,LibraryTypes!$B$19:$I$19,\"\"))),\"\")","v":""}]
[{"$f":"IFERROR(_xlfn.TOROW(ThousandsList(_xlfn.XLOOKUP('Submission Form'!$C313,LibraryTypes,LibraryTypes!$B$19:$I$19,\"\"))),\"\")","v":""}]
[{"$f":"IFERROR(_xlfn.TOROW(ThousandsList(_xlfn.XLOOKUP('Submission Form'!$C314,LibraryTypes,LibraryTypes!$B$19:$I$19,\"\"))),\"\")","v":""}]
[{"$f":"IFERROR(_xlfn.TOROW(ThousandsList(_xlfn.XLOOKUP('Submission Form'!$C315,LibraryTypes,LibraryTypes!$B$19:$I$19,\"\"))),\"\")","v":""}]
[{"$f":"IFERROR(_xlfn.TOROW(ThousandsList(_xlfn.XLOOKUP('Submission Form'!$C316,LibraryTypes,LibraryTypes!$B$19:$I$19,\"\"))),\"\")","v":""}]
[{"$f":"IFERROR(_xlfn.TOROW(ThousandsList(_xlfn.XLOOKUP('Submission Form'!$C317,LibraryTypes,LibraryTypes!$B$19:$I$19,\"\"))),\"\")","v":""}]
[{"$f":"IFERROR(_xlfn.TOROW(ThousandsList(_xlfn.XLOOKUP('Submission Form'!$C318,LibraryTypes,LibraryTypes!$B$19:$I$19,\"\"))),\"\")","v":""}]
[{"$f":"IFERROR(_xlfn.TOROW(ThousandsList(_xlfn.XLOOKUP('Submission Form'!$C319,LibraryTypes,LibraryTypes!$B$19:$I$19,\"\"))),\"\")","v":""}]
[{"$f":"IFERROR(_xlfn.TOROW(ThousandsList(_xlfn.XLOOKUP('Submission Form'!$C320,LibraryTypes,LibraryTypes!$B$19:$I$19,\"\"))),\"\")","v":""}]
[{"$f":"IFERROR(_xlfn.TOROW(ThousandsList(_xlfn.XLOOKUP('Submission Form'!$C321,LibraryTypes,LibraryTypes!$B$19:$I$19,\"\"))),\"\")","v":""}]
[{"$f":"IFERROR(_xlfn.TOROW(ThousandsList(_xlfn.XLOOKUP('Submission Form'!$C322,LibraryTypes,LibraryTypes!$B$19:$I$19,\"\"))),\"\")","v":""}]
[{"$f":"IFERROR(_xlfn.TOROW(ThousandsList(_xlfn.XLOOKUP('Submission Form'!$C323,LibraryTypes,LibraryTypes!$B$19:$I$19,\"\"))),\"\")","v":""}]
[{"$f":"IFERROR(_xlfn.TOROW(ThousandsList(_xlfn.XLOOKUP('Submission Form'!$C324,LibraryTypes,LibraryTypes!$B$19:$I$19,\"\"))),\"\")","v":""}]
[{"$f":"IFERROR(_xlfn.TOROW(ThousandsList(_xlfn.XLOOKUP('Submission Form'!$C325,LibraryTypes,LibraryTypes!$B$19:$I$19,\"\"))),\"\")","v":""}]
[{"$f":"IFERROR(_xlfn.TOROW(ThousandsList(_xlfn.XLOOKUP('Submission Form'!$C326,LibraryTypes,LibraryTypes!$B$19:$I$19,\"\"))),\"\")","v":""}]
[{"$f":"IFERROR(_xlfn.TOROW(ThousandsList(_xlfn.XLOOKUP('Submission Form'!$C327,LibraryTypes,LibraryTypes!$B$19:$I$19,\"\"))),\"\")","v":""}]
[{"$f":"IFERROR(_xlfn.TOROW(ThousandsList(_xlfn.XLOOKUP('Submission Form'!$C328,LibraryTypes,LibraryTypes!$B$19:$I$19,\"\"))),\"\")","v":""}]
[{"$f":"IFERROR(_xlfn.TOROW(ThousandsList(_xlfn.XLOOKUP('Submission Form'!$C329,LibraryTypes,LibraryTypes!$B$19:$I$19,\"\"))),\"\")","v":""}]
[{"$f":"IFERROR(_xlfn.TOROW(ThousandsList(_xlfn.XLOOKUP('Submission Form'!$C330,LibraryTypes,LibraryTypes!$B$19:$I$19,\"\"))),\"\")","v":""}]
[{"$f":"IFERROR(_xlfn.TOROW(ThousandsList(_xlfn.XLOOKUP('Submission Form'!$C331,LibraryTypes,LibraryTypes!$B$19:$I$19,\"\"))),\"\")","v":""}]
[{"$f":"IFERROR(_xlfn.TOROW(ThousandsList(_xlfn.XLOOKUP('Submission Form'!$C332,LibraryTypes,LibraryTypes!$B$19:$I$19,\"\"))),\"\")","v":""}]
[{"$f":"IFERROR(_xlfn.TOROW(ThousandsList(_xlfn.XLOOKUP('Submission Form'!$C333,LibraryTypes,LibraryTypes!$B$19:$I$19,\"\"))),\"\")","v":""}]
[{"$f":"IFERROR(_xlfn.TOROW(ThousandsList(_xlfn.XLOOKUP('Submission Form'!$C334,LibraryTypes,LibraryTypes!$B$19:$I$19,\"\"))),\"\")","v":""}]
[{"$f":"IFERROR(_xlfn.TOROW(ThousandsList(_xlfn.XLOOKUP('Submission Form'!$C335,LibraryTypes,LibraryTypes!$B$19:$I$19,\"\"))),\"\")","v":""}]
[{"$f":"IFERROR(_xlfn.TOROW(ThousandsList(_xlfn.XLOOKUP('Submission Form'!$C336,LibraryTypes,LibraryTypes!$B$19:$I$19,\"\"))),\"\")","v":""}]
[{"$f":"IFERROR(_xlfn.TOROW(ThousandsList(_xlfn.XLOOKUP('Submission Form'!$C337,LibraryTypes,LibraryTypes!$B$19:$I$19,\"\"))),\"\")","v":""}]
[{"$f":"IFERROR(_xlfn.TOROW(ThousandsList(_xlfn.XLOOKUP('Submission Form'!$C338,LibraryTypes,LibraryTypes!$B$19:$I$19,\"\"))),\"\")","v":""}]
[{"$f":"IFERROR(_xlfn.TOROW(ThousandsList(_xlfn.XLOOKUP('Submission Form'!$C339,LibraryTypes,LibraryTypes!$B$19:$I$19,\"\"))),\"\")","v":""}]
[{"$f":"IFERROR(_xlfn.TOROW(ThousandsList(_xlfn.XLOOKUP('Submission Form'!$C340,LibraryTypes,LibraryTypes!$B$19:$I$19,\"\"))),\"\")","v":""}]
[{"$f":"IFERROR(_xlfn.TOROW(ThousandsList(_xlfn.XLOOKUP('Submission Form'!$C341,LibraryTypes,LibraryTypes!$B$19:$I$19,\"\"))),\"\")","v":""}]
[{"$f":"IFERROR(_xlfn.TOROW(ThousandsList(_xlfn.XLOOKUP('Submission Form'!$C342,LibraryTypes,LibraryTypes!$B$19:$I$19,\"\"))),\"\")","v":""}]
[{"$f":"IFERROR(_xlfn.TOROW(ThousandsList(_xlfn.XLOOKUP('Submission Form'!$C343,LibraryTypes,LibraryTypes!$B$19:$I$19,\"\"))),\"\")","v":""}]
[{"$f":"IFERROR(_xlfn.TOROW(ThousandsList(_xlfn.XLOOKUP('Submission Form'!$C344,LibraryTypes,LibraryTypes!$B$19:$I$19,\"\"))),\"\")","v":""}]
[{"$f":"IFERROR(_xlfn.TOROW(ThousandsList(_xlfn.XLOOKUP('Submission Form'!$C345,LibraryTypes,LibraryTypes!$B$19:$I$19,\"\"))),\"\")","v":""}]
[{"$f":"IFERROR(_xlfn.TOROW(ThousandsList(_xlfn.XLOOKUP('Submission Form'!$C346,LibraryTypes,LibraryTypes!$B$19:$I$19,\"\"))),\"\")","v":""}]
[{"$f":"IFERROR(_xlfn.TOROW(ThousandsList(_xlfn.XLOOKUP('Submission Form'!$C347,LibraryTypes,LibraryTypes!$B$19:$I$19,\"\"))),\"\")","v":""}]
[{"$f":"IFERROR(_xlfn.TOROW(ThousandsList(_xlfn.XLOOKUP('Submission Form'!$C348,LibraryTypes,LibraryTypes!$B$19:$I$19,\"\"))),\"\")","v":""}]
[{"$f":"IFERROR(_xlfn.TOROW(ThousandsList(_xlfn.XLOOKUP('Submission Form'!$C349,LibraryTypes,LibraryTypes!$B$19:$I$19,\"\"))),\"\")","v":""}]
[{"$f":"IFERROR(_xlfn.TOROW(ThousandsList(_xlfn.XLOOKUP('Submission Form'!$C350,LibraryTypes,LibraryTypes!$B$19:$I$19,\"\"))),\"\")","v":""}]
[{"$f":"IFERROR(_xlfn.TOROW(ThousandsList(_xlfn.XLOOKUP('Submission Form'!$C351,LibraryTypes,LibraryTypes!$B$19:$I$19,\"\"))),\"\")","v":""}]
[{"$f":"IFERROR(_xlfn.TOROW(ThousandsList(_xlfn.XLOOKUP('Submission Form'!$C352,LibraryTypes,LibraryTypes!$B$19:$I$19,\"\"))),\"\")","v":""}]
[{"$f":"IFERROR(_xlfn.TOROW(ThousandsList(_xlfn.XLOOKUP('Submission Form'!$C353,LibraryTypes,LibraryTypes!$B$19:$I$19,\"\"))),\"\")","v":""}]
[{"$f":"IFERROR(_xlfn.TOROW(ThousandsList(_xlfn.XLOOKUP('Submission Form'!$C354,LibraryTypes,LibraryTypes!$B$19:$I$19,\"\"))),\"\")","v":""}]
[{"$f":"IFERROR(_xlfn.TOROW(ThousandsList(_xlfn.XLOOKUP('Submission Form'!$C355,LibraryTypes,LibraryTypes!$B$19:$I$19,\"\"))),\"\")","v":""}]
[{"$f":"IFERROR(_xlfn.TOROW(ThousandsList(_xlfn.XLOOKUP('Submission Form'!$C356,LibraryTypes,LibraryTypes!$B$19:$I$19,\"\"))),\"\")","v":""}]
[{"$f":"IFERROR(_xlfn.TOROW(ThousandsList(_xlfn.XLOOKUP('Submission Form'!$C357,LibraryTypes,LibraryTypes!$B$19:$I$19,\"\"))),\"\")","v":""}]
[{"$f":"IFERROR(_xlfn.TOROW(ThousandsList(_xlfn.XLOOKUP('Submission Form'!$C358,LibraryTypes,LibraryTypes!$B$19:$I$19,\"\"))),\"\")","v":""}]
[{"$f":"IFERROR(_xlfn.TOROW(ThousandsList(_xlfn.XLOOKUP('Submission Form'!$C359,LibraryTypes,LibraryTypes!$B$19:$I$19,\"\"))),\"\")","v":""}]
[{"$f":"IFERROR(_xlfn.TOROW(ThousandsList(_xlfn.XLOOKUP('Submission Form'!$C360,LibraryTypes,LibraryTypes!$B$19:$I$19,\"\"))),\"\")","v":""}]
[{"$f":"IFERROR(_xlfn.TOROW(ThousandsList(_xlfn.XLOOKUP('Submission Form'!$C361,LibraryTypes,LibraryTypes!$B$19:$I$19,\"\"))),\"\")","v":""}]
[{"$f":"IFERROR(_xlfn.TOROW(ThousandsList(_xlfn.XLOOKUP('Submission Form'!$C362,LibraryTypes,LibraryTypes!$B$19:$I$19,\"\"))),\"\")","v":""}]
[{"$f":"IFERROR(_xlfn.TOROW(ThousandsList(_xlfn.XLOOKUP('Submission Form'!$C363,LibraryTypes,LibraryTypes!$B$19:$I$19,\"\"))),\"\")","v":""}]
[{"$f":"IFERROR(_xlfn.TOROW(ThousandsList(_xlfn.XLOOKUP('Submission Form'!$C364,LibraryTypes,LibraryTypes!$B$19:$I$19,\"\"))),\"\")","v":""}]
[{"$f":"IFERROR(_xlfn.TOROW(ThousandsList(_xlfn.XLOOKUP('Submission Form'!$C365,LibraryTypes,LibraryTypes!$B$19:$I$19,\"\"))),\"\")","v":""}]
[{"$f":"IFERROR(_xlfn.TOROW(ThousandsList(_xlfn.XLOOKUP('Submission Form'!$C366,LibraryTypes,LibraryTypes!$B$19:$I$19,\"\"))),\"\")","v":""}]
[{"$f":"IFERROR(_xlfn.TOROW(ThousandsList(_xlfn.XLOOKUP('Submission Form'!$C367,LibraryTypes,LibraryTypes!$B$19:$I$19,\"\"))),\"\")","v":""}]
[{"$f":"IFERROR(_xlfn.TOROW(ThousandsList(_xlfn.XLOOKUP('Submission Form'!$C368,LibraryTypes,LibraryTypes!$B$19:$I$19,\"\"))),\"\")","v":""}]
[{"$f":"IFERROR(_xlfn.TOROW(ThousandsList(_xlfn.XLOOKUP('Submission Form'!$C369,LibraryTypes,LibraryTypes!$B$19:$I$19,\"\"))),\"\")","v":""}]
[{"$f":"IFERROR(_xlfn.TOROW(ThousandsList(_xlfn.XLOOKUP('Submission Form'!$C370,LibraryTypes,LibraryTypes!$B$19:$I$19,\"\"))),\"\")","v":""}]
[{"$f":"IFERROR(_xlfn.TOROW(ThousandsList(_xlfn.XLOOKUP('Submission Form'!$C371,LibraryTypes,LibraryTypes!$B$19:$I$19,\"\"))),\"\")","v":""}]
[{"$f":"IFERROR(_xlfn.TOROW(ThousandsList(_xlfn.XLOOKUP('Submission Form'!$C372,LibraryTypes,LibraryTypes!$B$19:$I$19,\"\"))),\"\")","v":""}]
[{"$f":"IFERROR(_xlfn.TOROW(ThousandsList(_xlfn.XLOOKUP('Submission Form'!$C373,LibraryTypes,LibraryTypes!$B$19:$I$19,\"\"))),\"\")","v":""}]
[{"$f":"IFERROR(_xlfn.TOROW(ThousandsList(_xlfn.XLOOKUP('Submission Form'!$C374,LibraryTypes,LibraryTypes!$B$19:$I$19,\"\"))),\"\")","v":""}]
[{"$f":"IFERROR(_xlfn.TOROW(ThousandsList(_xlfn.XLOOKUP('Submission Form'!$C375,LibraryTypes,LibraryTypes!$B$19:$I$19,\"\"))),\"\")","v":""}]
[{"$f":"IFERROR(_xlfn.TOROW(ThousandsList(_xlfn.XLOOKUP('Submission Form'!$C376,LibraryTypes,LibraryTypes!$B$19:$I$19,\"\"))),\"\")","v":""}]
[{"$f":"IFERROR(_xlfn.TOROW(ThousandsList(_xlfn.XLOOKUP('Submission Form'!$C377,LibraryTypes,LibraryTypes!$B$19:$I$19,\"\"))),\"\")","v":""}]
[{"$f":"IFERROR(_xlfn.TOROW(ThousandsList(_xlfn.XLOOKUP('Submission Form'!$C378,LibraryTypes,LibraryTypes!$B$19:$I$19,\"\"))),\"\")","v":""}]
[{"$f":"IFERROR(_xlfn.TOROW(ThousandsList(_xlfn.XLOOKUP('Submission Form'!$C379,LibraryTypes,LibraryTypes!$B$19:$I$19,\"\"))),\"\")","v":""}]
[{"$f":"IFERROR(_xlfn.TOROW(ThousandsList(_xlfn.XLOOKUP('Submission Form'!$C380,LibraryTypes,LibraryTypes!$B$19:$I$19,\"\"))),\"\")","v":""}]
[{"$f":"IFERROR(_xlfn.TOROW(ThousandsList(_xlfn.XLOOKUP('Submission Form'!$C381,LibraryTypes,LibraryTypes!$B$19:$I$19,\"\"))),\"\")","v":""}]
[{"$f":"IFERROR(_xlfn.TOROW(ThousandsList(_xlfn.XLOOKUP('Submission Form'!$C382,LibraryTypes,LibraryTypes!$B$19:$I$19,\"\"))),\"\")","v":""}]
[{"$f":"IFERROR(_xlfn.TOROW(ThousandsList(_xlfn.XLOOKUP('Submission Form'!$C383,LibraryTypes,LibraryTypes!$B$19:$I$19,\"\"))),\"\")","v":""}]
[{"$f":"IFERROR(_xlfn.TOROW(ThousandsList(_xlfn.XLOOKUP('Submission Form'!$C384,LibraryTypes,LibraryTypes!$B$19:$I$19,\"\"))),\"\")","v":""}]
[{"$f":"IFERROR(_xlfn.TOROW(ThousandsList(_xlfn.XLOOKUP('Submission Form'!$C385,LibraryTypes,LibraryTypes!$B$19:$I$19,\"\"))),\"\")","v":""}]
[{"$f":"IFERROR(_xlfn.TOROW(ThousandsList(_xlfn.XLOOKUP('Submission Form'!$C386,LibraryTypes,LibraryTypes!$B$19:$I$19,\"\"))),\"\")","v":""}]
[{"$f":"IFERROR(_xlfn.TOROW(ThousandsList(_xlfn.XLOOKUP('Submission Form'!$C387,LibraryTypes,LibraryTypes!$B$19:$I$19,\"\"))),\"\")","v":""}]
[{"$f":"IFERROR(_xlfn.TOROW(ThousandsList(_xlfn.XLOOKUP('Submission Form'!$C388,LibraryTypes,LibraryTypes!$B$19:$I$19,\"\"))),\"\")","v":""}]
[{"$f":"IFERROR(_xlfn.TOROW(ThousandsList(_xlfn.XLOOKUP('Submission Form'!$C389,LibraryTypes,LibraryTypes!$B$19:$I$19,\"\"))),\"\")","v":""}]
[{"$f":"IFERROR(_xlfn.TOROW(ThousandsList(_xlfn.XLOOKUP('Submission Form'!$C390,LibraryTypes,LibraryTypes!$B$19:$I$19,\"\"))),\"\")","v":""}]
[{"$f":"IFERROR(_xlfn.TOROW(ThousandsList(_xlfn.XLOOKUP('Submission Form'!$C391,LibraryTypes,LibraryTypes!$B$19:$I$19,\"\"))),\"\")","v":""}]
[{"$f":"IFERROR(_xlfn.TOROW(ThousandsList(_xlfn.XLOOKUP('Submission Form'!$C392,LibraryTypes,LibraryTypes!$B$19:$I$19,\"\"))),\"\")","v":""}]
[{"$f":"IFERROR(_xlfn.TOROW(ThousandsList(_xlfn.XLOOKUP('Submission Form'!$C393,LibraryTypes,LibraryTypes!$B$19:$I$19,\"\"))),\"\")","v":""}]
[{"$f":"IFERROR(_xlfn.TOROW(ThousandsList(_xlfn.XLOOKUP('Submission Form'!$C394,LibraryTypes,LibraryTypes!$B$19:$I$19,\"\"))),\"\")","v":""}]
[{"$f":"IFERROR(_xlfn.TOROW(ThousandsList(_xlfn.XLOOKUP('Submission Form'!$C395,LibraryTypes,LibraryTypes!$B$19:$I$19,\"\"))),\"\")","v":""}]
[{"$f":"IFERROR(_xlfn.TOROW(ThousandsList(_xlfn.XLOOKUP('Submission Form'!$C396,LibraryTypes,LibraryTypes!$B$19:$I$19,\"\"))),\"\")","v":""}]
[{"$f":"IFERROR(_xlfn.TOROW(ThousandsList(_xlfn.XLOOKUP('Submission Form'!$C397,LibraryTypes,LibraryTypes!$B$19:$I$19,\"\"))),\"\")","v":""}]
[{"$f":"IFERROR(_xlfn.TOROW(ThousandsList(_xlfn.XLOOKUP('Submission Form'!$C398,LibraryTypes,LibraryTypes!$B$19:$I$19,\"\"))),\"\")","v":""}]
[{"$f":"IFERROR(_xlfn.TOROW(ThousandsList(_xlfn.XLOOKUP('Submission Form'!$C399,LibraryTypes,LibraryTypes!$B$19:$I$19,\"\"))),\"\")","v":""}]
[{"$f":"IFERROR(_xlfn.TOROW(ThousandsList(_xlfn.XLOOKUP('Submission Form'!$C400,LibraryTypes,LibraryTypes!$B$19:$I$19,\"\"))),\"\")","v":""}]
[{"$f":"IFERROR(_xlfn.TOROW(ThousandsList(_xlfn.XLOOKUP('Submission Form'!$C401,LibraryTypes,LibraryTypes!$B$19:$I$19,\"\"))),\"\")","v":""}]
[{"$f":"IFERROR(_xlfn.TOROW(ThousandsList(_xlfn.XLOOKUP('Submission Form'!$C402,LibraryTypes,LibraryTypes!$B$19:$I$19,\"\"))),\"\")","v":""}]
[{"$f":"IFERROR(_xlfn.TOROW(ThousandsList(_xlfn.XLOOKUP('Submission Form'!$C403,LibraryTypes,LibraryTypes!$B$19:$I$19,\"\"))),\"\")","v":""}]
[{"$f":"IFERROR(_xlfn.TOROW(ThousandsList(_xlfn.XLOOKUP('Submission Form'!$C404,LibraryTypes,LibraryTypes!$B$19:$I$19,\"\"))),\"\")","v":""}]
[{"$f":"IFERROR(_xlfn.TOROW(ThousandsList(_xlfn.XLOOKUP('Submission Form'!$C405,LibraryTypes,LibraryTypes!$B$19:$I$19,\"\"))),\"\")","v":""}]
[{"$f":"IFERROR(_xlfn.TOROW(ThousandsList(_xlfn.XLOOKUP('Submission Form'!$C406,LibraryTypes,LibraryTypes!$B$19:$I$19,\"\"))),\"\")","v":""}]
[{"$f":"IFERROR(_xlfn.TOROW(ThousandsList(_xlfn.XLOOKUP('Submission Form'!$C407,LibraryTypes,LibraryTypes!$B$19:$I$19,\"\"))),\"\")","v":""}]
[{"$f":"IFERROR(_xlfn.TOROW(ThousandsList(_xlfn.XLOOKUP('Submission Form'!$C408,LibraryTypes,LibraryTypes!$B$19:$I$19,\"\"))),\"\")","v":""}]
[{"$f":"IFERROR(_xlfn.TOROW(ThousandsList(_xlfn.XLOOKUP('Submission Form'!$C409,LibraryTypes,LibraryTypes!$B$19:$I$19,\"\"))),\"\")","v":""}]
[{"$f":"IFERROR(_xlfn.TOROW(ThousandsList(_xlfn.XLOOKUP('Submission Form'!$C410,LibraryTypes,LibraryTypes!$B$19:$I$19,\"\"))),\"\")","v":""}]
[{"$f":"IFERROR(_xlfn.TOROW(ThousandsList(_xlfn.XLOOKUP('Submission Form'!$C411,LibraryTypes,LibraryTypes!$B$19:$I$19,\"\"))),\"\")","v":""}]
[{"$f":"IFERROR(_xlfn.TOROW(ThousandsList(_xlfn.XLOOKUP('Submission Form'!$C412,LibraryTypes,LibraryTypes!$B$19:$I$19,\"\"))),\"\")","v":""}]
[{"$f":"IFERROR(_xlfn.TOROW(ThousandsList(_xlfn.XLOOKUP('Submission Form'!$C413,LibraryTypes,LibraryTypes!$B$19:$I$19,\"\"))),\"\")","v":""}]
[{"$f":"IFERROR(_xlfn.TOROW(ThousandsList(_xlfn.XLOOKUP('Submission Form'!$C414,LibraryTypes,LibraryTypes!$B$19:$I$19,\"\"))),\"\")","v":""}]
[{"$f":"IFERROR(_xlfn.TOROW(ThousandsList(_xlfn.XLOOKUP('Submission Form'!$C415,LibraryTypes,LibraryTypes!$B$19:$I$19,\"\"))),\"\")","v":""}]
[{"$f":"IFERROR(_xlfn.TOROW(ThousandsList(_xlfn.XLOOKUP('Submission Form'!$C416,LibraryTypes,LibraryTypes!$B$19:$I$19,\"\"))),\"\")","v":""}]